Workbook

Sheet Filtro
A1: Mes | B1: (Todas)
A2: Establecimiento | B2: (Todas)
A3: Comuna/ Hospital | B3: (Todas)
A5: Etiquetas de fila | B5: Suma de Col01 | C5: Suma de Col02 | D5: Suma de Col03 | E5: Suma de Col04 | F5: Suma de Col05 | G5: Suma de Col06 | H5: Suma de Col07 | I5: Suma de Col08 | J5: Suma de Col09 | K5: Suma de Col10 | L5: Suma de Col11 | M5: Suma de Col12 | N5: Suma de Col13 | O5: Suma de Col14 | P5: Suma de Col15 | Q5: Suma de Col16 | R5: Suma de Col17 | S5: Suma de Col18 | T5: Suma de Col19 | U5: Suma de Col20 | V5: Suma de Col21 | W5: Suma de Col22 | X5: Suma de Col23 | Y5: Suma de Col24 | Z5: Suma de Col25 | AA5: Suma de Col26 | AB5: Suma de Col27 | AC5: Suma de Col28 | AD5: Suma de Col29 | AE5: Suma de Col30 | AF5: Suma de Col31 | AG5: Suma de Col32 | AH5: Suma de Col33 | AI5: Suma de Col34 | AJ5: Suma de Col35 | AK5: Suma de Col36
A6: 01010014 | B6: 68168 | C6: 68168 | D6: 68168 | Z6: 0 | AA6: 68135 | AB6: 33 | AJ6: 1036680 | AK6: 433548480
A7: 01010020 | B7: 2180 | C7: 2180 | D7: 2180 | E7: 0 | F7: 0 | Z7: 0 | AA7: 2180 | AB7: 0 | AJ7: 392830 | AK7: 5253800
A8: 01010021 | B8: 25299 | C8: 25298 | D8: 25298 | E8: 0 | F8: 1 | Z8: 0 | AA8: 3199 | AB8: 22103 | AJ8: 127140 | AK8: 19732440
A9: 01010022 | B9: 21318 | C9: 21292 | D9: 21292 | E9: 0 | F9: 26 | Z9: 9785 | AA9: 11155 | AB9: 378 | AJ9: 312960 | AK9: 40880640
A10: 01010025 | B10: 23717 | C10: 23578 | D10: 23578 | E10: 0 | F10: 139 | Z10: 0 | AA10: 23463 | AB10: 254 | AC10: 760
A11: 01010029 | B11: 646 | C11: 646 | D11: 646 | F11: 0 | Z11: 0 | AA11: 646 | AB11: 0 | AJ11: 765600 | AK11: 2997440
A12: 01010031 | B12: 244 | C12: 244 | D12: 244 | F12: 0 | Z12: 0 | AA12: 244 | AB12: 0 | AJ12: 420750 | AK12: 622200
A13: 01010032 | B13: 0 | C13: 0 | D13: 0 | F13: 0 | Z13: 0 | AA13: 0 | AB13: 0 | AJ13: 128700 | AK13: 0
A14: 01010033 | B14: 1658 | C14: 1658 | D14: 1658 | E14: 0 | F14: 0 | Z14: 367 | AA14: 1262 | AB14: 0
A15: 01010035 | B15: 2562 | C15: 2561 | D15: 2561 | E15: 0 | F15: 1 | Z15: 2 | AA15: 2546 | AB15: 0 | AJ15: 362440 | AK15: 5659810
A16: 01010036 | B16: 11010 | C16: 11010 | D16: 11010 | E16: 0 | F16: 0 | Z16: 10225 | AA16: 785 | AB16: 0 | AJ16: 208280 | AK16: 13982700
A17: 01010037 | B17: 20639 | C17: 20552 | D17: 20552 | E17: 0 | F17: 87 | Z17: 14943 | AA17: 5662 | AB17: 0
A18: 01010038 | B18: 8246 | C18: 8246 | D18: 8246 | E18: 0 | F18: 0 | Z18: 7220 | AA18: 935 | AB18: 58
A19: 01010042 | B19: 36503 | C19: 36479 | D19: 36469 | E19: 10 | F19: 24 | Z19: 3920 | AA19: 28832 | AB19: 3777 | AJ19: 138550 | AK19: 30998650
A20: 01010047 | B20: 2410 | C20: 2410 | D20: 2410 | Z20: 100 | AA20: 2293 | AB20: 0 | AH20: 75
A21: 01010048 | B21: 745909 | C21: 745909 | D21: 745909 | E21: 0 | F21: 0 | Z21: 168250 | AA21: 544592 | AB21: 33067
A22: 01010049 | B22: 1850 | C22: 1850 | D22: 1850 | E22: 0 | F22: 0 | Z22: 0 | AA22: 1850 | AB22: 0
A23: 01010050 | B23: 2284 | C23: 2284 | D23: 2284 | E23: 0 | F23: 0 | Z23: 1019 | AA23: 1265 | AB23: 0
A24: 01010051 | B24: 640 | C24: 640 | D24: 640 | E24: 0 | F24: 0 | Z24: 115 | AA24: 525 | AB24: 0
A25: 01010053 | B25: 309 | C25: 309 | D25: 309 | Z25: 214 | AA25: 95 | AB25: 0
A26: 01010054 | B26: 2343 | C26: 2343 | D26: 2343 | Z26: 2057 | AA26: 286 | AB26: 0
A27: 01010055 | B27: 17317 | C27: 17315 | D27: 17312 | E27: 3 | F27: 2 | Z27: 2083 | AA27: 14814 | AB27: 312
A28: 01010056 | B28: 310 | C28: 310 | D28: 310 | Z28: 181 | AA28: 129 | AB28: 0
A29: 01010057 | B29: 256 | C29: 256 | D29: 256 | Z29: 147 | AA29: 109 | AB29: 0
A30: 01010058 | B30: 313 | C30: 313 | D30: 313 | Z30: 177 | AA30: 136 | AB30: 0
A31: 01010060 | B31: 4 | C31: 4 | D31: 4 | Z31: 2 | AA31: 2
A32: 01010061 | B32: 416 | C32: 416 | D32: 416 | Z32: 19 | AA32: 397 | AB32: 0
A33: 01010062 | B33: 239 | C33: 239 | D33: 239 | Z33: 196 | AA33: 43 | AB33: 0
A34: 01010063 | B34: 982 | C34: 982 | D34: 982 | Z34: 577 | AA34: 405 | AB34: 0
A35: 01010065 | B35: 184 | C35: 184 | D35: 184 | AA35: 184
A36: 01010066 | B36: 27182 | C36: 27182 | D36: 27182 | Z36: 0 | AA36: 25734 | AB36: 1448 | AE36: 778
A37: 01010068 | B37: 21712 | C37: 21712 | D37: 21707 | E37: 5 | Z37: 3883 | AA37: 17829 | AB37: 0
A38: 01010069 | B38: 794 | C38: 794 | D38: 794 | Z38: 0 | AA38: 794 | AB38: 0
A39: 01010071 | B39: 1 | C39: 1 | D39: 1 | Z39: 1
A40: 01010080 | B40: 12 | C40: 10 | D40: 10 | E40: 0 | F40: 2 | Z40: 11 | AA40: 1 | AB40: 0
A41: 01010082 | B41: 8 | C41: 5 | D41: 5 | E41: 0 | F41: 3 | Z41: 8 | AA41: 0 | AB41: 0
A42: 01010106 | B42: 186 | C42: 186 | D42: 186 | Z42: 186
A43: 01010108 | B43: 1833 | C43: 1827 | D43: 1823 | E43: 4 | F43: 6 | Z43: 321 | AA43: 1484 | AB43: 30 | AG43: 127 | AH43: 52 | AI43: 4 | AJ43: 731850 | AK43: 8148810
A44: 01010109 | B44: 23 | C44: 23 | D44: 23 | E44: 0 | F44: 0 | Z44: 0 | AA44: 23 | AB44: 0 | AG44: 0 | AH44: 0 | AI44: 0 | AJ44: 899940 | AK44: 127650
A45: 01010112 | B45: 0 | C45: 0 | D45: 0 | E45: 0 | F45: 0 | Z45: 0 | AA45: 0 | AB45: 0 | AG45: 0 | AH45: 0 | AI45: 0 | AJ45: 648740 | AK45: 0
A46: 01010113 | B46: 231 | C46: 205 | D46: 205 | E46: 0 | F46: 26 | Z46: 25 | AA46: 206 | AB46: 0 | AG46: 26 | AH46: 10 | AI46: 0 | AJ46: 648740 | AK46: 815900
A47: 01010114 | B47: 27 | C47: 27 | D47: 27 | E47: 0 | F47: 0 | Z47: 9 | AA47: 18 | AB47: 0 | AG47: 10 | AH47: 19 | AI47: 0 | AJ47: 640940 | AK47: 107460
A48: 01010117 | B48: 22 | C48: 22 | D48: 22 | E48: 0 | F48: 0 | Z48: 0 | AA48: 16 | AB48: 6 | AG48: 0 | AH48: 0 | AI48: 0 | AJ48: 222360 | AK48: 30360
A49: 01010119 | B49: 33 | C49: 33 | D49: 33 | E49: 0 | F49: 0 | Z49: 4 | AA49: 27 | AB49: 2 | AG49: 0 | AH49: 0 | AI49: 4 | AJ49: 86470 | AK49: 35970
A50: 01010120 | B50: 6142 | C50: 6135 | D50: 6135 | E50: 0 | F50: 7 | Z50: 4370 | AA50: 1165 | AB50: 607 | AG50: 0 | AH50: 0 | AI50: 43 | AJ50: 186940 | AK50: 6687150
A51: 01010123 | B51: 1 | C51: 1 | D51: 1 | E51: 0 | F51: 0 | Z51: 0 | AA51: 1 | AB51: 0 | AG51: 0 | AH51: 0 | AI51: 0 | AJ51: 672940 | AK51: 4180
A52: 01010126 | B52: 0 | C52: 0 | D52: 0 | E52: 0 | F52: 0 | Z52: 0 | AA52: 0 | AB52: 0 | AG52: 0 | AH52: 0 | AI52: 0 | AJ52: 226740 | AK52: 0
A53: 01010127 | B53: 2318 | C53: 2307 | D53: 2304 | E53: 3 | F53: 11 | Z53: 780 | AA53: 1418 | AB53: 120 | AG53: 0 | AH53: 0 | AI53: 0 | AJ53: 328740 | AK53: 4561920
A54: 01010128 | B54: 0 | C54: 0 | D54: 0 | E54: 0 | F54: 0 | Z54: 0 | AA54: 0 | AB54: 0 | AG54: 0 | AH54: 13 | AI54: 0 | AJ54: 642740 | AK54: 0
A55: 01010130 | B55: 21 | C55: 21 | D55: 21 | E55: 0 | F55: 0 | Z55: 5 | AA55: 16 | AB55: 0 | AG55: 9 | AH55: 15 | AI55: 0 | AJ55: 329340 | AK55: 41580
A56: 01010131 | B56: 7 | C56: 7 | D56: 7 | E56: 0 | F56: 0 | Z56: 4 | AA56: 3 | AB56: 0 | AG56: 7 | AH56: 20 | AI56: 0 | AJ56: 684040 | AK56: 29260
A57: 01010132 | B57: 5482 | C57: 5407 | D57: 5403 | E57: 4 | F57: 75 | Z57: 739 | AA57: 4681 | AB57: 62 | AG57: 136 | AH57: 8 | AI57: 42 | AJ57: 825340 | AK57: 27447240
A58: 01010133 | B58: 1218 | C58: 1218 | D58: 1218 | E58: 0 | F58: 0 | Z58: 354 | AA58: 20 | AB58: 844 | AG58: 0 | AH58: 0 | AI58: 0 | AJ58: 674740 | AK58: 5091240
A59: 01010134 | B59: 1315 | C59: 1305 | D59: 1305 | E59: 0 | F59: 10 | Z59: 372 | AA59: 934 | AB59: 9 | AG59: 354 | AH59: 95 | AI59: 2 | AJ59: 329340 | AK59: 2588300
A60: 01010135 | B60: 666 | C60: 665 | D60: 665 | E60: 0 | F60: 1 | Z60: 272 | AA60: 393 | AB60: 1 | AG60: 391 | AH60: 91 | AI60: 1 | AJ60: 684040 | AK60: 2779700
A61: 01010136 | B61: 6288 | C61: 6158 | D61: 6152 | E61: 6 | F61: 130 | Z61: 479 | AA61: 5722 | AB61: 87 | AG61: 134 | AH61: 5 | AI61: 45 | AJ61: 819580 | AK61: 31046300
A62: 01010140 | B62: 66550 | C62: 66258 | D62: 66258 | E62: 0 | F62: 292 | Z62: 33192 | AA62: 17980 | AB62: 15378 | AG62: 0 | AH62: 0 | AI62: 60 | AJ62: 372880 | AK62: 149743080
A63: 01010141 | B63: 109 | C63: 109 | D63: 109 | E63: 0 | F63: 0 | Z63: 3 | AA63: 105 | AB63: 1 | AG63: 4 | AH63: 0 | AI63: 60 | AJ63: 603460 | AK63: 80140
A64: 01010142 | B64: 48932 | C64: 48745 | D64: 48745 | E64: 0 | F64: 187 | Z64: 19002 | AA64: 16302 | AB64: 13628 | AG64: 0 | AH64: 0 | AI64: 387 | AJ64: 101060 | AK64: 30221900
A65: 01010144 | B65: 52499 | C65: 51909 | D65: 51909 | E65: 0 | F65: 590 | Z65: 18342 | AA65: 20558 | AB65: 13599 | AG65: 0 | AH65: 0 | AI65: 275 | AJ65: 111740 | AK65: 32183580
A66: 01010146 | B66: 2354 | C66: 2354 | D66: 2354 | E66: 0 | F66: 0 | Z66: 7 | AA66: 2336 | AB66: 11 | AG66: 0 | AH66: 0 | AI66: 199 | AJ66: 681820 | AK66: 9962440
A67: 01010147 | B67: 34614 | C67: 31658 | D67: 31653 | E67: 5 | F67: 2956 | Z67: 2233 | AA67: 32215 | AB67: 167 | AG67: 0 | AH67: 288 | AI67: 4027 | AJ67: 696950 | AK67: 137374020
A68: 01010148 | B68: 0 | C68: 0 | D68: 0 | E68: 0 | F68: 0 | Z68: 0 | AA68: 0 | AB68: 0 | AG68: 0 | AH68: 0 | AI68: 0 | AJ68: 149410 | AK68: 0
A69: 01010150 | B69: 2337 | C69: 2337 | D69: 2337 | E69: 0 | F69: 0 | Z69: 142 | AA69: 1707 | AB69: 488 | AG69: 0 | AH69: 1 | AI69: 446 | AJ69: 723780 | AK69: 6695090
A70: 01010151 | B70: 231406 | C70: 226293 | D70: 225921 | E70: 372 | F70: 5113 | Z70: 57096 | AA70: 122931 | AB70: 51411 | AG70: 1 | AH70: 380 | AI70: 7631 | AJ70: 460150 | AK70: 646134060
A71: 01010154 | B71: 0 | C71: 0 | D71: 0 | E71: 0 | F71: 0 | Z71: 0 | AA71: 0 | AB71: 0 | AG71: 0 | AH71: 0 | AI71: 0 | AJ71: 148540 | AK71: 0
A72: 01010155 | B72: 0 | C72: 0 | D72: 0 | E72: 0 | F72: 0 | Z72: 0 | AA72: 0 | AB72: 0 | AG72: 0 | AH72: 0 | AI72: 0 | AJ72: 681340 | AK72: 0
A73: 01010157 | B73: 273 | C73: 272 | D73: 272 | E73: 0 | F73: 1 | Z73: 128 | AA73: 76 | AB73: 69 | AG73: 0 | AH73: 0 | AI73: 0 | AJ73: 672070 | AK73: 1136960
A74: 01010160 | B74: 18929 | C74: 18836 | D74: 18836 | E74: 0 | F74: 93 | Z74: 9345 | AA74: 5980 | AB74: 3604 | AG74: 0 | AH74: 0 | AI74: 97 | AJ74: 178540 | AK74: 20728730
A75: 01010165 | B75: 151258 | C75: 150481 | D75: 150273 | E75: 208 | F75: 777 | Z75: 39241 | AA75: 71130 | AB75: 40900 | AG75: 0 | AH75: 9 | AI75: 993 | AJ75: 223350 | AK75: 207376740
A76: 01010166 | B76: 60242 | C76: 55929 | D76: 55573 | E76: 356 | F76: 4313 | Z76: 16901 | AA76: 26625 | AB76: 16716 | AG76: 0 | AH76: 380 | AI76: 3933 | AJ76: 138550 | AK76: 47237050
A77: 01010167 | B77: 59965 | C77: 55652 | D77: 55296 | E77: 356 | F77: 4313 | Z77: 16893 | AA77: 26625 | AB77: 16447 | AG77: 0 | AH77: 380 | AI77: 3933 | AJ77: 137860 | AK77: 47001600
A78: 01010168 | B78: 34603 | C78: 34435 | D78: 34435 | E78: 0 | F78: 168 | Z78: 10560 | AA78: 10785 | AB78: 13258 | AG78: 0 | AH78: 0 | AI78: 0 | AJ78: 101060 | AK78: 21349700
A79: 01010169 | B79: 45055 | C79: 44886 | D79: 44886 | E79: 0 | F79: 169 | Z79: 16717 | AA79: 13590 | AB79: 14748 | AG79: 0 | AH79: 0 | AI79: 0 | AJ79: 102470 | AK79: 27829320
A80: 01010170 | B80: 60168 | C80: 55854 | D80: 55498 | E80: 356 | F80: 4314 | Z80: 16828 | AA80: 26624 | AB80: 16716 | AG80: 0 | AH80: 380 | AI80: 3933 | AJ80: 177670 | AK80: 60492820
A81: 01010171 | B81: 106195 | C81: 101711 | D81: 101354 | E81: 357 | F81: 4484 | Z81: 34594 | AA81: 40153 | AB81: 31448 | AG81: 0 | AH81: 380 | AI81: 3933 | AJ81: 176950 | AK81: 110475860
A82: 01010172 | B82: 233 | C82: 233 | D82: 233 | E82: 0 | F82: 0 | Z82: 137 | AA82: 91 | AB82: 5 | AG82: 0 | AH82: 0 | AI82: 0 | AJ82: 141130 | AK82: 198050
A83: 01010173 | B83: 2914 | C83: 2913 | D83: 2913 | E83: 0 | F83: 1 | Z83: 1463 | AA83: 17 | AB83: 1434 | AG83: 0 | AH83: 0 | AI83: 0 | AJ83: 282000 | AK83: 4981230
A84: 01010174 | B84: 0 | C84: 0 | D84: 0 | E84: 0 | F84: 0 | Z84: 0 | AA84: 0 | AB84: 0 | AG84: 0 | AH84: 0 | AI84: 0 | AJ84: 452140 | AK84: 0
A85: 01010176 | B85: 108 | C85: 108 | D85: 108 | E85: 0 | F85: 0 | Z85: 31 | AA85: 67 | AB85: 10 | AG85: 0 | AH85: 0 | AI85: 0 | AJ85: 235620 | AK85: 149040
A86: 01010185 | B86: 1194 | C86: 1190 | D86: 1190 | E86: 0 | F86: 4 | Z86: 335 | AA86: 854 | AB86: 5 | AG86: 303 | AH86: 0 | AI86: 0 | AJ86: 795530 | AK86: 5878600
A87: 01010186 | B87: 316 | C87: 316 | D87: 316 | E87: 0 | F87: 0 | Z87: 50 | AA87: 153 | AB87: 113 | AG87: 0 | AH87: 0 | AI87: 18 | AJ87: 280140 | AK87: 688880
A88: 01010188 | B88: 119674 | C88: 118951 | D88: 118733 | E88: 218 | F88: 723 | Z88: 38466 | AA88: 41530 | AB88: 39691 | AG88: 0 | AH88: 8 | AI88: 213 | AJ88: 350330 | AK88: 258692650
A89: 01010189 | B89: 46280 | C89: 42224 | D89: 42046 | E89: 178 | F89: 4056 | Z89: 8552 | AA89: 34099 | AB89: 3665 | AG89: 0 | AH89: 380 | AI89: 3738 | AJ89: 105630 | AK89: 21443460
A90: 01010192 | B90: 4 | C90: 4 | D90: 4 | E90: 0 | F90: 0 | Z90: 3 | AA90: 1 | AB90: 0 | AG90: 2 | AH90: 5 | AI90: 0 | AJ90: 1305630 | AK90: 32040
A91: 01010193 | B91: 0 | C91: 0 | D91: 0 | E91: 0 | F91: 0 | Z91: 0 | AA91: 0 | AB91: 0 | AG91: 0 | AH91: 3 | AI91: 0 | AJ91: 1364040 | AK91: 0
A92: 01010194 | B92: 32 | C92: 32 | D92: 32 | E92: 0 | F92: 0 | Z92: 14 | AA92: 18 | AB92: 0 | AG92: 15 | AH92: 58 | AI92: 0 | AJ92: 4486590 | AK92: 879360
A93: 01010195 | B93: 32 | C93: 32 | D93: 32 | E93: 0 | F93: 0 | Z93: 14 | AA93: 18 | AB93: 0 | AG93: 12 | AH93: 53 | AI93: 0 | AJ93: 4847690 | AK93: 957760
A94: 01010196 | B94: 0 | C94: 0 | D94: 0 | E94: 0 | F94: 0 | Z94: 0 | AA94: 0 | AB94: 0 | AG94: 0 | AH94: 2 | AI94: 0 | AJ94: 3267940 | AK94: 0
A95: 01010197 | B95: 41 | C95: 41 | D95: 41 | E95: 0 | F95: 0 | Z95: 12 | AA95: 1 | AB95: 28 | AG95: 0 | AH95: 3 | AI95: 0 | AJ95: 6808730 | AK95: 381710
A96: 01010198 | B96: 10813 | C96: 10737 | D96: 10727 | E96: 10 | F96: 76 | Z96: 2072 | AA96: 2863 | AB96: 5878 | AG96: 0 | AH96: 0 | AI96: 0 | AJ96: 1553650 | AK96: 99868370
A97: 01010199 | B97: 1724 | C97: 1719 | D97: 1719 | E97: 0 | F97: 5 | Z97: 151 | AA97: 1076 | AB97: 497 | AG97: 0 | AH97: 0 | AI97: 0 | AJ97: 129710 | AK97: 1323630
A98: 01010200 | B98: 0 | C98: 0 | D98: 0 | E98: 0 | F98: 0 | Z98: 0 | AA98: 0 | AB98: 0 | AG98: 0 | AH98: 0 | AI98: 0 | AJ98: 357820 | AK98: 0
A99: 01010201 | B99: 38311 | C99: 38209 | D99: 38113 | E99: 96 | F99: 102 | Z99: 19615 | AA99: 7328 | AB99: 11368 | AG99: 0 | AH99: 0 | AI99: 304 | AJ99: 570900 | AK99: 133636860
A100: 01010202 | B100: 37464 | C100: 36531 | D100: 36496 | E100: 35 | F100: 933 | Z100: 4343 | AA100: 32287 | AB100: 834 | AG100: 0 | AH100: 76 | AI100: 2780 | AJ100: 246630 | AK100: 54846950
A101: 01010204 | B101: 19567 | C101: 19413 | D101: 19386 | E101: 27 | F101: 154 | Z101: 2957 | AA101: 5538 | AB101: 11072 | AG101: 0 | AH101: 1 | AI101: 66 | AJ101: 369320 | AK101: 42843060
A102: 01010205 | B102: 0 | C102: 0 | D102: 0 | E102: 0 | F102: 0 | Z102: 0 | AA102: 0 | AB102: 0 | AG102: 0 | AH102: 0 | AI102: 0 | AJ102: 844340 | AK102: 0
A103: 01010206 | B103: 1537 | C103: 1531 | D103: 1531 | E103: 0 | F103: 6 | Z103: 328 | AA103: 963 | AB103: 246 | AG103: 0 | AH103: 0 | AI103: 0 | AJ103: 335160 | AK103: 3031380
A104: 01010207 | B104: 356 | C104: 356 | D104: 356 | E104: 0 | F104: 0 | Z104: 0 | AA104: 356 | AB104: 0 | AG104: 0 | AH104: 0 | AI104: 0 | AJ104: 981060 | AK104: 2178720
A105: 01010208 | B105: 1863 | C105: 1863 | D105: 1863 | E105: 0 | F105: 0 | Z105: 3 | AA105: 1860 | AB105: 0 | AG105: 0 | AH105: 0 | AI105: 3 | AJ105: 102920 | AK105: 1156920
A106: 01010209 | B106: 4357 | C106: 4352 | D106: 4350 | E106: 2 | F106: 5 | Z106: 889 | AA106: 2529 | AB106: 939 | AG106: 0 | AH106: 0 | AI106: 41 | AJ106: 202540 | AK106: 5478000
A107: 01010210 | B107: 13460 | C107: 13450 | D107: 13450 | E107: 0 | F107: 10 | Z107: 3663 | AA107: 8091 | AB107: 1706 | AG107: 0 | AH107: 0 | AI107: 59 | AJ107: 224070 | AK107: 18515180
A108: 01010212 | B108: 59624 | C108: 59018 | D108: 58953 | E108: 65 | F108: 606 | Z108: 26724 | AA108: 25894 | AB108: 7006 | AG108: 0 | AH108: 2 | AI108: 66 | AJ108: 180340 | AK108: 64258770
A109: 01010214 | B109: 0 | C109: 0 | D109: 0 | E109: 0 | F109: 0 | Z109: 0 | AA109: 0 | AB109: 0 | AG109: 0 | AH109: 0 | AI109: 0 | AJ109: 330210 | AK109: 0
A110: 01010215 | B110: 0 | C110: 0 | D110: 0 | E110: 0 | F110: 0 | Z110: 0 | AA110: 0 | AB110: 0 | AG110: 0 | AH110: 0 | AI110: 0 | AJ110: 724350 | AK110: 0
A111: 01010216 | B111: 16 | C111: 16 | D111: 16 | E111: 0 | F111: 0 | Z111: 8 | AA111: 8 | AB111: 0 | AG111: 14 | AH111: 2 | AI111: 0 | AJ111: 492350 | AK111: 48800
A112: 01010217 | B112: 992 | C112: 992 | D112: 992 | E112: 0 | F112: 0 | Z112: 17 | AA112: 939 | AB112: 36 | AG112: 0 | AH112: 2 | AI112: 1 | AJ112: 235870 | AK112: 1280800
A113: 01010218 | B113: 17049 | C113: 16693 | D113: 16693 | E113: 0 | F113: 356 | Z113: 857 | AA113: 15683 | AB113: 509 | AG113: 0 | AH113: 11 | AI113: 253 | AJ113: 212160 | AK113: 22030410
A114: 01010219 | B114: 19683 | C114: 19673 | D114: 19673 | E114: 0 | F114: 10 | Z114: 1327 | AA114: 16912 | AB114: 1474 | AG114: 0 | AH114: 0 | AI114: 40 | AJ114: 315570 | AK114: 37772160
A115: 01010220 | B115: 2083 | C115: 2083 | D115: 2083 | E115: 0 | F115: 0 | Z115: 113 | AA115: 1542 | AB115: 428 | AG115: 0 | AH115: 0 | AI115: 516 | AJ115: 450180 | AK115: 2624580
A116: 01010222 | B116: 235786 | C116: 230778 | D116: 230522 | E116: 256 | F116: 5008 | Z116: 60450 | AA116: 120140 | AB116: 55198 | AG116: 0 | AH116: 320 | AI116: 7460 | AJ116: 209970 | AK116: 290480670
A117: 01010223 | B117: 2335 | C117: 2327 | D117: 2327 | E117: 0 | F117: 8 | Z117: 293 | AA117: 1927 | AB117: 115 | AG117: 0 | AH117: 0 | AI117: 12 | AJ117: 459810 | AK117: 6693930
A118: 01010224 | B118: 17650 | C118: 17540 | D118: 17533 | E118: 7 | F118: 110 | Z118: 4083 | AA118: 4317 | AB118: 9250 | AG118: 0 | AH118: 0 | AI118: 5 | AJ118: 725430 | AK118: 78233650
A119: 01010225 | B119: 22954 | C119: 22825 | D119: 22818 | E119: 7 | F119: 129 | Z119: 5092 | AA119: 7611 | AB119: 10249 | AG119: 0 | AH119: 0 | AI119: 6 | AJ119: 573530 | AK119: 78293180
A120: 01010226 | B120: 20867 | C120: 20786 | D120: 20781 | E120: 5 | F120: 81 | Z120: 4914 | AA120: 2421 | AB120: 13534 | AG120: 5 | AH120: 0 | AI120: 2 | AJ120: 1495720 | AK120: 192976750
A121: 01010229 | B121: 22499 | C121: 22424 | D121: 22386 | E121: 38 | F121: 75 | Z121: 5623 | AA121: 10098 | AB121: 6778 | AG121: 108 | AH121: 2 | AI121: 51 | AJ121: 343050 | AK121: 45667440
A122: 01010230 | B122: 1721 | C122: 1721 | D122: 1721 | E122: 0 | F122: 0 | Z122: 115 | AA122: 1217 | AB122: 389 | AG122: 0 | AH122: 0 | AI122: 324 | AJ122: 891510 | AK122: 2013570
A123: 01010231 | B123: 555377 | C123: 547376 | D123: 546559 | E123: 817 | F123: 8001 | Z123: 226333 | AA123: 177743 | AB123: 151310 | AG123: 0 | AH123: 810 | AI123: 7570 | AJ123: 203850 | AK123: 639474030
A124: 01010232 | B124: 1090 | C124: 1090 | D124: 1090 | E124: 0 | F124: 0 | Z124: 13 | AA124: 1024 | AB124: 53 | AG124: 0 | AH124: 0 | AI124: 538 | AJ124: 905730 | AK124: 6441900
A125: 01010233 | B125: 82731 | C125: 77630 | D125: 77603 | E125: 27 | F125: 5101 | Z125: 8768 | AA125: 62265 | AB125: 1698 | AG125: 0 | AH125: 465 | AI125: 8624 | AJ125: 961530 | AK125: 458633730
A126: 01010234 | B126: 4138 | C126: 3626 | D126: 3626 | E126: 0 | F126: 512 | Z126: 501 | AA126: 3627 | AB126: 10 | AG126: 24 | AH126: 70 | AI126: 506 | AJ126: 855540 | AK126: 19254060
A127: 01010235 | B127: 0 | C127: 0 | D127: 0 | E127: 0 | F127: 0 | Z127: 0 | AA127: 0 | AB127: 0 | AG127: 0 | AH127: 0 | AI127: 0 | AJ127: 333000 | AK127: 0
A128: 01010238 | B128: 606 | C128: 606 | D128: 606 | E128: 0 | F128: 0 | Z128: 31 | AA128: 487 | AB128: 88 | AG128: 0 | AH128: 0 | AI128: 3 | AJ128: 867810 | AK128: 769620
A129: 01010239 | B129: 7833 | C129: 7688 | D129: 7687 | E129: 1 | F129: 145 | Z129: 782 | AA129: 5646 | AB129: 1405 | AG129: 0 | AH129: 0 | AI129: 47 | AJ129: 208120 | AK129: 9799120
A130: 01010241 | B130: 48145 | C130: 47585 | D130: 47532 | E130: 53 | F130: 560 | Z130: 24136 | AA130: 19846 | AB130: 4163 | AG130: 0 | AH130: 2 | AI130: 43 | AJ130: 264260 | AK130: 77952480
A131: 01010242 | B131: 95 | C131: 95 | D131: 95 | E131: 0 | F131: 0 | Z131: 18 | AA131: 29 | AB131: 48 | AG131: 8 | AH131: 0 | AI131: 3 | AJ131: 105530 | AK131: 200450
A132: 01010244 | B132: 18565 | C132: 18490 | D132: 18490 | E132: 0 | F132: 75 | Z132: 1790 | AA132: 10984 | AB132: 5791 | AG132: 58 | AH132: 0 | AI132: 99 | AJ132: 348160 | AK132: 39099910
A133: 01010245 | B133: 88437 | C133: 87960 | D133: 87864 | E133: 96 | F133: 477 | Z133: 45994 | AA133: 16411 | AB133: 25969 | AG133: 0 | AH133: 0 | AI133: 567 | AJ133: 566980 | AK133: 303572520
A134: 01010246 | B134: 145049 | C134: 139103 | D134: 138990 | E134: 113 | F134: 5946 | Z134: 18812 | AA134: 99845 | AB134: 26040 | AG134: 0 | AH134: 468 | AI134: 9000 | AJ134: 218610 | AK134: 175762440
A135: 01010247 | B135: 4503 | C135: 4165 | D135: 4164 | E135: 1 | F135: 338 | Z135: 158 | AA135: 4337 | AB135: 8 | AG135: 0 | AH135: 29 | AI135: 472 | AJ135: 919740 | AK135: 23609880
A136: 01010248 | B136: 856 | C136: 854 | D136: 854 | E136: 0 | F136: 2 | Z136: 185 | AA136: 560 | AB136: 111 | AG136: 0 | AH136: 0 | AI136: 0 | AJ136: 674740 | AK136: 3569720
A137: 01010250 | B137: 0 | C137: 0 | D137: 0 | E137: 0 | F137: 0 | Z137: 0 | AA137: 0 | AB137: 0 | AG137: 0 | AH137: 0 | AI137: 0 | AJ137: 323310 | AK137: 0
A138: 01010251 | B138: 21831 | C138: 21726 | D138: 21700 | E138: 26 | F138: 105 | Z138: 2802 | AA138: 7246 | AB138: 11783 | AG138: 15 | AH138: 1 | AI138: 19 | AJ138: 355570 | AK138: 47089000
A139: 01010254 | B139: 1010 | C139: 1006 | D139: 1006 | E139: 0 | F139: 4 | Z139: 119 | AA139: 845 | AB139: 46 | AG139: 3 | AH139: 8 | AI139: 3 | AJ139: 454770 | AK139: 2806740
A140: 01010255 | B140: 9527 | C140: 9369 | D140: 9352 | E140: 17 | F140: 158 | Z140: 2422 | AA140: 6421 | AB140: 684 | AG140: 14 | AH140: 1 | AI140: 520 | AJ140: 450180 | AK140: 22929570
A141: 01010256 | B141: 248432 | C141: 244964 | D141: 244495 | E141: 469 | F141: 3468 | Z141: 80316 | AA141: 89888 | AB141: 69210 | AG141: 0 | AH141: 184 | AI141: 4603 | AJ141: 206400 | AK141: 308063700
A142: 01010257 | B142: 20169 | C142: 20163 | D142: 20070 | E142: 93 | F142: 6 | Z142: 9600 | AA142: 2777 | AB142: 7792 | AG142: 0 | AH142: 1 | AI142: 8 | AJ142: 280030 | AK142: 32310710
A143: 01010258 | B143: 37642 | C143: 36909 | D143: 36902 | E143: 7 | F143: 733 | Z143: 4836 | AA143: 22662 | AB143: 10158 | AG143: 0 | AH143: 76 | AI143: 694 | AJ143: 1285710 | AK143: 295040540
A144: 01010261 | B144: 627 | C144: 627 | D144: 627 | E144: 0 | F144: 0 | Z144: 68 | AA144: 381 | AB144: 178 | AG144: 60 | AH144: 30 | AI144: 137 | AJ144: 958180 | AK144: 5988120
A145: 01010262 | B145: 114323 | C145: 111412 | D145: 111258 | E145: 154 | F145: 2911 | Z145: 26742 | AA145: 58080 | AB145: 29502 | AG145: 0 | AH145: 217 | AI145: 3482 | AJ145: 1615060 | AK145: 1106920200
A146: 01010263 | B146: 27582 | C146: 27358 | D146: 27358 | E146: 0 | F146: 224 | Z146: 2201 | AA146: 22234 | AB146: 3147 | AG146: 0 | AH146: 0 | AI146: 2132 | AJ146: 296150 | AK146: 49628700
A147: 01010264 | B147: 23776 | C147: 23570 | D147: 23569 | E147: 1 | F147: 206 | Z147: 2154 | AA147: 19492 | AB147: 2130 | AG147: 0 | AH147: 4 | AI147: 97 | AJ147: 272850 | AK147: 38888850
A148: 01010266 | B148: 581 | C148: 581 | D148: 581 | E148: 0 | F148: 0 | Z148: 93 | AA148: 484 | AB148: 4 | AG148: 1 | AH148: 0 | AI148: 0 | AJ148: 492250 | AK148: 1877350
A149: 01010267 | B149: 8698 | C149: 8572 | D149: 8566 | E149: 6 | F149: 126 | Z149: 1314 | AA149: 7288 | AB149: 96 | AG149: 933 | AH149: 8 | AI149: 100 | AJ149: 1120380 | AK149: 57827210
A150: 01010268 | B150: 11568 | C150: 11352 | D150: 11348 | E150: 4 | F150: 216 | Z150: 1160 | AA150: 10336 | AB150: 72 | AG150: 1169 | AH150: 475 | AI150: 166 | AJ150: 2281280 | AK150: 152744080
A151: 01010270 | B151: 3 | C151: 3 | D151: 3 | E151: 0 | F151: 0 | Z151: 3 | AA151: 0 | AB151: 0 | AG151: 0 | AH151: 3 | AI151: 0 | AJ151: 6815390 | AK151: 127680
A152: 01010271 | B152: 61343 | C152: 61116 | D152: 60895 | E152: 221 | F152: 227 | Z152: 26646 | AA152: 13755 | AB152: 20942 | AG152: 0 | AH152: 0 | AI152: 0 | AJ152: 331570 | AK152: 117527350
A153: 01010272 | B153: 0 | C153: 0 | D153: 0 | E153: 0 | F153: 0 | Z153: 0 | AA153: 0 | AB153: 0 | AG153: 0 | AH153: 0 | AI153: 0 | AJ153: 1270110 | AK153: 0
A154: 01010273 | B154: 707 | C154: 707 | D154: 707 | E154: 0 | F154: 0 | Z154: 12 | AA154: 695 | AB154: 0 | AG154: 11 | AH154: 6 | AI154: 0 | AJ154: 1250290 | AK154: 5436830
A155: 01010274 | B155: 14 | C155: 14 | D155: 14 | E155: 0 | F155: 0 | Z155: 9 | AA155: 5 | AB155: 0 | AG155: 12 | AH155: 26 | AI155: 0 | AJ155: 1075710 | AK155: 92820
A156: 01010275 | B156: 18 | C156: 18 | D156: 18 | E156: 0 | F156: 0 | Z156: 1 | AA156: 17 | AB156: 0 | AG156: 15 | AH156: 29 | AI156: 0 | AJ156: 813290 | AK156: 89460
A157: 01010276 | B157: 0 | C157: 0 | D157: 0 | E157: 0 | F157: 0 | Z157: 0 | AA157: 0 | AB157: 0 | AG157: 0 | AH157: 0 | AI157: 0 | AJ157: 979710 | AK157: 0
A158: 01010278 | B158: 1121 | C158: 1113 | D158: 1113 | E158: 0 | F158: 8 | Z158: 66 | AA158: 1054 | AB158: 1 | AG158: 61 | AH158: 32 | AI158: 8 | AJ158: 815090 | AK158: 5531610
A159: 01010279 | B159: 8 | C159: 8 | D159: 8 | E159: 0 | F159: 0 | Z159: 0 | AA159: 8 | AB159: 0 | AG159: 8 | AH159: 3 | AI159: 0 | AJ159: 1080690 | AK159: 53040
A160: 01010280 | B160: 889 | C160: 889 | D160: 889 | E160: 0 | F160: 0 | Z160: 10 | AA160: 879 | AB160: 0 | AG160: 20 | AH160: 8 | AI160: 0 | AJ160: 1074930 | AK160: 5894070
A161: 01010281 | B161: 1 | C161: 1 | D161: 1 | E161: 0 | F161: 0 | Z161: 1 | AA161: 0 | AB161: 0 | AG161: 1 | AH161: 10 | AI161: 0 | AJ161: 773490 | AK161: 4710
A162: 01010284 | B162: 2 | C162: 2 | D162: 2 | E162: 0 | F162: 0 | Z162: 0 | AA162: 2 | AB162: 0 | AG162: 1 | AH162: 0 | AI162: 1 | AJ162: 1075590 | AK162: 11560
A163: 01010286 | B163: 4580 | C163: 4549 | D163: 4548 | E163: 1 | F163: 31 | Z163: 1490 | AA163: 2271 | AB163: 819 | AG163: 83 | AH163: 0 | AI163: 23 | AJ163: 803590 | AK163: 22421640
A164: 01010287 | B164: 5345 | C164: 5341 | D164: 5341 | E164: 0 | F164: 4 | Z164: 182 | AA164: 5141 | AB164: 22 | AG164: 637 | AH164: 0 | AI164: 89 | AJ164: 803590 | AK164: 26331130
A165: 01010288 | B165: 4442 | C165: 4440 | D165: 4440 | E165: 0 | F165: 2 | Z165: 152 | AA165: 4274 | AB165: 16 | AG165: 578 | AH165: 0 | AI165: 77 | AJ165: 823300 | AK165: 21889200
A166: 01010289 | B166: 151 | C166: 151 | D166: 151 | E166: 0 | F166: 0 | Z166: 6 | AA166: 145 | AB166: 0 | AG166: 47 | AH166: 11 | AI166: 0 | AJ166: 1874500 | AK166: 1736500
A167: 01010290 | B167: 99 | C167: 99 | D167: 99 | E167: 0 | F167: 0 | Z167: 1 | AA167: 97 | AB167: 1 | AG167: 62 | AH167: 32 | AI167: 13 | AJ167: 1854790 | AK167: 790290
A168: 01010291 | B168: 6478 | C168: 6472 | D168: 6471 | E168: 1 | F168: 6 | Z168: 467 | AA168: 5959 | AB168: 52 | AG168: 373 | AH168: 1 | AI168: 92 | AJ168: 828670 | AK168: 32060870
A169: 01010292 | B169: 2779 | C169: 2779 | D169: 2778 | E169: 1 | F169: 0 | Z169: 120 | AA169: 2655 | AB169: 4 | AG169: 193 | AH169: 0 | AI169: 21 | AJ169: 2149020 | AK169: 36908120
A170: 01010293 | B170: 1866 | C170: 1865 | D170: 1863 | E170: 2 | F170: 1 | Z170: 117 | AA170: 1749 | AB170: 0 | AG170: 372 | AH170: 52 | AI170: 1 | AJ170: 1221190 | AK170: 14044410
A171: 01010294 | B171: 744 | C171: 744 | D171: 744 | E171: 0 | F171: 0 | Z171: 4 | AA171: 739 | AB171: 1 | AG171: 57 | AH171: 24 | AI171: 5 | AJ171: 803590 | AK171: 3667920
A172: 01010295 | B172: 3566 | C172: 3561 | D172: 3560 | E172: 1 | F172: 5 | Z172: 163 | AA172: 3390 | AB172: 13 | AG172: 582 | AH172: 22 | AI172: 62 | AJ172: 808690 | AK172: 17550800
A173: 01010296 | B173: 9 | C173: 9 | D173: 9 | E173: 0 | F173: 0 | Z173: 8 | AA173: 1 | AB173: 0 | AG173: 11 | AH173: 19 | AI173: 0 | AJ173: 1095300 | AK173: 59670
A174: 01010297 | B174: 811 | C174: 811 | D174: 811 | E174: 0 | F174: 0 | Z174: 3 | AA174: 808 | AB174: 0 | AG174: 19 | AH174: 3 | AI174: 1 | AJ174: 1854910 | AK174: 9313440
A175: 01010298 | B175: 1468 | C175: 1463 | D175: 1463 | E175: 0 | F175: 5 | Z175: 50 | AA175: 1414 | AB175: 4 | AG175: 90 | AH175: 61 | AI175: 4 | AJ175: 813290 | AK175: 7271110
A176: 01010299 | B176: 23 | C176: 23 | D176: 23 | E176: 0 | F176: 0 | Z176: 2 | AA176: 21 | AB176: 0 | AG176: 21 | AH176: 38 | AI176: 0 | AJ176: 1001640 | AK176: 138690
A177: 01010300 | B177: 1330 | C177: 1330 | D177: 1330 | E177: 0 | F177: 0 | Z177: 22 | AA177: 1291 | AB177: 17 | AG177: 803 | AH177: 0 | AI177: 400 | AJ177: 1977730 | AK177: 6768400
A178: 01010301 | B178: 85825 | C178: 82311 | D178: 82305 | E178: 6 | F178: 3514 | Z178: 5512 | AA178: 79626 | AB178: 687 | AG178: 6439 | AH178: 294 | AI178: 5790 | AJ178: 709490 | AK178: 354734550
A179: 01010302 | B179: 1709 | C179: 1706 | D179: 1706 | E179: 0 | F179: 3 | Z179: 19 | AA179: 1682 | AB179: 8 | AG179: 534 | AH179: 29 | AI179: 207 | AJ179: 1075590 | AK179: 10195580
A180: 01010303 | B180: 37226 | C180: 35062 | D180: 35060 | E180: 2 | F180: 2164 | Z180: 1549 | AA180: 35295 | AB180: 382 | AG180: 4394 | AH180: 453 | AI180: 3413 | AJ180: 801730 | AK180: 172835880
A181: 01010304 | B181: 16703 | C181: 16471 | D181: 16469 | E181: 2 | F181: 232 | Z181: 2090 | AA181: 14476 | AB181: 137 | AG181: 96 | AH181: 2 | AI181: 192 | AJ181: 702530 | AK181: 70981390
A182: 01010305 | B182: 17081 | C182: 16986 | D182: 16982 | E182: 4 | F182: 95 | Z182: 2024 | AA182: 14862 | AB182: 195 | AG182: 106 | AH182: 5 | AI182: 57 | AJ182: 709490 | AK182: 73192420
A183: 01010306 | B183: 59 | C183: 59 | D183: 59 | E183: 0 | F183: 0 | Z183: 1 | AA183: 58 | AB183: 0 | AG183: 50 | AH183: 58 | AI183: 11 | AJ183: 1075590 | AK183: 346970
A184: 01010307 | B184: 3678 | C184: 3678 | D184: 3678 | E184: 0 | F184: 0 | Z184: 80 | AA184: 3586 | AB184: 12 | AG184: 474 | AH184: 27 | AI184: 64 | AJ184: 876100 | AK184: 18132540
A185: 01010309 | B185: 0 | C185: 0 | D185: 0 | E185: 0 | F185: 0 | Z185: 0 | AA185: 0 | AB185: 0 | AG185: 0 | AH185: 0 | AI185: 0 | AJ185: 981060 | AK185: 0
A186: 01010311 | B186: 268 | C186: 268 | D186: 268 | E186: 0 | F186: 0 | Z186: 6 | AA186: 260 | AB186: 2 | AG186: 4 | AH186: 1 | AI186: 0 | AJ186: 882110 | AK186: 1449410
A187: 01010313 | B187: 902 | C187: 902 | D187: 902 | E187: 0 | F187: 0 | Z187: 124 | AA187: 289 | AB187: 489 | AG187: 0 | AH187: 0 | AI187: 0 | AJ187: 893960 | AK187: 4482940
A188: 01010319 | B188: 3 | C188: 3 | D188: 3 | E188: 0 | F188: 0 | Z188: 1 | AA188: 2 | AB188: 0 | AG188: 3 | AH188: 5 | AI188: 0 | AJ188: 4780830 | AK188: 87300
A189: 01010320 | B189: 4 | C189: 4 | D189: 4 | E189: 0 | F189: 0 | Z189: 3 | AA189: 1 | AB189: 0 | AG189: 8 | AH189: 2 | AI189: 0 | AJ189: 5354500 | AK189: 131680
A190: 01010321 | B190: 7 | C190: 7 | D190: 7 | E190: 0 | F190: 0 | Z190: 4 | AA190: 3 | AB190: 0 | AG190: 5 | AH190: 3 | AI190: 0 | AJ190: 4828410 | AK190: 203700
A191: 01010322 | B191: 0 | C191: 0 | D191: 0 | E191: 0 | F191: 0 | Z191: 0 | AA191: 0 | AB191: 0 | AG191: 2 | AH191: 10 | AI191: 0 | AJ191: 7104450 | AK191: 0
A192: 01010323 | B192: 0 | C192: 0 | D192: 0 | E192: 0 | F192: 0 | Z192: 0 | AA192: 0 | AB192: 0 | AG192: 0 | AH192: 0 | AI192: 0 | AJ192: 7587650 | AK192: 0
A193: 01010324 | B193: 0 | C193: 0 | D193: 0 | E193: 0 | F193: 0 | Z193: 0 | AA193: 0 | AB193: 0 | AG193: 0 | AH193: 0 | AI193: 0 | AJ193: 7633490 | AK193: 0
A194: 01010327 | B194: 0 | C194: 0 | D194: 0 | E194: 0 | F194: 0 | Z194: 0 | AA194: 0 | AB194: 0 | AG194: 0 | AH194: 0 | AI194: 0 | AJ194: 9998700 | AK194: 0
A195: 01010328 | B195: 9 | C195: 9 | D195: 9 | E195: 0 | F195: 0 | Z195: 8 | AA195: 13 | AB195: 3 | AG195: 6 | AH195: 5 | AI195: 7 | AJ195: 809660 | AK195: 44730
A196: 01010329 | B196: 0 | C196: 0 | D196: 0 | E196: 0 | F196: 0 | Z196: 0 | AA196: 0 | AB196: 0 | AG196: 0 | AH196: 0 | AI196: 0 | AJ196: 785990 | AK196: 0
A197: 01010330 | B197: 1954 | C197: 1953 | D197: 1950 | E197: 3 | F197: 1 | Z197: 219 | AA197: 1709 | AB197: 15 | AG197: 212 | AH197: 46 | AI197: 0 | AJ197: 818410 | AK197: 9653020
A198: 01010331 | B198: 788 | C198: 788 | D198: 776 | E198: 12 | F198: 0 | Z198: 309 | AA198: 447 | AB198: 2 | AG198: 544 | AH198: 540 | AI198: 2 | AJ198: 1599510 | AK198: 7603320
A199: 01010332 | B199: 1107 | C199: 1107 | D199: 1068 | E199: 39 | F199: 0 | Z199: 298 | AA199: 763 | AB199: 6 | AG199: 782 | AH199: 907 | AI199: 9 | AJ199: 1099610 | AK199: 7229060
A200: 01010334 | B200: 3389 | C200: 3382 | D200: 3372 | E200: 10 | F200: 7 | Z200: 208 | AA200: 3169 | AB200: 2 | AG200: 425 | AH200: 1309 | AI200: 9 | AJ200: 888220 | AK200: 18444840
A201: 01010335 | B201: 610 | C201: 609 | D201: 609 | E201: 0 | F201: 1 | Z201: 58 | AA201: 538 | AB201: 14 | AG201: 0 | AH201: 0 | AI201: 0 | AJ201: 714320 | AK201: 2643060
... 2750 more rows

Sheet B17
B1: SERVICIO DE SALUD / ESTABLECIMIENTO MUNICIPAL
B2: =CONCATENATE("COMUNA: ",[1]NOMBRE!B2," - ","( ",[1]NOMBRE!C2,[1]NOMBRE!D2,[1]NOMBRE!E2,[1]NOMBRE!F2,[1]NOMBRE!G2," )") -> COMUNA: - ( )
B3: =CONCATENATE("ESTABLECIMIENTO/ESTRATEGIA: ",[1]NOMBRE!B3," - ","( ",[1]NOMBRE!C3,[1]NOMBRE!D3,[1]NOMBRE!E3,[1]NOMBRE!F3,[1]NOMBRE!G3,[1]NOMBRE!H3," )") -> ESTABLECIMIENTO/ESTRATEGIA: - ( )
B4: =CONCATENATE("MES: ",[1]NOMBRE!B6," - ","( ",[1]NOMBRE!C6,[1]NOMBRE!D6," )") -> MES: - ( )
B5: =CONCATENATE("AÑO: ",[1]NOMBRE!B7) -> AÑO: 2023
E6: REM-B17. ACTIVIDADES DE APOYO DIAGNOSTICO y TERAPEUTICO
B8: SECCION A: ATENCIONES ABIERTAS | E8: E | F8: AL
B9: CODIGOS | C9: IDENTIFICACION DE PRESTACIONES | D9: TOTAL PRODUCCIÓN | E9: TOTAL BENEFICIARIOS MAI | F9: PAGO POR PRESTACIONES ($)
C10: CONSULTAS Y ATENCION MEDICA | D10: =SUM(D11:D17) -> 761376 | E10: =SUM(E11:E17) -> 747079 | F10: =SUM(F11:F17) -> 6,609,842,380
A11: 99100120 | C11: Consulta Médica general | D11: =IFERROR(VLOOKUP($A11,Filtro!$A$5:$AK$2951,2,FALSE),0) -> 70465 | E11: =IFERROR(VLOOKUP($A11,Filtro!$A$5:$AK$2951,3,FALSE),0) -> 70465 | F11: =IFERROR(VLOOKUP($A11,Filtro!$A$5:$AK$2951,4,FALSE),0) -> 448157400
A12: 17400010 | C12: Consulta Médica de Especialidades | D12: =IFERROR(VLOOKUP($A12,Filtro!$A$5:$AK$2951,2,FALSE),0) -> 380421 | E12: =IFERROR(VLOOKUP($A12,Filtro!$A$5:$AK$2951,3,FALSE),0) -> 379485 | F12: =IFERROR(VLOOKUP($A12,Filtro!$A$5:$AK$2951,4,FALSE),0) -> 3,434,339,250
A13: 17400020 | C13: Consulta en Unidades de Urgencia Hospitalaria | D13: =IFERROR(VLOOKUP($A13,Filtro!$A$5:$AK$2951,2,FALSE),0) -> 283874 | E13: =IFERROR(VLOOKUP($A13,Filtro!$A$5:$AK$2951,3,FALSE),0) -> 270997 | F13: =IFERROR(VLOOKUP($A13,Filtro!$A$5:$AK$2951,4,FALSE),0) -> 2,452,522,850
A14: 17400030 | C14: Atención médica del recién nacido en sala de parto o pabellón quirúrgico c/s reanimación cardio-respiratoria | D14: =IFERROR(VLOOKUP($A14,Filtro!$A$5:$AK$2951,2,FALSE),0) -> 3656 | E14: =IFERROR(VLOOKUP($A14,Filtro!$A$5:$AK$2951,3,FALSE),0) -> 3238 | F14: =IFERROR(VLOOKUP($A14,Filtro!$A$5:$AK$2951,4,FALSE),0) -> 54,366,020
A15: 17400040 | C15: Telemedicina/ Teleconsulta por profesional médico | D15: =IFERROR(VLOOKUP($A15,Filtro!$A$5:$AK$2951,2,FALSE),0) -> 21213 | E15: =IFERROR(VLOOKUP($A15,Filtro!$A$5:$AK$2951,3,FALSE),0) -> 21147 | F15: =IFERROR(VLOOKUP($A15,Filtro!$A$5:$AK$2951,4,FALSE),0) -> 159,236,910
A16: 17400060 | C16: Teleinterconsulta (Telemedicina) | D16: =IFERROR(VLOOKUP($A16,Filtro!$A$5:$AK$2951,2,FALSE),0) -> 85 | E16: =IFERROR(VLOOKUP($A16,Filtro!$A$5:$AK$2951,3,FALSE),0) -> 85 | F16: =IFERROR(VLOOKUP($A16,Filtro!$A$5:$AK$2951,4,FALSE),0) -> 640,050
A17: 99000130 | B17: 0903006 | C17: Consultoría de salud mental por psiquiatra (sesión 4 hrs.) (mínimo 8 pacientes) | D17: =IFERROR(VLOOKUP($A17,Filtro!$A$5:$AK$2951,2,FALSE),0) -> 1662 | E17: =IFERROR(VLOOKUP($A17,Filtro!$A$5:$AK$2951,3,FALSE),0) -> 1662 | F17: =IFERROR(VLOOKUP($A17,Filtro!$A$5:$AK$2951,4,FALSE),0) -> 60,579,900
C18: CONSULTAS POR OTROS PROFESIONALES DE LA SALUD | D18: =SUM(D19:D29) -> 323710 | E18: =SUM(E19:E29) -> 323033 | F18: =SUM(F19:F29) -> 703,992,380
A19: 17400070 | B19: 0102008 | C19: Consulta o control por enfermera/o | D19: =IFERROR(VLOOKUP($A19,Filtro!$A$5:$AK$2951,2,FALSE),0) -> 117884 | E19: =IFERROR(VLOOKUP($A19,Filtro!$A$5:$AK$2951,3,FALSE),0) -> 117573 | F19: =IFERROR(VLOOKUP($A19,Filtro!$A$5:$AK$2951,4,FALSE),0) -> 165,777,930
A20: 99000150 | B20: 0102002 | C20: Control de salud niño con EDP por enfermera/o | D20: =IFERROR(VLOOKUP($A20,Filtro!$A$5:$AK$2951,2,FALSE),0) -> 2314 | E20: =IFERROR(VLOOKUP($A20,Filtro!$A$5:$AK$2951,3,FALSE),0) -> 2314 | F20: =IFERROR(VLOOKUP($A20,Filtro!$A$5:$AK$2951,4,FALSE),0) -> 5,576,740
A21: 99000160 | B21: 0102003 | C21: Consulta o control por auxiliar de enfermería | D21: =IFERROR(VLOOKUP($A21,Filtro!$A$5:$AK$2951,2,FALSE),0) -> 25456 | E21: =IFERROR(VLOOKUP($A21,Filtro!$A$5:$AK$2951,3,FALSE),0) -> 25455 | F21: =IFERROR(VLOOKUP($A21,Filtro!$A$5:$AK$2951,4,FALSE),0) -> 19,854,900
A22: 99000170 | B22: 0102005 | C22: Consulta por fonoaudiólogo/a | D22: =IFERROR(VLOOKUP($A22,Filtro!$A$5:$AK$2951,2,FALSE),0) -> 21500 | E22: =IFERROR(VLOOKUP($A22,Filtro!$A$5:$AK$2951,3,FALSE),0) -> 21474 | F22: =IFERROR(VLOOKUP($A22,Filtro!$A$5:$AK$2951,4,FALSE),0) -> 41,230,080
A23: 17400080 | B23: 0102009 | C23: Consulta o control por matron/a | D23: =IFERROR(VLOOKUP($A23,Filtro!$A$5:$AK$2951,2,FALSE),0) -> 52714 | E23: =IFERROR(VLOOKUP($A23,Filtro!$A$5:$AK$2951,3,FALSE),0) -> 52491 | F23: =IFERROR(VLOOKUP($A23,Filtro!$A$5:$AK$2951,4,FALSE),0) -> 74,012,310
A24: 17400090 | B24: 0102010 | C24: Consulta o control por nutricionista | D24: =IFERROR(VLOOKUP($A24,Filtro!$A$5:$AK$2951,2,FALSE),0) -> 26098 | E24: =IFERROR(VLOOKUP($A24,Filtro!$A$5:$AK$2951,3,FALSE),0) -> 26061 | F24: =IFERROR(VLOOKUP($A24,Filtro!$A$5:$AK$2951,4,FALSE),0) -> 36,746,010
A25: 99000200 | B25: 0903002 | C25: Consulta o control psicológico clínico | D25: =IFERROR(VLOOKUP($A25,Filtro!$A$5:$AK$2951,2,FALSE),0) -> 31286 | E25: =IFERROR(VLOOKUP($A25,Filtro!$A$5:$AK$2951,3,FALSE),0) -> 31267 | F25: =IFERROR(VLOOKUP($A25,Filtro!$A$5:$AK$2951,4,FALSE),0) -> 107,871,150
A26: 99000210 | B26: 0903003 | C26: Consulta de salud mental por otros profesionales | D26: =IFERROR(VLOOKUP($A26,Filtro!$A$5:$AK$2951,2,FALSE),0) -> 38489 | E26: =IFERROR(VLOOKUP($A26,Filtro!$A$5:$AK$2951,3,FALSE),0) -> 38438 | F26: =IFERROR(VLOOKUP($A26,Filtro!$A$5:$AK$2951,4,FALSE),0) -> 132,611,100
A27: 99000220 | B27: 0903004 | C27: Intervención psicosocial grupal (4 a 8 pacientes, familiares o cuidadores) | D27: =IFERROR(VLOOKUP($A27,Filtro!$A$5:$AK$2951,2,FALSE),0) -> 3225 | E27: =IFERROR(VLOOKUP($A27,Filtro!$A$5:$AK$2951,3,FALSE),0) -> 3216 | F27: =IFERROR(VLOOKUP($A27,Filtro!$A$5:$AK$2951,4,FALSE),0) -> 44,123,520
A28: 99000230 | B28: 0903005 | C28: Psicoterapia de grupo (por psicólogo o psiquiatra) (4 a 8 pacientes) | D28: =IFERROR(VLOOKUP($A28,Filtro!$A$5:$AK$2951,2,FALSE),0) -> 4744 | E28: =IFERROR(VLOOKUP($A28,Filtro!$A$5:$AK$2951,3,FALSE),0) -> 4744 | F28: =IFERROR(VLOOKUP($A28,Filtro!$A$5:$AK$2951,4,FALSE),0) -> 76,188,640
A29: 17400050 | C29: Telemedicina/ Teleconsulta por profesional no médico | D29: =IFERROR(VLOOKUP($A29,Filtro!$A$5:$AK$2951,2,FALSE),0) -> 0 | E29: =IFERROR(VLOOKUP($A29,Filtro!$A$5:$AK$2951,3,FALSE),0) -> 0 | F29: =IFERROR(VLOOKUP($A29,Filtro!$A$5:$AK$2951,4,FALSE),0) -> 0
C30: OTRAS CONSULTAS Y ATENCION MEDICA | D30: =IFERROR(VLOOKUP($A30,Filtro!$A$5:$AK$2951,2,FALSE),0) -> 0 | E30: =IFERROR(VLOOKUP($A30,Filtro!$A$5:$AK$2951,3,FALSE),0) -> 0 | F30: =IFERROR(VLOOKUP($A30,Filtro!$A$5:$AK$2951,4,FALSE),0) -> 0
A31: 99100170 | C31: Consulta por otros profesionales | D31: =IFERROR(VLOOKUP($A31,Filtro!$A$5:$AK$2951,2,FALSE),0) -> 23915 | E31: =IFERROR(VLOOKUP($A31,Filtro!$A$5:$AK$2951,3,FALSE),0) -> 0 | F31: =IFERROR(VLOOKUP($A31,Filtro!$A$5:$AK$2951,4,FALSE),0) -> 0
A32: 17200390 | C32: Consulta por Trabajador(a) Social | D32: =IFERROR(VLOOKUP($A32,Filtro!$A$5:$AK$2951,2,FALSE),0) -> 13358 | E32: =IFERROR(VLOOKUP($A32,Filtro!$A$5:$AK$2951,3,FALSE),0) -> 0 | F32: =IFERROR(VLOOKUP($A32,Filtro!$A$5:$AK$2951,4,FALSE),0) -> 0
C33: PROGRAMAS DE REHABILITACION | D33: =SUM(D34:D35) -> 0 | E33: =SUM(E34:E35) -> 0 | F33: =SUM(F34:F35) -> 0
A34: 99000240 | B34: 0903007 | C34: Programa de rehabilitación tipo 1 (mensual, grupo 6 a 10 pers.) | D34: =IFERROR(VLOOKUP($A34,Filtro!$A$5:$AK$2951,2,FALSE),0) -> 0 | E34: =IFERROR(VLOOKUP($A34,Filtro!$A$5:$AK$2951,3,FALSE),0) -> 0 | F34: =IFERROR(VLOOKUP($A34,Filtro!$A$5:$AK$2951,4,FALSE),0) -> 0
A35: 99000250 | B35: 0903008 | C35: Programa de rehabilitación tipo 2 (mensual, grupo 5 a 7 pers.) | D35: =IFERROR(VLOOKUP($A35,Filtro!$A$5:$AK$2951,2,FALSE),0) -> 0 | E35: =IFERROR(VLOOKUP($A35,Filtro!$A$5:$AK$2951,3,FALSE),0) -> 0 | F35: =IFERROR(VLOOKUP($A35,Filtro!$A$5:$AK$2951,4,FALSE),0) -> 0
C36: OTROS PROGRAMAS | D36: =IFERROR(VLOOKUP($A36,Filtro!$A$5:$AK$2951,2,FALSE),0) -> 0 | E36: =IFERROR(VLOOKUP($A36,Filtro!$A$5:$AK$2951,3,FALSE),0) -> 0 | F36: =IFERROR(VLOOKUP($A36,Filtro!$A$5:$AK$2951,4,FALSE),0) -> 0
A37: 99100210 | B37: 0901003 | C37: Sesión de terapia electroconvulsivante (hasta 6 sesiones por ciclo o sesiones de mantención) c/ sesión | D37: =IFERROR(VLOOKUP($A37,Filtro!$A$5:$AK$2951,2,FALSE),0) -> 69 | E37: =IFERROR(VLOOKUP($A37,Filtro!$A$5:$AK$2951,3,FALSE),0) -> 0 | F37: =IFERROR(VLOOKUP($A37,Filtro!$A$5:$AK$2951,4,FALSE),0) -> 0
C38: EDUCACION DE GRUPO | D38: =SUM(D39:D44) -> 29380 | E38: =SUM(E39:E44) -> 28860 | F38: =SUM(F39:F44) -> 74,943,140
A39: 99000260 | B39: 0103001 | C39: Educación de grupo por médico | D39: =IFERROR(VLOOKUP($A39,Filtro!$A$5:$AK$2951,2,FALSE),0) -> 646 | E39: =IFERROR(VLOOKUP($A39,Filtro!$A$5:$AK$2951,3,FALSE),0) -> 646 | F39: =IFERROR(VLOOKUP($A39,Filtro!$A$5:$AK$2951,4,FALSE),0) -> 2,997,440
A40: 99000270 | B40: 0103005 | C40: Educación de grupo por enfermera | D40: =IFERROR(VLOOKUP($A40,Filtro!$A$5:$AK$2951,2,FALSE),0) -> 26,098 | E40: =IFERROR(VLOOKUP($A40,Filtro!$A$5:$AK$2951,3,FALSE),0) -> 25,578 | F40: =IFERROR(VLOOKUP($A40,Filtro!$A$5:$AK$2951,4,FALSE),0) -> 65,223,900
A41: 99000280 | B41: 0103003 | C41: Educación de grupo por Trabajador/a Social | D41: =IFERROR(VLOOKUP($A41,Filtro!$A$5:$AK$2951,2,FALSE),0) -> 244 | E41: =IFERROR(VLOOKUP($A41,Filtro!$A$5:$AK$2951,3,FALSE),0) -> 244 | F41: =IFERROR(VLOOKUP($A41,Filtro!$A$5:$AK$2951,4,FALSE),0) -> 622,200
A42: 99000290 | B42: 0103004 | C42: Educación de grupo por auxiliar de enfermería | D42: =IFERROR(VLOOKUP($A42,Filtro!$A$5:$AK$2951,2,FALSE),0) -> 0 | E42: =IFERROR(VLOOKUP($A42,Filtro!$A$5:$AK$2951,3,FALSE),0) -> 0 | F42: =IFERROR(VLOOKUP($A42,Filtro!$A$5:$AK$2951,4,FALSE),0) -> 0
A43: 17400100 | B43: 0103006 | C43: Educación de grupo por matrona | D43: =IFERROR(VLOOKUP($A43,Filtro!$A$5:$AK$2951,2,FALSE),0) -> 2,296 | E43: =IFERROR(VLOOKUP($A43,Filtro!$A$5:$AK$2951,3,FALSE),0) -> 2,296 | F43: =IFERROR(VLOOKUP($A43,Filtro!$A$5:$AK$2951,4,FALSE),0) -> 5,854,800
A44: 17400110 | B44: 0103007 | C44: Educación de grupo por nutricionista | D44: =IFERROR(VLOOKUP($A44,Filtro!$A$5:$AK$2951,2,FALSE),0) -> 96 | E44: =IFERROR(VLOOKUP($A44,Filtro!$A$5:$AK$2951,3,FALSE),0) -> 96 | F44: =IFERROR(VLOOKUP($A44,Filtro!$A$5:$AK$2951,4,FALSE),0) -> 244,800
C45: OTRA EDUCADION DE GRUPO | D45: =IFERROR(VLOOKUP($A45,Filtro!$A$5:$AK$2951,2,FALSE),0) -> 0 | E45: =IFERROR(VLOOKUP($A45,Filtro!$A$5:$AK$2951,3,FALSE),0) -> 0 | F45: =IFERROR(VLOOKUP($A45,Filtro!$A$5:$AK$2951,4,FALSE),0) -> 0
A46: 99100220 | C46: Educación de grupo por otro integrante del equipo de salud | D46: =IFERROR(VLOOKUP($A46,Filtro!$A$5:$AK$2951,2,FALSE),0) -> 1,678 | E46: =IFERROR(VLOOKUP($A46,Filtro!$A$5:$AK$2951,3,FALSE),0) -> 0 | F46: =IFERROR(VLOOKUP($A46,Filtro!$A$5:$AK$2951,4,FALSE),0) -> 0
C47: VISITAS DOMICILIARIAS | D47: =SUM(D48:D52) -> 40,780 | E47: =SUM(E48:E52) -> 40,673 | F47: =SUM(F48:F52) -> 79,478,710
A48: 17400120 | B48: 0104004 | C48: Visita a domicilio por enfermera | D48: =IFERROR(VLOOKUP($A48,Filtro!$A$5:$AK$2951,2,FALSE),0) -> 25,920 | E48: =IFERROR(VLOOKUP($A48,Filtro!$A$5:$AK$2951,3,FALSE),0) -> 25,814 | F48: =IFERROR(VLOOKUP($A48,Filtro!$A$5:$AK$2951,4,FALSE),0) -> 57,048,940
A49: 99000310 | B49: 0104002 | C49: Visita a domicilio por asistente social | D49: =IFERROR(VLOOKUP($A49,Filtro!$A$5:$AK$2951,2,FALSE),0) -> 2,577 | E49: =IFERROR(VLOOKUP($A49,Filtro!$A$5:$AK$2951,3,FALSE),0) -> 2,576 | F49: =IFERROR(VLOOKUP($A49,Filtro!$A$5:$AK$2951,4,FALSE),0) -> 5,692,960
A50: 99000320 | B50: 0104003 | C50: Visita a domicilio por auxiliar de enfermería | D50: =IFERROR(VLOOKUP($A50,Filtro!$A$5:$AK$2951,2,FALSE),0) -> 11,073 | E50: =IFERROR(VLOOKUP($A50,Filtro!$A$5:$AK$2951,3,FALSE),0) -> 11,073 | F50: =IFERROR(VLOOKUP($A50,Filtro!$A$5:$AK$2951,4,FALSE),0) -> 14,062,710
A51: 17400130 | B51: 0104005 | C51: Visita a domicilio por matrona | D51: =IFERROR(VLOOKUP($A51,Filtro!$A$5:$AK$2951,2,FALSE),0) -> 133 | E51: =IFERROR(VLOOKUP($A51,Filtro!$A$5:$AK$2951,3,FALSE),0) -> 133 | F51: =IFERROR(VLOOKUP($A51,Filtro!$A$5:$AK$2951,4,FALSE),0) -> 293,930
A52: 17400140 | B52: 0104006 | C52: Visita a domicilio por nutricionista | D52: =IFERROR(VLOOKUP($A52,Filtro!$A$5:$AK$2951,2,FALSE),0) -> 1,077 | E52: =IFERROR(VLOOKUP($A52,Filtro!$A$5:$AK$2951,3,FALSE),0) -> 1,077 | F52: =IFERROR(VLOOKUP($A52,Filtro!$A$5:$AK$2951,4,FALSE),0) -> 2,380,170
C53: OTRAS VISITAS DOMICILIARIAS | D53: =IFERROR(VLOOKUP($A53,Filtro!$A$5:$AK$2951,2,FALSE),0) -> 0 | E53: =IFERROR(VLOOKUP($A53,Filtro!$A$5:$AK$2951,3,FALSE),0) -> 0 | F53: =IFERROR(VLOOKUP($A53,Filtro!$A$5:$AK$2951,4,FALSE),0) -> 0
A54: 99100230 | C54: Visita a domicilio por otro integrante del equipo de salud | D54: =IFERROR(VLOOKUP($A54,Filtro!$A$5:$AK$2951,2,FALSE),0) -> 20,655 | E54: =IFERROR(VLOOKUP($A54,Filtro!$A$5:$AK$2951,3,FALSE),0) -> 0 | F54: =IFERROR(VLOOKUP($A54,Filtro!$A$5:$AK$2951,4,FALSE),0) -> 0
A55: 99100240 | C55: Visita domiciaria por profesional y técnico paramédico | D55: =IFERROR(VLOOKUP($A55,Filtro!$A$5:$AK$2951,2,FALSE),0) -> 8,246 | E55: =IFERROR(VLOOKUP($A55,Filtro!$A$5:$AK$2951,3,FALSE),0) -> 0 | F55: =IFERROR(VLOOKUP($A55,Filtro!$A$5:$AK$2951,4,FALSE),0) -> 0
C56: TOTAL | D56: =SUM(D57:D61) -> 200,486 | E56: =E10+E18+E33+E38+E47 -> 1,139,645 | F56: =F10+F18+F33+F38+F47 -> 7,468,256,610
B57: SECCION B: ATENCION CERRADA, DIAS DE HOSPITALIZACION
B58: CODIGOS | C58: IDENTIFICACION DE PRESTACIONES | D58: TOTAL PRODUCCIÓN | E58: TOTAL BENEFICIARIOS MAI | F58: PAGO POR PRESTACIONES ($)
C59: ATENCION CERRADA | D59: 0 | E59: 0 | F59: 0
A60: 17400150 | B60: 0201010 | C60: Dia Cama de Hospitalización Integral Cuidados Básicos | D60: =IFERROR(VLOOKUP($A60,Filtro!$A$5:$AK$2951,2,FALSE),0) -> 32568 | E60: =IFERROR(VLOOKUP($A60,Filtro!$A$5:$AK$2951,3,FALSE),0) -> 32074 | F60: =IFERROR(VLOOKUP($A60,Filtro!$A$5:$AK$2951,4,FALSE),0) -> 1,294,827,380
A61: 17400160 | B61: 0201110 | C61: Dia Cama de Hospitalización Integral Cuidados Medios | D61: =IFERROR(VLOOKUP($A61,Filtro!$A$5:$AK$2951,2,FALSE),0) -> 167918 | E61: =IFERROR(VLOOKUP($A61,Filtro!$A$5:$AK$2951,3,FALSE),0) -> 164099 | F61: =IFERROR(VLOOKUP($A61,Filtro!$A$5:$AK$2951,4,FALSE),0) -> 7,458,299,550
A62: 17400170 | B62: 0201301 | C62: Día Cama de Hospitalización Integral Adulto en Unidad de Tratamiento Intermedio (U.T.I) | D62: =IFERROR(VLOOKUP($A62,Filtro!$A$5:$AK$2951,2,FALSE),0) -> 27235 | E62: =IFERROR(VLOOKUP($A62,Filtro!$A$5:$AK$2951,3,FALSE),0) -> 26960 | F62: =IFERROR(VLOOKUP($A62,Filtro!$A$5:$AK$2951,4,FALSE),0) -> 2,278,659,200
A63: 17400180 | B63: 0201302 | C63: Día Cama de Hospitalización Integral Pediátrica en Unidad de Tratamiento Intermedio (U.T.I) | D63: =IFERROR(VLOOKUP($A63,Filtro!$A$5:$AK$2951,2,FALSE),0) -> 4473 | E63: =IFERROR(VLOOKUP($A63,Filtro!$A$5:$AK$2951,3,FALSE),0) -> 4349 | F63: =IFERROR(VLOOKUP($A63,Filtro!$A$5:$AK$2951,4,FALSE),0) -> 367,577,480
A64: 17400190 | B64: 0201303 | C64: Día Cama de Hospitalización Integral Neonatal en Unidad de Tratamiento Intermedio (U.T.I) | D64: =IFERROR(VLOOKUP($A64,Filtro!$A$5:$AK$2951,2,FALSE),0) -> 4326 | E64: =IFERROR(VLOOKUP($A64,Filtro!$A$5:$AK$2951,3,FALSE),0) -> 4266 | F64: =IFERROR(VLOOKUP($A64,Filtro!$A$5:$AK$2951,4,FALSE),0) -> 360,562,320
A65: 17400200 | B65: 0201201 | C65: Día Cama de Hospitalización Integral Adulto en Unidad de Cuidado Intensivo (U.C.I.) | D65: =IFERROR(VLOOKUP($A65,Filtro!$A$5:$AK$2951,2,FALSE),0) -> 12055 | E65: =IFERROR(VLOOKUP($A65,Filtro!$A$5:$AK$2951,3,FALSE),0) -> 11865 | F65: =IFERROR(VLOOKUP($A65,Filtro!$A$5:$AK$2951,4,FALSE),0) -> 2,076,019,050
A66: 17400210 | B66: 0201202 | C66: Día Cama de Hospitalización Integral Pediátrica en Unidad de Cuidado Intensivo (U.C.I). | D66: =IFERROR(VLOOKUP($A66,Filtro!$A$5:$AK$2951,2,FALSE),0) -> 1158 | E66: =IFERROR(VLOOKUP($A66,Filtro!$A$5:$AK$2951,3,FALSE),0) -> 1140 | F66: =IFERROR(VLOOKUP($A66,Filtro!$A$5:$AK$2951,4,FALSE),0) -> 199,465,800
A67: 17400220 | B67: 0201203 | C67: Día Cama de Hospitalización Integral Neonatal en Unidad de Cuidado Intensivo (U.C.I.) | D67: =IFERROR(VLOOKUP($A67,Filtro!$A$5:$AK$2951,2,FALSE),0) -> 2099 | E67: =IFERROR(VLOOKUP($A67,Filtro!$A$5:$AK$2951,3,FALSE),0) -> 2073 | F67: =IFERROR(VLOOKUP($A67,Filtro!$A$5:$AK$2951,4,FALSE),0) -> 362,712,810
A68: 17400230 | B68: 0201410 | C68: Día Cama de Hospitalización Integral Obstetricia | D68: =IFERROR(VLOOKUP($A68,Filtro!$A$5:$AK$2951,2,FALSE),0) -> 21380 | E68: =IFERROR(VLOOKUP($A68,Filtro!$A$5:$AK$2951,3,FALSE),0) -> 21129 | F68: =IFERROR(VLOOKUP($A68,Filtro!$A$5:$AK$2951,4,FALSE),0) -> 854,034,180
A69: 17400240 | B69: 0201403 | C69: Día Cama de Hospitalización Integral Sala Cuna | D69: =IFERROR(VLOOKUP($A69,Filtro!$A$5:$AK$2951,2,FALSE),0) -> 4009 | E69: =IFERROR(VLOOKUP($A69,Filtro!$A$5:$AK$2951,3,FALSE),0) -> 3978 | F69: =IFERROR(VLOOKUP($A69,Filtro!$A$5:$AK$2951,4,FALSE),0) -> 32,460,480
A70: 17400250 | B70: 0201404 | C70: Día Cama de Hospitalización Integral Incubadora | D70: =IFERROR(VLOOKUP($A70,Filtro!$A$5:$AK$2951,2,FALSE),0) -> 904 | E70: =IFERROR(VLOOKUP($A70,Filtro!$A$5:$AK$2951,3,FALSE),0) -> 872 | F70: =IFERROR(VLOOKUP($A70,Filtro!$A$5:$AK$2951,4,FALSE),0) -> 66,123,760
A71: 17400270 | B71: 0201406 | C71: Día Cama de Hospitalización Integral Psiquiatría | D71: =IFERROR(VLOOKUP($A71,Filtro!$A$5:$AK$2951,2,FALSE),0) -> 11951 | E71: =IFERROR(VLOOKUP($A71,Filtro!$A$5:$AK$2951,3,FALSE),0) -> 11907 | F71: =IFERROR(VLOOKUP($A71,Filtro!$A$5:$AK$2951,4,FALSE),0) -> 357,090,930
A72: 17400280 | B72: 0201407 | C72: Día Cama de Hospitalizacion Integral de Observación - Ambulatorio | D72: =IFERROR(VLOOKUP($A72,Filtro!$A$5:$AK$2951,2,FALSE),0) -> 51017 | E72: =IFERROR(VLOOKUP($A72,Filtro!$A$5:$AK$2951,3,FALSE),0) -> 51011 | F72: =IFERROR(VLOOKUP($A72,Filtro!$A$5:$AK$2951,4,FALSE),0) -> 433,593,500
A73: 17400290 | B73: 0201501 | C73: Dia Cama Hospitalizacion Domiciliaria Cuidados Básicos | D73: =IFERROR(VLOOKUP($A73,Filtro!$A$5:$AK$2951,2,FALSE),0) -> 4566 | E73: =IFERROR(VLOOKUP($A73,Filtro!$A$5:$AK$2951,3,FALSE),0) -> 4566 | F73: =IFERROR(VLOOKUP($A73,Filtro!$A$5:$AK$2951,4,FALSE),0) -> 179,900,400
A74: 17400300 | B74: 0201502 | C74: Dia Cama Hospitalizacion Domiciliaria Cuidados Medios | D74: =IFERROR(VLOOKUP($A74,Filtro!$A$5:$AK$2951,2,FALSE),0) -> 21127 | E74: =IFERROR(VLOOKUP($A74,Filtro!$A$5:$AK$2951,3,FALSE),0) -> 21055 | F74: =IFERROR(VLOOKUP($A74,Filtro!$A$5:$AK$2951,4,FALSE),0) -> 1,269,405,950
A75: 17400310 | B75: 0201503 | C75: Dia Cama Hospitalizacion Domiciliaria Cuidados Alta Complejidad | D75: =IFERROR(VLOOKUP($A75,Filtro!$A$5:$AK$2951,2,FALSE),0) -> 4937 | E75: =IFERROR(VLOOKUP($A75,Filtro!$A$5:$AK$2951,3,FALSE),0) -> 4825 | F75: =IFERROR(VLOOKUP($A75,Filtro!$A$5:$AK$2951,4,FALSE),0) -> 484,526,500
C76: TOTAL | D76: =SUM(D60:D75) -> 371723 | E76: =SUM(E60:E75) -> 366169 | F76: =SUM(F60:F75) -> 18,075,259,290
B77: SECCIÓN C:TRATAMIENTO ABREVIADO DE LA TUBERCULOSIS
B78: CODIGOS | C78: TRATAMIENTO ABREVIADO DE LA TUBERCULOSIS | D78: TOTAL PRODUCCIÓN | E78: TOTAL BENEFICIARIOS MAI | F78: PAGO POR PRESTACIONES ($)
A79: 99001860 | B79: 3003001 | C79: TBC, Esquema primario (mensual) | D79: =IFERROR(VLOOKUP($A79,Filtro!$A$5:$AK$2951,2,FALSE),0) -> 2 | E79: =IFERROR(VLOOKUP($A79,Filtro!$A$5:$AK$2951,3,FALSE),0) -> 2 | F79: =IFERROR(VLOOKUP($A79,Filtro!$A$5:$AK$2951,4,FALSE),0) -> 17,580
A80: 99001870 | B80: 3003002 | C80: TBC, Esquema primario simplificado (mensual) | D80: =IFERROR(VLOOKUP($A80,Filtro!$A$5:$AK$2951,2,FALSE),0) -> 0 | E80: =IFERROR(VLOOKUP($A80,Filtro!$A$5:$AK$2951,3,FALSE),0) -> 0 | F80: =IFERROR(VLOOKUP($A80,Filtro!$A$5:$AK$2951,4,FALSE),0) -> 0
A81: 99001880 | B81: 3003003 | C81: TBC, Esquema secundario (mensual) | D81: =IFERROR(VLOOKUP($A81,Filtro!$A$5:$AK$2951,2,FALSE),0) -> 0 | E81: =IFERROR(VLOOKUP($A81,Filtro!$A$5:$AK$2951,3,FALSE),0) -> 0 | F81: =IFERROR(VLOOKUP($A81,Filtro!$A$5:$AK$2951,4,FALSE),0) -> 0
A82: 99001890 | B82: 3003004 | C82: TBC, Esquema normado de retratamiento (mensual) | D82: =IFERROR(VLOOKUP($A82,Filtro!$A$5:$AK$2951,2,FALSE),0) -> 0 | E82: =IFERROR(VLOOKUP($A82,Filtro!$A$5:$AK$2951,3,FALSE),0) -> 0 | F82: =IFERROR(VLOOKUP($A82,Filtro!$A$5:$AK$2951,4,FALSE),0) -> 0
A83: 99001900 | B83: 3003005 | C83: TBC, Esquema especial de retratamiento (mensual) | D83: =IFERROR(VLOOKUP($A83,Filtro!$A$5:$AK$2951,2,FALSE),0) -> 0 | E83: =IFERROR(VLOOKUP($A83,Filtro!$A$5:$AK$2951,3,FALSE),0) -> 0 | F83: =IFERROR(VLOOKUP($A83,Filtro!$A$5:$AK$2951,4,FALSE),0) -> 0
C84: TOTAL | D84: =SUM(D79:D83) -> 2 | E84: =SUM(E79:E83) -> 2 | F84: =SUM(F79:F83) -> 17,580
B85: SECCIÓN D:TRASLADO, RESCATES Y RONDAS RURALES
B86: CODIGOS | C86: TRASLADO, RESCATES Y RONDAS RURALES | D86: TOTAL PRODUCCIÓN | E86: TOTAL BENEFICIARIOS MAI | F86: PAGO POR PRESTACIONES ($)
A87: 99001910 | B87: 2401061 | C87: Rescate simple y/o traslado en móvil 1 | D87: =IFERROR(VLOOKUP($A87,Filtro!$A$5:$AK$2951,2,FALSE),0) -> 0 | E87: =IFERROR(VLOOKUP($A87,Filtro!$A$5:$AK$2951,3,FALSE),0) -> 0 | F87: =IFERROR(VLOOKUP($A87,Filtro!$A$5:$AK$2951,4,FALSE),0) -> 0
A88: 99001920 | B88: 2401062 | C88: Rescate profesionalizado y/o traslado paciente complejo móvil 2 | D88: =IFERROR(VLOOKUP($A88,Filtro!$A$5:$AK$2951,2,FALSE),0) -> 1,547 | E88: =IFERROR(VLOOKUP($A88,Filtro!$A$5:$AK$2951,3,FALSE),0) -> 1,512 | F88: =IFERROR(VLOOKUP($A88,Filtro!$A$5:$AK$2951,4,FALSE),0) -> 111,721,680
A89: 99001930 | B89: 2401063 | C89: Rescate medicalizado y/o traslado paciente critico en móvil 3 | D89: =IFERROR(VLOOKUP($A89,Filtro!$A$5:$AK$2951,2,FALSE),0) -> 109 | E89: =IFERROR(VLOOKUP($A89,Filtro!$A$5:$AK$2951,3,FALSE),0) -> 109 | F89: =IFERROR(VLOOKUP($A89,Filtro!$A$5:$AK$2951,4,FALSE),0) -> 9,983,310
A90: 99001940 | B90: 2401064 | C90: Traslado en ambulancia | D90: =IFERROR(VLOOKUP($A90,Filtro!$A$5:$AK$2951,2,FALSE),0) -> 38,939 | E90: =IFERROR(VLOOKUP($A90,Filtro!$A$5:$AK$2951,3,FALSE),0) -> 38,939 | F90: =IFERROR(VLOOKUP($A90,Filtro!$A$5:$AK$2951,4,FALSE),0) -> 125,772,970
A91: 99001950 | B91: 2401065 | C91: Ronda rural terrestre, c/ km recorrido | D91: =IFERROR(VLOOKUP($A91,Filtro!$A$5:$AK$2951,2,FALSE),0) -> 91,734 | E91: =IFERROR(VLOOKUP($A91,Filtro!$A$5:$AK$2951,3,FALSE),0) -> 91,734 | F91: =IFERROR(VLOOKUP($A91,Filtro!$A$5:$AK$2951,4,FALSE),0) -> 6,421,380
A92: 99001960 | B92: 2401066 | C92: Ronda rural aérea, c/ hora de vuelo | D92: =IFERROR(VLOOKUP($A92,Filtro!$A$5:$AK$2951,2,FALSE),0) -> 0 | E92: =IFERROR(VLOOKUP($A92,Filtro!$A$5:$AK$2951,3,FALSE),0) -> 0 | F92: =IFERROR(VLOOKUP($A92,Filtro!$A$5:$AK$2951,4,FALSE),0) -> 0
A93: 99001970 | B93: 2401067 | C93: Ronda rural marítima, c/ hora de navegación | D93: =IFERROR(VLOOKUP($A93,Filtro!$A$5:$AK$2951,2,FALSE),0) -> 0 | E93: =IFERROR(VLOOKUP($A93,Filtro!$A$5:$AK$2951,3,FALSE),0) -> 0 | F93: =IFERROR(VLOOKUP($A93,Filtro!$A$5:$AK$2951,4,FALSE),0) -> 0
C94: TOTAL | D94: =SUM(D87:D93) -> 132329 | E94: =SUM(E87:E93) -> 132294 | F94: =SUM(F87:F93) -> 253,899,340
B95: SECCION E: PARTOS
B96: CODIGOS | C96: IDENTIFICACION DE PRESTACIONES | D96: TOTAL PRODUCCIÓN | E96: TOTAL BENEFICIARIOS MAI | F96: PAGO POR PRESTACIONES ($)
A97: 99000740 | B97: 2004103 | C97: Parto normal | D97: =IFERROR(VLOOKUP($A97,Filtro!$A$5:$AK$2951,2,FALSE),0) -> 2758 | E97: =IFERROR(VLOOKUP($A97,Filtro!$A$5:$AK$2951,3,FALSE),0) -> 2576 | F97: =IFERROR(VLOOKUP($A97,Filtro!$A$5:$AK$2951,4,FALSE),0) -> 423,365,600
A98: 99000750 | B98: 2004113 | C98: Parto distósico vaginal | D98: =IFERROR(VLOOKUP($A98,Filtro!$A$5:$AK$2951,2,FALSE),0) -> 51 | E98: =IFERROR(VLOOKUP($A98,Filtro!$A$5:$AK$2951,3,FALSE),0) -> 45 | F98: =IFERROR(VLOOKUP($A98,Filtro!$A$5:$AK$2951,4,FALSE),0) -> 7,780,950
C99: TOTAL | D99: =SUM(D97:D98) -> 2809 | E99: =SUM(E97:E98) -> 2621 | F99: =SUM(F97:F98) -> 431,146,550
B100: SECCION F: ATENCION ODONTOLOGICA
C101: Prestaciones | D101: TOTAL PRODUCCIÓN | E101: TOTAL BENEFICIARIOS MAI | F101: PAGO POR PRESTACIONES ($)
A102: 17400320 | B102: 2701XXX | C102: Consulta y atención odontológica | D102: =IFERROR(VLOOKUP($A102,Filtro!$A$5:$AK$2951,2,FALSE),0) -> 96898 | E102: =IFERROR(VLOOKUP($A102,Filtro!$A$5:$AK$2951,3,FALSE),0) -> 96799 | F102: =IFERROR(VLOOKUP($A102,Filtro!$A$5:$AK$2951,4,FALSE),0) -> 405,783,640
A103: 17400330 | B103: 2702XXX | C103: Exámenes imagenológicos odontológico | D103: =IFERROR(VLOOKUP($A103,Filtro!$A$5:$AK$2951,2,FALSE),0) -> 22703 | E103: =IFERROR(VLOOKUP($A103,Filtro!$A$5:$AK$2951,3,FALSE),0) -> 22661 | F103: =IFERROR(VLOOKUP($A103,Filtro!$A$5:$AK$2951,4,FALSE),0) -> 244,632,480
A104: 17400340 | B104: 2703XXX | C104: Odontología general: Actividades preventivas y recuperativas | D104: =IFERROR(VLOOKUP($A104,Filtro!$A$5:$AK$2951,2,FALSE),0) -> 55506 | E104: =IFERROR(VLOOKUP($A104,Filtro!$A$5:$AK$2951,3,FALSE),0) -> 55483 | F104: =IFERROR(VLOOKUP($A104,Filtro!$A$5:$AK$2951,4,FALSE),0) -> 466,052,950
A105: 17400350 | B105: 2704XXX | C105: Especialidades | D105: =IFERROR(VLOOKUP($A105,Filtro!$A$5:$AK$2951,2,FALSE),0) -> 24684 | E105: =IFERROR(VLOOKUP($A105,Filtro!$A$5:$AK$2951,3,FALSE),0) -> 24671 | F105: =IFERROR(VLOOKUP($A105,Filtro!$A$5:$AK$2951,4,FALSE),0) -> 779,784,320
A106: 17400360 | B106: 2705XXX | C106: Cirugías | D106: =IFERROR(VLOOKUP($A106,Filtro!$A$5:$AK$2951,2,FALSE),0) -> 7086 | E106: =IFERROR(VLOOKUP($A106,Filtro!$A$5:$AK$2951,3,FALSE),0) -> 6599 | F106: =IFERROR(VLOOKUP($A106,Filtro!$A$5:$AK$2951,4,FALSE),0) -> 298,524,140
A107: 99100440 | C107: Otras prestaciones odontológicas | D107: =IFERROR(VLOOKUP($A107,Filtro!$A$5:$AK$2951,2,FALSE),0) -> 20901 | E107: =IFERROR(VLOOKUP($A107,Filtro!$A$5:$AK$2951,3,FALSE),0) -> 0 | F107: =IFERROR(VLOOKUP($A107,Filtro!$A$5:$AK$2951,4,FALSE),0) -> 0
C108: TOTAL | D108: =SUM(D102:D107) -> 227778 | E108: =SUM(E102:E106) -> 206213 | F108: =SUM(F102:F106) -> 2,194,777,530
B109: SECCION G: LENTES, AUDIFONOS
B110: CODIGOS | C110: IDENTIFICACION DE PRESTACIONES | D110: TOTAL PRODUCCIÓN | E110: TOTAL BENEFICIARIOS MAI | F110: PAGO POR PRESTACIONES ($)
A111: 99001470 | B111: 3001001 | C111: Lentes ópticos | D111: =IFERROR(VLOOKUP($A111,Filtro!$A$5:$AK$2951,2,FALSE),0) -> 13646 | E111: =IFERROR(VLOOKUP($A111,Filtro!$A$5:$AK$2951,3,FALSE),0) -> 13646 | F111: =IFERROR(VLOOKUP($A111,Filtro!$A$5:$AK$2951,4,FALSE),0) -> 335,828,060
A112: 99001480 | B112: 3001002 | C112: Audífonos | D112: =IFERROR(VLOOKUP($A112,Filtro!$A$5:$AK$2951,2,FALSE),0) -> 1919 | E112: =IFERROR(VLOOKUP($A112,Filtro!$A$5:$AK$2951,3,FALSE),0) -> 1919 | F112: =IFERROR(VLOOKUP($A112,Filtro!$A$5:$AK$2951,4,FALSE),0) -> 592,011,500
C113: TOTAL | D113: =SUM(D111:D112) -> 15565 | E113: =SUM(E111:E112) -> 15565 | F113: =SUM(F111:F112) -> 927,839,560
B114: SECCIÓN H: MEDICINA TRANSFUSIONAL
B115: CODIGOS | C115: IDENTIFICACION DE PRESTACIONES | D115: TOTAL PRODUCCIÓN | E115: TOTAL BENEFICIARIOS MAI | F115: PAGO POR PRESTACIONES ($)
A116: 99001490 | B116: Grupo 07 | C116: Medicina Transfusional | D116: =IFERROR(VLOOKUP($A116,Filtro!$A$5:$AK$2951,2,FALSE),0) -> 102360 | E116: =IFERROR(VLOOKUP($A116,Filtro!$A$5:$AK$2951,3,FALSE),0) -> 102254 | F116: =IFERROR(VLOOKUP($A116,Filtro!$A$5:$AK$2951,4,FALSE),0) -> 1,731,054,620
B117: SECCION I: EXAMENES DE DIAGNOSTICO
B118: TIPO DE EXAMEN | D118: TOTAL | E118: EXAMENES REALIZADOS | I118: PROCEDENCIA | L118: PRODUCCION INTRA HOSPITAL | O118: OPERATIVO | P118: COMPRAS REALIZADAS | R118: VENTAS DE SERVICIOS | S118: TOTAL DE PROCEDIMIENTOS INFORMADOS | T118: PAGO POR PRESTACIONES ($)
E119: TOTAL BENEFICIARIOS | F119: BENEFICIARIOS | H119: NO BENEFICIARIOS | I119: ATENCION CERRADA | J119: ATENCION ABIERTA | K119: EMERGENCIA | L119: POR HONORARIOS | M119: POR CONVENIOS | N119: POR CONSULTORES DE LLAMADA | P119: AL SISTEMA | Q119: EXTRA-SISTEMA
F120: MAI | G120: MLE
B121: TOTAL EXAMENES LABORATORIO | D121: 0 | E121: 0 | F121: 0 | G121: 0 | H121: 0 | I121: 0 | J121: 0 | K121: 0 | L121: 0 | M121: 0 | N121: 0 | O121: 0 | P121: 0 | Q121: 0 | R121: 0 | S121: 0 | T121: 0
A122: 17010100 | B122: I | C122: HEMATOLOGICOS | D122: =IFERROR(VLOOKUP($A122,Filtro!$A$5:$AK$2951,2,FALSE),0) -> 1201540 | E122: =IFERROR(VLOOKUP($A122,Filtro!$A$5:$AK$2951,3,FALSE),0) -> 1168593 | F122: =IFERROR(VLOOKUP($A122,Filtro!$A$5:$AK$2951,4,FALSE),0) -> 1166091 | G122: =IFERROR(VLOOKUP($A122,Filtro!$A$5:$AK$2951,5,FALSE),0) -> 2502 | H122: =IFERROR(VLOOKUP($A122,Filtro!$A$5:$AK$2951,6,FALSE),0) -> 32947 | I122: =IFERROR(VLOOKUP($A122,Filtro!$A$5:$AK$2951,7,FALSE),0) -> 359474 | J122: =IFERROR(VLOOKUP($A122,Filtro!$A$5:$AK$2951,8,FALSE),0) -> 538518 | K122: =IFERROR(VLOOKUP($A122,Filtro!$A$5:$AK$2951,9,FALSE),0) -> 303647 | L122: =IFERROR(VLOOKUP($A122,Filtro!$A$5:$AK$2951,10,FALSE),0) -> 0 | M122: =IFERROR(VLOOKUP($A122,Filtro!$A$5:$AK$2951,11,FALSE),0) -> 0 | N122: =IFERROR(VLOOKUP($A122,Filtro!$A$5:$AK$2951,12,FALSE),0) -> 0 | O122: =IFERROR(VLOOKUP($A122,Filtro!$A$5:$AK$2951,13,FALSE),0) -> 0 | P122: =IFERROR(VLOOKUP($A122,Filtro!$A$5:$AK$2951,14,FALSE),0) -> 1542 | Q122: =IFERROR(VLOOKUP($A122,Filtro!$A$5:$AK$2951,15,FALSE),0) -> 3101 | R122: =IFERROR(VLOOKUP($A122,Filtro!$A$5:$AK$2951,16,FALSE),0) -> 34528 | S122: =IFERROR(VLOOKUP($A122,Filtro!$A$5:$AK$2951,17,FALSE),0) -> 0 | T122: =IFERROR(VLOOKUP($A122,Filtro!$A$5:$AK$2951,18,FALSE),0) -> 2,324,579,970
A123: 17010200 | B123: II | C123: BIOQUIMICOS | D123: =IFERROR(VLOOKUP($A123,Filtro!$A$5:$AK$2951,2,FALSE),0) -> 2253086 | E123: =IFERROR(VLOOKUP($A123,Filtro!$A$5:$AK$2951,3,FALSE),0) -> 2214278 | F123: =IFERROR(VLOOKUP($A123,Filtro!$A$5:$AK$2951,4,FALSE),0) -> 2211350 | G123: =IFERROR(VLOOKUP($A123,Filtro!$A$5:$AK$2951,5,FALSE),0) -> 2928 | H123: =IFERROR(VLOOKUP($A123,Filtro!$A$5:$AK$2951,6,FALSE),0) -> 38808 | I123: =IFERROR(VLOOKUP($A123,Filtro!$A$5:$AK$2951,7,FALSE),0) -> 694625 | J123: =IFERROR(VLOOKUP($A123,Filtro!$A$5:$AK$2951,8,FALSE),0) -> 1003791 | K123: =IFERROR(VLOOKUP($A123,Filtro!$A$5:$AK$2951,9,FALSE),0) -> 535285 | L123: =IFERROR(VLOOKUP($A123,Filtro!$A$5:$AK$2951,10,FALSE),0) -> 0 | M123: =IFERROR(VLOOKUP($A123,Filtro!$A$5:$AK$2951,11,FALSE),0) -> 0 | N123: =IFERROR(VLOOKUP($A123,Filtro!$A$5:$AK$2951,12,FALSE),0) -> 0 | O123: =IFERROR(VLOOKUP($A123,Filtro!$A$5:$AK$2951,13,FALSE),0) -> 0 | P123: =IFERROR(VLOOKUP($A123,Filtro!$A$5:$AK$2951,14,FALSE),0) -> 2510 | Q123: =IFERROR(VLOOKUP($A123,Filtro!$A$5:$AK$2951,15,FALSE),0) -> 5067 | R123: =IFERROR(VLOOKUP($A123,Filtro!$A$5:$AK$2951,16,FALSE),0) -> 54059 | S123: =IFERROR(VLOOKUP($A123,Filtro!$A$5:$AK$2951,17,FALSE),0) -> 0 | T123: =IFERROR(VLOOKUP($A123,Filtro!$A$5:$AK$2951,18,FALSE),0) -> 6,596,624,250
A124: 17010300 | B124: III | C124: HORMONALES | D124: =IFERROR(VLOOKUP($A124,Filtro!$A$5:$AK$2951,2,FALSE),0) -> 206532 | E124: =IFERROR(VLOOKUP($A124,Filtro!$A$5:$AK$2951,3,FALSE),0) -> 200434 | F124: =IFERROR(VLOOKUP($A124,Filtro!$A$5:$AK$2951,4,FALSE),0) -> 200409 | G124: =IFERROR(VLOOKUP($A124,Filtro!$A$5:$AK$2951,5,FALSE),0) -> 25 | H124: =IFERROR(VLOOKUP($A124,Filtro!$A$5:$AK$2951,6,FALSE),0) -> 6098 | I124: =IFERROR(VLOOKUP($A124,Filtro!$A$5:$AK$2951,7,FALSE),0) -> 15028 | J124: =IFERROR(VLOOKUP($A124,Filtro!$A$5:$AK$2951,8,FALSE),0) -> 187154 | K124: =IFERROR(VLOOKUP($A124,Filtro!$A$5:$AK$2951,9,FALSE),0) -> 4350 | L124: =IFERROR(VLOOKUP($A124,Filtro!$A$5:$AK$2951,10,FALSE),0) -> 0 | M124: =IFERROR(VLOOKUP($A124,Filtro!$A$5:$AK$2951,11,FALSE),0) -> 0 | N124: =IFERROR(VLOOKUP($A124,Filtro!$A$5:$AK$2951,12,FALSE),0) -> 0 | O124: =IFERROR(VLOOKUP($A124,Filtro!$A$5:$AK$2951,13,FALSE),0) -> 0 | P124: =IFERROR(VLOOKUP($A124,Filtro!$A$5:$AK$2951,14,FALSE),0) -> 17704 | Q124: =IFERROR(VLOOKUP($A124,Filtro!$A$5:$AK$2951,15,FALSE),0) -> 1300 | R124: =IFERROR(VLOOKUP($A124,Filtro!$A$5:$AK$2951,16,FALSE),0) -> 10824 | S124: =IFERROR(VLOOKUP($A124,Filtro!$A$5:$AK$2951,17,FALSE),0) -> 0 | T124: =IFERROR(VLOOKUP($A124,Filtro!$A$5:$AK$2951,18,FALSE),0) -> 1,128,019,340
A125: 17010400 | B125: IV | C125: GENETICA | D125: =IFERROR(VLOOKUP($A125,Filtro!$A$5:$AK$2951,2,FALSE),0) -> 0 | E125: =IFERROR(VLOOKUP($A125,Filtro!$A$5:$AK$2951,3,FALSE),0) -> 0 | F125: =IFERROR(VLOOKUP($A125,Filtro!$A$5:$AK$2951,4,FALSE),0) -> 0 | G125: =IFERROR(VLOOKUP($A125,Filtro!$A$5:$AK$2951,5,FALSE),0) -> 0 | H125: =IFERROR(VLOOKUP($A125,Filtro!$A$5:$AK$2951,6,FALSE),0) -> 0 | I125: =IFERROR(VLOOKUP($A125,Filtro!$A$5:$AK$2951,7,FALSE),0) -> 0 | J125: =IFERROR(VLOOKUP($A125,Filtro!$A$5:$AK$2951,8,FALSE),0) -> 0 | K125: =IFERROR(VLOOKUP($A125,Filtro!$A$5:$AK$2951,9,FALSE),0) -> 0 | L125: =IFERROR(VLOOKUP($A125,Filtro!$A$5:$AK$2951,10,FALSE),0) -> 0 | M125: =IFERROR(VLOOKUP($A125,Filtro!$A$5:$AK$2951,11,FALSE),0) -> 0 | N125: =IFERROR(VLOOKUP($A125,Filtro!$A$5:$AK$2951,12,FALSE),0) -> 0 | O125: =IFERROR(VLOOKUP($A125,Filtro!$A$5:$AK$2951,13,FALSE),0) -> 0 | P125: =IFERROR(VLOOKUP($A125,Filtro!$A$5:$AK$2951,14,FALSE),0) -> 2 | Q125: =IFERROR(VLOOKUP($A125,Filtro!$A$5:$AK$2951,15,FALSE),0) -> 46 | R125: =IFERROR(VLOOKUP($A125,Filtro!$A$5:$AK$2951,16,FALSE),0) -> 0 | S125: =IFERROR(VLOOKUP($A125,Filtro!$A$5:$AK$2951,17,FALSE),0) -> 0 | T125: =IFERROR(VLOOKUP($A125,Filtro!$A$5:$AK$2951,18,FALSE),0) -> 0
A126: 17010500 | B126: V | C126: INMUNOLOGICOS | D126: =IFERROR(VLOOKUP($A126,Filtro!$A$5:$AK$2951,2,FALSE),0) -> 197361 | E126: =IFERROR(VLOOKUP($A126,Filtro!$A$5:$AK$2951,3,FALSE),0) -> 196553 | F126: =IFERROR(VLOOKUP($A126,Filtro!$A$5:$AK$2951,4,FALSE),0) -> 195506 | G126: =IFERROR(VLOOKUP($A126,Filtro!$A$5:$AK$2951,5,FALSE),0) -> 1047 | H126: =IFERROR(VLOOKUP($A126,Filtro!$A$5:$AK$2951,6,FALSE),0) -> 808 | I126: =IFERROR(VLOOKUP($A126,Filtro!$A$5:$AK$2951,7,FALSE),0) -> 57157 | J126: =IFERROR(VLOOKUP($A126,Filtro!$A$5:$AK$2951,8,FALSE),0) -> 83460 | K126: =IFERROR(VLOOKUP($A126,Filtro!$A$5:$AK$2951,9,FALSE),0) -> 55842 | L126: =IFERROR(VLOOKUP($A126,Filtro!$A$5:$AK$2951,10,FALSE),0) -> 0 | M126: =IFERROR(VLOOKUP($A126,Filtro!$A$5:$AK$2951,11,FALSE),0) -> 0 | N126: =IFERROR(VLOOKUP($A126,Filtro!$A$5:$AK$2951,12,FALSE),0) -> 0 | O126: =IFERROR(VLOOKUP($A126,Filtro!$A$5:$AK$2951,13,FALSE),0) -> 0 | P126: =IFERROR(VLOOKUP($A126,Filtro!$A$5:$AK$2951,14,FALSE),0) -> 11155 | Q126: =IFERROR(VLOOKUP($A126,Filtro!$A$5:$AK$2951,15,FALSE),0) -> 4405 | R126: =IFERROR(VLOOKUP($A126,Filtro!$A$5:$AK$2951,16,FALSE),0) -> 1323 | S126: =IFERROR(VLOOKUP($A126,Filtro!$A$5:$AK$2951,17,FALSE),0) -> 0 | T126: =IFERROR(VLOOKUP($A126,Filtro!$A$5:$AK$2951,18,FALSE),0) -> 1,249,838,050
B127: VI | C127: MICROBIOLOGICOS | D127: 0 | E127: 0 | F127: 0 | G127: 0 | H127: 0 | I127: 0 | J127: 0 | K127: 0 | L127: 0 | M127: 0 | N127: 0 | O127: 0 | P127: 0 | Q127: 0 | R127: 0 | S127: 0 | T127: 0
A128: 17010601 | C128: a) BACTERIAS Y HONGOS | D128: =IFERROR(VLOOKUP($A128,Filtro!$A$5:$AK$2951,2,FALSE),0) -> 139127 | E128: =IFERROR(VLOOKUP($A128,Filtro!$A$5:$AK$2951,3,FALSE),0) -> 136403 | F128: =IFERROR(VLOOKUP($A128,Filtro!$A$5:$AK$2951,4,FALSE),0) -> 135995 | G128: =IFERROR(VLOOKUP($A128,Filtro!$A$5:$AK$2951,5,FALSE),0) -> 408 | H128: =IFERROR(VLOOKUP($A128,Filtro!$A$5:$AK$2951,6,FALSE),0) -> 2724 | I128: =IFERROR(VLOOKUP($A128,Filtro!$A$5:$AK$2951,7,FALSE),0) -> 39624 | J128: =IFERROR(VLOOKUP($A128,Filtro!$A$5:$AK$2951,8,FALSE),0) -> 70527 | K128: =IFERROR(VLOOKUP($A128,Filtro!$A$5:$AK$2951,9,FALSE),0) -> 28714 | L128: =IFERROR(VLOOKUP($A128,Filtro!$A$5:$AK$2951,10,FALSE),0) -> 0 | M128: =IFERROR(VLOOKUP($A128,Filtro!$A$5:$AK$2951,11,FALSE),0) -> 0 | N128: =IFERROR(VLOOKUP($A128,Filtro!$A$5:$AK$2951,12,FALSE),0) -> 0 | O128: =IFERROR(VLOOKUP($A128,Filtro!$A$5:$AK$2951,13,FALSE),0) -> 0 | P128: =IFERROR(VLOOKUP($A128,Filtro!$A$5:$AK$2951,14,FALSE),0) -> 85 | Q128: =IFERROR(VLOOKUP($A128,Filtro!$A$5:$AK$2951,15,FALSE),0) -> 185 | R128: =IFERROR(VLOOKUP($A128,Filtro!$A$5:$AK$2951,16,FALSE),0) -> 4071 | S128: =IFERROR(VLOOKUP($A128,Filtro!$A$5:$AK$2951,17,FALSE),0) -> 0 | T128: =IFERROR(VLOOKUP($A128,Filtro!$A$5:$AK$2951,18,FALSE),0) -> 633,282,190
A129: 17010602 | C129: b) PARASITOS | D129: =IFERROR(VLOOKUP($A129,Filtro!$A$5:$AK$2951,2,FALSE),0) -> 39026 | E129: =IFERROR(VLOOKUP($A129,Filtro!$A$5:$AK$2951,3,FALSE),0) -> 38672 | F129: =IFERROR(VLOOKUP($A129,Filtro!$A$5:$AK$2951,4,FALSE),0) -> 38643 | G129: =IFERROR(VLOOKUP($A129,Filtro!$A$5:$AK$2951,5,FALSE),0) -> 29 | H129: =IFERROR(VLOOKUP($A129,Filtro!$A$5:$AK$2951,6,FALSE),0) -> 354 | I129: =IFERROR(VLOOKUP($A129,Filtro!$A$5:$AK$2951,7,FALSE),0) -> 1855 | J129: =IFERROR(VLOOKUP($A129,Filtro!$A$5:$AK$2951,8,FALSE),0) -> 36760 | K129: =IFERROR(VLOOKUP($A129,Filtro!$A$5:$AK$2951,9,FALSE),0) -> 293 | L129: =IFERROR(VLOOKUP($A129,Filtro!$A$5:$AK$2951,10,FALSE),0) -> 0 | M129: =IFERROR(VLOOKUP($A129,Filtro!$A$5:$AK$2951,11,FALSE),0) -> 0 | N129: =IFERROR(VLOOKUP($A129,Filtro!$A$5:$AK$2951,12,FALSE),0) -> 0 | O129: =IFERROR(VLOOKUP($A129,Filtro!$A$5:$AK$2951,13,FALSE),0) -> 0 | P129: =IFERROR(VLOOKUP($A129,Filtro!$A$5:$AK$2951,14,FALSE),0) -> 300 | Q129: =IFERROR(VLOOKUP($A129,Filtro!$A$5:$AK$2951,15,FALSE),0) -> 39 | R129: =IFERROR(VLOOKUP($A129,Filtro!$A$5:$AK$2951,16,FALSE),0) -> 833 | S129: =IFERROR(VLOOKUP($A129,Filtro!$A$5:$AK$2951,17,FALSE),0) -> 0 | T129: =IFERROR(VLOOKUP($A129,Filtro!$A$5:$AK$2951,18,FALSE),0) -> 199,060,700
A130: 17010603 | C130: c) VIRUS | D130: =IFERROR(VLOOKUP($A130,Filtro!$A$5:$AK$2951,2,FALSE),0) -> 93462 | E130: =IFERROR(VLOOKUP($A130,Filtro!$A$5:$AK$2951,3,FALSE),0) -> 92601 | F130: =IFERROR(VLOOKUP($A130,Filtro!$A$5:$AK$2951,4,FALSE),0) -> 92554 | G130: =IFERROR(VLOOKUP($A130,Filtro!$A$5:$AK$2951,5,FALSE),0) -> 47 | H130: =IFERROR(VLOOKUP($A130,Filtro!$A$5:$AK$2951,6,FALSE),0) -> 861 | I130: =IFERROR(VLOOKUP($A130,Filtro!$A$5:$AK$2951,7,FALSE),0) -> 11727 | J130: =IFERROR(VLOOKUP($A130,Filtro!$A$5:$AK$2951,8,FALSE),0) -> 58539 | K130: =IFERROR(VLOOKUP($A130,Filtro!$A$5:$AK$2951,9,FALSE),0) -> 23214 | L130: =IFERROR(VLOOKUP($A130,Filtro!$A$5:$AK$2951,10,FALSE),0) -> 0 | M130: =IFERROR(VLOOKUP($A130,Filtro!$A$5:$AK$2951,11,FALSE),0) -> 0 | N130: =IFERROR(VLOOKUP($A130,Filtro!$A$5:$AK$2951,12,FALSE),0) -> 0 | O130: =IFERROR(VLOOKUP($A130,Filtro!$A$5:$AK$2951,13,FALSE),0) -> 0 | P130: =IFERROR(VLOOKUP($A130,Filtro!$A$5:$AK$2951,14,FALSE),0) -> 1969 | Q130: =IFERROR(VLOOKUP($A130,Filtro!$A$5:$AK$2951,15,FALSE),0) -> 110 | R130: =IFERROR(VLOOKUP($A130,Filtro!$A$5:$AK$2951,16,FALSE),0) -> 1359 | S130: =IFERROR(VLOOKUP($A130,Filtro!$A$5:$AK$2951,17,FALSE),0) -> 0 | T130: =IFERROR(VLOOKUP($A130,Filtro!$A$5:$AK$2951,18,FALSE),0) -> 1,717,047,040
A131: 17010700 | B131: VII | C131: PROCEDIMIENTO O DETERMINACION DIRECTA C/PACIENTE | D131: =IFERROR(VLOOKUP($A131,Filtro!$A$5:$AK$2951,2,FALSE),0) -> 16183 | E131: =IFERROR(VLOOKUP($A131,Filtro!$A$5:$AK$2951,3,FALSE),0) -> 16183 | F131: =IFERROR(VLOOKUP($A131,Filtro!$A$5:$AK$2951,4,FALSE),0) -> 16183 | G131: =IFERROR(VLOOKUP($A131,Filtro!$A$5:$AK$2951,5,FALSE),0) -> 0 | H131: =IFERROR(VLOOKUP($A131,Filtro!$A$5:$AK$2951,6,FALSE),0) -> 0 | I131: =IFERROR(VLOOKUP($A131,Filtro!$A$5:$AK$2951,7,FALSE),0) -> 13516 | J131: =IFERROR(VLOOKUP($A131,Filtro!$A$5:$AK$2951,8,FALSE),0) -> 438 | K131: =IFERROR(VLOOKUP($A131,Filtro!$A$5:$AK$2951,9,FALSE),0) -> 2229 | L131: =IFERROR(VLOOKUP($A131,Filtro!$A$5:$AK$2951,10,FALSE),0) -> 0 | M131: =IFERROR(VLOOKUP($A131,Filtro!$A$5:$AK$2951,11,FALSE),0) -> 0 | N131: =IFERROR(VLOOKUP($A131,Filtro!$A$5:$AK$2951,12,FALSE),0) -> 0 | O131: =IFERROR(VLOOKUP($A131,Filtro!$A$5:$AK$2951,13,FALSE),0) -> 0 | P131: =IFERROR(VLOOKUP($A131,Filtro!$A$5:$AK$2951,14,FALSE),0) -> 0 | Q131: =IFERROR(VLOOKUP($A131,Filtro!$A$5:$AK$2951,15,FALSE),0) -> 0 | R131: =IFERROR(VLOOKUP($A131,Filtro!$A$5:$AK$2951,16,FALSE),0) -> 0 | S131: =IFERROR(VLOOKUP($A131,Filtro!$A$5:$AK$2951,17,FALSE),0) -> 0 | T131: =IFERROR(VLOOKUP($A131,Filtro!$A$5:$AK$2951,18,FALSE),0) -> 40,008,260
A132: 17010800 | B132: VIII | C132: EX. DE DEPOSICIONES EXUDADOS. SECREC. Y OTROS LIQ. | D132: =IFERROR(VLOOKUP($A132,Filtro!$A$5:$AK$2951,2,FALSE),0) -> 9717 | E132: =IFERROR(VLOOKUP($A132,Filtro!$A$5:$AK$2951,3,FALSE),0) -> 9481 | F132: =IFERROR(VLOOKUP($A132,Filtro!$A$5:$AK$2951,4,FALSE),0) -> 9478 | G132: =IFERROR(VLOOKUP($A132,Filtro!$A$5:$AK$2951,5,FALSE),0) -> 3 | H132: =IFERROR(VLOOKUP($A132,Filtro!$A$5:$AK$2951,6,FALSE),0) -> 236 | I132: =IFERROR(VLOOKUP($A132,Filtro!$A$5:$AK$2951,7,FALSE),0) -> 3138 | J132: =IFERROR(VLOOKUP($A132,Filtro!$A$5:$AK$2951,8,FALSE),0) -> 4565 | K132: =IFERROR(VLOOKUP($A132,Filtro!$A$5:$AK$2951,9,FALSE),0) -> 2014 | L132: =IFERROR(VLOOKUP($A132,Filtro!$A$5:$AK$2951,10,FALSE),0) -> 0 | M132: =IFERROR(VLOOKUP($A132,Filtro!$A$5:$AK$2951,11,FALSE),0) -> 0 | N132: =IFERROR(VLOOKUP($A132,Filtro!$A$5:$AK$2951,12,FALSE),0) -> 0 | O132: =IFERROR(VLOOKUP($A132,Filtro!$A$5:$AK$2951,13,FALSE),0) -> 0 | P132: =IFERROR(VLOOKUP($A132,Filtro!$A$5:$AK$2951,14,FALSE),0) -> 76 | Q132: =IFERROR(VLOOKUP($A132,Filtro!$A$5:$AK$2951,15,FALSE),0) -> 217 | R132: =IFERROR(VLOOKUP($A132,Filtro!$A$5:$AK$2951,16,FALSE),0) -> 129 | S132: =IFERROR(VLOOKUP($A132,Filtro!$A$5:$AK$2951,17,FALSE),0) -> 0 | T132: =IFERROR(VLOOKUP($A132,Filtro!$A$5:$AK$2951,18,FALSE),0) -> 22,300,520
A133: 17010900 | B133: IX | C133: ORINA | D133: =IFERROR(VLOOKUP($A133,Filtro!$A$5:$AK$2951,2,FALSE),0) -> 212713 | E133: =IFERROR(VLOOKUP($A133,Filtro!$A$5:$AK$2951,3,FALSE),0) -> 200483 | F133: =IFERROR(VLOOKUP($A133,Filtro!$A$5:$AK$2951,4,FALSE),0) -> 200336 | G133: =IFERROR(VLOOKUP($A133,Filtro!$A$5:$AK$2951,5,FALSE),0) -> 147 | H133: =IFERROR(VLOOKUP($A133,Filtro!$A$5:$AK$2951,6,FALSE),0) -> 12230 | I133: =IFERROR(VLOOKUP($A133,Filtro!$A$5:$AK$2951,7,FALSE),0) -> 17109 | J133: =IFERROR(VLOOKUP($A133,Filtro!$A$5:$AK$2951,8,FALSE),0) -> 160472 | K133: =IFERROR(VLOOKUP($A133,Filtro!$A$5:$AK$2951,9,FALSE),0) -> 35153 | L133: =IFERROR(VLOOKUP($A133,Filtro!$A$5:$AK$2951,10,FALSE),0) -> 0 | M133: =IFERROR(VLOOKUP($A133,Filtro!$A$5:$AK$2951,11,FALSE),0) -> 0 | N133: =IFERROR(VLOOKUP($A133,Filtro!$A$5:$AK$2951,12,FALSE),0) -> 0 | O133: =IFERROR(VLOOKUP($A133,Filtro!$A$5:$AK$2951,13,FALSE),0) -> 0 | P133: =IFERROR(VLOOKUP($A133,Filtro!$A$5:$AK$2951,14,FALSE),0) -> 10 | Q133: =IFERROR(VLOOKUP($A133,Filtro!$A$5:$AK$2951,15,FALSE),0) -> 996 | R133: =IFERROR(VLOOKUP($A133,Filtro!$A$5:$AK$2951,16,FALSE),0) -> 20878 | S133: =IFERROR(VLOOKUP($A133,Filtro!$A$5:$AK$2951,17,FALSE),0) -> 0 | T133: =IFERROR(VLOOKUP($A133,Filtro!$A$5:$AK$2951,18,FALSE),0) -> 381,588,430
B134: TOTAL EXAMENES IMAGENOLOGIA | D134: 0 | E134: 0 | F134: 0 | G134: 0 | H134: 0 | I134: 0 | J134: 0 | K134: 0 | L134: 0 | M134: 0 | N134: 0 | O134: 0 | P134: 0 | Q134: 0 | R134: 0 | S134: 0 | T134: 0
A135: 17011001 | B135: I. a) | C135: EX. RADIOLOGICOS SIMPLES | D135: =IFERROR(VLOOKUP($A135,Filtro!$A$5:$AK$2951,2,FALSE),0) -> 209531 | E135: =IFERROR(VLOOKUP($A135,Filtro!$A$5:$AK$2951,3,FALSE),0) -> 206142 | F135: =IFERROR(VLOOKUP($A135,Filtro!$A$5:$AK$2951,4,FALSE),0) -> 205705 | G135: =IFERROR(VLOOKUP($A135,Filtro!$A$5:$AK$2951,5,FALSE),0) -> 437 | H135: =IFERROR(VLOOKUP($A135,Filtro!$A$5:$AK$2951,6,FALSE),0) -> 3389 | I135: =IFERROR(VLOOKUP($A135,Filtro!$A$5:$AK$2951,7,FALSE),0) -> 24215 | J135: =IFERROR(VLOOKUP($A135,Filtro!$A$5:$AK$2951,8,FALSE),0) -> 77496 | K135: =IFERROR(VLOOKUP($A135,Filtro!$A$5:$AK$2951,9,FALSE),0) -> 108575 | L135: =IFERROR(VLOOKUP($A135,Filtro!$A$5:$AK$2951,10,FALSE),0) -> 83 | M135: =IFERROR(VLOOKUP($A135,Filtro!$A$5:$AK$2951,11,FALSE),0) -> 0 | N135: =IFERROR(VLOOKUP($A135,Filtro!$A$5:$AK$2951,12,FALSE),0) -> 84 | O135: =IFERROR(VLOOKUP($A135,Filtro!$A$5:$AK$2951,13,FALSE),0) -> 0 | P135: =IFERROR(VLOOKUP($A135,Filtro!$A$5:$AK$2951,14,FALSE),0) -> 0 | Q135: =IFERROR(VLOOKUP($A135,Filtro!$A$5:$AK$2951,15,FALSE),0) -> 462 | R135: =IFERROR(VLOOKUP($A135,Filtro!$A$5:$AK$2951,16,FALSE),0) -> 26 | S135: =IFERROR(VLOOKUP($A135,Filtro!$A$5:$AK$2951,17,FALSE),0) -> 0 | T135: =IFERROR(VLOOKUP($A135,Filtro!$A$5:$AK$2951,18,FALSE),0) -> 2,151,295,780
A136: 17011002 | B136: I. b) | C136: EX. RADIOLOGICOS COMPLEJOS | D136: =IFERROR(VLOOKUP($A136,Filtro!$A$5:$AK$2951,2,FALSE),0) -> 328 | E136: =IFERROR(VLOOKUP($A136,Filtro!$A$5:$AK$2951,3,FALSE),0) -> 322 | F136: =IFERROR(VLOOKUP($A136,Filtro!$A$5:$AK$2951,4,FALSE),0) -> 322 | G136: =IFERROR(VLOOKUP($A136,Filtro!$A$5:$AK$2951,5,FALSE),0) -> 0 | H136: =IFERROR(VLOOKUP($A136,Filtro!$A$5:$AK$2951,6,FALSE),0) -> 6 | I136: =IFERROR(VLOOKUP($A136,Filtro!$A$5:$AK$2951,7,FALSE),0) -> 216 | J136: =IFERROR(VLOOKUP($A136,Filtro!$A$5:$AK$2951,8,FALSE),0) -> 105 | K136: =IFERROR(VLOOKUP($A136,Filtro!$A$5:$AK$2951,9,FALSE),0) -> 7 | L136: =IFERROR(VLOOKUP($A136,Filtro!$A$5:$AK$2951,10,FALSE),0) -> 53 | M136: =IFERROR(VLOOKUP($A136,Filtro!$A$5:$AK$2951,11,FALSE),0) -> 0 | N136: =IFERROR(VLOOKUP($A136,Filtro!$A$5:$AK$2951,12,FALSE),0) -> 5 | O136: =IFERROR(VLOOKUP($A136,Filtro!$A$5:$AK$2951,13,FALSE),0) -> 0 | P136: =IFERROR(VLOOKUP($A136,Filtro!$A$5:$AK$2951,14,FALSE),0) -> 0 | Q136: =IFERROR(VLOOKUP($A136,Filtro!$A$5:$AK$2951,15,FALSE),0) -> 11 | R136: =IFERROR(VLOOKUP($A136,Filtro!$A$5:$AK$2951,16,FALSE),0) -> 0 | S136: =IFERROR(VLOOKUP($A136,Filtro!$A$5:$AK$2951,17,FALSE),0) -> 0 | T136: =IFERROR(VLOOKUP($A136,Filtro!$A$5:$AK$2951,18,FALSE),0) -> 20,116,940
A137: 17011003 | B137: II. | C137: TOMOGRAFIA AXIAL COMP. | D137: =IFERROR(VLOOKUP($A137,Filtro!$A$5:$AK$2951,2,FALSE),0) -> 64409 | E137: =IFERROR(VLOOKUP($A137,Filtro!$A$5:$AK$2951,3,FALSE),0) -> 63669 | F137: =IFERROR(VLOOKUP($A137,Filtro!$A$5:$AK$2951,4,FALSE),0) -> 63645 | G137: =IFERROR(VLOOKUP($A137,Filtro!$A$5:$AK$2951,5,FALSE),0) -> 24 | H137: =IFERROR(VLOOKUP($A137,Filtro!$A$5:$AK$2951,6,FALSE),0) -> 740 | I137: =IFERROR(VLOOKUP($A137,Filtro!$A$5:$AK$2951,7,FALSE),0) -> 12973 | J137: =IFERROR(VLOOKUP($A137,Filtro!$A$5:$AK$2951,8,FALSE),0) -> 18229 | K137: =IFERROR(VLOOKUP($A137,Filtro!$A$5:$AK$2951,9,FALSE),0) -> 33206 | L137: =IFERROR(VLOOKUP($A137,Filtro!$A$5:$AK$2951,10,FALSE),0) -> 0 | M137: =IFERROR(VLOOKUP($A137,Filtro!$A$5:$AK$2951,11,FALSE),0) -> 0 | N137: =IFERROR(VLOOKUP($A137,Filtro!$A$5:$AK$2951,12,FALSE),0) -> 0 | O137: =IFERROR(VLOOKUP($A137,Filtro!$A$5:$AK$2951,13,FALSE),0) -> 0 | P137: =IFERROR(VLOOKUP($A137,Filtro!$A$5:$AK$2951,14,FALSE),0) -> 0 | Q137: =IFERROR(VLOOKUP($A137,Filtro!$A$5:$AK$2951,15,FALSE),0) -> 5 | R137: =IFERROR(VLOOKUP($A137,Filtro!$A$5:$AK$2951,16,FALSE),0) -> 0 | S137: =IFERROR(VLOOKUP($A137,Filtro!$A$5:$AK$2951,17,FALSE),0) -> 0 | T137: =IFERROR(VLOOKUP($A137,Filtro!$A$5:$AK$2951,18,FALSE),0) -> 4,585,307,840
B138: III | C138: ULTRASONOGRAFIA | D138: 0 | E138: 0 | F138: 0 | G138: 0 | H138: 0 | I138: 0 | J138: 0 | K138: 0 | L138: 0 | M138: 0 | N138: 0 | O138: 0 | P138: 0 | Q138: 0 | R138: 0 | S138: 0 | T138: 0
A139: 17011004 | C139: Ecotomografias ( Sin Ecografía Obstetr. Y Abdominal ) | D139: =IFERROR(VLOOKUP($A139,Filtro!$A$5:$AK$2951,2,FALSE),0) -> 53375 | E139: =IFERROR(VLOOKUP($A139,Filtro!$A$5:$AK$2951,3,FALSE),0) -> 53154 | F139: =IFERROR(VLOOKUP($A139,Filtro!$A$5:$AK$2951,4,FALSE),0) -> 53122 | G139: =IFERROR(VLOOKUP($A139,Filtro!$A$5:$AK$2951,5,FALSE),0) -> 32 | H139: =IFERROR(VLOOKUP($A139,Filtro!$A$5:$AK$2951,6,FALSE),0) -> 221 | I139: =IFERROR(VLOOKUP($A139,Filtro!$A$5:$AK$2951,7,FALSE),0) -> 6917 | J139: =IFERROR(VLOOKUP($A139,Filtro!$A$5:$AK$2951,8,FALSE),0) -> 37251 | K139: =IFERROR(VLOOKUP($A139,Filtro!$A$5:$AK$2951,9,FALSE),0) -> 9207 | L139: =IFERROR(VLOOKUP($A139,Filtro!$A$5:$AK$2951,10,FALSE),0) -> 1965 | M139: =IFERROR(VLOOKUP($A139,Filtro!$A$5:$AK$2951,11,FALSE),0) -> 0 | N139: =IFERROR(VLOOKUP($A139,Filtro!$A$5:$AK$2951,12,FALSE),0) -> 37 | O139: =IFERROR(VLOOKUP($A139,Filtro!$A$5:$AK$2951,13,FALSE),0) -> 0 | P139: =IFERROR(VLOOKUP($A139,Filtro!$A$5:$AK$2951,14,FALSE),0) -> 0 | Q139: =IFERROR(VLOOKUP($A139,Filtro!$A$5:$AK$2951,15,FALSE),0) -> 399 | R139: =IFERROR(VLOOKUP($A139,Filtro!$A$5:$AK$2951,16,FALSE),0) -> 0 | S139: =IFERROR(VLOOKUP($A139,Filtro!$A$5:$AK$2951,17,FALSE),0) -> 0 | T139: =IFERROR(VLOOKUP($A139,Filtro!$A$5:$AK$2951,18,FALSE),0) -> 1,023,595,010
A140: 17011005 | C140: Ecografías Obstétricas | D140: =IFERROR(VLOOKUP($A140,Filtro!$A$5:$AK$2951,2,FALSE),0) -> 15016 | E140: =IFERROR(VLOOKUP($A140,Filtro!$A$5:$AK$2951,3,FALSE),0) -> 14982 | F140: =IFERROR(VLOOKUP($A140,Filtro!$A$5:$AK$2951,4,FALSE),0) -> 14982 | G140: =IFERROR(VLOOKUP($A140,Filtro!$A$5:$AK$2951,5,FALSE),0) -> 0 | H140: =IFERROR(VLOOKUP($A140,Filtro!$A$5:$AK$2951,6,FALSE),0) -> 34 | I140: =IFERROR(VLOOKUP($A140,Filtro!$A$5:$AK$2951,7,FALSE),0) -> 191 | J140: =IFERROR(VLOOKUP($A140,Filtro!$A$5:$AK$2951,8,FALSE),0) -> 8662 | K140: =IFERROR(VLOOKUP($A140,Filtro!$A$5:$AK$2951,9,FALSE),0) -> 6163 | L140: =IFERROR(VLOOKUP($A140,Filtro!$A$5:$AK$2951,10,FALSE),0) -> 0 | M140: =IFERROR(VLOOKUP($A140,Filtro!$A$5:$AK$2951,11,FALSE),0) -> 0 | N140: =IFERROR(VLOOKUP($A140,Filtro!$A$5:$AK$2951,12,FALSE),0) -> 0 | O140: =IFERROR(VLOOKUP($A140,Filtro!$A$5:$AK$2951,13,FALSE),0) -> 0 | P140: =IFERROR(VLOOKUP($A140,Filtro!$A$5:$AK$2951,14,FALSE),0) -> 0 | Q140: =IFERROR(VLOOKUP($A140,Filtro!$A$5:$AK$2951,15,FALSE),0) -> 0 | R140: =IFERROR(VLOOKUP($A140,Filtro!$A$5:$AK$2951,16,FALSE),0) -> 0 | S140: =IFERROR(VLOOKUP($A140,Filtro!$A$5:$AK$2951,17,FALSE),0) -> 0 | T140: =IFERROR(VLOOKUP($A140,Filtro!$A$5:$AK$2951,18,FALSE),0) -> 97,083,360
A141: 17181000 | C141: Ecotomografias abdominal | D141: =IFERROR(VLOOKUP($A141,Filtro!$A$5:$AK$2951,2,FALSE),0) -> 7899 | E141: =IFERROR(VLOOKUP($A141,Filtro!$A$5:$AK$2951,3,FALSE),0) -> 7874 | F141: =IFERROR(VLOOKUP($A141,Filtro!$A$5:$AK$2951,4,FALSE),0) -> 7863 | G141: =IFERROR(VLOOKUP($A141,Filtro!$A$5:$AK$2951,5,FALSE),0) -> 11 | H141: =IFERROR(VLOOKUP($A141,Filtro!$A$5:$AK$2951,6,FALSE),0) -> 25 | I141: =IFERROR(VLOOKUP($A141,Filtro!$A$5:$AK$2951,7,FALSE),0) -> 1610 | J141: =IFERROR(VLOOKUP($A141,Filtro!$A$5:$AK$2951,8,FALSE),0) -> 4299 | K141: =IFERROR(VLOOKUP($A141,Filtro!$A$5:$AK$2951,9,FALSE),0) -> 1990 | L141: =IFERROR(VLOOKUP($A141,Filtro!$A$5:$AK$2951,10,FALSE),0) -> 318 | M141: =IFERROR(VLOOKUP($A141,Filtro!$A$5:$AK$2951,11,FALSE),0) -> 0 | N141: =IFERROR(VLOOKUP($A141,Filtro!$A$5:$AK$2951,12,FALSE),0) -> 0 | O141: =IFERROR(VLOOKUP($A141,Filtro!$A$5:$AK$2951,13,FALSE),0) -> 57 | P141: =IFERROR(VLOOKUP($A141,Filtro!$A$5:$AK$2951,14,FALSE),0) -> 0 | Q141: =IFERROR(VLOOKUP($A141,Filtro!$A$5:$AK$2951,15,FALSE),0) -> 275 | R141: =IFERROR(VLOOKUP($A141,Filtro!$A$5:$AK$2951,16,FALSE),0) -> 1 | S141: =IFERROR(VLOOKUP($A141,Filtro!$A$5:$AK$2951,17,FALSE),0) -> 0 | T141: =IFERROR(VLOOKUP($A141,Filtro!$A$5:$AK$2951,18,FALSE),0) -> 186,667,620
A142: 17019999 | B142: IV | C142: RESONANCIA MAGNÉTICA | D142: =IFERROR(VLOOKUP($A142,Filtro!$A$5:$AK$2951,2,FALSE),0) -> 4790 | E142: =IFERROR(VLOOKUP($A142,Filtro!$A$5:$AK$2951,3,FALSE),0) -> 4790 | F142: =IFERROR(VLOOKUP($A142,Filtro!$A$5:$AK$2951,4,FALSE),0) -> 4790 | G142: =IFERROR(VLOOKUP($A142,Filtro!$A$5:$AK$2951,5,FALSE),0) -> 0 | H142: =IFERROR(VLOOKUP($A142,Filtro!$A$5:$AK$2951,6,FALSE),0) -> 0 | I142: =IFERROR(VLOOKUP($A142,Filtro!$A$5:$AK$2951,7,FALSE),0) -> 1180 | J142: =IFERROR(VLOOKUP($A142,Filtro!$A$5:$AK$2951,8,FALSE),0) -> 3241 | K142: =IFERROR(VLOOKUP($A142,Filtro!$A$5:$AK$2951,9,FALSE),0) -> 369 | L142: =IFERROR(VLOOKUP($A142,Filtro!$A$5:$AK$2951,10,FALSE),0) -> 0 | M142: =IFERROR(VLOOKUP($A142,Filtro!$A$5:$AK$2951,11,FALSE),0) -> 0 | N142: =IFERROR(VLOOKUP($A142,Filtro!$A$5:$AK$2951,12,FALSE),0) -> 0 | O142: =IFERROR(VLOOKUP($A142,Filtro!$A$5:$AK$2951,13,FALSE),0) -> 0 | P142: =IFERROR(VLOOKUP($A142,Filtro!$A$5:$AK$2951,14,FALSE),0) -> 0 | Q142: =IFERROR(VLOOKUP($A142,Filtro!$A$5:$AK$2951,15,FALSE),0) -> 673 | R142: =IFERROR(VLOOKUP($A142,Filtro!$A$5:$AK$2951,16,FALSE),0) -> 0 | S142: =IFERROR(VLOOKUP($A142,Filtro!$A$5:$AK$2951,17,FALSE),0) -> 0 | T142: =IFERROR(VLOOKUP($A142,Filtro!$A$5:$AK$2951,18,FALSE),0) -> 841,013,170
A143: 17200110 | C143: OTROS EXÁMENES DE IMÁGENES | D143: =IFERROR(VLOOKUP($A143,Filtro!$A$5:$AK$2951,2,FALSE),0) -> 358 | E143: =IFERROR(VLOOKUP($A143,Filtro!$A$5:$AK$2951,3,FALSE),0) -> 358 | F143: =IFERROR(VLOOKUP($A143,Filtro!$A$5:$AK$2951,4,FALSE),0) -> 358 | G143: =IFERROR(VLOOKUP($A143,Filtro!$A$5:$AK$2951,5,FALSE),0) -> 0 | H143: =IFERROR(VLOOKUP($A143,Filtro!$A$5:$AK$2951,6,FALSE),0) -> 0 | I143: =IFERROR(VLOOKUP($A143,Filtro!$A$5:$AK$2951,7,FALSE),0) -> 8 | J143: =IFERROR(VLOOKUP($A143,Filtro!$A$5:$AK$2951,8,FALSE),0) -> 350 | K143: =IFERROR(VLOOKUP($A143,Filtro!$A$5:$AK$2951,9,FALSE),0) -> 0 | L143: =IFERROR(VLOOKUP($A143,Filtro!$A$5:$AK$2951,10,FALSE),0) -> 0 | M143: =IFERROR(VLOOKUP($A143,Filtro!$A$5:$AK$2951,11,FALSE),0) -> 0 | N143: =IFERROR(VLOOKUP($A143,Filtro!$A$5:$AK$2951,12,FALSE),0) -> 0 | O143: =IFERROR(VLOOKUP($A143,Filtro!$A$5:$AK$2951,13,FALSE),0) -> 0 | P143: =IFERROR(VLOOKUP($A143,Filtro!$A$5:$AK$2951,14,FALSE),0) -> 0 | Q143: =IFERROR(VLOOKUP($A143,Filtro!$A$5:$AK$2951,15,FALSE),0) -> 0 | R143: =IFERROR(VLOOKUP($A143,Filtro!$A$5:$AK$2951,16,FALSE),0) -> 0 | S143: =IFERROR(VLOOKUP($A143,Filtro!$A$5:$AK$2951,17,FALSE),0) -> 0 | T143: =IFERROR(VLOOKUP($A143,Filtro!$A$5:$AK$2951,18,FALSE),0) -> 0
A144: 17200120 | B144: TOMA DE MUESTRAS | D144: =IFERROR(VLOOKUP($A144,Filtro!$A$5:$AK$2951,2,FALSE),0) -> 138891 | E144: =IFERROR(VLOOKUP($A144,Filtro!$A$5:$AK$2951,3,FALSE),0) -> 138768 | F144: =IFERROR(VLOOKUP($A144,Filtro!$A$5:$AK$2951,4,FALSE),0) -> 138760 | G144: =IFERROR(VLOOKUP($A144,Filtro!$A$5:$AK$2951,5,FALSE),0) -> 8 | H144: =IFERROR(VLOOKUP($A144,Filtro!$A$5:$AK$2951,6,FALSE),0) -> 123 | I144: =IFERROR(VLOOKUP($A144,Filtro!$A$5:$AK$2951,7,FALSE),0) -> 9649 | J144: =IFERROR(VLOOKUP($A144,Filtro!$A$5:$AK$2951,8,FALSE),0) -> 122868 | K144: =IFERROR(VLOOKUP($A144,Filtro!$A$5:$AK$2951,9,FALSE),0) -> 5308 | L144: =IFERROR(VLOOKUP($A144,Filtro!$A$5:$AK$2951,10,FALSE),0) -> 0 | M144: =IFERROR(VLOOKUP($A144,Filtro!$A$5:$AK$2951,11,FALSE),0) -> 0 | N144: =IFERROR(VLOOKUP($A144,Filtro!$A$5:$AK$2951,12,FALSE),0) -> 0 | O144: =IFERROR(VLOOKUP($A144,Filtro!$A$5:$AK$2951,13,FALSE),0) -> 0 | P144: =IFERROR(VLOOKUP($A144,Filtro!$A$5:$AK$2951,14,FALSE),0) -> 0 | Q144: =IFERROR(VLOOKUP($A144,Filtro!$A$5:$AK$2951,15,FALSE),0) -> 0 | R144: =IFERROR(VLOOKUP($A144,Filtro!$A$5:$AK$2951,16,FALSE),0) -> 0 | S144: =IFERROR(VLOOKUP($A144,Filtro!$A$5:$AK$2951,17,FALSE),0) -> 0 | T144: =IFERROR(VLOOKUP($A144,Filtro!$A$5:$AK$2951,18,FALSE),0) -> 0
A145: 99999991 | B145: EXAMENES ANATOMIA PATOLOGICA | D145: =IFERROR(VLOOKUP($A145,Filtro!$A$5:$AK$2951,2,FALSE),0) -> 94783 | E145: =IFERROR(VLOOKUP($A145,Filtro!$A$5:$AK$2951,3,FALSE),0) -> 94775 | F145: =IFERROR(VLOOKUP($A145,Filtro!$A$5:$AK$2951,4,FALSE),0) -> 94775 | G145: =IFERROR(VLOOKUP($A145,Filtro!$A$5:$AK$2951,5,FALSE),0) -> 0 | H145: =IFERROR(VLOOKUP($A145,Filtro!$A$5:$AK$2951,6,FALSE),0) -> 8 | I145: =IFERROR(VLOOKUP($A145,Filtro!$A$5:$AK$2951,7,FALSE),0) -> 15268 | J145: =IFERROR(VLOOKUP($A145,Filtro!$A$5:$AK$2951,8,FALSE),0) -> 79479 | K145: =IFERROR(VLOOKUP($A145,Filtro!$A$5:$AK$2951,9,FALSE),0) -> 36 | L145: =IFERROR(VLOOKUP($A145,Filtro!$A$5:$AK$2951,10,FALSE),0) -> 0 | M145: =IFERROR(VLOOKUP($A145,Filtro!$A$5:$AK$2951,11,FALSE),0) -> 0 | N145: =IFERROR(VLOOKUP($A145,Filtro!$A$5:$AK$2951,12,FALSE),0) -> 0 | O145: =IFERROR(VLOOKUP($A145,Filtro!$A$5:$AK$2951,13,FALSE),0) -> 0 | P145: =IFERROR(VLOOKUP($A145,Filtro!$A$5:$AK$2951,14,FALSE),0) -> 0 | Q145: =IFERROR(VLOOKUP($A145,Filtro!$A$5:$AK$2951,15,FALSE),0) -> 2071 | R145: =IFERROR(VLOOKUP($A145,Filtro!$A$5:$AK$2951,16,FALSE),0) -> 0 | S145: =IFERROR(VLOOKUP($A145,Filtro!$A$5:$AK$2951,17,FALSE),0) -> 0 | T145: =IFERROR(VLOOKUP($A145,Filtro!$A$5:$AK$2951,18,FALSE),0) -> 1,129,648,610
B146: SECCION J: MEDICINA NUCLEAR Y RADIOTERAPIA
B147: TIPO DE PROCEDIMIENTO | D147: TOTAL | E147: PROCEDIMIENTOS | I147: PROCEDENCIA | L147: PRODUCCION INTRA HOSPITAL | O147: OPERATIVO | P147: COMPRAS REALIZADAS | R147: VENTAS DE SERVICIOS | S147: PAGO POR PRESTACIONES ($)
E148: TOTAL BENEFICIARIOS | F148: BENEFICIARIOS | H148: NO BENEFICIARIOS | I148: ATENCION CERRADA | J148: ATENCION ABIERTA | K148: EMERGENCIA | L148: POR HONORARIOS | M148: POR CONVENIOS | N148: POR CONSULTORES DE LLAMADA | P148: AL SISTEMA | Q148: EXTRA-SISTEMA
F149: MAI | G149: MLE
A150: 17400370 | B150: MEDICINA NUCLEAR | D150: =IFERROR(VLOOKUP($A150,Filtro!$A$5:$AK$2951,2,FALSE),0) -> 0 | E150: =IFERROR(VLOOKUP($A150,Filtro!$A$5:$AK$2951,3,FALSE),0) -> 0 | F150: =IFERROR(VLOOKUP($A150,Filtro!$A$5:$AK$2951,4,FALSE),0) -> 0 | G150: =IFERROR(VLOOKUP($A150,Filtro!$A$5:$AK$2951,5,FALSE),0) -> 0 | H150: =IFERROR(VLOOKUP($A150,Filtro!$A$5:$AK$2951,6,FALSE),0) -> 0 | I150: =IFERROR(VLOOKUP($A150,Filtro!$A$5:$AK$2951,7,FALSE),0) -> 0 | J150: =IFERROR(VLOOKUP($A150,Filtro!$A$5:$AK$2951,8,FALSE),0) -> 0 | K150: =IFERROR(VLOOKUP($A150,Filtro!$A$5:$AK$2951,9,FALSE),0) -> 0 | L150: =IFERROR(VLOOKUP($A150,Filtro!$A$5:$AK$2951,10,FALSE),0) -> 0 | M150: =IFERROR(VLOOKUP($A150,Filtro!$A$5:$AK$2951,11,FALSE),0) -> 0 | N150: =IFERROR(VLOOKUP($A150,Filtro!$A$5:$AK$2951,12,FALSE),0) -> 0 | O150: =IFERROR(VLOOKUP($A150,Filtro!$A$5:$AK$2951,13,FALSE),0) -> 0 | P150: =IFERROR(VLOOKUP($A150,Filtro!$A$5:$AK$2951,14,FALSE),0) -> 0 | Q150: =IFERROR(VLOOKUP($A150,Filtro!$A$5:$AK$2951,15,FALSE),0) -> 184 | R150: =IFERROR(VLOOKUP($A150,Filtro!$A$5:$AK$2951,16,FALSE),0) -> 0 | S150: =IFERROR(VLOOKUP($A150,Filtro!$A$5:$AK$2951,17,FALSE),0) -> 0
A151: 17020301 | B151: BRAQUITERAPIA | D151: =IFERROR(VLOOKUP($A151,Filtro!$A$5:$AK$2951,2,FALSE),0) -> 0 | E151: =IFERROR(VLOOKUP($A151,Filtro!$A$5:$AK$2951,3,FALSE),0) -> 0 | F151: =IFERROR(VLOOKUP($A151,Filtro!$A$5:$AK$2951,4,FALSE),0) -> 0 | G151: =IFERROR(VLOOKUP($A151,Filtro!$A$5:$AK$2951,5,FALSE),0) -> 0 | H151: =IFERROR(VLOOKUP($A151,Filtro!$A$5:$AK$2951,6,FALSE),0) -> 0 | I151: =IFERROR(VLOOKUP($A151,Filtro!$A$5:$AK$2951,7,FALSE),0) -> 0 | J151: =IFERROR(VLOOKUP($A151,Filtro!$A$5:$AK$2951,8,FALSE),0) -> 0 | K151: =IFERROR(VLOOKUP($A151,Filtro!$A$5:$AK$2951,9,FALSE),0) -> 0 | L151: =IFERROR(VLOOKUP($A151,Filtro!$A$5:$AK$2951,10,FALSE),0) -> 0 | M151: =IFERROR(VLOOKUP($A151,Filtro!$A$5:$AK$2951,11,FALSE),0) -> 0 | N151: =IFERROR(VLOOKUP($A151,Filtro!$A$5:$AK$2951,12,FALSE),0) -> 0 | O151: =IFERROR(VLOOKUP($A151,Filtro!$A$5:$AK$2951,13,FALSE),0) -> 0 | P151: =IFERROR(VLOOKUP($A151,Filtro!$A$5:$AK$2951,14,FALSE),0) -> 0 | Q151: =IFERROR(VLOOKUP($A151,Filtro!$A$5:$AK$2951,15,FALSE),0) -> 0 | R151: =IFERROR(VLOOKUP($A151,Filtro!$A$5:$AK$2951,16,FALSE),0) -> 0 | S151: =IFERROR(VLOOKUP($A151,Filtro!$A$5:$AK$2951,17,FALSE),0) -> 0
A152: 99200140 | B152: RADIOTERAPIA | D152: =IFERROR(VLOOKUP($A152,Filtro!$A$5:$AK$2951,2,FALSE),0) -> 0 | E152: =IFERROR(VLOOKUP($A152,Filtro!$A$5:$AK$2951,3,FALSE),0) -> 0 | F152: =IFERROR(VLOOKUP($A152,Filtro!$A$5:$AK$2951,4,FALSE),0) -> 0 | G152: =IFERROR(VLOOKUP($A152,Filtro!$A$5:$AK$2951,5,FALSE),0) -> 0 | H152: =IFERROR(VLOOKUP($A152,Filtro!$A$5:$AK$2951,6,FALSE),0) -> 0 | I152: =IFERROR(VLOOKUP($A152,Filtro!$A$5:$AK$2951,7,FALSE),0) -> 0 | J152: =IFERROR(VLOOKUP($A152,Filtro!$A$5:$AK$2951,8,FALSE),0) -> 0 | K152: =IFERROR(VLOOKUP($A152,Filtro!$A$5:$AK$2951,9,FALSE),0) -> 0 | L152: =IFERROR(VLOOKUP($A152,Filtro!$A$5:$AK$2951,10,FALSE),0) -> 0 | M152: =IFERROR(VLOOKUP($A152,Filtro!$A$5:$AK$2951,11,FALSE),0) -> 0 | N152: =IFERROR(VLOOKUP($A152,Filtro!$A$5:$AK$2951,12,FALSE),0) -> 0 | O152: =IFERROR(VLOOKUP($A152,Filtro!$A$5:$AK$2951,13,FALSE),0) -> 0 | P152: =IFERROR(VLOOKUP($A152,Filtro!$A$5:$AK$2951,14,FALSE),0) -> 0 | Q152: =IFERROR(VLOOKUP($A152,Filtro!$A$5:$AK$2951,15,FALSE),0) -> 0 | R152: =IFERROR(VLOOKUP($A152,Filtro!$A$5:$AK$2951,16,FALSE),0) -> 0 | S152: =IFERROR(VLOOKUP($A152,Filtro!$A$5:$AK$2951,17,FALSE),0) -> 0
A153: 17400381 | B153: QUIMIOTERAPIA | D153: =IFERROR(VLOOKUP($A153,Filtro!$A$5:$AK$2951,2,FALSE),0) -> 6213 | E153: =IFERROR(VLOOKUP($A153,Filtro!$A$5:$AK$2951,3,FALSE),0) -> 6194 | F153: =IFERROR(VLOOKUP($A153,Filtro!$A$5:$AK$2951,4,FALSE),0) -> 6194 | G153: =IFERROR(VLOOKUP($A153,Filtro!$A$5:$AK$2951,5,FALSE),0) -> 0 | H153: =IFERROR(VLOOKUP($A153,Filtro!$A$5:$AK$2951,6,FALSE),0) -> 19 | I153: =IFERROR(VLOOKUP($A153,Filtro!$A$5:$AK$2951,7,FALSE),0) -> 15 | J153: =IFERROR(VLOOKUP($A153,Filtro!$A$5:$AK$2951,8,FALSE),0) -> 6198 | K153: =IFERROR(VLOOKUP($A153,Filtro!$A$5:$AK$2951,9,FALSE),0) -> 0 | L153: =IFERROR(VLOOKUP($A153,Filtro!$A$5:$AK$2951,10,FALSE),0) -> 0 | M153: =IFERROR(VLOOKUP($A153,Filtro!$A$5:$AK$2951,11,FALSE),0) -> 0 | N153: =IFERROR(VLOOKUP($A153,Filtro!$A$5:$AK$2951,12,FALSE),0) -> 0 | O153: =IFERROR(VLOOKUP($A153,Filtro!$A$5:$AK$2951,13,FALSE),0) -> 0 | P153: =IFERROR(VLOOKUP($A153,Filtro!$A$5:$AK$2951,14,FALSE),0) -> 0 | Q153: =IFERROR(VLOOKUP($A153,Filtro!$A$5:$AK$2951,15,FALSE),0) -> 0 | R153: =IFERROR(VLOOKUP($A153,Filtro!$A$5:$AK$2951,16,FALSE),0) -> 0 | S153: =IFERROR(VLOOKUP($A153,Filtro!$A$5:$AK$2951,17,FALSE),0) -> 2,990,339,410
A154: 99200150 | B154: RADIOCIRUGÍA | D154: =IFERROR(VLOOKUP($A154,Filtro!$A$5:$AK$2951,2,FALSE),0) -> 0 | E154: =IFERROR(VLOOKUP($A154,Filtro!$A$5:$AK$2951,3,FALSE),0) -> 0 | F154: =IFERROR(VLOOKUP($A154,Filtro!$A$5:$AK$2951,4,FALSE),0) -> 0 | G154: =IFERROR(VLOOKUP($A154,Filtro!$A$5:$AK$2951,5,FALSE),0) -> 0 | H154: =IFERROR(VLOOKUP($A154,Filtro!$A$5:$AK$2951,6,FALSE),0) -> 0 | I154: =IFERROR(VLOOKUP($A154,Filtro!$A$5:$AK$2951,7,FALSE),0) -> 0 | J154: =IFERROR(VLOOKUP($A154,Filtro!$A$5:$AK$2951,8,FALSE),0) -> 0 | K154: =IFERROR(VLOOKUP($A154,Filtro!$A$5:$AK$2951,9,FALSE),0) -> 0 | L154: =IFERROR(VLOOKUP($A154,Filtro!$A$5:$AK$2951,10,FALSE),0) -> 0 | M154: =IFERROR(VLOOKUP($A154,Filtro!$A$5:$AK$2951,11,FALSE),0) -> 0 | N154: =IFERROR(VLOOKUP($A154,Filtro!$A$5:$AK$2951,12,FALSE),0) -> 0 | O154: =IFERROR(VLOOKUP($A154,Filtro!$A$5:$AK$2951,13,FALSE),0) -> 0 | P154: =IFERROR(VLOOKUP($A154,Filtro!$A$5:$AK$2951,14,FALSE),0) -> 0 | Q154: =IFERROR(VLOOKUP($A154,Filtro!$A$5:$AK$2951,15,FALSE),0) -> 0 | R154: =IFERROR(VLOOKUP($A154,Filtro!$A$5:$AK$2951,16,FALSE),0) -> 0 | S154: =IFERROR(VLOOKUP($A154,Filtro!$A$5:$AK$2951,17,FALSE),0) -> 0
B155: TOTAL | D155: =IFERROR(VLOOKUP($A155,Filtro!$A$5:$AK$2951,2,FALSE),0) -> 0 | E155: =IFERROR(VLOOKUP($A155,Filtro!$A$5:$AK$2951,3,FALSE),0) -> 0 | F155: =IFERROR(VLOOKUP($A155,Filtro!$A$5:$AK$2951,4,FALSE),0) -> 0 | G155: =IFERROR(VLOOKUP($A155,Filtro!$A$5:$AK$2951,5,FALSE),0) -> 0 | H155: =IFERROR(VLOOKUP($A155,Filtro!$A$5:$AK$2951,6,FALSE),0) -> 0 | I155: =IFERROR(VLOOKUP($A155,Filtro!$A$5:$AK$2951,7,FALSE),0) -> 0 | J155: =IFERROR(VLOOKUP($A155,Filtro!$A$5:$AK$2951,8,FALSE),0) -> 0 | K155: =IFERROR(VLOOKUP($A155,Filtro!$A$5:$AK$2951,9,FALSE),0) -> 0 | L155: =IFERROR(VLOOKUP($A155,Filtro!$A$5:$AK$2951,10,FALSE),0) -> 0 | M155: =IFERROR(VLOOKUP($A155,Filtro!$A$5:$AK$2951,11,FALSE),0) -> 0 | N155: =IFERROR(VLOOKUP($A155,Filtro!$A$5:$AK$2951,12,FALSE),0) -> 0 | O155: =IFERROR(VLOOKUP($A155,Filtro!$A$5:$AK$2951,13,FALSE),0) -> 0 | P155: =IFERROR(VLOOKUP($A155,Filtro!$A$5:$AK$2951,14,FALSE),0) -> 0 | Q155: =IFERROR(VLOOKUP($A155,Filtro!$A$5:$AK$2951,15,FALSE),0) -> 0 | R155: =IFERROR(VLOOKUP($A155,Filtro!$A$5:$AK$2951,16,FALSE),0) -> 0 | S155: =IFERROR(VLOOKUP($A155,Filtro!$A$5:$AK$2951,17,FALSE),0) -> 0
B156: SECCION K: HEMODIALISIS
B157: HEMODIALISIS | D157: TOTAL | E157: PROCEDIMIENTOS | I157: PROCEDENCIA | L157: PRODUCCION INTRA HOSPITAL | O157: OPERATIVO | P157: COMPRAS REALIZADAS | R157: VENTAS DE SERVICIOS | S157: PAGO POR PRESTACIONES ($)
E158: TOTAL BENEFI-CIARIOS | F158: BENEFICIARIOS | H158: NO BENEFI-CIARIOS | I158: ATENCION CERRADA | J158: ATENCION ABIERTA | K158: EMERGENCIA | L158: POR HONORARIOS | M158: POR CONVENIOS | N158: POR CONSULTORES DE LLAMADA | P158: AL SISTEMA | Q158: EXTRA-SISTEMA
F159: MAI | G159: MLE
A160: 17040100 | B160: 1901023 | C160: Hemodiálisis con insumos incluidos | D160: =IFERROR(VLOOKUP($A160,Filtro!$A$5:$AK$2951,2,FALSE),0) -> 0 | E160: =IFERROR(VLOOKUP($A160,Filtro!$A$5:$AK$2951,3,FALSE),0) -> 0 | F160: =IFERROR(VLOOKUP($A160,Filtro!$A$5:$AK$2951,4,FALSE),0) -> 0 | G160: =IFERROR(VLOOKUP($A160,Filtro!$A$5:$AK$2951,5,FALSE),0) -> 0 | H160: =IFERROR(VLOOKUP($A160,Filtro!$A$5:$AK$2951,6,FALSE),0) -> 0 | I160: =IFERROR(VLOOKUP($A160,Filtro!$A$5:$AK$2951,7,FALSE),0) -> 0 | J160: =IFERROR(VLOOKUP($A160,Filtro!$A$5:$AK$2951,8,FALSE),0) -> 0 | K160: =IFERROR(VLOOKUP($A160,Filtro!$A$5:$AK$2951,9,FALSE),0) -> 0 | L160: =IFERROR(VLOOKUP($A160,Filtro!$A$5:$AK$2951,10,FALSE),0) -> 0 | M160: =IFERROR(VLOOKUP($A160,Filtro!$A$5:$AK$2951,11,FALSE),0) -> 0 | N160: =IFERROR(VLOOKUP($A160,Filtro!$A$5:$AK$2951,12,FALSE),0) -> 0 | O160: =IFERROR(VLOOKUP($A160,Filtro!$A$5:$AK$2951,13,FALSE),0) -> 0 | P160: =IFERROR(VLOOKUP($A160,Filtro!$A$5:$AK$2951,14,FALSE),0) -> 0 | Q160: =IFERROR(VLOOKUP($A160,Filtro!$A$5:$AK$2951,15,FALSE),0) -> 0 | R160: =IFERROR(VLOOKUP($A160,Filtro!$A$5:$AK$2951,16,FALSE),0) -> 0 | S160: =IFERROR(VLOOKUP($A160,Filtro!$A$5:$AK$2951,17,FALSE),0) -> 0
A161: 17200130 | B161: 1901024 | C161: Hemodiálisis sin insumos | D161: =IFERROR(VLOOKUP($A161,Filtro!$A$5:$AK$2951,2,FALSE),0) -> 794 | E161: =IFERROR(VLOOKUP($A161,Filtro!$A$5:$AK$2951,3,FALSE),0) -> 794 | F161: =IFERROR(VLOOKUP($A161,Filtro!$A$5:$AK$2951,4,FALSE),0) -> 794 | G161: =IFERROR(VLOOKUP($A161,Filtro!$A$5:$AK$2951,5,FALSE),0) -> 0 | H161: =IFERROR(VLOOKUP($A161,Filtro!$A$5:$AK$2951,6,FALSE),0) -> 0 | I161: =IFERROR(VLOOKUP($A161,Filtro!$A$5:$AK$2951,7,FALSE),0) -> 792 | J161: =IFERROR(VLOOKUP($A161,Filtro!$A$5:$AK$2951,8,FALSE),0) -> 0 | K161: =IFERROR(VLOOKUP($A161,Filtro!$A$5:$AK$2951,9,FALSE),0) -> 2 | L161: =IFERROR(VLOOKUP($A161,Filtro!$A$5:$AK$2951,10,FALSE),0) -> 0 | M161: =IFERROR(VLOOKUP($A161,Filtro!$A$5:$AK$2951,11,FALSE),0) -> 0 | N161: =IFERROR(VLOOKUP($A161,Filtro!$A$5:$AK$2951,12,FALSE),0) -> 0 | O161: =IFERROR(VLOOKUP($A161,Filtro!$A$5:$AK$2951,13,FALSE),0) -> 0 | P161: =IFERROR(VLOOKUP($A161,Filtro!$A$5:$AK$2951,14,FALSE),0) -> 0 | Q161: =IFERROR(VLOOKUP($A161,Filtro!$A$5:$AK$2951,15,FALSE),0) -> 0 | R161: =IFERROR(VLOOKUP($A161,Filtro!$A$5:$AK$2951,16,FALSE),0) -> 0 | S161: =IFERROR(VLOOKUP($A161,Filtro!$A$5:$AK$2951,17,FALSE),0) -> 26,456,080
A162: 17040200 | B162: 1901025 | C162: Peritoneodiálisis (incluye insumos) | D162: =IFERROR(VLOOKUP($A162,Filtro!$A$5:$AK$2951,2,FALSE),0) -> 359 | E162: =IFERROR(VLOOKUP($A162,Filtro!$A$5:$AK$2951,3,FALSE),0) -> 359 | F162: =IFERROR(VLOOKUP($A162,Filtro!$A$5:$AK$2951,4,FALSE),0) -> 359 | G162: =IFERROR(VLOOKUP($A162,Filtro!$A$5:$AK$2951,5,FALSE),0) -> 0 | H162: =IFERROR(VLOOKUP($A162,Filtro!$A$5:$AK$2951,6,FALSE),0) -> 0 | I162: =IFERROR(VLOOKUP($A162,Filtro!$A$5:$AK$2951,7,FALSE),0) -> 317 | J162: =IFERROR(VLOOKUP($A162,Filtro!$A$5:$AK$2951,8,FALSE),0) -> 42 | K162: =IFERROR(VLOOKUP($A162,Filtro!$A$5:$AK$2951,9,FALSE),0) -> 0 | L162: =IFERROR(VLOOKUP($A162,Filtro!$A$5:$AK$2951,10,FALSE),0) -> 0 | M162: =IFERROR(VLOOKUP($A162,Filtro!$A$5:$AK$2951,11,FALSE),0) -> 0 | N162: =IFERROR(VLOOKUP($A162,Filtro!$A$5:$AK$2951,12,FALSE),0) -> 0 | O162: =IFERROR(VLOOKUP($A162,Filtro!$A$5:$AK$2951,13,FALSE),0) -> 0 | P162: =IFERROR(VLOOKUP($A162,Filtro!$A$5:$AK$2951,14,FALSE),0) -> 0 | Q162: =IFERROR(VLOOKUP($A162,Filtro!$A$5:$AK$2951,15,FALSE),0) -> 0 | R162: =IFERROR(VLOOKUP($A162,Filtro!$A$5:$AK$2951,16,FALSE),0) -> 0 | S162: =IFERROR(VLOOKUP($A162,Filtro!$A$5:$AK$2951,17,FALSE),0) -> 12,317,290
A163: 17200140 | B163: 1901026 | C163: Peritoneodiálisis continua en paciente crónico (adulto o niños) (tratamiento mensual) | D163: =IFERROR(VLOOKUP($A163,Filtro!$A$5:$AK$2951,2,FALSE),0) -> 206 | E163: =IFERROR(VLOOKUP($A163,Filtro!$A$5:$AK$2951,3,FALSE),0) -> 206 | F163: =IFERROR(VLOOKUP($A163,Filtro!$A$5:$AK$2951,4,FALSE),0) -> 206 | G163: =IFERROR(VLOOKUP($A163,Filtro!$A$5:$AK$2951,5,FALSE),0) -> 0 | H163: =IFERROR(VLOOKUP($A163,Filtro!$A$5:$AK$2951,6,FALSE),0) -> 0 | I163: =IFERROR(VLOOKUP($A163,Filtro!$A$5:$AK$2951,7,FALSE),0) -> 185 | J163: =IFERROR(VLOOKUP($A163,Filtro!$A$5:$AK$2951,8,FALSE),0) -> 21 | K163: =IFERROR(VLOOKUP($A163,Filtro!$A$5:$AK$2951,9,FALSE),0) -> 0 | L163: =IFERROR(VLOOKUP($A163,Filtro!$A$5:$AK$2951,10,FALSE),0) -> 0 | M163: =IFERROR(VLOOKUP($A163,Filtro!$A$5:$AK$2951,11,FALSE),0) -> 0 | N163: =IFERROR(VLOOKUP($A163,Filtro!$A$5:$AK$2951,12,FALSE),0) -> 0 | O163: =IFERROR(VLOOKUP($A163,Filtro!$A$5:$AK$2951,13,FALSE),0) -> 0 | P163: =IFERROR(VLOOKUP($A163,Filtro!$A$5:$AK$2951,14,FALSE),0) -> 0 | Q163: =IFERROR(VLOOKUP($A163,Filtro!$A$5:$AK$2951,15,FALSE),0) -> 0 | R163: =IFERROR(VLOOKUP($A163,Filtro!$A$5:$AK$2951,16,FALSE),0) -> 0 | S163: =IFERROR(VLOOKUP($A163,Filtro!$A$5:$AK$2951,17,FALSE),0) -> 212,165,580
A164: 17190440 | B164: 1901126 | C164: Instalación de cateter para peritoneodiális | D164: =IFERROR(VLOOKUP($A164,Filtro!$A$5:$AK$2951,2,FALSE),0) -> 8 | E164: =IFERROR(VLOOKUP($A164,Filtro!$A$5:$AK$2951,3,FALSE),0) -> 8 | F164: =IFERROR(VLOOKUP($A164,Filtro!$A$5:$AK$2951,4,FALSE),0) -> 8 | G164: =IFERROR(VLOOKUP($A164,Filtro!$A$5:$AK$2951,5,FALSE),0) -> 0 | H164: =IFERROR(VLOOKUP($A164,Filtro!$A$5:$AK$2951,6,FALSE),0) -> 0 | I164: =IFERROR(VLOOKUP($A164,Filtro!$A$5:$AK$2951,7,FALSE),0) -> 6 | J164: =IFERROR(VLOOKUP($A164,Filtro!$A$5:$AK$2951,8,FALSE),0) -> 1 | K164: =IFERROR(VLOOKUP($A164,Filtro!$A$5:$AK$2951,9,FALSE),0) -> 1 | L164: =IFERROR(VLOOKUP($A164,Filtro!$A$5:$AK$2951,10,FALSE),0) -> 0 | M164: =IFERROR(VLOOKUP($A164,Filtro!$A$5:$AK$2951,11,FALSE),0) -> 0 | N164: =IFERROR(VLOOKUP($A164,Filtro!$A$5:$AK$2951,12,FALSE),0) -> 0 | O164: =IFERROR(VLOOKUP($A164,Filtro!$A$5:$AK$2951,13,FALSE),0) -> 0 | P164: =IFERROR(VLOOKUP($A164,Filtro!$A$5:$AK$2951,14,FALSE),0) -> 0 | Q164: =IFERROR(VLOOKUP($A164,Filtro!$A$5:$AK$2951,15,FALSE),0) -> 0 | R164: =IFERROR(VLOOKUP($A164,Filtro!$A$5:$AK$2951,16,FALSE),0) -> 0 | S164: =IFERROR(VLOOKUP($A164,Filtro!$A$5:$AK$2951,17,FALSE),0) -> 3,742,480
A165: 17040400 | B165: 1901027 | C165: Hemodiálisis, tratamiento mensual (con insumos incluidos) | D165: =IFERROR(VLOOKUP($A165,Filtro!$A$5:$AK$2951,2,FALSE),0) -> 0 | E165: =IFERROR(VLOOKUP($A165,Filtro!$A$5:$AK$2951,3,FALSE),0) -> 0 | F165: =IFERROR(VLOOKUP($A165,Filtro!$A$5:$AK$2951,4,FALSE),0) -> 0 | G165: =IFERROR(VLOOKUP($A165,Filtro!$A$5:$AK$2951,5,FALSE),0) -> 0 | H165: =IFERROR(VLOOKUP($A165,Filtro!$A$5:$AK$2951,6,FALSE),0) -> 0 | I165: =IFERROR(VLOOKUP($A165,Filtro!$A$5:$AK$2951,7,FALSE),0) -> 0 | J165: =IFERROR(VLOOKUP($A165,Filtro!$A$5:$AK$2951,8,FALSE),0) -> 0 | K165: =IFERROR(VLOOKUP($A165,Filtro!$A$5:$AK$2951,9,FALSE),0) -> 0 | L165: =IFERROR(VLOOKUP($A165,Filtro!$A$5:$AK$2951,10,FALSE),0) -> 0 | M165: =IFERROR(VLOOKUP($A165,Filtro!$A$5:$AK$2951,11,FALSE),0) -> 0 | N165: =IFERROR(VLOOKUP($A165,Filtro!$A$5:$AK$2951,12,FALSE),0) -> 0 | O165: =IFERROR(VLOOKUP($A165,Filtro!$A$5:$AK$2951,13,FALSE),0) -> 0 | P165: =IFERROR(VLOOKUP($A165,Filtro!$A$5:$AK$2951,14,FALSE),0) -> 0 | Q165: =IFERROR(VLOOKUP($A165,Filtro!$A$5:$AK$2951,15,FALSE),0) -> 0 | R165: =IFERROR(VLOOKUP($A165,Filtro!$A$5:$AK$2951,16,FALSE),0) -> 0 | S165: =IFERROR(VLOOKUP($A165,Filtro!$A$5:$AK$2951,17,FALSE),0) -> 0
A166: 17040500 | B166: 1901028 | C166: Hemodiálisis con bicarbonato con insumos (por sesion) | D166: =IFERROR(VLOOKUP($A166,Filtro!$A$5:$AK$2951,2,FALSE),0) -> 5573 | E166: =IFERROR(VLOOKUP($A166,Filtro!$A$5:$AK$2951,3,FALSE),0) -> 5516 | F166: =IFERROR(VLOOKUP($A166,Filtro!$A$5:$AK$2951,4,FALSE),0) -> 5505 | G166: =IFERROR(VLOOKUP($A166,Filtro!$A$5:$AK$2951,5,FALSE),0) -> 11 | H166: =IFERROR(VLOOKUP($A166,Filtro!$A$5:$AK$2951,6,FALSE),0) -> 57 | I166: =IFERROR(VLOOKUP($A166,Filtro!$A$5:$AK$2951,7,FALSE),0) -> 1831 | J166: =IFERROR(VLOOKUP($A166,Filtro!$A$5:$AK$2951,8,FALSE),0) -> 3712 | K166: =IFERROR(VLOOKUP($A166,Filtro!$A$5:$AK$2951,9,FALSE),0) -> 17 | L166: =IFERROR(VLOOKUP($A166,Filtro!$A$5:$AK$2951,10,FALSE),0) -> 0 | M166: =IFERROR(VLOOKUP($A166,Filtro!$A$5:$AK$2951,11,FALSE),0) -> 0 | N166: =IFERROR(VLOOKUP($A166,Filtro!$A$5:$AK$2951,12,FALSE),0) -> 0 | O166: =IFERROR(VLOOKUP($A166,Filtro!$A$5:$AK$2951,13,FALSE),0) -> 0 | P166: =IFERROR(VLOOKUP($A166,Filtro!$A$5:$AK$2951,14,FALSE),0) -> 0 | Q166: =IFERROR(VLOOKUP($A166,Filtro!$A$5:$AK$2951,15,FALSE),0) -> 32 | R166: =IFERROR(VLOOKUP($A166,Filtro!$A$5:$AK$2951,16,FALSE),0) -> 0 | S166: =IFERROR(VLOOKUP($A166,Filtro!$A$5:$AK$2951,17,FALSE),0) -> 355,072,500
A167: 17200150 | B167: 1901029 | C167: Hemodiálisis con bicarbonato con insumos (tratamiento mensual) | D167: =IFERROR(VLOOKUP($A167,Filtro!$A$5:$AK$2951,2,FALSE),0) -> 1209 | E167: =IFERROR(VLOOKUP($A167,Filtro!$A$5:$AK$2951,3,FALSE),0) -> 1196 | F167: =IFERROR(VLOOKUP($A167,Filtro!$A$5:$AK$2951,4,FALSE),0) -> 1196 | G167: =IFERROR(VLOOKUP($A167,Filtro!$A$5:$AK$2951,5,FALSE),0) -> 0 | H167: =IFERROR(VLOOKUP($A167,Filtro!$A$5:$AK$2951,6,FALSE),0) -> 13 | I167: =IFERROR(VLOOKUP($A167,Filtro!$A$5:$AK$2951,7,FALSE),0) -> 10 | J167: =IFERROR(VLOOKUP($A167,Filtro!$A$5:$AK$2951,8,FALSE),0) -> 1199 | K167: =IFERROR(VLOOKUP($A167,Filtro!$A$5:$AK$2951,9,FALSE),0) -> 0 | L167: =IFERROR(VLOOKUP($A167,Filtro!$A$5:$AK$2951,10,FALSE),0) -> 0 | M167: =IFERROR(VLOOKUP($A167,Filtro!$A$5:$AK$2951,11,FALSE),0) -> 0 | N167: =IFERROR(VLOOKUP($A167,Filtro!$A$5:$AK$2951,12,FALSE),0) -> 0 | O167: =IFERROR(VLOOKUP($A167,Filtro!$A$5:$AK$2951,13,FALSE),0) -> 0 | P167: =IFERROR(VLOOKUP($A167,Filtro!$A$5:$AK$2951,14,FALSE),0) -> 0 | Q167: =IFERROR(VLOOKUP($A167,Filtro!$A$5:$AK$2951,15,FALSE),0) -> 0 | R167: =IFERROR(VLOOKUP($A167,Filtro!$A$5:$AK$2951,16,FALSE),0) -> 0 | S167: =IFERROR(VLOOKUP($A167,Filtro!$A$5:$AK$2951,17,FALSE),0) -> 1,002,786,200
A168: 17400382 | B168: 1901031 | C168: Instalación de catéter de peritoneodiálisis laparoscopia | D168: =IFERROR(VLOOKUP($A168,Filtro!$A$5:$AK$2951,2,FALSE),0) -> 17 | E168: =IFERROR(VLOOKUP($A168,Filtro!$A$5:$AK$2951,3,FALSE),0) -> 17 | F168: =IFERROR(VLOOKUP($A168,Filtro!$A$5:$AK$2951,4,FALSE),0) -> 17 | G168: =IFERROR(VLOOKUP($A168,Filtro!$A$5:$AK$2951,5,FALSE),0) -> 0 | H168: =IFERROR(VLOOKUP($A168,Filtro!$A$5:$AK$2951,6,FALSE),0) -> 0 | I168: =IFERROR(VLOOKUP($A168,Filtro!$A$5:$AK$2951,7,FALSE),0) -> 16 | J168: =IFERROR(VLOOKUP($A168,Filtro!$A$5:$AK$2951,8,FALSE),0) -> 1 | K168: =IFERROR(VLOOKUP($A168,Filtro!$A$5:$AK$2951,9,FALSE),0) -> 0 | L168: =IFERROR(VLOOKUP($A168,Filtro!$A$5:$AK$2951,10,FALSE),0) -> 0 | M168: =IFERROR(VLOOKUP($A168,Filtro!$A$5:$AK$2951,11,FALSE),0) -> 0 | N168: =IFERROR(VLOOKUP($A168,Filtro!$A$5:$AK$2951,12,FALSE),0) -> 0 | O168: =IFERROR(VLOOKUP($A168,Filtro!$A$5:$AK$2951,13,FALSE),0) -> 0 | P168: =IFERROR(VLOOKUP($A168,Filtro!$A$5:$AK$2951,14,FALSE),0) -> 0 | Q168: =IFERROR(VLOOKUP($A168,Filtro!$A$5:$AK$2951,15,FALSE),0) -> 0 | R168: =IFERROR(VLOOKUP($A168,Filtro!$A$5:$AK$2951,16,FALSE),0) -> 0 | S168: =IFERROR(VLOOKUP($A168,Filtro!$A$5:$AK$2951,17,FALSE),0) -> 9,925,110
A169: 17400383 | B169: 1901032 | C169: Retiro de catéter de peritoneodiálisis | D169: =IFERROR(VLOOKUP($A169,Filtro!$A$5:$AK$2951,2,FALSE),0) -> 14 | E169: =IFERROR(VLOOKUP($A169,Filtro!$A$5:$AK$2951,3,FALSE),0) -> 14 | F169: =IFERROR(VLOOKUP($A169,Filtro!$A$5:$AK$2951,4,FALSE),0) -> 14 | G169: =IFERROR(VLOOKUP($A169,Filtro!$A$5:$AK$2951,5,FALSE),0) -> 0 | H169: =IFERROR(VLOOKUP($A169,Filtro!$A$5:$AK$2951,6,FALSE),0) -> 0 | I169: =IFERROR(VLOOKUP($A169,Filtro!$A$5:$AK$2951,7,FALSE),0) -> 8 | J169: =IFERROR(VLOOKUP($A169,Filtro!$A$5:$AK$2951,8,FALSE),0) -> 4 | K169: =IFERROR(VLOOKUP($A169,Filtro!$A$5:$AK$2951,9,FALSE),0) -> 2 | L169: =IFERROR(VLOOKUP($A169,Filtro!$A$5:$AK$2951,10,FALSE),0) -> 0 | M169: =IFERROR(VLOOKUP($A169,Filtro!$A$5:$AK$2951,11,FALSE),0) -> 0 | N169: =IFERROR(VLOOKUP($A169,Filtro!$A$5:$AK$2951,12,FALSE),0) -> 0 | O169: =IFERROR(VLOOKUP($A169,Filtro!$A$5:$AK$2951,13,FALSE),0) -> 0 | P169: =IFERROR(VLOOKUP($A169,Filtro!$A$5:$AK$2951,14,FALSE),0) -> 0 | Q169: =IFERROR(VLOOKUP($A169,Filtro!$A$5:$AK$2951,15,FALSE),0) -> 0 | R169: =IFERROR(VLOOKUP($A169,Filtro!$A$5:$AK$2951,16,FALSE),0) -> 0 | S169: =IFERROR(VLOOKUP($A169,Filtro!$A$5:$AK$2951,17,FALSE),0) -> 2,184,700
A170: 17400384 | B170: 1901033 | C170: Revisión de catéter de peritoneodiálisis laparoscopia | D170: =IFERROR(VLOOKUP($A170,Filtro!$A$5:$AK$2951,2,FALSE),0) -> 3 | E170: =IFERROR(VLOOKUP($A170,Filtro!$A$5:$AK$2951,3,FALSE),0) -> 3 | F170: =IFERROR(VLOOKUP($A170,Filtro!$A$5:$AK$2951,4,FALSE),0) -> 3 | G170: =IFERROR(VLOOKUP($A170,Filtro!$A$5:$AK$2951,5,FALSE),0) -> 0 | H170: =IFERROR(VLOOKUP($A170,Filtro!$A$5:$AK$2951,6,FALSE),0) -> 0 | I170: =IFERROR(VLOOKUP($A170,Filtro!$A$5:$AK$2951,7,FALSE),0) -> 3 | J170: =IFERROR(VLOOKUP($A170,Filtro!$A$5:$AK$2951,8,FALSE),0) -> 0 | K170: =IFERROR(VLOOKUP($A170,Filtro!$A$5:$AK$2951,9,FALSE),0) -> 0 | L170: =IFERROR(VLOOKUP($A170,Filtro!$A$5:$AK$2951,10,FALSE),0) -> 0 | M170: =IFERROR(VLOOKUP($A170,Filtro!$A$5:$AK$2951,11,FALSE),0) -> 0 | N170: =IFERROR(VLOOKUP($A170,Filtro!$A$5:$AK$2951,12,FALSE),0) -> 0 | O170: =IFERROR(VLOOKUP($A170,Filtro!$A$5:$AK$2951,13,FALSE),0) -> 0 | P170: =IFERROR(VLOOKUP($A170,Filtro!$A$5:$AK$2951,14,FALSE),0) -> 0 | Q170: =IFERROR(VLOOKUP($A170,Filtro!$A$5:$AK$2951,15,FALSE),0) -> 0 | R170: =IFERROR(VLOOKUP($A170,Filtro!$A$5:$AK$2951,16,FALSE),0) -> 0 | S170: =IFERROR(VLOOKUP($A170,Filtro!$A$5:$AK$2951,17,FALSE),0) -> 954,030
B171: TOTAL | D171: =SUM(D160:D167) -> 8149 | E171: 8079 | F171: 8068 | G171: 11 | H171: 70 | I171: 3141 | J171: 4975 | K171: 20 | L171: 0 | M171: 0 | N171: 0 | O171: 0 | P171: 0 | Q171: 32 | R171: 0 | S171: 1,612,540,130
B172: SECCION L: INTERVENCIONES QUIRURGICAS
B173: TIPO DE INTERVENCION QUIRURGICA | D173: TOTAL PRODUCCIÓN | E173: TOTAL BENEFICIARIOS | F173: INTERVENCIONES QUIRÚRGICAS | L173: CIRUGÍAS MENORES | M173: PRODUCCION INTRA HOSPITAL | P173: OPERATIVO | Q173: COMPRAS REALIZADAS | S173: VENTAS DE SERVICIOS | T173: INTERVENCIONES 100% | U173: INTERVENCIONES 50% | V173: INTERVENCIONES 75% | W173: PAGO POR PRESTACIONES ($)
F174: PRINCIPAL | I174: SECUNDARIA
F175: MAI | G175: MLE | H175: NO BENEFI-CIARIOS | I175: MAI | J175: MLE | K175: NO BENEFI-CIARIOS | M175: POR HONORARIOS | N175: POR CONVENIOS | O175: POR CONSULTORES DE LLAMADA | Q175: AL SISTEMA | R175: EXTRA-SISTEMA
A176: 17050100 | B176: I | C176: NEUROCIRUGIA | D176: =IFERROR(VLOOKUP($A176,Filtro!$A$5:$AK$2951,2,FALSE),0) -> 1,336 | E176: =IFERROR(VLOOKUP($A176,Filtro!$A$5:$AK$2951,3,FALSE),0) -> 1,132 | F176: =IFERROR(VLOOKUP($A176,Filtro!$A$5:$AK$2951,4,FALSE),0) -> 1,099 | G176: =IFERROR(VLOOKUP($A176,Filtro!$A$5:$AK$2951,5,FALSE),0) -> 33 | H176: =IFERROR(VLOOKUP($A176,Filtro!$A$5:$AK$2951,6,FALSE),0) -> 33 | I176: =IFERROR(VLOOKUP($A176,Filtro!$A$5:$AK$2951,7,FALSE),0) -> 168 | J176: =IFERROR(VLOOKUP($A176,Filtro!$A$5:$AK$2951,8,FALSE),0) -> 0 | K176: =IFERROR(VLOOKUP($A176,Filtro!$A$5:$AK$2951,9,FALSE),0) -> 3 | L176: =IFERROR(VLOOKUP($A176,Filtro!$A$5:$AK$2951,10,FALSE),0) -> 0 | M176: =IFERROR(VLOOKUP($A176,Filtro!$A$5:$AK$2951,11,FALSE),0) -> 0 | N176: =IFERROR(VLOOKUP($A176,Filtro!$A$5:$AK$2951,12,FALSE),0) -> 0 | O176: =IFERROR(VLOOKUP($A176,Filtro!$A$5:$AK$2951,13,FALSE),0) -> 0 | P176: =IFERROR(VLOOKUP($A176,Filtro!$A$5:$AK$2951,14,FALSE),0) -> 0 | Q176: =IFERROR(VLOOKUP($A176,Filtro!$A$5:$AK$2951,15,FALSE),0) -> 0 | R176: =IFERROR(VLOOKUP($A176,Filtro!$A$5:$AK$2951,16,FALSE),0) -> 0 | S176: =IFERROR(VLOOKUP($A176,Filtro!$A$5:$AK$2951,17,FALSE),0) -> 0 | T176: =IFERROR(VLOOKUP($A176,Filtro!$A$5:$AK$2951,18,FALSE),0) -> 1,099 | U176: =IFERROR(VLOOKUP($A176,Filtro!$A$5:$AK$2951,19,FALSE),0) -> 168 | V176: =IFERROR(VLOOKUP($A176,Filtro!$A$5:$AK$2951,20,FALSE),0) -> 0 | W176: =IFERROR(VLOOKUP($A176,Filtro!$A$5:$AK$2951,21,FALSE),0) -> 499,484,130
A177: 17050200 | B177: II | C177: CIRUGIA OFTALMOLOGICA | D177: =IFERROR(VLOOKUP($A177,Filtro!$A$5:$AK$2951,2,FALSE),0) -> 7,030 | E177: =IFERROR(VLOOKUP($A177,Filtro!$A$5:$AK$2951,3,FALSE),0) -> 5,860 | F177: =IFERROR(VLOOKUP($A177,Filtro!$A$5:$AK$2951,4,FALSE),0) -> 5,860 | G177: =IFERROR(VLOOKUP($A177,Filtro!$A$5:$AK$2951,5,FALSE),0) -> 0 | H177: =IFERROR(VLOOKUP($A177,Filtro!$A$5:$AK$2951,6,FALSE),0) -> 24 | I177: =IFERROR(VLOOKUP($A177,Filtro!$A$5:$AK$2951,7,FALSE),0) -> 1,136 | J177: =IFERROR(VLOOKUP($A177,Filtro!$A$5:$AK$2951,8,FALSE),0) -> 0 | K177: =IFERROR(VLOOKUP($A177,Filtro!$A$5:$AK$2951,9,FALSE),0) -> 10 | L177: =IFERROR(VLOOKUP($A177,Filtro!$A$5:$AK$2951,10,FALSE),0) -> 1,490 | M177: =IFERROR(VLOOKUP($A177,Filtro!$A$5:$AK$2951,11,FALSE),0) -> 1,142 | N177: =IFERROR(VLOOKUP($A177,Filtro!$A$5:$AK$2951,12,FALSE),0) -> 0 | O177: =IFERROR(VLOOKUP($A177,Filtro!$A$5:$AK$2951,13,FALSE),0) -> 35 | P177: =IFERROR(VLOOKUP($A177,Filtro!$A$5:$AK$2951,14,FALSE),0) -> 0 | Q177: =IFERROR(VLOOKUP($A177,Filtro!$A$5:$AK$2951,15,FALSE),0) -> 0 | R177: =IFERROR(VLOOKUP($A177,Filtro!$A$5:$AK$2951,16,FALSE),0) -> 0 | S177: =IFERROR(VLOOKUP($A177,Filtro!$A$5:$AK$2951,17,FALSE),0) -> 0 | T177: =IFERROR(VLOOKUP($A177,Filtro!$A$5:$AK$2951,18,FALSE),0) -> 5,860 | U177: =IFERROR(VLOOKUP($A177,Filtro!$A$5:$AK$2951,19,FALSE),0) -> 1,136 | V177: =IFERROR(VLOOKUP($A177,Filtro!$A$5:$AK$2951,20,FALSE),0) -> 0 | W177: =IFERROR(VLOOKUP($A177,Filtro!$A$5:$AK$2951,21,FALSE),0) -> 3,039,544,785
A178: 17050300 | B178: III | C178: CIRUGIA OTORRINOLOGICA | D178: =IFERROR(VLOOKUP($A178,Filtro!$A$5:$AK$2951,2,FALSE),0) -> 1,986 | E178: =IFERROR(VLOOKUP($A178,Filtro!$A$5:$AK$2951,3,FALSE),0) -> 1,605 | F178: =IFERROR(VLOOKUP($A178,Filtro!$A$5:$AK$2951,4,FALSE),0) -> 1,602 | G178: =IFERROR(VLOOKUP($A178,Filtro!$A$5:$AK$2951,5,FALSE),0) -> 3 | H178: =IFERROR(VLOOKUP($A178,Filtro!$A$5:$AK$2951,6,FALSE),0) -> 11 | I178: =IFERROR(VLOOKUP($A178,Filtro!$A$5:$AK$2951,7,FALSE),0) -> 364 | J178: =IFERROR(VLOOKUP($A178,Filtro!$A$5:$AK$2951,8,FALSE),0) -> 2 | K178: =IFERROR(VLOOKUP($A178,Filtro!$A$5:$AK$2951,9,FALSE),0) -> 4 | L178: =IFERROR(VLOOKUP($A178,Filtro!$A$5:$AK$2951,10,FALSE),0) -> 625 | M178: =IFERROR(VLOOKUP($A178,Filtro!$A$5:$AK$2951,11,FALSE),0) -> 52 | N178: =IFERROR(VLOOKUP($A178,Filtro!$A$5:$AK$2951,12,FALSE),0) -> 0 | O178: =IFERROR(VLOOKUP($A178,Filtro!$A$5:$AK$2951,13,FALSE),0) -> 4 | P178: =IFERROR(VLOOKUP($A178,Filtro!$A$5:$AK$2951,14,FALSE),0) -> 0 | Q178: =IFERROR(VLOOKUP($A178,Filtro!$A$5:$AK$2951,15,FALSE),0) -> 0 | R178: =IFERROR(VLOOKUP($A178,Filtro!$A$5:$AK$2951,16,FALSE),0) -> 0 | S178: =IFERROR(VLOOKUP($A178,Filtro!$A$5:$AK$2951,17,FALSE),0) -> 0 | T178: =IFERROR(VLOOKUP($A178,Filtro!$A$5:$AK$2951,18,FALSE),0) -> 1,602 | U178: =IFERROR(VLOOKUP($A178,Filtro!$A$5:$AK$2951,19,FALSE),0) -> 364 | V178: =IFERROR(VLOOKUP($A178,Filtro!$A$5:$AK$2951,20,FALSE),0) -> 0 | W178: =IFERROR(VLOOKUP($A178,Filtro!$A$5:$AK$2951,21,FALSE),0) -> 252,166,545
A179: 17050400 | B179: IV | C179: CIRUGIA DE CABEZA Y CUELLO | D179: =IFERROR(VLOOKUP($A179,Filtro!$A$5:$AK$2951,2,FALSE),0) -> 506 | E179: =IFERROR(VLOOKUP($A179,Filtro!$A$5:$AK$2951,3,FALSE),0) -> 404 | F179: =IFERROR(VLOOKUP($A179,Filtro!$A$5:$AK$2951,4,FALSE),0) -> 392 | G179: =IFERROR(VLOOKUP($A179,Filtro!$A$5:$AK$2951,5,FALSE),0) -> 12 | H179: =IFERROR(VLOOKUP($A179,Filtro!$A$5:$AK$2951,6,FALSE),0) -> 11 | I179: =IFERROR(VLOOKUP($A179,Filtro!$A$5:$AK$2951,7,FALSE),0) -> 85 | J179: =IFERROR(VLOOKUP($A179,Filtro!$A$5:$AK$2951,8,FALSE),0) -> 1 | K179: =IFERROR(VLOOKUP($A179,Filtro!$A$5:$AK$2951,9,FALSE),0) -> 5 | L179: =IFERROR(VLOOKUP($A179,Filtro!$A$5:$AK$2951,10,FALSE),0) -> 126 | M179: =IFERROR(VLOOKUP($A179,Filtro!$A$5:$AK$2951,11,FALSE),0) -> 0 | N179: =IFERROR(VLOOKUP($A179,Filtro!$A$5:$AK$2951,12,FALSE),0) -> 0 | O179: =IFERROR(VLOOKUP($A179,Filtro!$A$5:$AK$2951,13,FALSE),0) -> 0 | P179: =IFERROR(VLOOKUP($A179,Filtro!$A$5:$AK$2951,14,FALSE),0) -> 0 | Q179: =IFERROR(VLOOKUP($A179,Filtro!$A$5:$AK$2951,15,FALSE),0) -> 0 | R179: =IFERROR(VLOOKUP($A179,Filtro!$A$5:$AK$2951,16,FALSE),0) -> 0 | S179: =IFERROR(VLOOKUP($A179,Filtro!$A$5:$AK$2951,17,FALSE),0) -> 0 | T179: =IFERROR(VLOOKUP($A179,Filtro!$A$5:$AK$2951,18,FALSE),0) -> 392 | U179: =IFERROR(VLOOKUP($A179,Filtro!$A$5:$AK$2951,19,FALSE),0) -> 85 | V179: =IFERROR(VLOOKUP($A179,Filtro!$A$5:$AK$2951,20,FALSE),0) -> 0 | W179: =IFERROR(VLOOKUP($A179,Filtro!$A$5:$AK$2951,21,FALSE),0) -> 100,594,300
A180: 17050500 | B180: V | C180: CIRUGIA PLASTICA Y REPARADORA | D180: =IFERROR(VLOOKUP($A180,Filtro!$A$5:$AK$2951,2,FALSE),0) -> 1,126 | E180: =IFERROR(VLOOKUP($A180,Filtro!$A$5:$AK$2951,3,FALSE),0) -> 929 | F180: =IFERROR(VLOOKUP($A180,Filtro!$A$5:$AK$2951,4,FALSE),0) -> 914 | G180: =IFERROR(VLOOKUP($A180,Filtro!$A$5:$AK$2951,5,FALSE),0) -> 15 | H180: =IFERROR(VLOOKUP($A180,Filtro!$A$5:$AK$2951,6,FALSE),0) -> 25 | I180: =IFERROR(VLOOKUP($A180,Filtro!$A$5:$AK$2951,7,FALSE),0) -> 159 | J180: =IFERROR(VLOOKUP($A180,Filtro!$A$5:$AK$2951,8,FALSE),0) -> 1 | K180: =IFERROR(VLOOKUP($A180,Filtro!$A$5:$AK$2951,9,FALSE),0) -> 12 | L180: =IFERROR(VLOOKUP($A180,Filtro!$A$5:$AK$2951,10,FALSE),0) -> 563 | M180: =IFERROR(VLOOKUP($A180,Filtro!$A$5:$AK$2951,11,FALSE),0) -> 1 | N180: =IFERROR(VLOOKUP($A180,Filtro!$A$5:$AK$2951,12,FALSE),0) -> 0 | O180: =IFERROR(VLOOKUP($A180,Filtro!$A$5:$AK$2951,13,FALSE),0) -> 7 | P180: =IFERROR(VLOOKUP($A180,Filtro!$A$5:$AK$2951,14,FALSE),0) -> 0 | Q180: =IFERROR(VLOOKUP($A180,Filtro!$A$5:$AK$2951,15,FALSE),0) -> 0 | R180: =IFERROR(VLOOKUP($A180,Filtro!$A$5:$AK$2951,16,FALSE),0) -> 0 | S180: =IFERROR(VLOOKUP($A180,Filtro!$A$5:$AK$2951,17,FALSE),0) -> 0 | T180: =IFERROR(VLOOKUP($A180,Filtro!$A$5:$AK$2951,18,FALSE),0) -> 914 | U180: =IFERROR(VLOOKUP($A180,Filtro!$A$5:$AK$2951,19,FALSE),0) -> 159 | V180: =IFERROR(VLOOKUP($A180,Filtro!$A$5:$AK$2951,20,FALSE),0) -> 0 | W180: =IFERROR(VLOOKUP($A180,Filtro!$A$5:$AK$2951,21,FALSE),0) -> 115,854,230
A181: 17050600 | B181: VI | C181: DERMATOLOGÍA Y TEGUMENTOS | D181: =IFERROR(VLOOKUP($A181,Filtro!$A$5:$AK$2951,2,FALSE),0) -> 4,391 | E181: =IFERROR(VLOOKUP($A181,Filtro!$A$5:$AK$2951,3,FALSE),0) -> 4,151 | F181: =IFERROR(VLOOKUP($A181,Filtro!$A$5:$AK$2951,4,FALSE),0) -> 4,133 | G181: =IFERROR(VLOOKUP($A181,Filtro!$A$5:$AK$2951,5,FALSE),0) -> 18 | H181: =IFERROR(VLOOKUP($A181,Filtro!$A$5:$AK$2951,6,FALSE),0) -> 50 | I181: =IFERROR(VLOOKUP($A181,Filtro!$A$5:$AK$2951,7,FALSE),0) -> 183 | J181: =IFERROR(VLOOKUP($A181,Filtro!$A$5:$AK$2951,8,FALSE),0) -> 4 | K181: =IFERROR(VLOOKUP($A181,Filtro!$A$5:$AK$2951,9,FALSE),0) -> 3 | L181: =IFERROR(VLOOKUP($A181,Filtro!$A$5:$AK$2951,10,FALSE),0) -> 4,345 | M181: =IFERROR(VLOOKUP($A181,Filtro!$A$5:$AK$2951,11,FALSE),0) -> 11 | N181: =IFERROR(VLOOKUP($A181,Filtro!$A$5:$AK$2951,12,FALSE),0) -> 0 | O181: =IFERROR(VLOOKUP($A181,Filtro!$A$5:$AK$2951,13,FALSE),0) -> 8 | P181: =IFERROR(VLOOKUP($A181,Filtro!$A$5:$AK$2951,14,FALSE),0) -> 0 | Q181: =IFERROR(VLOOKUP($A181,Filtro!$A$5:$AK$2951,15,FALSE),0) -> 0 | R181: =IFERROR(VLOOKUP($A181,Filtro!$A$5:$AK$2951,16,FALSE),0) -> 0 | S181: =IFERROR(VLOOKUP($A181,Filtro!$A$5:$AK$2951,17,FALSE),0) -> 0 | T181: =IFERROR(VLOOKUP($A181,Filtro!$A$5:$AK$2951,18,FALSE),0) -> 4,133 | U181: =IFERROR(VLOOKUP($A181,Filtro!$A$5:$AK$2951,19,FALSE),0) -> 183 | V181: =IFERROR(VLOOKUP($A181,Filtro!$A$5:$AK$2951,20,FALSE),0) -> 0 | W181: =IFERROR(VLOOKUP($A181,Filtro!$A$5:$AK$2951,21,FALSE),0) -> 246,164,625
A182: 17050700 | B182: VII | C182: CIRUGIA CARDIOVASCULAR | D182: =IFERROR(VLOOKUP($A182,Filtro!$A$5:$AK$2951,2,FALSE),0) -> 2,137 | E182: =IFERROR(VLOOKUP($A182,Filtro!$A$5:$AK$2951,3,FALSE),0) -> 1,840 | F182: =IFERROR(VLOOKUP($A182,Filtro!$A$5:$AK$2951,4,FALSE),0) -> 1,755 | G182: =IFERROR(VLOOKUP($A182,Filtro!$A$5:$AK$2951,5,FALSE),0) -> 85 | H182: =IFERROR(VLOOKUP($A182,Filtro!$A$5:$AK$2951,6,FALSE),0) -> 24 | I182: =IFERROR(VLOOKUP($A182,Filtro!$A$5:$AK$2951,7,FALSE),0) -> 201 | J182: =IFERROR(VLOOKUP($A182,Filtro!$A$5:$AK$2951,8,FALSE),0) -> 67 | K182: =IFERROR(VLOOKUP($A182,Filtro!$A$5:$AK$2951,9,FALSE),0) -> 5 | L182: =IFERROR(VLOOKUP($A182,Filtro!$A$5:$AK$2951,10,FALSE),0) -> 123 | M182: =IFERROR(VLOOKUP($A182,Filtro!$A$5:$AK$2951,11,FALSE),0) -> 66 | N182: =IFERROR(VLOOKUP($A182,Filtro!$A$5:$AK$2951,12,FALSE),0) -> 0 | O182: =IFERROR(VLOOKUP($A182,Filtro!$A$5:$AK$2951,13,FALSE),0) -> 38 | P182: =IFERROR(VLOOKUP($A182,Filtro!$A$5:$AK$2951,14,FALSE),0) -> 0 | Q182: =IFERROR(VLOOKUP($A182,Filtro!$A$5:$AK$2951,15,FALSE),0) -> 0 | R182: =IFERROR(VLOOKUP($A182,Filtro!$A$5:$AK$2951,16,FALSE),0) -> 0 | S182: =IFERROR(VLOOKUP($A182,Filtro!$A$5:$AK$2951,17,FALSE),0) -> 0 | T182: =IFERROR(VLOOKUP($A182,Filtro!$A$5:$AK$2951,18,FALSE),0) -> 1,755 | U182: =IFERROR(VLOOKUP($A182,Filtro!$A$5:$AK$2951,19,FALSE),0) -> 201 | V182: =IFERROR(VLOOKUP($A182,Filtro!$A$5:$AK$2951,20,FALSE),0) -> 0 | W182: =IFERROR(VLOOKUP($A182,Filtro!$A$5:$AK$2951,21,FALSE),0) -> 1,259,259,605
A183: 17050800 | B183: VIII | C183: CIRUGIA DE TORAX | D183: =IFERROR(VLOOKUP($A183,Filtro!$A$5:$AK$2951,2,FALSE),0) -> 289 | E183: =IFERROR(VLOOKUP($A183,Filtro!$A$5:$AK$2951,3,FALSE),0) -> 247 | F183: =IFERROR(VLOOKUP($A183,Filtro!$A$5:$AK$2951,4,FALSE),0) -> 247 | G183: =IFERROR(VLOOKUP($A183,Filtro!$A$5:$AK$2951,5,FALSE),0) -> 0 | H183: =IFERROR(VLOOKUP($A183,Filtro!$A$5:$AK$2951,6,FALSE),0) -> 5 | I183: =IFERROR(VLOOKUP($A183,Filtro!$A$5:$AK$2951,7,FALSE),0) -> 37 | J183: =IFERROR(VLOOKUP($A183,Filtro!$A$5:$AK$2951,8,FALSE),0) -> 0 | K183: =IFERROR(VLOOKUP($A183,Filtro!$A$5:$AK$2951,9,FALSE),0) -> 0 | L183: =IFERROR(VLOOKUP($A183,Filtro!$A$5:$AK$2951,10,FALSE),0) -> 35 | M183: =IFERROR(VLOOKUP($A183,Filtro!$A$5:$AK$2951,11,FALSE),0) -> 0 | N183: =IFERROR(VLOOKUP($A183,Filtro!$A$5:$AK$2951,12,FALSE),0) -> 0 | O183: =IFERROR(VLOOKUP($A183,Filtro!$A$5:$AK$2951,13,FALSE),0) -> 0 | P183: =IFERROR(VLOOKUP($A183,Filtro!$A$5:$AK$2951,14,FALSE),0) -> 0 | Q183: =IFERROR(VLOOKUP($A183,Filtro!$A$5:$AK$2951,15,FALSE),0) -> 0 | R183: =IFERROR(VLOOKUP($A183,Filtro!$A$5:$AK$2951,16,FALSE),0) -> 0 | S183: =IFERROR(VLOOKUP($A183,Filtro!$A$5:$AK$2951,17,FALSE),0) -> 0 | T183: =IFERROR(VLOOKUP($A183,Filtro!$A$5:$AK$2951,18,FALSE),0) -> 247 | U183: =IFERROR(VLOOKUP($A183,Filtro!$A$5:$AK$2951,19,FALSE),0) -> 37 | V183: =IFERROR(VLOOKUP($A183,Filtro!$A$5:$AK$2951,20,FALSE),0) -> 0 | W183: =IFERROR(VLOOKUP($A183,Filtro!$A$5:$AK$2951,21,FALSE),0) -> 82,331,875
A184: 17050900 | B184: IX | C184: CIRUGIA ABDOMINAL | D184: =IFERROR(VLOOKUP($A184,Filtro!$A$5:$AK$2951,2,FALSE),0) -> 7,386 | E184: =IFERROR(VLOOKUP($A184,Filtro!$A$5:$AK$2951,3,FALSE),0) -> 6,467 | F184: =IFERROR(VLOOKUP($A184,Filtro!$A$5:$AK$2951,4,FALSE),0) -> 6,038 | G184: =IFERROR(VLOOKUP($A184,Filtro!$A$5:$AK$2951,5,FALSE),0) -> 429 | H184: =IFERROR(VLOOKUP($A184,Filtro!$A$5:$AK$2951,6,FALSE),0) -> 127 | I184: =IFERROR(VLOOKUP($A184,Filtro!$A$5:$AK$2951,7,FALSE),0) -> 746 | J184: =IFERROR(VLOOKUP($A184,Filtro!$A$5:$AK$2951,8,FALSE),0) -> 28 | K184: =IFERROR(VLOOKUP($A184,Filtro!$A$5:$AK$2951,9,FALSE),0) -> 18 | L184: =IFERROR(VLOOKUP($A184,Filtro!$A$5:$AK$2951,10,FALSE),0) -> 0 | M184: =IFERROR(VLOOKUP($A184,Filtro!$A$5:$AK$2951,11,FALSE),0) -> 647 | N184: =IFERROR(VLOOKUP($A184,Filtro!$A$5:$AK$2951,12,FALSE),0) -> 0 | O184: =IFERROR(VLOOKUP($A184,Filtro!$A$5:$AK$2951,13,FALSE),0) -> 26 | P184: =IFERROR(VLOOKUP($A184,Filtro!$A$5:$AK$2951,14,FALSE),0) -> 0 | Q184: =IFERROR(VLOOKUP($A184,Filtro!$A$5:$AK$2951,15,FALSE),0) -> 0 | R184: =IFERROR(VLOOKUP($A184,Filtro!$A$5:$AK$2951,16,FALSE),0) -> 0 | S184: =IFERROR(VLOOKUP($A184,Filtro!$A$5:$AK$2951,17,FALSE),0) -> 0 | T184: =IFERROR(VLOOKUP($A184,Filtro!$A$5:$AK$2951,18,FALSE),0) -> 6,038 | U184: =IFERROR(VLOOKUP($A184,Filtro!$A$5:$AK$2951,19,FALSE),0) -> 746 | V184: =IFERROR(VLOOKUP($A184,Filtro!$A$5:$AK$2951,20,FALSE),0) -> 0 | W184: =IFERROR(VLOOKUP($A184,Filtro!$A$5:$AK$2951,21,FALSE),0) -> 2,134,192,245
A185: 17051000 | B185: X | C185: CIRUGIA PROCTOLOGICA | D185: =IFERROR(VLOOKUP($A185,Filtro!$A$5:$AK$2951,2,FALSE),0) -> 541 | E185: =IFERROR(VLOOKUP($A185,Filtro!$A$5:$AK$2951,3,FALSE),0) -> 492 | F185: =IFERROR(VLOOKUP($A185,Filtro!$A$5:$AK$2951,4,FALSE),0) -> 408 | G185: =IFERROR(VLOOKUP($A185,Filtro!$A$5:$AK$2951,5,FALSE),0) -> 84 | H185: =IFERROR(VLOOKUP($A185,Filtro!$A$5:$AK$2951,6,FALSE),0) -> 14 | I185: =IFERROR(VLOOKUP($A185,Filtro!$A$5:$AK$2951,7,FALSE),0) -> 31 | J185: =IFERROR(VLOOKUP($A185,Filtro!$A$5:$AK$2951,8,FALSE),0) -> 4 | K185: =IFERROR(VLOOKUP($A185,Filtro!$A$5:$AK$2951,9,FALSE),0) -> 0 | L185: =IFERROR(VLOOKUP($A185,Filtro!$A$5:$AK$2951,10,FALSE),0) -> 54 | M185: =IFERROR(VLOOKUP($A185,Filtro!$A$5:$AK$2951,11,FALSE),0) -> 4 | N185: =IFERROR(VLOOKUP($A185,Filtro!$A$5:$AK$2951,12,FALSE),0) -> 0 | O185: =IFERROR(VLOOKUP($A185,Filtro!$A$5:$AK$2951,13,FALSE),0) -> 0 | P185: =IFERROR(VLOOKUP($A185,Filtro!$A$5:$AK$2951,14,FALSE),0) -> 0 | Q185: =IFERROR(VLOOKUP($A185,Filtro!$A$5:$AK$2951,15,FALSE),0) -> 0 | R185: =IFERROR(VLOOKUP($A185,Filtro!$A$5:$AK$2951,16,FALSE),0) -> 0 | S185: =IFERROR(VLOOKUP($A185,Filtro!$A$5:$AK$2951,17,FALSE),0) -> 0 | T185: =IFERROR(VLOOKUP($A185,Filtro!$A$5:$AK$2951,18,FALSE),0) -> 408 | U185: =IFERROR(VLOOKUP($A185,Filtro!$A$5:$AK$2951,19,FALSE),0) -> 31 | V185: =IFERROR(VLOOKUP($A185,Filtro!$A$5:$AK$2951,20,FALSE),0) -> 0 | W185: =IFERROR(VLOOKUP($A185,Filtro!$A$5:$AK$2951,21,FALSE),0) -> 80,622,100
A186: 17051100 | B186: XI | C186: CIRUGIA UROLOGICA Y SUPRARRENAL | D186: =IFERROR(VLOOKUP($A186,Filtro!$A$5:$AK$2951,2,FALSE),0) -> 3,711 | E186: =IFERROR(VLOOKUP($A186,Filtro!$A$5:$AK$2951,3,FALSE),0) -> 2,618 | F186: =IFERROR(VLOOKUP($A186,Filtro!$A$5:$AK$2951,4,FALSE),0) -> 2,393 | G186: =IFERROR(VLOOKUP($A186,Filtro!$A$5:$AK$2951,5,FALSE),0) -> 225 | H186: =IFERROR(VLOOKUP($A186,Filtro!$A$5:$AK$2951,6,FALSE),0) -> 65 | I186: =IFERROR(VLOOKUP($A186,Filtro!$A$5:$AK$2951,7,FALSE),0) -> 952 | J186: =IFERROR(VLOOKUP($A186,Filtro!$A$5:$AK$2951,8,FALSE),0) -> 46 | K186: =IFERROR(VLOOKUP($A186,Filtro!$A$5:$AK$2951,9,FALSE),0) -> 30 | L186: =IFERROR(VLOOKUP($A186,Filtro!$A$5:$AK$2951,10,FALSE),0) -> 27 | M186: =IFERROR(VLOOKUP($A186,Filtro!$A$5:$AK$2951,11,FALSE),0) -> 295 | N186: =IFERROR(VLOOKUP($A186,Filtro!$A$5:$AK$2951,12,FALSE),0) -> 0 | O186: =IFERROR(VLOOKUP($A186,Filtro!$A$5:$AK$2951,13,FALSE),0) -> 381 | P186: =IFERROR(VLOOKUP($A186,Filtro!$A$5:$AK$2951,14,FALSE),0) -> 0 | Q186: =IFERROR(VLOOKUP($A186,Filtro!$A$5:$AK$2951,15,FALSE),0) -> 0 | R186: =IFERROR(VLOOKUP($A186,Filtro!$A$5:$AK$2951,16,FALSE),0) -> 0 | S186: =IFERROR(VLOOKUP($A186,Filtro!$A$5:$AK$2951,17,FALSE),0) -> 0 | T186: =IFERROR(VLOOKUP($A186,Filtro!$A$5:$AK$2951,18,FALSE),0) -> 2,393 | U186: =IFERROR(VLOOKUP($A186,Filtro!$A$5:$AK$2951,19,FALSE),0) -> 952 | V186: =IFERROR(VLOOKUP($A186,Filtro!$A$5:$AK$2951,20,FALSE),0) -> 0 | W186: =IFERROR(VLOOKUP($A186,Filtro!$A$5:$AK$2951,21,FALSE),0) -> 840,247,030
A187: 17051200 | B187: XII | C187: CIRUGIA DE LA MAMA | D187: =IFERROR(VLOOKUP($A187,Filtro!$A$5:$AK$2951,2,FALSE),0) -> 467 | E187: =IFERROR(VLOOKUP($A187,Filtro!$A$5:$AK$2951,3,FALSE),0) -> 375 | F187: =IFERROR(VLOOKUP($A187,Filtro!$A$5:$AK$2951,4,FALSE),0) -> 374 | G187: =IFERROR(VLOOKUP($A187,Filtro!$A$5:$AK$2951,5,FALSE),0) -> 1 | H187: =IFERROR(VLOOKUP($A187,Filtro!$A$5:$AK$2951,6,FALSE),0) -> 9 | I187: =IFERROR(VLOOKUP($A187,Filtro!$A$5:$AK$2951,7,FALSE),0) -> 81 | J187: =IFERROR(VLOOKUP($A187,Filtro!$A$5:$AK$2951,8,FALSE),0) -> 0 | K187: =IFERROR(VLOOKUP($A187,Filtro!$A$5:$AK$2951,9,FALSE),0) -> 2 | L187: =IFERROR(VLOOKUP($A187,Filtro!$A$5:$AK$2951,10,FALSE),0) -> 40 | M187: =IFERROR(VLOOKUP($A187,Filtro!$A$5:$AK$2951,11,FALSE),0) -> 0 | N187: =IFERROR(VLOOKUP($A187,Filtro!$A$5:$AK$2951,12,FALSE),0) -> 0 | O187: =IFERROR(VLOOKUP($A187,Filtro!$A$5:$AK$2951,13,FALSE),0) -> 0 | P187: =IFERROR(VLOOKUP($A187,Filtro!$A$5:$AK$2951,14,FALSE),0) -> 0 | Q187: =IFERROR(VLOOKUP($A187,Filtro!$A$5:$AK$2951,15,FALSE),0) -> 0 | R187: =IFERROR(VLOOKUP($A187,Filtro!$A$5:$AK$2951,16,FALSE),0) -> 0 | S187: =IFERROR(VLOOKUP($A187,Filtro!$A$5:$AK$2951,17,FALSE),0) -> 0 | T187: =IFERROR(VLOOKUP($A187,Filtro!$A$5:$AK$2951,18,FALSE),0) -> 374 | U187: =IFERROR(VLOOKUP($A187,Filtro!$A$5:$AK$2951,19,FALSE),0) -> 81 | V187: =IFERROR(VLOOKUP($A187,Filtro!$A$5:$AK$2951,20,FALSE),0) -> 0 | W187: =IFERROR(VLOOKUP($A187,Filtro!$A$5:$AK$2951,21,FALSE),0) -> 104,723,365
A188: 17051300 | B188: XIII | C188: CIRUGIA GINECOLOGICA | D188: =IFERROR(VLOOKUP($A188,Filtro!$A$5:$AK$2951,2,FALSE),0) -> 2,755 | E188: =IFERROR(VLOOKUP($A188,Filtro!$A$5:$AK$2951,3,FALSE),0) -> 2,310 | F188: =IFERROR(VLOOKUP($A188,Filtro!$A$5:$AK$2951,4,FALSE),0) -> 2,205 | G188: =IFERROR(VLOOKUP($A188,Filtro!$A$5:$AK$2951,5,FALSE),0) -> 105 | H188: =IFERROR(VLOOKUP($A188,Filtro!$A$5:$AK$2951,6,FALSE),0) -> 35 | I188: =IFERROR(VLOOKUP($A188,Filtro!$A$5:$AK$2951,7,FALSE),0) -> 366 | J188: =IFERROR(VLOOKUP($A188,Filtro!$A$5:$AK$2951,8,FALSE),0) -> 35 | K188: =IFERROR(VLOOKUP($A188,Filtro!$A$5:$AK$2951,9,FALSE),0) -> 9 | L188: =IFERROR(VLOOKUP($A188,Filtro!$A$5:$AK$2951,10,FALSE),0) -> 197 | M188: =IFERROR(VLOOKUP($A188,Filtro!$A$5:$AK$2951,11,FALSE),0) -> 6 | N188: =IFERROR(VLOOKUP($A188,Filtro!$A$5:$AK$2951,12,FALSE),0) -> 0 | O188: =IFERROR(VLOOKUP($A188,Filtro!$A$5:$AK$2951,13,FALSE),0) -> 0 | P188: =IFERROR(VLOOKUP($A188,Filtro!$A$5:$AK$2951,14,FALSE),0) -> 0 | Q188: =IFERROR(VLOOKUP($A188,Filtro!$A$5:$AK$2951,15,FALSE),0) -> 0 | R188: =IFERROR(VLOOKUP($A188,Filtro!$A$5:$AK$2951,16,FALSE),0) -> 0 | S188: =IFERROR(VLOOKUP($A188,Filtro!$A$5:$AK$2951,17,FALSE),0) -> 0 | T188: =IFERROR(VLOOKUP($A188,Filtro!$A$5:$AK$2951,18,FALSE),0) -> 2,205 | U188: =IFERROR(VLOOKUP($A188,Filtro!$A$5:$AK$2951,19,FALSE),0) -> 366 | V188: =IFERROR(VLOOKUP($A188,Filtro!$A$5:$AK$2951,20,FALSE),0) -> 0 | W188: =IFERROR(VLOOKUP($A188,Filtro!$A$5:$AK$2951,21,FALSE),0) -> 563,007,520
A189: 17051400 | B189: XIV | C189: CIRUGIA OBSTETRICA | D189: =IFERROR(VLOOKUP($A189,Filtro!$A$5:$AK$2951,2,FALSE),0) -> 2,864 | E189: =IFERROR(VLOOKUP($A189,Filtro!$A$5:$AK$2951,3,FALSE),0) -> 2,766 | F189: =IFERROR(VLOOKUP($A189,Filtro!$A$5:$AK$2951,4,FALSE),0) -> 1,848 | G189: =IFERROR(VLOOKUP($A189,Filtro!$A$5:$AK$2951,5,FALSE),0) -> 918 | H189: =IFERROR(VLOOKUP($A189,Filtro!$A$5:$AK$2951,6,FALSE),0) -> 74 | I189: =IFERROR(VLOOKUP($A189,Filtro!$A$5:$AK$2951,7,FALSE),0) -> 7 | J189: =IFERROR(VLOOKUP($A189,Filtro!$A$5:$AK$2951,8,FALSE),0) -> 16 | K189: =IFERROR(VLOOKUP($A189,Filtro!$A$5:$AK$2951,9,FALSE),0) -> 1 | L189: =IFERROR(VLOOKUP($A189,Filtro!$A$5:$AK$2951,10,FALSE),0) -> 0 | M189: =IFERROR(VLOOKUP($A189,Filtro!$A$5:$AK$2951,11,FALSE),0) -> 1 | N189: =IFERROR(VLOOKUP($A189,Filtro!$A$5:$AK$2951,12,FALSE),0) -> 0 | O189: =IFERROR(VLOOKUP($A189,Filtro!$A$5:$AK$2951,13,FALSE),0) -> 0 | P189: =IFERROR(VLOOKUP($A189,Filtro!$A$5:$AK$2951,14,FALSE),0) -> 0 | Q189: =IFERROR(VLOOKUP($A189,Filtro!$A$5:$AK$2951,15,FALSE),0) -> 0 | R189: =IFERROR(VLOOKUP($A189,Filtro!$A$5:$AK$2951,16,FALSE),0) -> 0 | S189: =IFERROR(VLOOKUP($A189,Filtro!$A$5:$AK$2951,17,FALSE),0) -> 0 | T189: =IFERROR(VLOOKUP($A189,Filtro!$A$5:$AK$2951,18,FALSE),0) -> 3,684 | U189: =IFERROR(VLOOKUP($A189,Filtro!$A$5:$AK$2951,19,FALSE),0) -> 12 | V189: =IFERROR(VLOOKUP($A189,Filtro!$A$5:$AK$2951,20,FALSE),0) -> 0 | W189: =IFERROR(VLOOKUP($A189,Filtro!$A$5:$AK$2951,21,FALSE),0) -> 305,261,920
A190: 99200160 | C190: Cesárea c/s salpingoligadura o salpingectomía | D190: =IFERROR(VLOOKUP($A190,Filtro!$A$5:$AK$2951,2,FALSE),0) -> 2,848 | E190: =IFERROR(VLOOKUP($A190,Filtro!$A$5:$AK$2951,3,FALSE),0) -> 2,754 | F190: =IFERROR(VLOOKUP($A190,Filtro!$A$5:$AK$2951,4,FALSE),0) -> 1,839 | G190: =IFERROR(VLOOKUP($A190,Filtro!$A$5:$AK$2951,5,FALSE),0) -> 915 | H190: =IFERROR(VLOOKUP($A190,Filtro!$A$5:$AK$2951,6,FALSE),0) -> 72 | I190: =IFERROR(VLOOKUP($A190,Filtro!$A$5:$AK$2951,7,FALSE),0) -> 5 | J190: =IFERROR(VLOOKUP($A190,Filtro!$A$5:$AK$2951,8,FALSE),0) -> 16 | K190: =IFERROR(VLOOKUP($A190,Filtro!$A$5:$AK$2951,9,FALSE),0) -> 1 | L190: =IFERROR(VLOOKUP($A190,Filtro!$A$5:$AK$2951,10,FALSE),0) -> 0 | M190: =IFERROR(VLOOKUP($A190,Filtro!$A$5:$AK$2951,11,FALSE),0) -> 1 | N190: =IFERROR(VLOOKUP($A190,Filtro!$A$5:$AK$2951,12,FALSE),0) -> 0 | O190: =IFERROR(VLOOKUP($A190,Filtro!$A$5:$AK$2951,13,FALSE),0) -> 0 | P190: =IFERROR(VLOOKUP($A190,Filtro!$A$5:$AK$2951,14,FALSE),0) -> 0 | Q190: =IFERROR(VLOOKUP($A190,Filtro!$A$5:$AK$2951,15,FALSE),0) -> 0 | R190: =IFERROR(VLOOKUP($A190,Filtro!$A$5:$AK$2951,16,FALSE),0) -> 0 | S190: =IFERROR(VLOOKUP($A190,Filtro!$A$5:$AK$2951,17,FALSE),0) -> 0 | T190: =IFERROR(VLOOKUP($A190,Filtro!$A$5:$AK$2951,18,FALSE),0) -> 1,839 | U190: =IFERROR(VLOOKUP($A190,Filtro!$A$5:$AK$2951,19,FALSE),0) -> 5 | V190: =IFERROR(VLOOKUP($A190,Filtro!$A$5:$AK$2951,20,FALSE),0) -> 0 | W190: =IFERROR(VLOOKUP($A190,Filtro!$A$5:$AK$2951,21,FALSE),0) -> 302,668,940
A191: 99200170 | C191: Cesárea con histerectomía | D191: =IFERROR(VLOOKUP($A191,Filtro!$A$5:$AK$2951,2,FALSE),0) -> 8 | E191: =IFERROR(VLOOKUP($A191,Filtro!$A$5:$AK$2951,3,FALSE),0) -> 6 | F191: =IFERROR(VLOOKUP($A191,Filtro!$A$5:$AK$2951,4,FALSE),0) -> 3 | G191: =IFERROR(VLOOKUP($A191,Filtro!$A$5:$AK$2951,5,FALSE),0) -> 3 | H191: =IFERROR(VLOOKUP($A191,Filtro!$A$5:$AK$2951,6,FALSE),0) -> 2 | I191: =IFERROR(VLOOKUP($A191,Filtro!$A$5:$AK$2951,7,FALSE),0) -> 0 | J191: =IFERROR(VLOOKUP($A191,Filtro!$A$5:$AK$2951,8,FALSE),0) -> 0 | K191: =IFERROR(VLOOKUP($A191,Filtro!$A$5:$AK$2951,9,FALSE),0) -> 0 | L191: =IFERROR(VLOOKUP($A191,Filtro!$A$5:$AK$2951,10,FALSE),0) -> 0 | M191: =IFERROR(VLOOKUP($A191,Filtro!$A$5:$AK$2951,11,FALSE),0) -> 0 | N191: =IFERROR(VLOOKUP($A191,Filtro!$A$5:$AK$2951,12,FALSE),0) -> 0 | O191: =IFERROR(VLOOKUP($A191,Filtro!$A$5:$AK$2951,13,FALSE),0) -> 0 | P191: =IFERROR(VLOOKUP($A191,Filtro!$A$5:$AK$2951,14,FALSE),0) -> 0 | Q191: =IFERROR(VLOOKUP($A191,Filtro!$A$5:$AK$2951,15,FALSE),0) -> 0 | R191: =IFERROR(VLOOKUP($A191,Filtro!$A$5:$AK$2951,16,FALSE),0) -> 0 | S191: =IFERROR(VLOOKUP($A191,Filtro!$A$5:$AK$2951,17,FALSE),0) -> 0 | T191: =IFERROR(VLOOKUP($A191,Filtro!$A$5:$AK$2951,18,FALSE),0) -> 1,839 | U191: =IFERROR(VLOOKUP($A191,Filtro!$A$5:$AK$2951,19,FALSE),0) -> 5 | V191: =IFERROR(VLOOKUP($A191,Filtro!$A$5:$AK$2951,20,FALSE),0) -> 0 | W191: =IFERROR(VLOOKUP($A191,Filtro!$A$5:$AK$2951,21,FALSE),0) -> 968,940
A192: 17300020 | C192: Otras cirugías obstétricas | D192: =IFERROR(VLOOKUP($A192,Filtro!$A$5:$AK$2951,2,FALSE),0) -> 8 | E192: =IFERROR(VLOOKUP($A192,Filtro!$A$5:$AK$2951,3,FALSE),0) -> 6 | F192: =IFERROR(VLOOKUP($A192,Filtro!$A$5:$AK$2951,4,FALSE),0) -> 6 | G192: =IFERROR(VLOOKUP($A192,Filtro!$A$5:$AK$2951,5,FALSE),0) -> 0 | H192: =IFERROR(VLOOKUP($A192,Filtro!$A$5:$AK$2951,6,FALSE),0) -> 0 | I192: =IFERROR(VLOOKUP($A192,Filtro!$A$5:$AK$2951,7,FALSE),0) -> 2 | J192: =IFERROR(VLOOKUP($A192,Filtro!$A$5:$AK$2951,8,FALSE),0) -> 0 | K192: =IFERROR(VLOOKUP($A192,Filtro!$A$5:$AK$2951,9,FALSE),0) -> 0 | L192: =IFERROR(VLOOKUP($A192,Filtro!$A$5:$AK$2951,10,FALSE),0) -> 0 | M192: =IFERROR(VLOOKUP($A192,Filtro!$A$5:$AK$2951,11,FALSE),0) -> 0 | N192: =IFERROR(VLOOKUP($A192,Filtro!$A$5:$AK$2951,12,FALSE),0) -> 0 | O192: =IFERROR(VLOOKUP($A192,Filtro!$A$5:$AK$2951,13,FALSE),0) -> 0 | P192: =IFERROR(VLOOKUP($A192,Filtro!$A$5:$AK$2951,14,FALSE),0) -> 0 | Q192: =IFERROR(VLOOKUP($A192,Filtro!$A$5:$AK$2951,15,FALSE),0) -> 0 | R192: =IFERROR(VLOOKUP($A192,Filtro!$A$5:$AK$2951,16,FALSE),0) -> 0 | S192: =IFERROR(VLOOKUP($A192,Filtro!$A$5:$AK$2951,17,FALSE),0) -> 0 | T192: =IFERROR(VLOOKUP($A192,Filtro!$A$5:$AK$2951,18,FALSE),0) -> 6 | U192: =IFERROR(VLOOKUP($A192,Filtro!$A$5:$AK$2951,19,FALSE),0) -> 2 | V192: =IFERROR(VLOOKUP($A192,Filtro!$A$5:$AK$2951,20,FALSE),0) -> 0 | W192: =IFERROR(VLOOKUP($A192,Filtro!$A$5:$AK$2951,21,FALSE),0) -> 1,624,040
A193: 17051500 | B193: XV.I | C193: TRAUMATOLOGIA | D193: =IFERROR(VLOOKUP($A193,Filtro!$A$5:$AK$2951,2,FALSE),0) -> 4,812 | E193: =IFERROR(VLOOKUP($A193,Filtro!$A$5:$AK$2951,3,FALSE),0) -> 4,199 | F193: =IFERROR(VLOOKUP($A193,Filtro!$A$5:$AK$2951,4,FALSE),0) -> 4,028 | G193: =IFERROR(VLOOKUP($A193,Filtro!$A$5:$AK$2951,5,FALSE),0) -> 171 | H193: =IFERROR(VLOOKUP($A193,Filtro!$A$5:$AK$2951,6,FALSE),0) -> 206 | I193: =IFERROR(VLOOKUP($A193,Filtro!$A$5:$AK$2951,7,FALSE),0) -> 372 | J193: =IFERROR(VLOOKUP($A193,Filtro!$A$5:$AK$2951,8,FALSE),0) -> 10 | K193: =IFERROR(VLOOKUP($A193,Filtro!$A$5:$AK$2951,9,FALSE),0) -> 25 | L193: =IFERROR(VLOOKUP($A193,Filtro!$A$5:$AK$2951,10,FALSE),0) -> 485 | M193: =IFERROR(VLOOKUP($A193,Filtro!$A$5:$AK$2951,11,FALSE),0) -> 115 | N193: =IFERROR(VLOOKUP($A193,Filtro!$A$5:$AK$2951,12,FALSE),0) -> 0 | O193: =IFERROR(VLOOKUP($A193,Filtro!$A$5:$AK$2951,13,FALSE),0) -> 167 | P193: =IFERROR(VLOOKUP($A193,Filtro!$A$5:$AK$2951,14,FALSE),0) -> 0 | Q193: =IFERROR(VLOOKUP($A193,Filtro!$A$5:$AK$2951,15,FALSE),0) -> 0 | R193: =IFERROR(VLOOKUP($A193,Filtro!$A$5:$AK$2951,16,FALSE),0) -> 0 | S193: =IFERROR(VLOOKUP($A193,Filtro!$A$5:$AK$2951,17,FALSE),0) -> 0 | T193: =IFERROR(VLOOKUP($A193,Filtro!$A$5:$AK$2951,18,FALSE),0) -> 4,028 | U193: =IFERROR(VLOOKUP($A193,Filtro!$A$5:$AK$2951,19,FALSE),0) -> 372 | V193: =IFERROR(VLOOKUP($A193,Filtro!$A$5:$AK$2951,20,FALSE),0) -> 0 | W193: =IFERROR(VLOOKUP($A193,Filtro!$A$5:$AK$2951,21,FALSE),0) -> 1,279,925,890
A194: 17051600 | B194: XVI | C194: ODONTOLOGIA | D194: =IFERROR(VLOOKUP($A194,Filtro!$A$5:$AK$2951,2,FALSE),0) -> 7,929 | E194: =IFERROR(VLOOKUP($A194,Filtro!$A$5:$AK$2951,3,FALSE),0) -> 7,404 | F194: =IFERROR(VLOOKUP($A194,Filtro!$A$5:$AK$2951,4,FALSE),0) -> 7,400 | G194: =IFERROR(VLOOKUP($A194,Filtro!$A$5:$AK$2951,5,FALSE),0) -> 4 | H194: =IFERROR(VLOOKUP($A194,Filtro!$A$5:$AK$2951,6,FALSE),0) -> 20 | I194: =IFERROR(VLOOKUP($A194,Filtro!$A$5:$AK$2951,7,FALSE),0) -> 494 | J194: =IFERROR(VLOOKUP($A194,Filtro!$A$5:$AK$2951,8,FALSE),0) -> 4 | K194: =IFERROR(VLOOKUP($A194,Filtro!$A$5:$AK$2951,9,FALSE),0) -> 3 | L194: =IFERROR(VLOOKUP($A194,Filtro!$A$5:$AK$2951,10,FALSE),0) -> 6,464 | M194: =IFERROR(VLOOKUP($A194,Filtro!$A$5:$AK$2951,11,FALSE),0) -> 0 | N194: =IFERROR(VLOOKUP($A194,Filtro!$A$5:$AK$2951,12,FALSE),0) -> 0 | O194: =IFERROR(VLOOKUP($A194,Filtro!$A$5:$AK$2951,13,FALSE),0) -> 2 | P194: =IFERROR(VLOOKUP($A194,Filtro!$A$5:$AK$2951,14,FALSE),0) -> 0 | Q194: =IFERROR(VLOOKUP($A194,Filtro!$A$5:$AK$2951,15,FALSE),0) -> 0 | R194: =IFERROR(VLOOKUP($A194,Filtro!$A$5:$AK$2951,16,FALSE),0) -> 0 | S194: =IFERROR(VLOOKUP($A194,Filtro!$A$5:$AK$2951,17,FALSE),0) -> 0 | T194: =IFERROR(VLOOKUP($A194,Filtro!$A$5:$AK$2951,18,FALSE),0) -> 6,599 | U194: =IFERROR(VLOOKUP($A194,Filtro!$A$5:$AK$2951,19,FALSE),0) -> 452 | V194: =IFERROR(VLOOKUP($A194,Filtro!$A$5:$AK$2951,20,FALSE),0) -> 0 | W194: =IFERROR(VLOOKUP($A194,Filtro!$A$5:$AK$2951,21,FALSE),0) -> 298,524,140
A195: 17051700 | B195: XVI | C195: RETIRO ELEMENTOS OSTEOSINTESIS | D195: =IFERROR(VLOOKUP($A195,Filtro!$A$5:$AK$2951,2,FALSE),0) -> 513 | E195: =IFERROR(VLOOKUP($A195,Filtro!$A$5:$AK$2951,3,FALSE),0) -> 367 | F195: =IFERROR(VLOOKUP($A195,Filtro!$A$5:$AK$2951,4,FALSE),0) -> 360 | G195: =IFERROR(VLOOKUP($A195,Filtro!$A$5:$AK$2951,5,FALSE),0) -> 7 | H195: =IFERROR(VLOOKUP($A195,Filtro!$A$5:$AK$2951,6,FALSE),0) -> 2 | I195: =IFERROR(VLOOKUP($A195,Filtro!$A$5:$AK$2951,7,FALSE),0) -> 138 | J195: =IFERROR(VLOOKUP($A195,Filtro!$A$5:$AK$2951,8,FALSE),0) -> 1 | K195: =IFERROR(VLOOKUP($A195,Filtro!$A$5:$AK$2951,9,FALSE),0) -> 5 | L195: =IFERROR(VLOOKUP($A195,Filtro!$A$5:$AK$2951,10,FALSE),0) -> 0 | M195: =IFERROR(VLOOKUP($A195,Filtro!$A$5:$AK$2951,11,FALSE),0) -> 4 | N195: =IFERROR(VLOOKUP($A195,Filtro!$A$5:$AK$2951,12,FALSE),0) -> 0 | O195: =IFERROR(VLOOKUP($A195,Filtro!$A$5:$AK$2951,13,FALSE),0) -> 0 | P195: =IFERROR(VLOOKUP($A195,Filtro!$A$5:$AK$2951,14,FALSE),0) -> 0 | Q195: =IFERROR(VLOOKUP($A195,Filtro!$A$5:$AK$2951,15,FALSE),0) -> 0 | R195: =IFERROR(VLOOKUP($A195,Filtro!$A$5:$AK$2951,16,FALSE),0) -> 0 | S195: =IFERROR(VLOOKUP($A195,Filtro!$A$5:$AK$2951,17,FALSE),0) -> 0 | T195: =IFERROR(VLOOKUP($A195,Filtro!$A$5:$AK$2951,18,FALSE),0) -> 0 | U195: =IFERROR(VLOOKUP($A195,Filtro!$A$5:$AK$2951,19,FALSE),0) -> 0 | V195: =IFERROR(VLOOKUP($A195,Filtro!$A$5:$AK$2951,20,FALSE),0) -> 513 | W195: =IFERROR(VLOOKUP($A195,Filtro!$A$5:$AK$2951,21,FALSE),0) -> 21,310,740
B196: TOTAL | D196: =SUM(D176:D195) -> 52,643 | E196: 45,932 | F196: 42,904 | G196: 3,028 | H196: 809 | I196: 5,527 | J196: 235 | K196: 136 | L196: 14,574 | M196: 2,345 | N196: 0 | O196: 668 | P196: 0 | Q196: 0 | R196: 0 | S196: 0 | T196: 45,415 | U196: 5,357 | V196: 513 | W196: 11,528,476,965
B197: SECCIÓN M: INTERVENCIONES QUIRÚRGICAS POR TIPO DE INTERVENCIÓN
B198: TIPO DE INTERVENCIÓN | D198: TOTAL | E198: BENEFICIARIOS MAI | F198: < 15 AÑOS | G198: 15 AÑOS Y MAS | H198: COMPRAS REALIZADAS AL SISTEMA | I198: COMPRAS REALIZADAS AL SISTEMA | J198: COMPRAS REALIZADAS AL EXTRA-SISTEMA | K198: COMPRAS REALIZADAS AL EXTRA-SISTEMA
H199: < 15 AÑOS | I199: 15 AÑOS Y MAS | J199: < 15 AÑOS | K199: 15 AÑOS Y MAS
A200: 17200810 | B200: ELECTIVAS MAYORES NO AMBULATORIAS | D200: =IFERROR(VLOOKUP($A200,Filtro!$A$5:$AK$2951,2,FALSE),0) -> 11,832 | E200: =IFERROR(VLOOKUP($A200,Filtro!$A$5:$AK$2951,3,FALSE),0) -> 10953 | F200: =IFERROR(VLOOKUP($A200,Filtro!$A$5:$AK$2951,4,FALSE),0) -> 643 | G200: =IFERROR(VLOOKUP($A200,Filtro!$A$5:$AK$2951,5,FALSE),0) -> 11,189 | H200: =IFERROR(VLOOKUP($A200,Filtro!$A$5:$AK$2951,6,FALSE),0) -> 6 | I200: =IFERROR(VLOOKUP($A200,Filtro!$A$5:$AK$2951,7,FALSE),0) -> 425 | J200: =IFERROR(VLOOKUP($A200,Filtro!$A$5:$AK$2951,8,FALSE),0) -> 0 | K200: =IFERROR(VLOOKUP($A200,Filtro!$A$5:$AK$2951,9,FALSE),0) -> 0 | AB200: =IF(D200<E200,"Beneficiarios MAI no puede ser mayor al TOTAL","") ->  | AC200: =IF(D200<E200,1,0) -> 0
A201: 17200820 | B201: ELECTIVAS MAYORES AMBULATORIAS | D201: =IFERROR(VLOOKUP($A201,Filtro!$A$5:$AK$2951,2,FALSE),0) -> 14,272 | E201: =IFERROR(VLOOKUP($A201,Filtro!$A$5:$AK$2951,3,FALSE),0) -> 13798 | F201: =IFERROR(VLOOKUP($A201,Filtro!$A$5:$AK$2951,4,FALSE),0) -> 1,617 | G201: =IFERROR(VLOOKUP($A201,Filtro!$A$5:$AK$2951,5,FALSE),0) -> 12,655 | H201: =IFERROR(VLOOKUP($A201,Filtro!$A$5:$AK$2951,6,FALSE),0) -> 58 | I201: =IFERROR(VLOOKUP($A201,Filtro!$A$5:$AK$2951,7,FALSE),0) -> 1587 | J201: =IFERROR(VLOOKUP($A201,Filtro!$A$5:$AK$2951,8,FALSE),0) -> 0 | K201: =IFERROR(VLOOKUP($A201,Filtro!$A$5:$AK$2951,9,FALSE),0) -> 0 | AB201: =IF(D201<E201,"Beneficiarios MAI no puede ser mayor al TOTAL","") ->  | AC201: =IF(D201<E201,1,0) -> 0
... 120 more rows

Sheet BS
D1: TOTAL | E1: ACTIVIDADES | I1: INTERVENCIONES QUIRÚRGICAS | P1: INTERVENCIONES QUIRÚRGICAS MAYORES NO AMBULATORIAS ELECTIVAS | S1: INTERVENCIONES QUIRÚRGICAS MAYORES AMBULATORIAS ELECTIVA | V1: INTERVENCIONES QUIRÚRGICAS MAYORES AMBULATORIAS URGENCIA | Y1: INTERVENCIONES QUIRÚRGICAS MAYORES NO AMBULATORIAS URGENCIA | AB1: PROCEDENCIA | AE1: PRODUCCION INTRA HOSPITAL | AH1: OPERATIVO | AI1: COMPRAS REALIZADAS | AK1: VENTAS DE SERVICIOS | AL1: TRANSFERENCIA 2022 | AM1: TOTAL FACTURADO
B2: CODIGO | C2: GLOSA | E2: TOTAL BENEFI-CIARIOS | F2: BENEFICIARIOS | H2: NO BENEFI-CIARIOS | I2: TOTAL BENEFI- CIARIOS | J2: PRINCIPAL | M2: SECUNDARIA | S2: < 15 AÑOS | V2: < 15 AÑOS | Y2: < 15 AÑOS
F3: MAI | G3: MLE | J3: MAI | K3: MLE | L3: NO BENEFI-CIARIO | M3: MAI | N3: MLE | O3: NO BENEFI-CIARIO | P3: TOTAL | Q3: < 15 AÑOS | R3: 15 AÑOS Y MÁS | S3: TOTAL | T3: < 15 AÑOS | U3: 15 AÑOS Y MÁS | V3: TOTAL | W3: < 15 AÑOS | X3: 15 AÑOS Y MÁS | Y3: TOTAL | Z3: < 15 AÑOS | AA3: 15 AÑOS Y MÁS | AB3: ATENCION CERRADA | AC3: ATENCION ABIERTA | AD3: EMERGENCIA | AE3: POR HONO- RARIOS | AF3: POR CONVENIOS | AG3: POR CONSULTO- RES DE LLAMADA | AI3: AL SISTEMA | AJ3: EXTRA-SISTEMA
C4: CONSULTAS Y ATENCION MEDICA
C5: CONSULTAS DE ESPECIALIDADES MEDICAS
A6: 01014275 | B6: 0101201 | C6: Consulta Médica de Especialidad en Dermatología | D6: =IFERROR(VLOOKUP($A6,Filtro!$A$5:$AK$2951,2,FALSE),0) -> 4418 | E6: =IFERROR(VLOOKUP($A6,Filtro!$A$5:$AK$2951,3,FALSE),0) -> 4412 | F6: =IFERROR(VLOOKUP($A6,Filtro!$A$5:$AK$2951,4,FALSE),0) -> 4412 | G6: =IFERROR(VLOOKUP($A6,Filtro!$A$5:$AK$2951,5,FALSE),0) -> 0 | H6: =IFERROR(VLOOKUP($A6,Filtro!$A$5:$AK$2951,6,FALSE),0) -> 6 | AB6: =IFERROR(VLOOKUP($A6,Filtro!$A$5:$AK$2951,26,FALSE),0) -> 0 | AC6: =IFERROR(VLOOKUP($A6,Filtro!$A$5:$AK$2951,27,FALSE),0) -> 4418 | AD6: =IFERROR(VLOOKUP($A6,Filtro!$A$5:$AK$2951,28,FALSE),0) -> 0 | AE6: =IFERROR(VLOOKUP($A6,Filtro!$A$5:$AK$2951,29,FALSE),0) -> 0 | AF6: =IFERROR(VLOOKUP($A6,Filtro!$A$5:$AK$2951,30,FALSE),0) -> 0 | AG6: =IFERROR(VLOOKUP($A6,Filtro!$A$5:$AK$2951,31,FALSE),0) -> 0 | AH6: =IFERROR(VLOOKUP($A6,Filtro!$A$5:$AK$2951,32,FALSE),0) -> 0 | AI6: =IFERROR(VLOOKUP($A6,Filtro!$A$5:$AK$2951,33,FALSE),0) -> 0 | AJ6: =IFERROR(VLOOKUP($A6,Filtro!$A$5:$AK$2951,34,FALSE),0) -> 0 | AK6: =IFERROR(VLOOKUP($A6,Filtro!$A$5:$AK$2951,35,FALSE),0) -> 0 | AL6: 9,050 | AM6: =AL6*F6 -> 39,928,600
A7: 01014276 | B7: 0101202 | C7: Consulta Médica de Especialidad en Geriatría | D7: =IFERROR(VLOOKUP($A7,Filtro!$A$5:$AK$2951,2,FALSE),0) -> 1379 | E7: =IFERROR(VLOOKUP($A7,Filtro!$A$5:$AK$2951,3,FALSE),0) -> 1379 | F7: =IFERROR(VLOOKUP($A7,Filtro!$A$5:$AK$2951,4,FALSE),0) -> 1379 | G7: =IFERROR(VLOOKUP($A7,Filtro!$A$5:$AK$2951,5,FALSE),0) -> 0 | H7: =IFERROR(VLOOKUP($A7,Filtro!$A$5:$AK$2951,6,FALSE),0) -> 0 | AB7: =IFERROR(VLOOKUP($A7,Filtro!$A$5:$AK$2951,26,FALSE),0) -> 0 | AC7: =IFERROR(VLOOKUP($A7,Filtro!$A$5:$AK$2951,27,FALSE),0) -> 1379 | AD7: =IFERROR(VLOOKUP($A7,Filtro!$A$5:$AK$2951,28,FALSE),0) -> 0 | AE7: =IFERROR(VLOOKUP($A7,Filtro!$A$5:$AK$2951,29,FALSE),0) -> 0 | AF7: =IFERROR(VLOOKUP($A7,Filtro!$A$5:$AK$2951,30,FALSE),0) -> 0 | AG7: =IFERROR(VLOOKUP($A7,Filtro!$A$5:$AK$2951,31,FALSE),0) -> 0 | AH7: =IFERROR(VLOOKUP($A7,Filtro!$A$5:$AK$2951,32,FALSE),0) -> 0 | AI7: =IFERROR(VLOOKUP($A7,Filtro!$A$5:$AK$2951,33,FALSE),0) -> 0 | AJ7: =IFERROR(VLOOKUP($A7,Filtro!$A$5:$AK$2951,34,FALSE),0) -> 0 | AK7: =IFERROR(VLOOKUP($A7,Filtro!$A$5:$AK$2951,35,FALSE),0) -> 0 | AL7: 9,050 | AM7: 12,479,950
A8: 01014277 | B8: 0101203 | C8: Consulta Médica de Especialidad en Neurocirugía | D8: =IFERROR(VLOOKUP($A8,Filtro!$A$5:$AK$2951,2,FALSE),0) -> 6019 | E8: =IFERROR(VLOOKUP($A8,Filtro!$A$5:$AK$2951,3,FALSE),0) -> 6019 | F8: =IFERROR(VLOOKUP($A8,Filtro!$A$5:$AK$2951,4,FALSE),0) -> 6019 | G8: =IFERROR(VLOOKUP($A8,Filtro!$A$5:$AK$2951,5,FALSE),0) -> 0 | H8: =IFERROR(VLOOKUP($A8,Filtro!$A$5:$AK$2951,6,FALSE),0) -> 0 | AB8: =IFERROR(VLOOKUP($A8,Filtro!$A$5:$AK$2951,26,FALSE),0) -> 0 | AC8: =IFERROR(VLOOKUP($A8,Filtro!$A$5:$AK$2951,27,FALSE),0) -> 6019 | AD8: =IFERROR(VLOOKUP($A8,Filtro!$A$5:$AK$2951,28,FALSE),0) -> 0 | AE8: =IFERROR(VLOOKUP($A8,Filtro!$A$5:$AK$2951,29,FALSE),0) -> 0 | AF8: =IFERROR(VLOOKUP($A8,Filtro!$A$5:$AK$2951,30,FALSE),0) -> 0 | AG8: =IFERROR(VLOOKUP($A8,Filtro!$A$5:$AK$2951,31,FALSE),0) -> 0 | AH8: =IFERROR(VLOOKUP($A8,Filtro!$A$5:$AK$2951,32,FALSE),0) -> 0 | AI8: =IFERROR(VLOOKUP($A8,Filtro!$A$5:$AK$2951,33,FALSE),0) -> 0 | AJ8: =IFERROR(VLOOKUP($A8,Filtro!$A$5:$AK$2951,34,FALSE),0) -> 0 | AK8: =IFERROR(VLOOKUP($A8,Filtro!$A$5:$AK$2951,35,FALSE),0) -> 0 | AL8: 9,050 | AM8: 54,471,950
A9: 01014278 | B9: 0101204 | C9: Consulta Médica de Especialidad en Oftalmología | D9: =IFERROR(VLOOKUP($A9,Filtro!$A$5:$AK$2951,2,FALSE),0) -> 23185 | E9: =IFERROR(VLOOKUP($A9,Filtro!$A$5:$AK$2951,3,FALSE),0) -> 23122 | F9: =IFERROR(VLOOKUP($A9,Filtro!$A$5:$AK$2951,4,FALSE),0) -> 23122 | G9: =IFERROR(VLOOKUP($A9,Filtro!$A$5:$AK$2951,5,FALSE),0) -> 0 | H9: =IFERROR(VLOOKUP($A9,Filtro!$A$5:$AK$2951,6,FALSE),0) -> 63 | AB9: =IFERROR(VLOOKUP($A9,Filtro!$A$5:$AK$2951,26,FALSE),0) -> 0 | AC9: =IFERROR(VLOOKUP($A9,Filtro!$A$5:$AK$2951,27,FALSE),0) -> 23185 | AD9: =IFERROR(VLOOKUP($A9,Filtro!$A$5:$AK$2951,28,FALSE),0) -> 0 | AE9: =IFERROR(VLOOKUP($A9,Filtro!$A$5:$AK$2951,29,FALSE),0) -> 384 | AF9: =IFERROR(VLOOKUP($A9,Filtro!$A$5:$AK$2951,30,FALSE),0) -> 0 | AG9: =IFERROR(VLOOKUP($A9,Filtro!$A$5:$AK$2951,31,FALSE),0) -> 0 | AH9: =IFERROR(VLOOKUP($A9,Filtro!$A$5:$AK$2951,32,FALSE),0) -> 0 | AI9: =IFERROR(VLOOKUP($A9,Filtro!$A$5:$AK$2951,33,FALSE),0) -> 0 | AJ9: =IFERROR(VLOOKUP($A9,Filtro!$A$5:$AK$2951,34,FALSE),0) -> 0 | AK9: =IFERROR(VLOOKUP($A9,Filtro!$A$5:$AK$2951,35,FALSE),0) -> 0 | AL9: 9,050 | AM9: 209,254,100
A10: 01014279 | B10: 0101205 | C10: Consulta Médica de Especialidad en Otorrinolaringología | D10: =IFERROR(VLOOKUP($A10,Filtro!$A$5:$AK$2951,2,FALSE),0) -> 20341 | E10: =IFERROR(VLOOKUP($A10,Filtro!$A$5:$AK$2951,3,FALSE),0) -> 20295 | F10: =IFERROR(VLOOKUP($A10,Filtro!$A$5:$AK$2951,4,FALSE),0) -> 20295 | G10: =IFERROR(VLOOKUP($A10,Filtro!$A$5:$AK$2951,5,FALSE),0) -> 0 | H10: =IFERROR(VLOOKUP($A10,Filtro!$A$5:$AK$2951,6,FALSE),0) -> 46 | AB10: =IFERROR(VLOOKUP($A10,Filtro!$A$5:$AK$2951,26,FALSE),0) -> 0 | AC10: =IFERROR(VLOOKUP($A10,Filtro!$A$5:$AK$2951,27,FALSE),0) -> 20341 | AD10: =IFERROR(VLOOKUP($A10,Filtro!$A$5:$AK$2951,28,FALSE),0) -> 0 | AE10: =IFERROR(VLOOKUP($A10,Filtro!$A$5:$AK$2951,29,FALSE),0) -> 2677 | AF10: =IFERROR(VLOOKUP($A10,Filtro!$A$5:$AK$2951,30,FALSE),0) -> 0 | AG10: =IFERROR(VLOOKUP($A10,Filtro!$A$5:$AK$2951,31,FALSE),0) -> 0 | AH10: =IFERROR(VLOOKUP($A10,Filtro!$A$5:$AK$2951,32,FALSE),0) -> 0 | AI10: =IFERROR(VLOOKUP($A10,Filtro!$A$5:$AK$2951,33,FALSE),0) -> 0 | AJ10: =IFERROR(VLOOKUP($A10,Filtro!$A$5:$AK$2951,34,FALSE),0) -> 0 | AK10: =IFERROR(VLOOKUP($A10,Filtro!$A$5:$AK$2951,35,FALSE),0) -> 0 | AL10: 9,050 | AM10: 183,669,750
A11: 01014280 | B11: 0101206 | C11: Consulta Médica de Especialidad en Reumatología | D11: =IFERROR(VLOOKUP($A11,Filtro!$A$5:$AK$2951,2,FALSE),0) -> 4831 | E11: =IFERROR(VLOOKUP($A11,Filtro!$A$5:$AK$2951,3,FALSE),0) -> 4820 | F11: =IFERROR(VLOOKUP($A11,Filtro!$A$5:$AK$2951,4,FALSE),0) -> 4820 | G11: =IFERROR(VLOOKUP($A11,Filtro!$A$5:$AK$2951,5,FALSE),0) -> 0 | H11: =IFERROR(VLOOKUP($A11,Filtro!$A$5:$AK$2951,6,FALSE),0) -> 11 | AB11: =IFERROR(VLOOKUP($A11,Filtro!$A$5:$AK$2951,26,FALSE),0) -> 0 | AC11: =IFERROR(VLOOKUP($A11,Filtro!$A$5:$AK$2951,27,FALSE),0) -> 4831 | AD11: =IFERROR(VLOOKUP($A11,Filtro!$A$5:$AK$2951,28,FALSE),0) -> 0 | AE11: =IFERROR(VLOOKUP($A11,Filtro!$A$5:$AK$2951,29,FALSE),0) -> 0 | AF11: =IFERROR(VLOOKUP($A11,Filtro!$A$5:$AK$2951,30,FALSE),0) -> 0 | AG11: =IFERROR(VLOOKUP($A11,Filtro!$A$5:$AK$2951,31,FALSE),0) -> 0 | AH11: =IFERROR(VLOOKUP($A11,Filtro!$A$5:$AK$2951,32,FALSE),0) -> 0 | AI11: =IFERROR(VLOOKUP($A11,Filtro!$A$5:$AK$2951,33,FALSE),0) -> 0 | AJ11: =IFERROR(VLOOKUP($A11,Filtro!$A$5:$AK$2951,34,FALSE),0) -> 0 | AK11: =IFERROR(VLOOKUP($A11,Filtro!$A$5:$AK$2951,35,FALSE),0) -> 0 | AL11: 9,050 | AM11: 43,621,000
A12: 01014281 | B12: 0101207 | C12: Consulta Médica de Especialidad en Endocrinología Adulto | D12: =IFERROR(VLOOKUP($A12,Filtro!$A$5:$AK$2951,2,FALSE),0) -> 5331 | E12: =IFERROR(VLOOKUP($A12,Filtro!$A$5:$AK$2951,3,FALSE),0) -> 5327 | F12: =IFERROR(VLOOKUP($A12,Filtro!$A$5:$AK$2951,4,FALSE),0) -> 5324 | G12: =IFERROR(VLOOKUP($A12,Filtro!$A$5:$AK$2951,5,FALSE),0) -> 3 | H12: =IFERROR(VLOOKUP($A12,Filtro!$A$5:$AK$2951,6,FALSE),0) -> 4 | AB12: =IFERROR(VLOOKUP($A12,Filtro!$A$5:$AK$2951,26,FALSE),0) -> 0 | AC12: =IFERROR(VLOOKUP($A12,Filtro!$A$5:$AK$2951,27,FALSE),0) -> 5331 | AD12: =IFERROR(VLOOKUP($A12,Filtro!$A$5:$AK$2951,28,FALSE),0) -> 0 | AE12: =IFERROR(VLOOKUP($A12,Filtro!$A$5:$AK$2951,29,FALSE),0) -> 0 | AF12: =IFERROR(VLOOKUP($A12,Filtro!$A$5:$AK$2951,30,FALSE),0) -> 0 | AG12: =IFERROR(VLOOKUP($A12,Filtro!$A$5:$AK$2951,31,FALSE),0) -> 0 | AH12: =IFERROR(VLOOKUP($A12,Filtro!$A$5:$AK$2951,32,FALSE),0) -> 0 | AI12: =IFERROR(VLOOKUP($A12,Filtro!$A$5:$AK$2951,33,FALSE),0) -> 0 | AJ12: =IFERROR(VLOOKUP($A12,Filtro!$A$5:$AK$2951,34,FALSE),0) -> 0 | AK12: =IFERROR(VLOOKUP($A12,Filtro!$A$5:$AK$2951,35,FALSE),0) -> 0 | AL12: 9,050 | AM12: 48,182,200
A13: 01014282 | B13: 0101208 | C13: Consulta Médica de Especialidad en Endocrinología Pediátrica | D13: =IFERROR(VLOOKUP($A13,Filtro!$A$5:$AK$2951,2,FALSE),0) -> 4432 | E13: =IFERROR(VLOOKUP($A13,Filtro!$A$5:$AK$2951,3,FALSE),0) -> 4430 | F13: =IFERROR(VLOOKUP($A13,Filtro!$A$5:$AK$2951,4,FALSE),0) -> 4430 | G13: =IFERROR(VLOOKUP($A13,Filtro!$A$5:$AK$2951,5,FALSE),0) -> 0 | H13: =IFERROR(VLOOKUP($A13,Filtro!$A$5:$AK$2951,6,FALSE),0) -> 2 | AB13: =IFERROR(VLOOKUP($A13,Filtro!$A$5:$AK$2951,26,FALSE),0) -> 0 | AC13: =IFERROR(VLOOKUP($A13,Filtro!$A$5:$AK$2951,27,FALSE),0) -> 4432 | AD13: =IFERROR(VLOOKUP($A13,Filtro!$A$5:$AK$2951,28,FALSE),0) -> 0 | AE13: =IFERROR(VLOOKUP($A13,Filtro!$A$5:$AK$2951,29,FALSE),0) -> 0 | AF13: =IFERROR(VLOOKUP($A13,Filtro!$A$5:$AK$2951,30,FALSE),0) -> 0 | AG13: =IFERROR(VLOOKUP($A13,Filtro!$A$5:$AK$2951,31,FALSE),0) -> 0 | AH13: =IFERROR(VLOOKUP($A13,Filtro!$A$5:$AK$2951,32,FALSE),0) -> 0 | AI13: =IFERROR(VLOOKUP($A13,Filtro!$A$5:$AK$2951,33,FALSE),0) -> 0 | AJ13: =IFERROR(VLOOKUP($A13,Filtro!$A$5:$AK$2951,34,FALSE),0) -> 0 | AK13: =IFERROR(VLOOKUP($A13,Filtro!$A$5:$AK$2951,35,FALSE),0) -> 0 | AL13: 9,050 | AM13: 40,091,500
A14: 01014283 | B14: 0101209 | C14: Consulta Médica de Especialidad en Neurología Adultos | D14: =IFERROR(VLOOKUP($A14,Filtro!$A$5:$AK$2951,2,FALSE),0) -> 10507 | E14: =IFERROR(VLOOKUP($A14,Filtro!$A$5:$AK$2951,3,FALSE),0) -> 10498 | F14: =IFERROR(VLOOKUP($A14,Filtro!$A$5:$AK$2951,4,FALSE),0) -> 10498 | G14: =IFERROR(VLOOKUP($A14,Filtro!$A$5:$AK$2951,5,FALSE),0) -> 0 | H14: =IFERROR(VLOOKUP($A14,Filtro!$A$5:$AK$2951,6,FALSE),0) -> 9 | AB14: =IFERROR(VLOOKUP($A14,Filtro!$A$5:$AK$2951,26,FALSE),0) -> 0 | AC14: =IFERROR(VLOOKUP($A14,Filtro!$A$5:$AK$2951,27,FALSE),0) -> 10507 | AD14: =IFERROR(VLOOKUP($A14,Filtro!$A$5:$AK$2951,28,FALSE),0) -> 0 | AE14: =IFERROR(VLOOKUP($A14,Filtro!$A$5:$AK$2951,29,FALSE),0) -> 484 | AF14: =IFERROR(VLOOKUP($A14,Filtro!$A$5:$AK$2951,30,FALSE),0) -> 0 | AG14: =IFERROR(VLOOKUP($A14,Filtro!$A$5:$AK$2951,31,FALSE),0) -> 0 | AH14: =IFERROR(VLOOKUP($A14,Filtro!$A$5:$AK$2951,32,FALSE),0) -> 0 | AI14: =IFERROR(VLOOKUP($A14,Filtro!$A$5:$AK$2951,33,FALSE),0) -> 0 | AJ14: =IFERROR(VLOOKUP($A14,Filtro!$A$5:$AK$2951,34,FALSE),0) -> 0 | AK14: =IFERROR(VLOOKUP($A14,Filtro!$A$5:$AK$2951,35,FALSE),0) -> 0 | AL14: 9,050 | AM14: 95,006,900
A15: 01014284 | B15: 0101210 | C15: Consulta Médica de Especialidad en Neurología Pediátrica | D15: =IFERROR(VLOOKUP($A15,Filtro!$A$5:$AK$2951,2,FALSE),0) -> 7118 | E15: =IFERROR(VLOOKUP($A15,Filtro!$A$5:$AK$2951,3,FALSE),0) -> 7105 | F15: =IFERROR(VLOOKUP($A15,Filtro!$A$5:$AK$2951,4,FALSE),0) -> 7105 | G15: =IFERROR(VLOOKUP($A15,Filtro!$A$5:$AK$2951,5,FALSE),0) -> 0 | H15: =IFERROR(VLOOKUP($A15,Filtro!$A$5:$AK$2951,6,FALSE),0) -> 13 | AB15: =IFERROR(VLOOKUP($A15,Filtro!$A$5:$AK$2951,26,FALSE),0) -> 0 | AC15: =IFERROR(VLOOKUP($A15,Filtro!$A$5:$AK$2951,27,FALSE),0) -> 7118 | AD15: =IFERROR(VLOOKUP($A15,Filtro!$A$5:$AK$2951,28,FALSE),0) -> 0 | AE15: =IFERROR(VLOOKUP($A15,Filtro!$A$5:$AK$2951,29,FALSE),0) -> 0 | AF15: =IFERROR(VLOOKUP($A15,Filtro!$A$5:$AK$2951,30,FALSE),0) -> 0 | AG15: =IFERROR(VLOOKUP($A15,Filtro!$A$5:$AK$2951,31,FALSE),0) -> 0 | AH15: =IFERROR(VLOOKUP($A15,Filtro!$A$5:$AK$2951,32,FALSE),0) -> 0 | AI15: =IFERROR(VLOOKUP($A15,Filtro!$A$5:$AK$2951,33,FALSE),0) -> 0 | AJ15: =IFERROR(VLOOKUP($A15,Filtro!$A$5:$AK$2951,34,FALSE),0) -> 0 | AK15: =IFERROR(VLOOKUP($A15,Filtro!$A$5:$AK$2951,35,FALSE),0) -> 0 | AL15: 9,050 | AM15: 64,300,250
A16: 01014285 | B16: 0101211 | C16: Consulta Médica de Especialidad en Oncología Médica | D16: =IFERROR(VLOOKUP($A16,Filtro!$A$5:$AK$2951,2,FALSE),0) -> 8357 | E16: =IFERROR(VLOOKUP($A16,Filtro!$A$5:$AK$2951,3,FALSE),0) -> 8335 | F16: =IFERROR(VLOOKUP($A16,Filtro!$A$5:$AK$2951,4,FALSE),0) -> 8335 | G16: =IFERROR(VLOOKUP($A16,Filtro!$A$5:$AK$2951,5,FALSE),0) -> 0 | H16: =IFERROR(VLOOKUP($A16,Filtro!$A$5:$AK$2951,6,FALSE),0) -> 22 | AB16: =IFERROR(VLOOKUP($A16,Filtro!$A$5:$AK$2951,26,FALSE),0) -> 0 | AC16: =IFERROR(VLOOKUP($A16,Filtro!$A$5:$AK$2951,27,FALSE),0) -> 8357 | AD16: =IFERROR(VLOOKUP($A16,Filtro!$A$5:$AK$2951,28,FALSE),0) -> 0 | AE16: =IFERROR(VLOOKUP($A16,Filtro!$A$5:$AK$2951,29,FALSE),0) -> 0 | AF16: =IFERROR(VLOOKUP($A16,Filtro!$A$5:$AK$2951,30,FALSE),0) -> 0 | AG16: =IFERROR(VLOOKUP($A16,Filtro!$A$5:$AK$2951,31,FALSE),0) -> 0 | AH16: =IFERROR(VLOOKUP($A16,Filtro!$A$5:$AK$2951,32,FALSE),0) -> 0 | AI16: =IFERROR(VLOOKUP($A16,Filtro!$A$5:$AK$2951,33,FALSE),0) -> 0 | AJ16: =IFERROR(VLOOKUP($A16,Filtro!$A$5:$AK$2951,34,FALSE),0) -> 0 | AK16: =IFERROR(VLOOKUP($A16,Filtro!$A$5:$AK$2951,35,FALSE),0) -> 0 | AL16: 9,050 | AM16: 75,431,750
A17: 01014286 | B17: 0101212 | C17: Consulta Médica de Especialidad en Psiquiatría adultos | D17: =IFERROR(VLOOKUP($A17,Filtro!$A$5:$AK$2951,2,FALSE),0) -> 17325 | E17: =IFERROR(VLOOKUP($A17,Filtro!$A$5:$AK$2951,3,FALSE),0) -> 17282 | F17: =IFERROR(VLOOKUP($A17,Filtro!$A$5:$AK$2951,4,FALSE),0) -> 17282 | G17: =IFERROR(VLOOKUP($A17,Filtro!$A$5:$AK$2951,5,FALSE),0) -> 0 | H17: =IFERROR(VLOOKUP($A17,Filtro!$A$5:$AK$2951,6,FALSE),0) -> 43 | AB17: =IFERROR(VLOOKUP($A17,Filtro!$A$5:$AK$2951,26,FALSE),0) -> 0 | AC17: =IFERROR(VLOOKUP($A17,Filtro!$A$5:$AK$2951,27,FALSE),0) -> 17325 | AD17: =IFERROR(VLOOKUP($A17,Filtro!$A$5:$AK$2951,28,FALSE),0) -> 0 | AE17: =IFERROR(VLOOKUP($A17,Filtro!$A$5:$AK$2951,29,FALSE),0) -> 0 | AF17: =IFERROR(VLOOKUP($A17,Filtro!$A$5:$AK$2951,30,FALSE),0) -> 0 | AG17: =IFERROR(VLOOKUP($A17,Filtro!$A$5:$AK$2951,31,FALSE),0) -> 0 | AH17: =IFERROR(VLOOKUP($A17,Filtro!$A$5:$AK$2951,32,FALSE),0) -> 0 | AI17: =IFERROR(VLOOKUP($A17,Filtro!$A$5:$AK$2951,33,FALSE),0) -> 0 | AJ17: =IFERROR(VLOOKUP($A17,Filtro!$A$5:$AK$2951,34,FALSE),0) -> 0 | AK17: =IFERROR(VLOOKUP($A17,Filtro!$A$5:$AK$2951,35,FALSE),0) -> 0 | AL17: 9,050 | AM17: 156,402,100
A18: 01014287 | B18: 0101213 | C18: Consulta Médica de Especialidad en Psiquiatría pediátrica y de la adolescencia | D18: =IFERROR(VLOOKUP($A18,Filtro!$A$5:$AK$2951,2,FALSE),0) -> 5513 | E18: =IFERROR(VLOOKUP($A18,Filtro!$A$5:$AK$2951,3,FALSE),0) -> 5508 | F18: =IFERROR(VLOOKUP($A18,Filtro!$A$5:$AK$2951,4,FALSE),0) -> 5508 | G18: =IFERROR(VLOOKUP($A18,Filtro!$A$5:$AK$2951,5,FALSE),0) -> 0 | H18: =IFERROR(VLOOKUP($A18,Filtro!$A$5:$AK$2951,6,FALSE),0) -> 5 | AB18: =IFERROR(VLOOKUP($A18,Filtro!$A$5:$AK$2951,26,FALSE),0) -> 0 | AC18: =IFERROR(VLOOKUP($A18,Filtro!$A$5:$AK$2951,27,FALSE),0) -> 5513 | AD18: =IFERROR(VLOOKUP($A18,Filtro!$A$5:$AK$2951,28,FALSE),0) -> 0 | AE18: =IFERROR(VLOOKUP($A18,Filtro!$A$5:$AK$2951,29,FALSE),0) -> 0 | AF18: =IFERROR(VLOOKUP($A18,Filtro!$A$5:$AK$2951,30,FALSE),0) -> 0 | AG18: =IFERROR(VLOOKUP($A18,Filtro!$A$5:$AK$2951,31,FALSE),0) -> 0 | AH18: =IFERROR(VLOOKUP($A18,Filtro!$A$5:$AK$2951,32,FALSE),0) -> 0 | AI18: =IFERROR(VLOOKUP($A18,Filtro!$A$5:$AK$2951,33,FALSE),0) -> 0 | AJ18: =IFERROR(VLOOKUP($A18,Filtro!$A$5:$AK$2951,34,FALSE),0) -> 0 | AK18: =IFERROR(VLOOKUP($A18,Filtro!$A$5:$AK$2951,35,FALSE),0) -> 0 | AL18: 9,050 | AM18: 49,847,400
A19: 01014288 | B19: 0101300 | C19: Consulta Médica otras Especialidades | D19: =IFERROR(VLOOKUP($A19,Filtro!$A$5:$AK$2951,2,FALSE),0) -> 9501 | E19: =IFERROR(VLOOKUP($A19,Filtro!$A$5:$AK$2951,3,FALSE),0) -> 9500 | F19: =IFERROR(VLOOKUP($A19,Filtro!$A$5:$AK$2951,4,FALSE),0) -> 9500 | G19: =IFERROR(VLOOKUP($A19,Filtro!$A$5:$AK$2951,5,FALSE),0) -> 0 | H19: =IFERROR(VLOOKUP($A19,Filtro!$A$5:$AK$2951,6,FALSE),0) -> 1 | AB19: =IFERROR(VLOOKUP($A19,Filtro!$A$5:$AK$2951,26,FALSE),0) -> 0 | AC19: =IFERROR(VLOOKUP($A19,Filtro!$A$5:$AK$2951,27,FALSE),0) -> 9501 | AD19: =IFERROR(VLOOKUP($A19,Filtro!$A$5:$AK$2951,28,FALSE),0) -> 0 | AE19: =IFERROR(VLOOKUP($A19,Filtro!$A$5:$AK$2951,29,FALSE),0) -> 0 | AF19: =IFERROR(VLOOKUP($A19,Filtro!$A$5:$AK$2951,30,FALSE),0) -> 0 | AG19: =IFERROR(VLOOKUP($A19,Filtro!$A$5:$AK$2951,31,FALSE),0) -> 0 | AH19: =IFERROR(VLOOKUP($A19,Filtro!$A$5:$AK$2951,32,FALSE),0) -> 0 | AI19: =IFERROR(VLOOKUP($A19,Filtro!$A$5:$AK$2951,33,FALSE),0) -> 0 | AJ19: =IFERROR(VLOOKUP($A19,Filtro!$A$5:$AK$2951,34,FALSE),0) -> 0 | AK19: =IFERROR(VLOOKUP($A19,Filtro!$A$5:$AK$2951,35,FALSE),0) -> 0 | AL19: 9,050 | AM19: 85,975,000
A20: 01014289 | B20: 0101301 | C20: Consulta Médica de Especialidad en Cardiología | D20: =IFERROR(VLOOKUP($A20,Filtro!$A$5:$AK$2951,2,FALSE),0) -> 13090 | E20: =IFERROR(VLOOKUP($A20,Filtro!$A$5:$AK$2951,3,FALSE),0) -> 13074 | F20: =IFERROR(VLOOKUP($A20,Filtro!$A$5:$AK$2951,4,FALSE),0) -> 13074 | G20: =IFERROR(VLOOKUP($A20,Filtro!$A$5:$AK$2951,5,FALSE),0) -> 0 | H20: =IFERROR(VLOOKUP($A20,Filtro!$A$5:$AK$2951,6,FALSE),0) -> 16 | AB20: =IFERROR(VLOOKUP($A20,Filtro!$A$5:$AK$2951,26,FALSE),0) -> 0 | AC20: =IFERROR(VLOOKUP($A20,Filtro!$A$5:$AK$2951,27,FALSE),0) -> 13090 | AD20: =IFERROR(VLOOKUP($A20,Filtro!$A$5:$AK$2951,28,FALSE),0) -> 0 | AE20: =IFERROR(VLOOKUP($A20,Filtro!$A$5:$AK$2951,29,FALSE),0) -> 8 | AF20: =IFERROR(VLOOKUP($A20,Filtro!$A$5:$AK$2951,30,FALSE),0) -> 0 | AG20: =IFERROR(VLOOKUP($A20,Filtro!$A$5:$AK$2951,31,FALSE),0) -> 0 | AH20: =IFERROR(VLOOKUP($A20,Filtro!$A$5:$AK$2951,32,FALSE),0) -> 0 | AI20: =IFERROR(VLOOKUP($A20,Filtro!$A$5:$AK$2951,33,FALSE),0) -> 0 | AJ20: =IFERROR(VLOOKUP($A20,Filtro!$A$5:$AK$2951,34,FALSE),0) -> 0 | AK20: =IFERROR(VLOOKUP($A20,Filtro!$A$5:$AK$2951,35,FALSE),0) -> 0 | AL20: 9,050 | AM20: 118,319,700
A21: 01014290 | B21: 0101302 | C21: Consulta Médica de Especialidad en Hematología | D21: =IFERROR(VLOOKUP($A21,Filtro!$A$5:$AK$2951,2,FALSE),0) -> 7327 | E21: =IFERROR(VLOOKUP($A21,Filtro!$A$5:$AK$2951,3,FALSE),0) -> 7315 | F21: =IFERROR(VLOOKUP($A21,Filtro!$A$5:$AK$2951,4,FALSE),0) -> 7315 | G21: =IFERROR(VLOOKUP($A21,Filtro!$A$5:$AK$2951,5,FALSE),0) -> 0 | H21: =IFERROR(VLOOKUP($A21,Filtro!$A$5:$AK$2951,6,FALSE),0) -> 12 | AB21: =IFERROR(VLOOKUP($A21,Filtro!$A$5:$AK$2951,26,FALSE),0) -> 0 | AC21: =IFERROR(VLOOKUP($A21,Filtro!$A$5:$AK$2951,27,FALSE),0) -> 7327 | AD21: =IFERROR(VLOOKUP($A21,Filtro!$A$5:$AK$2951,28,FALSE),0) -> 0 | AE21: =IFERROR(VLOOKUP($A21,Filtro!$A$5:$AK$2951,29,FALSE),0) -> 0 | AF21: =IFERROR(VLOOKUP($A21,Filtro!$A$5:$AK$2951,30,FALSE),0) -> 0 | AG21: =IFERROR(VLOOKUP($A21,Filtro!$A$5:$AK$2951,31,FALSE),0) -> 0 | AH21: =IFERROR(VLOOKUP($A21,Filtro!$A$5:$AK$2951,32,FALSE),0) -> 0 | AI21: =IFERROR(VLOOKUP($A21,Filtro!$A$5:$AK$2951,33,FALSE),0) -> 0 | AJ21: =IFERROR(VLOOKUP($A21,Filtro!$A$5:$AK$2951,34,FALSE),0) -> 0 | AK21: =IFERROR(VLOOKUP($A21,Filtro!$A$5:$AK$2951,35,FALSE),0) -> 0 | AL21: 9,050 | AM21: 66,200,750
A22: 01014291 | B22: 0101303 | C22: Consulta Médica de Especialidad en Infectología | D22: =IFERROR(VLOOKUP($A22,Filtro!$A$5:$AK$2951,2,FALSE),0) -> 4835 | E22: =IFERROR(VLOOKUP($A22,Filtro!$A$5:$AK$2951,3,FALSE),0) -> 4829 | F22: =IFERROR(VLOOKUP($A22,Filtro!$A$5:$AK$2951,4,FALSE),0) -> 4829 | G22: =IFERROR(VLOOKUP($A22,Filtro!$A$5:$AK$2951,5,FALSE),0) -> 0 | H22: =IFERROR(VLOOKUP($A22,Filtro!$A$5:$AK$2951,6,FALSE),0) -> 6 | AB22: =IFERROR(VLOOKUP($A22,Filtro!$A$5:$AK$2951,26,FALSE),0) -> 0 | AC22: =IFERROR(VLOOKUP($A22,Filtro!$A$5:$AK$2951,27,FALSE),0) -> 4835 | AD22: =IFERROR(VLOOKUP($A22,Filtro!$A$5:$AK$2951,28,FALSE),0) -> 0 | AE22: =IFERROR(VLOOKUP($A22,Filtro!$A$5:$AK$2951,29,FALSE),0) -> 0 | AF22: =IFERROR(VLOOKUP($A22,Filtro!$A$5:$AK$2951,30,FALSE),0) -> 0 | AG22: =IFERROR(VLOOKUP($A22,Filtro!$A$5:$AK$2951,31,FALSE),0) -> 0 | AH22: =IFERROR(VLOOKUP($A22,Filtro!$A$5:$AK$2951,32,FALSE),0) -> 0 | AI22: =IFERROR(VLOOKUP($A22,Filtro!$A$5:$AK$2951,33,FALSE),0) -> 0 | AJ22: =IFERROR(VLOOKUP($A22,Filtro!$A$5:$AK$2951,34,FALSE),0) -> 0 | AK22: =IFERROR(VLOOKUP($A22,Filtro!$A$5:$AK$2951,35,FALSE),0) -> 0 | AL22: 9,050 | AM22: 43,702,450
A23: 01014292 | B23: 0101304 | C23: Consulta Médica de Especialidad en Inmunología | D23: =IFERROR(VLOOKUP($A23,Filtro!$A$5:$AK$2951,2,FALSE),0) -> 1582 | E23: =IFERROR(VLOOKUP($A23,Filtro!$A$5:$AK$2951,3,FALSE),0) -> 1582 | F23: =IFERROR(VLOOKUP($A23,Filtro!$A$5:$AK$2951,4,FALSE),0) -> 1582 | G23: =IFERROR(VLOOKUP($A23,Filtro!$A$5:$AK$2951,5,FALSE),0) -> 0 | H23: =IFERROR(VLOOKUP($A23,Filtro!$A$5:$AK$2951,6,FALSE),0) -> 0 | AB23: =IFERROR(VLOOKUP($A23,Filtro!$A$5:$AK$2951,26,FALSE),0) -> 0 | AC23: =IFERROR(VLOOKUP($A23,Filtro!$A$5:$AK$2951,27,FALSE),0) -> 1582 | AD23: =IFERROR(VLOOKUP($A23,Filtro!$A$5:$AK$2951,28,FALSE),0) -> 0 | AE23: =IFERROR(VLOOKUP($A23,Filtro!$A$5:$AK$2951,29,FALSE),0) -> 0 | AF23: =IFERROR(VLOOKUP($A23,Filtro!$A$5:$AK$2951,30,FALSE),0) -> 0 | AG23: =IFERROR(VLOOKUP($A23,Filtro!$A$5:$AK$2951,31,FALSE),0) -> 0 | AH23: =IFERROR(VLOOKUP($A23,Filtro!$A$5:$AK$2951,32,FALSE),0) -> 0 | AI23: =IFERROR(VLOOKUP($A23,Filtro!$A$5:$AK$2951,33,FALSE),0) -> 0 | AJ23: =IFERROR(VLOOKUP($A23,Filtro!$A$5:$AK$2951,34,FALSE),0) -> 0 | AK23: =IFERROR(VLOOKUP($A23,Filtro!$A$5:$AK$2951,35,FALSE),0) -> 0 | AL23: 9,050 | AM23: 14,317,100
A24: 01014293 | B24: 0101305 | C24: Consulta Médica de Especialidad en Medicina Familiar | D24: =IFERROR(VLOOKUP($A24,Filtro!$A$5:$AK$2951,2,FALSE),0) -> 16 | E24: =IFERROR(VLOOKUP($A24,Filtro!$A$5:$AK$2951,3,FALSE),0) -> 16 | F24: =IFERROR(VLOOKUP($A24,Filtro!$A$5:$AK$2951,4,FALSE),0) -> 16 | G24: =IFERROR(VLOOKUP($A24,Filtro!$A$5:$AK$2951,5,FALSE),0) -> 0 | H24: =IFERROR(VLOOKUP($A24,Filtro!$A$5:$AK$2951,6,FALSE),0) -> 0 | AB24: =IFERROR(VLOOKUP($A24,Filtro!$A$5:$AK$2951,26,FALSE),0) -> 0 | AC24: =IFERROR(VLOOKUP($A24,Filtro!$A$5:$AK$2951,27,FALSE),0) -> 16 | AD24: =IFERROR(VLOOKUP($A24,Filtro!$A$5:$AK$2951,28,FALSE),0) -> 0 | AE24: =IFERROR(VLOOKUP($A24,Filtro!$A$5:$AK$2951,29,FALSE),0) -> 0 | AF24: =IFERROR(VLOOKUP($A24,Filtro!$A$5:$AK$2951,30,FALSE),0) -> 0 | AG24: =IFERROR(VLOOKUP($A24,Filtro!$A$5:$AK$2951,31,FALSE),0) -> 0 | AH24: =IFERROR(VLOOKUP($A24,Filtro!$A$5:$AK$2951,32,FALSE),0) -> 0 | AI24: =IFERROR(VLOOKUP($A24,Filtro!$A$5:$AK$2951,33,FALSE),0) -> 0 | AJ24: =IFERROR(VLOOKUP($A24,Filtro!$A$5:$AK$2951,34,FALSE),0) -> 0 | AK24: =IFERROR(VLOOKUP($A24,Filtro!$A$5:$AK$2951,35,FALSE),0) -> 0 | AL24: 9,050 | AM24: 144,800
A25: 01014294 | B25: 0101306 | C25: Consulta Médica de Especialidad en Medicina Física y Rehabilitación | D25: =IFERROR(VLOOKUP($A25,Filtro!$A$5:$AK$2951,2,FALSE),0) -> 6091 | E25: =IFERROR(VLOOKUP($A25,Filtro!$A$5:$AK$2951,3,FALSE),0) -> 6086 | F25: =IFERROR(VLOOKUP($A25,Filtro!$A$5:$AK$2951,4,FALSE),0) -> 6086 | G25: =IFERROR(VLOOKUP($A25,Filtro!$A$5:$AK$2951,5,FALSE),0) -> 0 | H25: =IFERROR(VLOOKUP($A25,Filtro!$A$5:$AK$2951,6,FALSE),0) -> 5 | AB25: =IFERROR(VLOOKUP($A25,Filtro!$A$5:$AK$2951,26,FALSE),0) -> 0 | AC25: =IFERROR(VLOOKUP($A25,Filtro!$A$5:$AK$2951,27,FALSE),0) -> 6221 | AD25: =IFERROR(VLOOKUP($A25,Filtro!$A$5:$AK$2951,28,FALSE),0) -> 0 | AE25: =IFERROR(VLOOKUP($A25,Filtro!$A$5:$AK$2951,29,FALSE),0) -> 0 | AF25: =IFERROR(VLOOKUP($A25,Filtro!$A$5:$AK$2951,30,FALSE),0) -> 0 | AG25: =IFERROR(VLOOKUP($A25,Filtro!$A$5:$AK$2951,31,FALSE),0) -> 0 | AH25: =IFERROR(VLOOKUP($A25,Filtro!$A$5:$AK$2951,32,FALSE),0) -> 0 | AI25: =IFERROR(VLOOKUP($A25,Filtro!$A$5:$AK$2951,33,FALSE),0) -> 0 | AJ25: =IFERROR(VLOOKUP($A25,Filtro!$A$5:$AK$2951,34,FALSE),0) -> 0 | AK25: =IFERROR(VLOOKUP($A25,Filtro!$A$5:$AK$2951,35,FALSE),0) -> 0 | AL25: 9,050 | AM25: 55,078,300
A26: 01014295 | B26: 0101307 | C26: Consulta Médica de Especialidad en Medicina Interna | D26: =IFERROR(VLOOKUP($A26,Filtro!$A$5:$AK$2951,2,FALSE),0) -> 37025 | E26: =IFERROR(VLOOKUP($A26,Filtro!$A$5:$AK$2951,3,FALSE),0) -> 36946 | F26: =IFERROR(VLOOKUP($A26,Filtro!$A$5:$AK$2951,4,FALSE),0) -> 36946 | G26: =IFERROR(VLOOKUP($A26,Filtro!$A$5:$AK$2951,5,FALSE),0) -> 0 | H26: =IFERROR(VLOOKUP($A26,Filtro!$A$5:$AK$2951,6,FALSE),0) -> 79 | AB26: =IFERROR(VLOOKUP($A26,Filtro!$A$5:$AK$2951,26,FALSE),0) -> 0 | AC26: =IFERROR(VLOOKUP($A26,Filtro!$A$5:$AK$2951,27,FALSE),0) -> 37142 | AD26: =IFERROR(VLOOKUP($A26,Filtro!$A$5:$AK$2951,28,FALSE),0) -> 3 | AE26: =IFERROR(VLOOKUP($A26,Filtro!$A$5:$AK$2951,29,FALSE),0) -> 501 | AF26: =IFERROR(VLOOKUP($A26,Filtro!$A$5:$AK$2951,30,FALSE),0) -> 0 | AG26: =IFERROR(VLOOKUP($A26,Filtro!$A$5:$AK$2951,31,FALSE),0) -> 0 | AH26: =IFERROR(VLOOKUP($A26,Filtro!$A$5:$AK$2951,32,FALSE),0) -> 0 | AI26: =IFERROR(VLOOKUP($A26,Filtro!$A$5:$AK$2951,33,FALSE),0) -> 0 | AJ26: =IFERROR(VLOOKUP($A26,Filtro!$A$5:$AK$2951,34,FALSE),0) -> 0 | AK26: =IFERROR(VLOOKUP($A26,Filtro!$A$5:$AK$2951,35,FALSE),0) -> 0 | AL26: 9,050 | AM26: 334,361,300
A27: 01012816 | B27: 0101308 | C27: Consulta Médica de Especialidad en Obstetricia y Ginecología | D27: =IFERROR(VLOOKUP($A27,Filtro!$A$5:$AK$2951,2,FALSE),0) -> 41967 | E27: =IFERROR(VLOOKUP($A27,Filtro!$A$5:$AK$2951,3,FALSE),0) -> 41936 | F27: =IFERROR(VLOOKUP($A27,Filtro!$A$5:$AK$2951,4,FALSE),0) -> 41936 | G27: =IFERROR(VLOOKUP($A27,Filtro!$A$5:$AK$2951,5,FALSE),0) -> 0 | H27: =IFERROR(VLOOKUP($A27,Filtro!$A$5:$AK$2951,6,FALSE),0) -> 31 | AB27: =IFERROR(VLOOKUP($A27,Filtro!$A$5:$AK$2951,26,FALSE),0) -> 208 | AC27: =IFERROR(VLOOKUP($A27,Filtro!$A$5:$AK$2951,27,FALSE),0) -> 40010 | AD27: =IFERROR(VLOOKUP($A27,Filtro!$A$5:$AK$2951,28,FALSE),0) -> 1630 | AE27: =IFERROR(VLOOKUP($A27,Filtro!$A$5:$AK$2951,29,FALSE),0) -> 537 | AF27: =IFERROR(VLOOKUP($A27,Filtro!$A$5:$AK$2951,30,FALSE),0) -> 0 | AG27: =IFERROR(VLOOKUP($A27,Filtro!$A$5:$AK$2951,31,FALSE),0) -> 0 | AH27: =IFERROR(VLOOKUP($A27,Filtro!$A$5:$AK$2951,32,FALSE),0) -> 0 | AI27: =IFERROR(VLOOKUP($A27,Filtro!$A$5:$AK$2951,33,FALSE),0) -> 0 | AJ27: =IFERROR(VLOOKUP($A27,Filtro!$A$5:$AK$2951,34,FALSE),0) -> 0 | AK27: =IFERROR(VLOOKUP($A27,Filtro!$A$5:$AK$2951,35,FALSE),0) -> 0 | AL27: 9,050 | AM27: 379,520,800
A28: 01014296 | B28: 0101309 | C28: Consulta Médica de Especialidad en Pediatría | D28: =IFERROR(VLOOKUP($A28,Filtro!$A$5:$AK$2951,2,FALSE),0) -> 12596 | E28: =IFERROR(VLOOKUP($A28,Filtro!$A$5:$AK$2951,3,FALSE),0) -> 12588 | F28: =IFERROR(VLOOKUP($A28,Filtro!$A$5:$AK$2951,4,FALSE),0) -> 12588 | G28: =IFERROR(VLOOKUP($A28,Filtro!$A$5:$AK$2951,5,FALSE),0) -> 0 | H28: =IFERROR(VLOOKUP($A28,Filtro!$A$5:$AK$2951,6,FALSE),0) -> 8 | AB28: =IFERROR(VLOOKUP($A28,Filtro!$A$5:$AK$2951,26,FALSE),0) -> 0 | AC28: =IFERROR(VLOOKUP($A28,Filtro!$A$5:$AK$2951,27,FALSE),0) -> 12465 | AD28: =IFERROR(VLOOKUP($A28,Filtro!$A$5:$AK$2951,28,FALSE),0) -> 0 | AE28: =IFERROR(VLOOKUP($A28,Filtro!$A$5:$AK$2951,29,FALSE),0) -> 0 | AF28: =IFERROR(VLOOKUP($A28,Filtro!$A$5:$AK$2951,30,FALSE),0) -> 0 | AG28: =IFERROR(VLOOKUP($A28,Filtro!$A$5:$AK$2951,31,FALSE),0) -> 0 | AH28: =IFERROR(VLOOKUP($A28,Filtro!$A$5:$AK$2951,32,FALSE),0) -> 0 | AI28: =IFERROR(VLOOKUP($A28,Filtro!$A$5:$AK$2951,33,FALSE),0) -> 0 | AJ28: =IFERROR(VLOOKUP($A28,Filtro!$A$5:$AK$2951,34,FALSE),0) -> 0 | AK28: =IFERROR(VLOOKUP($A28,Filtro!$A$5:$AK$2951,35,FALSE),0) -> 0 | AL28: 9,050 | AM28: 113,921,400
A29: 01014297 | B29: 0101310 | C29: Consulta Médica de Especialidad en Traumatología y Ortopedia | D29: =IFERROR(VLOOKUP($A29,Filtro!$A$5:$AK$2951,2,FALSE),0) -> 32217 | E29: =IFERROR(VLOOKUP($A29,Filtro!$A$5:$AK$2951,3,FALSE),0) -> 31746 | F29: =IFERROR(VLOOKUP($A29,Filtro!$A$5:$AK$2951,4,FALSE),0) -> 31746 | G29: =IFERROR(VLOOKUP($A29,Filtro!$A$5:$AK$2951,5,FALSE),0) -> 0 | H29: =IFERROR(VLOOKUP($A29,Filtro!$A$5:$AK$2951,6,FALSE),0) -> 471 | AB29: =IFERROR(VLOOKUP($A29,Filtro!$A$5:$AK$2951,26,FALSE),0) -> 0 | AC29: =IFERROR(VLOOKUP($A29,Filtro!$A$5:$AK$2951,27,FALSE),0) -> 32217 | AD29: =IFERROR(VLOOKUP($A29,Filtro!$A$5:$AK$2951,28,FALSE),0) -> 0 | AE29: =IFERROR(VLOOKUP($A29,Filtro!$A$5:$AK$2951,29,FALSE),0) -> 1022 | AF29: =IFERROR(VLOOKUP($A29,Filtro!$A$5:$AK$2951,30,FALSE),0) -> 0 | AG29: =IFERROR(VLOOKUP($A29,Filtro!$A$5:$AK$2951,31,FALSE),0) -> 0 | AH29: =IFERROR(VLOOKUP($A29,Filtro!$A$5:$AK$2951,32,FALSE),0) -> 0 | AI29: =IFERROR(VLOOKUP($A29,Filtro!$A$5:$AK$2951,33,FALSE),0) -> 0 | AJ29: =IFERROR(VLOOKUP($A29,Filtro!$A$5:$AK$2951,34,FALSE),0) -> 0 | AK29: =IFERROR(VLOOKUP($A29,Filtro!$A$5:$AK$2951,35,FALSE),0) -> 0 | AL29: 9,050 | AM29: 287,301,300
A30: 01014298 | B30: 0101311 | C30: Consulta Médica de Especialidad en Urología | D30: =IFERROR(VLOOKUP($A30,Filtro!$A$5:$AK$2951,2,FALSE),0) -> 16343 | E30: =IFERROR(VLOOKUP($A30,Filtro!$A$5:$AK$2951,3,FALSE),0) -> 16334 | F30: =IFERROR(VLOOKUP($A30,Filtro!$A$5:$AK$2951,4,FALSE),0) -> 16334 | G30: =IFERROR(VLOOKUP($A30,Filtro!$A$5:$AK$2951,5,FALSE),0) -> 0 | H30: =IFERROR(VLOOKUP($A30,Filtro!$A$5:$AK$2951,6,FALSE),0) -> 9 | AB30: =IFERROR(VLOOKUP($A30,Filtro!$A$5:$AK$2951,26,FALSE),0) -> 0 | AC30: =IFERROR(VLOOKUP($A30,Filtro!$A$5:$AK$2951,27,FALSE),0) -> 16343 | AD30: =IFERROR(VLOOKUP($A30,Filtro!$A$5:$AK$2951,28,FALSE),0) -> 0 | AE30: =IFERROR(VLOOKUP($A30,Filtro!$A$5:$AK$2951,29,FALSE),0) -> 2291 | AF30: =IFERROR(VLOOKUP($A30,Filtro!$A$5:$AK$2951,30,FALSE),0) -> 0 | AG30: =IFERROR(VLOOKUP($A30,Filtro!$A$5:$AK$2951,31,FALSE),0) -> 0 | AH30: =IFERROR(VLOOKUP($A30,Filtro!$A$5:$AK$2951,32,FALSE),0) -> 0 | AI30: =IFERROR(VLOOKUP($A30,Filtro!$A$5:$AK$2951,33,FALSE),0) -> 0 | AJ30: =IFERROR(VLOOKUP($A30,Filtro!$A$5:$AK$2951,34,FALSE),0) -> 0 | AK30: =IFERROR(VLOOKUP($A30,Filtro!$A$5:$AK$2951,35,FALSE),0) -> 0 | AL30: 9,050 | AM30: 147,822,700
A31: 01014299 | B31: 0101312 | C31: Consulta Médica de Especialidad en Cirugía General | D31: =IFERROR(VLOOKUP($A31,Filtro!$A$5:$AK$2951,2,FALSE),0) -> 24478 | E31: =IFERROR(VLOOKUP($A31,Filtro!$A$5:$AK$2951,3,FALSE),0) -> 24472 | F31: =IFERROR(VLOOKUP($A31,Filtro!$A$5:$AK$2951,4,FALSE),0) -> 24472 | G31: =IFERROR(VLOOKUP($A31,Filtro!$A$5:$AK$2951,5,FALSE),0) -> 0 | H31: =IFERROR(VLOOKUP($A31,Filtro!$A$5:$AK$2951,6,FALSE),0) -> 6 | AB31: =IFERROR(VLOOKUP($A31,Filtro!$A$5:$AK$2951,26,FALSE),0) -> 0 | AC31: =IFERROR(VLOOKUP($A31,Filtro!$A$5:$AK$2951,27,FALSE),0) -> 24472 | AD31: =IFERROR(VLOOKUP($A31,Filtro!$A$5:$AK$2951,28,FALSE),0) -> 6 | AE31: =IFERROR(VLOOKUP($A31,Filtro!$A$5:$AK$2951,29,FALSE),0) -> 3152 | AF31: =IFERROR(VLOOKUP($A31,Filtro!$A$5:$AK$2951,30,FALSE),0) -> 0 | AG31: =IFERROR(VLOOKUP($A31,Filtro!$A$5:$AK$2951,31,FALSE),0) -> 0 | AH31: =IFERROR(VLOOKUP($A31,Filtro!$A$5:$AK$2951,32,FALSE),0) -> 0 | AI31: =IFERROR(VLOOKUP($A31,Filtro!$A$5:$AK$2951,33,FALSE),0) -> 0 | AJ31: =IFERROR(VLOOKUP($A31,Filtro!$A$5:$AK$2951,34,FALSE),0) -> 0 | AK31: =IFERROR(VLOOKUP($A31,Filtro!$A$5:$AK$2951,35,FALSE),0) -> 0 | AL31: 9,050 | AM31: 221,471,600
A32: 01014300 | B32: 0101313 | C32: Consulta Médica de Especialidad en Cirugía de Cabeza, Cuello y Maxilofacial | D32: =IFERROR(VLOOKUP($A32,Filtro!$A$5:$AK$2951,2,FALSE),0) -> 1119 | E32: =IFERROR(VLOOKUP($A32,Filtro!$A$5:$AK$2951,3,FALSE),0) -> 1116 | F32: =IFERROR(VLOOKUP($A32,Filtro!$A$5:$AK$2951,4,FALSE),0) -> 1116 | G32: =IFERROR(VLOOKUP($A32,Filtro!$A$5:$AK$2951,5,FALSE),0) -> 0 | H32: =IFERROR(VLOOKUP($A32,Filtro!$A$5:$AK$2951,6,FALSE),0) -> 3 | AB32: =IFERROR(VLOOKUP($A32,Filtro!$A$5:$AK$2951,26,FALSE),0) -> 0 | AC32: =IFERROR(VLOOKUP($A32,Filtro!$A$5:$AK$2951,27,FALSE),0) -> 1119 | AD32: =IFERROR(VLOOKUP($A32,Filtro!$A$5:$AK$2951,28,FALSE),0) -> 0 | AE32: =IFERROR(VLOOKUP($A32,Filtro!$A$5:$AK$2951,29,FALSE),0) -> 0 | AF32: =IFERROR(VLOOKUP($A32,Filtro!$A$5:$AK$2951,30,FALSE),0) -> 0 | AG32: =IFERROR(VLOOKUP($A32,Filtro!$A$5:$AK$2951,31,FALSE),0) -> 0 | AH32: =IFERROR(VLOOKUP($A32,Filtro!$A$5:$AK$2951,32,FALSE),0) -> 0 | AI32: =IFERROR(VLOOKUP($A32,Filtro!$A$5:$AK$2951,33,FALSE),0) -> 0 | AJ32: =IFERROR(VLOOKUP($A32,Filtro!$A$5:$AK$2951,34,FALSE),0) -> 0 | AK32: =IFERROR(VLOOKUP($A32,Filtro!$A$5:$AK$2951,35,FALSE),0) -> 0 | AL32: 9,050 | AM32: 10,099,800
A33: 01014301 | B33: 0101314 | C33: Consulta Médica de Especialidad en Cirugía Cardiovascular | D33: =IFERROR(VLOOKUP($A33,Filtro!$A$5:$AK$2951,2,FALSE),0) -> 0 | E33: =IFERROR(VLOOKUP($A33,Filtro!$A$5:$AK$2951,3,FALSE),0) -> 0 | F33: =IFERROR(VLOOKUP($A33,Filtro!$A$5:$AK$2951,4,FALSE),0) -> 0 | G33: =IFERROR(VLOOKUP($A33,Filtro!$A$5:$AK$2951,5,FALSE),0) -> 0 | H33: =IFERROR(VLOOKUP($A33,Filtro!$A$5:$AK$2951,6,FALSE),0) -> 0 | AB33: =IFERROR(VLOOKUP($A33,Filtro!$A$5:$AK$2951,26,FALSE),0) -> 0 | AC33: =IFERROR(VLOOKUP($A33,Filtro!$A$5:$AK$2951,27,FALSE),0) -> 0 | AD33: =IFERROR(VLOOKUP($A33,Filtro!$A$5:$AK$2951,28,FALSE),0) -> 0 | AE33: =IFERROR(VLOOKUP($A33,Filtro!$A$5:$AK$2951,29,FALSE),0) -> 0 | AF33: =IFERROR(VLOOKUP($A33,Filtro!$A$5:$AK$2951,30,FALSE),0) -> 0 | AG33: =IFERROR(VLOOKUP($A33,Filtro!$A$5:$AK$2951,31,FALSE),0) -> 0 | AH33: =IFERROR(VLOOKUP($A33,Filtro!$A$5:$AK$2951,32,FALSE),0) -> 0 | AI33: =IFERROR(VLOOKUP($A33,Filtro!$A$5:$AK$2951,33,FALSE),0) -> 0 | AJ33: =IFERROR(VLOOKUP($A33,Filtro!$A$5:$AK$2951,34,FALSE),0) -> 0 | AK33: =IFERROR(VLOOKUP($A33,Filtro!$A$5:$AK$2951,35,FALSE),0) -> 0 | AL33: 9,050 | AM33: 0
A34: 01014302 | B34: 0101315 | C34: Consulta Médica de Especialidad en Cirugía de Tórax | D34: =IFERROR(VLOOKUP($A34,Filtro!$A$5:$AK$2951,2,FALSE),0) -> 972 | E34: =IFERROR(VLOOKUP($A34,Filtro!$A$5:$AK$2951,3,FALSE),0) -> 972 | F34: =IFERROR(VLOOKUP($A34,Filtro!$A$5:$AK$2951,4,FALSE),0) -> 972 | G34: =IFERROR(VLOOKUP($A34,Filtro!$A$5:$AK$2951,5,FALSE),0) -> 0 | H34: =IFERROR(VLOOKUP($A34,Filtro!$A$5:$AK$2951,6,FALSE),0) -> 0 | AB34: =IFERROR(VLOOKUP($A34,Filtro!$A$5:$AK$2951,26,FALSE),0) -> 0 | AC34: =IFERROR(VLOOKUP($A34,Filtro!$A$5:$AK$2951,27,FALSE),0) -> 972 | AD34: =IFERROR(VLOOKUP($A34,Filtro!$A$5:$AK$2951,28,FALSE),0) -> 0 | AE34: =IFERROR(VLOOKUP($A34,Filtro!$A$5:$AK$2951,29,FALSE),0) -> 0 | AF34: =IFERROR(VLOOKUP($A34,Filtro!$A$5:$AK$2951,30,FALSE),0) -> 0 | AG34: =IFERROR(VLOOKUP($A34,Filtro!$A$5:$AK$2951,31,FALSE),0) -> 0 | AH34: =IFERROR(VLOOKUP($A34,Filtro!$A$5:$AK$2951,32,FALSE),0) -> 0 | AI34: =IFERROR(VLOOKUP($A34,Filtro!$A$5:$AK$2951,33,FALSE),0) -> 0 | AJ34: =IFERROR(VLOOKUP($A34,Filtro!$A$5:$AK$2951,34,FALSE),0) -> 0 | AK34: =IFERROR(VLOOKUP($A34,Filtro!$A$5:$AK$2951,35,FALSE),0) -> 0 | AL34: 9,050 | AM34: 8,796,600
A35: 01014303 | B35: 0101316 | C35: Consulta Médica de Especialidad en Cirugía Plástica y Reparadora | D35: =IFERROR(VLOOKUP($A35,Filtro!$A$5:$AK$2951,2,FALSE),0) -> 404 | E35: =IFERROR(VLOOKUP($A35,Filtro!$A$5:$AK$2951,3,FALSE),0) -> 402 | F35: =IFERROR(VLOOKUP($A35,Filtro!$A$5:$AK$2951,4,FALSE),0) -> 402 | G35: =IFERROR(VLOOKUP($A35,Filtro!$A$5:$AK$2951,5,FALSE),0) -> 0 | H35: =IFERROR(VLOOKUP($A35,Filtro!$A$5:$AK$2951,6,FALSE),0) -> 2 | AB35: =IFERROR(VLOOKUP($A35,Filtro!$A$5:$AK$2951,26,FALSE),0) -> 0 | AC35: =IFERROR(VLOOKUP($A35,Filtro!$A$5:$AK$2951,27,FALSE),0) -> 404 | AD35: =IFERROR(VLOOKUP($A35,Filtro!$A$5:$AK$2951,28,FALSE),0) -> 0 | AE35: =IFERROR(VLOOKUP($A35,Filtro!$A$5:$AK$2951,29,FALSE),0) -> 0 | AF35: =IFERROR(VLOOKUP($A35,Filtro!$A$5:$AK$2951,30,FALSE),0) -> 0 | AG35: =IFERROR(VLOOKUP($A35,Filtro!$A$5:$AK$2951,31,FALSE),0) -> 0 | AH35: =IFERROR(VLOOKUP($A35,Filtro!$A$5:$AK$2951,32,FALSE),0) -> 0 | AI35: =IFERROR(VLOOKUP($A35,Filtro!$A$5:$AK$2951,33,FALSE),0) -> 0 | AJ35: =IFERROR(VLOOKUP($A35,Filtro!$A$5:$AK$2951,34,FALSE),0) -> 0 | AK35: =IFERROR(VLOOKUP($A35,Filtro!$A$5:$AK$2951,35,FALSE),0) -> 0 | AL35: 9,050 | AM35: 3,638,100
A36: 01014304 | B36: 0101317 | C36: Consulta Médica de Especialidad en Cirugía Pediátrica | D36: =IFERROR(VLOOKUP($A36,Filtro!$A$5:$AK$2951,2,FALSE),0) -> 9582 | E36: =IFERROR(VLOOKUP($A36,Filtro!$A$5:$AK$2951,3,FALSE),0) -> 9558 | F36: =IFERROR(VLOOKUP($A36,Filtro!$A$5:$AK$2951,4,FALSE),0) -> 9558 | G36: =IFERROR(VLOOKUP($A36,Filtro!$A$5:$AK$2951,5,FALSE),0) -> 0 | H36: =IFERROR(VLOOKUP($A36,Filtro!$A$5:$AK$2951,6,FALSE),0) -> 24 | AB36: =IFERROR(VLOOKUP($A36,Filtro!$A$5:$AK$2951,26,FALSE),0) -> 0 | AC36: =IFERROR(VLOOKUP($A36,Filtro!$A$5:$AK$2951,27,FALSE),0) -> 9581 | AD36: =IFERROR(VLOOKUP($A36,Filtro!$A$5:$AK$2951,28,FALSE),0) -> 1 | AE36: =IFERROR(VLOOKUP($A36,Filtro!$A$5:$AK$2951,29,FALSE),0) -> 0 | AF36: =IFERROR(VLOOKUP($A36,Filtro!$A$5:$AK$2951,30,FALSE),0) -> 0 | AG36: =IFERROR(VLOOKUP($A36,Filtro!$A$5:$AK$2951,31,FALSE),0) -> 0 | AH36: =IFERROR(VLOOKUP($A36,Filtro!$A$5:$AK$2951,32,FALSE),0) -> 0 | AI36: =IFERROR(VLOOKUP($A36,Filtro!$A$5:$AK$2951,33,FALSE),0) -> 0 | AJ36: =IFERROR(VLOOKUP($A36,Filtro!$A$5:$AK$2951,34,FALSE),0) -> 0 | AK36: =IFERROR(VLOOKUP($A36,Filtro!$A$5:$AK$2951,35,FALSE),0) -> 0 | AL36: 9,050 | AM36: 86,499,900
A37: 01014305 | B37: 0101318 | C37: Consulta Médica de Especialidad en Cirugía Vascular Periférica | D37: =IFERROR(VLOOKUP($A37,Filtro!$A$5:$AK$2951,2,FALSE),0) -> 2619 | E37: =IFERROR(VLOOKUP($A37,Filtro!$A$5:$AK$2951,3,FALSE),0) -> 2619 | F37: =IFERROR(VLOOKUP($A37,Filtro!$A$5:$AK$2951,4,FALSE),0) -> 2619 | G37: =IFERROR(VLOOKUP($A37,Filtro!$A$5:$AK$2951,5,FALSE),0) -> 0 | H37: =IFERROR(VLOOKUP($A37,Filtro!$A$5:$AK$2951,6,FALSE),0) -> 0 | AB37: =IFERROR(VLOOKUP($A37,Filtro!$A$5:$AK$2951,26,FALSE),0) -> 0 | AC37: =IFERROR(VLOOKUP($A37,Filtro!$A$5:$AK$2951,27,FALSE),0) -> 2619 | AD37: =IFERROR(VLOOKUP($A37,Filtro!$A$5:$AK$2951,28,FALSE),0) -> 0 | AE37: =IFERROR(VLOOKUP($A37,Filtro!$A$5:$AK$2951,29,FALSE),0) -> 0 | AF37: =IFERROR(VLOOKUP($A37,Filtro!$A$5:$AK$2951,30,FALSE),0) -> 0 | AG37: =IFERROR(VLOOKUP($A37,Filtro!$A$5:$AK$2951,31,FALSE),0) -> 0 | AH37: =IFERROR(VLOOKUP($A37,Filtro!$A$5:$AK$2951,32,FALSE),0) -> 0 | AI37: =IFERROR(VLOOKUP($A37,Filtro!$A$5:$AK$2951,33,FALSE),0) -> 0 | AJ37: =IFERROR(VLOOKUP($A37,Filtro!$A$5:$AK$2951,34,FALSE),0) -> 0 | AK37: =IFERROR(VLOOKUP($A37,Filtro!$A$5:$AK$2951,35,FALSE),0) -> 0 | AL37: 9,050 | AM37: 23,701,950
A38: 01014306 | B38: 0101319 | C38: Consulta Médica de Especialidad en Coloproctología | D38: =IFERROR(VLOOKUP($A38,Filtro!$A$5:$AK$2951,2,FALSE),0) -> 2756 | E38: =IFERROR(VLOOKUP($A38,Filtro!$A$5:$AK$2951,3,FALSE),0) -> 2755 | F38: =IFERROR(VLOOKUP($A38,Filtro!$A$5:$AK$2951,4,FALSE),0) -> 2755 | G38: =IFERROR(VLOOKUP($A38,Filtro!$A$5:$AK$2951,5,FALSE),0) -> 0 | H38: =IFERROR(VLOOKUP($A38,Filtro!$A$5:$AK$2951,6,FALSE),0) -> 1 | AB38: =IFERROR(VLOOKUP($A38,Filtro!$A$5:$AK$2951,26,FALSE),0) -> 0 | AC38: =IFERROR(VLOOKUP($A38,Filtro!$A$5:$AK$2951,27,FALSE),0) -> 2756 | AD38: =IFERROR(VLOOKUP($A38,Filtro!$A$5:$AK$2951,28,FALSE),0) -> 0 | AE38: =IFERROR(VLOOKUP($A38,Filtro!$A$5:$AK$2951,29,FALSE),0) -> 0 | AF38: =IFERROR(VLOOKUP($A38,Filtro!$A$5:$AK$2951,30,FALSE),0) -> 0 | AG38: =IFERROR(VLOOKUP($A38,Filtro!$A$5:$AK$2951,31,FALSE),0) -> 0 | AH38: =IFERROR(VLOOKUP($A38,Filtro!$A$5:$AK$2951,32,FALSE),0) -> 0 | AI38: =IFERROR(VLOOKUP($A38,Filtro!$A$5:$AK$2951,33,FALSE),0) -> 0 | AJ38: =IFERROR(VLOOKUP($A38,Filtro!$A$5:$AK$2951,34,FALSE),0) -> 0 | AK38: =IFERROR(VLOOKUP($A38,Filtro!$A$5:$AK$2951,35,FALSE),0) -> 0 | AL38: 9,050 | AM38: 24,932,750
A39: 01014307 | B39: 0101320 | C39: Consulta Médica de Especialidad en Diabetología | D39: =IFERROR(VLOOKUP($A39,Filtro!$A$5:$AK$2951,2,FALSE),0) -> 620 | E39: =IFERROR(VLOOKUP($A39,Filtro!$A$5:$AK$2951,3,FALSE),0) -> 620 | F39: =IFERROR(VLOOKUP($A39,Filtro!$A$5:$AK$2951,4,FALSE),0) -> 620 | G39: =IFERROR(VLOOKUP($A39,Filtro!$A$5:$AK$2951,5,FALSE),0) -> 0 | H39: =IFERROR(VLOOKUP($A39,Filtro!$A$5:$AK$2951,6,FALSE),0) -> 0 | AB39: =IFERROR(VLOOKUP($A39,Filtro!$A$5:$AK$2951,26,FALSE),0) -> 0 | AC39: =IFERROR(VLOOKUP($A39,Filtro!$A$5:$AK$2951,27,FALSE),0) -> 620 | AD39: =IFERROR(VLOOKUP($A39,Filtro!$A$5:$AK$2951,28,FALSE),0) -> 0 | AE39: =IFERROR(VLOOKUP($A39,Filtro!$A$5:$AK$2951,29,FALSE),0) -> 0 | AF39: =IFERROR(VLOOKUP($A39,Filtro!$A$5:$AK$2951,30,FALSE),0) -> 0 | AG39: =IFERROR(VLOOKUP($A39,Filtro!$A$5:$AK$2951,31,FALSE),0) -> 0 | AH39: =IFERROR(VLOOKUP($A39,Filtro!$A$5:$AK$2951,32,FALSE),0) -> 0 | AI39: =IFERROR(VLOOKUP($A39,Filtro!$A$5:$AK$2951,33,FALSE),0) -> 0 | AJ39: =IFERROR(VLOOKUP($A39,Filtro!$A$5:$AK$2951,34,FALSE),0) -> 0 | AK39: =IFERROR(VLOOKUP($A39,Filtro!$A$5:$AK$2951,35,FALSE),0) -> 0 | AL39: 9,050 | AM39: 5,611,000
A40: 01014308 | B40: 0101321 | C40: Consulta Médica de Especialidad en Enfermedades Respiratorias Adulto | D40: =IFERROR(VLOOKUP($A40,Filtro!$A$5:$AK$2951,2,FALSE),0) -> 4808 | E40: =IFERROR(VLOOKUP($A40,Filtro!$A$5:$AK$2951,3,FALSE),0) -> 4807 | F40: =IFERROR(VLOOKUP($A40,Filtro!$A$5:$AK$2951,4,FALSE),0) -> 4807 | G40: =IFERROR(VLOOKUP($A40,Filtro!$A$5:$AK$2951,5,FALSE),0) -> 0 | H40: =IFERROR(VLOOKUP($A40,Filtro!$A$5:$AK$2951,6,FALSE),0) -> 1 | AB40: =IFERROR(VLOOKUP($A40,Filtro!$A$5:$AK$2951,26,FALSE),0) -> 0 | AC40: =IFERROR(VLOOKUP($A40,Filtro!$A$5:$AK$2951,27,FALSE),0) -> 4808 | AD40: =IFERROR(VLOOKUP($A40,Filtro!$A$5:$AK$2951,28,FALSE),0) -> 0 | AE40: =IFERROR(VLOOKUP($A40,Filtro!$A$5:$AK$2951,29,FALSE),0) -> 97 | AF40: =IFERROR(VLOOKUP($A40,Filtro!$A$5:$AK$2951,30,FALSE),0) -> 0 | AG40: =IFERROR(VLOOKUP($A40,Filtro!$A$5:$AK$2951,31,FALSE),0) -> 0 | AH40: =IFERROR(VLOOKUP($A40,Filtro!$A$5:$AK$2951,32,FALSE),0) -> 0 | AI40: =IFERROR(VLOOKUP($A40,Filtro!$A$5:$AK$2951,33,FALSE),0) -> 0 | AJ40: =IFERROR(VLOOKUP($A40,Filtro!$A$5:$AK$2951,34,FALSE),0) -> 0 | AK40: =IFERROR(VLOOKUP($A40,Filtro!$A$5:$AK$2951,35,FALSE),0) -> 0 | AL40: 9,050 | AM40: 43,503,350
A41: 01014309 | B41: 0101322 | C41: Consulta Médica de Especialidad en Enfermedades Respiratorias Pediátricas | D41: =IFERROR(VLOOKUP($A41,Filtro!$A$5:$AK$2951,2,FALSE),0) -> 3819 | E41: =IFERROR(VLOOKUP($A41,Filtro!$A$5:$AK$2951,3,FALSE),0) -> 3811 | F41: =IFERROR(VLOOKUP($A41,Filtro!$A$5:$AK$2951,4,FALSE),0) -> 3811 | G41: =IFERROR(VLOOKUP($A41,Filtro!$A$5:$AK$2951,5,FALSE),0) -> 0 | H41: =IFERROR(VLOOKUP($A41,Filtro!$A$5:$AK$2951,6,FALSE),0) -> 8 | AB41: =IFERROR(VLOOKUP($A41,Filtro!$A$5:$AK$2951,26,FALSE),0) -> 0 | AC41: =IFERROR(VLOOKUP($A41,Filtro!$A$5:$AK$2951,27,FALSE),0) -> 3819 | AD41: =IFERROR(VLOOKUP($A41,Filtro!$A$5:$AK$2951,28,FALSE),0) -> 0 | AE41: =IFERROR(VLOOKUP($A41,Filtro!$A$5:$AK$2951,29,FALSE),0) -> 0 | AF41: =IFERROR(VLOOKUP($A41,Filtro!$A$5:$AK$2951,30,FALSE),0) -> 0 | AG41: =IFERROR(VLOOKUP($A41,Filtro!$A$5:$AK$2951,31,FALSE),0) -> 0 | AH41: =IFERROR(VLOOKUP($A41,Filtro!$A$5:$AK$2951,32,FALSE),0) -> 0 | AI41: =IFERROR(VLOOKUP($A41,Filtro!$A$5:$AK$2951,33,FALSE),0) -> 0 | AJ41: =IFERROR(VLOOKUP($A41,Filtro!$A$5:$AK$2951,34,FALSE),0) -> 0 | AK41: =IFERROR(VLOOKUP($A41,Filtro!$A$5:$AK$2951,35,FALSE),0) -> 0 | AL41: 9,050 | AM41: 34,489,550
A42: 01014310 | B42: 0101323 | C42: Consulta Médica de Especialidad en Gastroenterología Adulto | D42: =IFERROR(VLOOKUP($A42,Filtro!$A$5:$AK$2951,2,FALSE),0) -> 4753 | E42: =IFERROR(VLOOKUP($A42,Filtro!$A$5:$AK$2951,3,FALSE),0) -> 4752 | F42: =IFERROR(VLOOKUP($A42,Filtro!$A$5:$AK$2951,4,FALSE),0) -> 4752 | G42: =IFERROR(VLOOKUP($A42,Filtro!$A$5:$AK$2951,5,FALSE),0) -> 0 | H42: =IFERROR(VLOOKUP($A42,Filtro!$A$5:$AK$2951,6,FALSE),0) -> 1 | AB42: =IFERROR(VLOOKUP($A42,Filtro!$A$5:$AK$2951,26,FALSE),0) -> 0 | AC42: =IFERROR(VLOOKUP($A42,Filtro!$A$5:$AK$2951,27,FALSE),0) -> 4753 | AD42: =IFERROR(VLOOKUP($A42,Filtro!$A$5:$AK$2951,28,FALSE),0) -> 0 | AE42: =IFERROR(VLOOKUP($A42,Filtro!$A$5:$AK$2951,29,FALSE),0) -> 0 | AF42: =IFERROR(VLOOKUP($A42,Filtro!$A$5:$AK$2951,30,FALSE),0) -> 0 | AG42: =IFERROR(VLOOKUP($A42,Filtro!$A$5:$AK$2951,31,FALSE),0) -> 0 | AH42: =IFERROR(VLOOKUP($A42,Filtro!$A$5:$AK$2951,32,FALSE),0) -> 0 | AI42: =IFERROR(VLOOKUP($A42,Filtro!$A$5:$AK$2951,33,FALSE),0) -> 0 | AJ42: =IFERROR(VLOOKUP($A42,Filtro!$A$5:$AK$2951,34,FALSE),0) -> 0 | AK42: =IFERROR(VLOOKUP($A42,Filtro!$A$5:$AK$2951,35,FALSE),0) -> 0 | AL42: 9,050 | AM42: 43,005,600
A43: 01014311 | B43: 0101324 | C43: Consulta Médica de Especialidad en Gastroenterología Pediátrico | D43: =IFERROR(VLOOKUP($A43,Filtro!$A$5:$AK$2951,2,FALSE),0) -> 3069 | E43: =IFERROR(VLOOKUP($A43,Filtro!$A$5:$AK$2951,3,FALSE),0) -> 3066 | F43: =IFERROR(VLOOKUP($A43,Filtro!$A$5:$AK$2951,4,FALSE),0) -> 3066 | G43: =IFERROR(VLOOKUP($A43,Filtro!$A$5:$AK$2951,5,FALSE),0) -> 0 | H43: =IFERROR(VLOOKUP($A43,Filtro!$A$5:$AK$2951,6,FALSE),0) -> 3 | AB43: =IFERROR(VLOOKUP($A43,Filtro!$A$5:$AK$2951,26,FALSE),0) -> 0 | AC43: =IFERROR(VLOOKUP($A43,Filtro!$A$5:$AK$2951,27,FALSE),0) -> 3069 | AD43: =IFERROR(VLOOKUP($A43,Filtro!$A$5:$AK$2951,28,FALSE),0) -> 0 | AE43: =IFERROR(VLOOKUP($A43,Filtro!$A$5:$AK$2951,29,FALSE),0) -> 0 | AF43: =IFERROR(VLOOKUP($A43,Filtro!$A$5:$AK$2951,30,FALSE),0) -> 0 | AG43: =IFERROR(VLOOKUP($A43,Filtro!$A$5:$AK$2951,31,FALSE),0) -> 0 | AH43: =IFERROR(VLOOKUP($A43,Filtro!$A$5:$AK$2951,32,FALSE),0) -> 0 | AI43: =IFERROR(VLOOKUP($A43,Filtro!$A$5:$AK$2951,33,FALSE),0) -> 0 | AJ43: =IFERROR(VLOOKUP($A43,Filtro!$A$5:$AK$2951,34,FALSE),0) -> 0 | AK43: =IFERROR(VLOOKUP($A43,Filtro!$A$5:$AK$2951,35,FALSE),0) -> 0 | AL43: 9,050 | AM43: 27,747,300
A44: 01014312 | B44: 0101325 | C44: Consulta Médica de Especialidad en Genética Clínica | D44: =IFERROR(VLOOKUP($A44,Filtro!$A$5:$AK$2951,2,FALSE),0) -> 0 | E44: =IFERROR(VLOOKUP($A44,Filtro!$A$5:$AK$2951,3,FALSE),0) -> 0 | F44: =IFERROR(VLOOKUP($A44,Filtro!$A$5:$AK$2951,4,FALSE),0) -> 0 | G44: =IFERROR(VLOOKUP($A44,Filtro!$A$5:$AK$2951,5,FALSE),0) -> 0 | H44: =IFERROR(VLOOKUP($A44,Filtro!$A$5:$AK$2951,6,FALSE),0) -> 0 | AB44: =IFERROR(VLOOKUP($A44,Filtro!$A$5:$AK$2951,26,FALSE),0) -> 0 | AC44: =IFERROR(VLOOKUP($A44,Filtro!$A$5:$AK$2951,27,FALSE),0) -> 0 | AD44: =IFERROR(VLOOKUP($A44,Filtro!$A$5:$AK$2951,28,FALSE),0) -> 0 | AE44: =IFERROR(VLOOKUP($A44,Filtro!$A$5:$AK$2951,29,FALSE),0) -> 0 | AF44: =IFERROR(VLOOKUP($A44,Filtro!$A$5:$AK$2951,30,FALSE),0) -> 0 | AG44: =IFERROR(VLOOKUP($A44,Filtro!$A$5:$AK$2951,31,FALSE),0) -> 0 | AH44: =IFERROR(VLOOKUP($A44,Filtro!$A$5:$AK$2951,32,FALSE),0) -> 0 | AI44: =IFERROR(VLOOKUP($A44,Filtro!$A$5:$AK$2951,33,FALSE),0) -> 0 | AJ44: =IFERROR(VLOOKUP($A44,Filtro!$A$5:$AK$2951,34,FALSE),0) -> 0 | AK44: =IFERROR(VLOOKUP($A44,Filtro!$A$5:$AK$2951,35,FALSE),0) -> 0 | AL44: 9,050 | AM44: 0
A45: 01014313 | B45: 0101326 | C45: Consulta Médica de Especialidad en Nefrología Adulto | D45: =IFERROR(VLOOKUP($A45,Filtro!$A$5:$AK$2951,2,FALSE),0) -> 9196 | E45: =IFERROR(VLOOKUP($A45,Filtro!$A$5:$AK$2951,3,FALSE),0) -> 9194 | F45: =IFERROR(VLOOKUP($A45,Filtro!$A$5:$AK$2951,4,FALSE),0) -> 9194 | G45: =IFERROR(VLOOKUP($A45,Filtro!$A$5:$AK$2951,5,FALSE),0) -> 0 | H45: =IFERROR(VLOOKUP($A45,Filtro!$A$5:$AK$2951,6,FALSE),0) -> 2 | AB45: =IFERROR(VLOOKUP($A45,Filtro!$A$5:$AK$2951,26,FALSE),0) -> 0 | AC45: =IFERROR(VLOOKUP($A45,Filtro!$A$5:$AK$2951,27,FALSE),0) -> 9196 | AD45: =IFERROR(VLOOKUP($A45,Filtro!$A$5:$AK$2951,28,FALSE),0) -> 0 | AE45: =IFERROR(VLOOKUP($A45,Filtro!$A$5:$AK$2951,29,FALSE),0) -> 0 | AF45: =IFERROR(VLOOKUP($A45,Filtro!$A$5:$AK$2951,30,FALSE),0) -> 0 | AG45: =IFERROR(VLOOKUP($A45,Filtro!$A$5:$AK$2951,31,FALSE),0) -> 0 | AH45: =IFERROR(VLOOKUP($A45,Filtro!$A$5:$AK$2951,32,FALSE),0) -> 0 | AI45: =IFERROR(VLOOKUP($A45,Filtro!$A$5:$AK$2951,33,FALSE),0) -> 0 | AJ45: =IFERROR(VLOOKUP($A45,Filtro!$A$5:$AK$2951,34,FALSE),0) -> 0 | AK45: =IFERROR(VLOOKUP($A45,Filtro!$A$5:$AK$2951,35,FALSE),0) -> 0 | AL45: 9,050 | AM45: 83,205,700
A46: 01014314 | B46: 0101327 | C46: Consulta Médica de Especialidad en Nefrología Pediátrico | D46: =IFERROR(VLOOKUP($A46,Filtro!$A$5:$AK$2951,2,FALSE),0) -> 1536 | E46: =IFERROR(VLOOKUP($A46,Filtro!$A$5:$AK$2951,3,FALSE),0) -> 1528 | F46: =IFERROR(VLOOKUP($A46,Filtro!$A$5:$AK$2951,4,FALSE),0) -> 1528 | G46: =IFERROR(VLOOKUP($A46,Filtro!$A$5:$AK$2951,5,FALSE),0) -> 0 | H46: =IFERROR(VLOOKUP($A46,Filtro!$A$5:$AK$2951,6,FALSE),0) -> 8 | AB46: =IFERROR(VLOOKUP($A46,Filtro!$A$5:$AK$2951,26,FALSE),0) -> 0 | AC46: =IFERROR(VLOOKUP($A46,Filtro!$A$5:$AK$2951,27,FALSE),0) -> 1536 | AD46: =IFERROR(VLOOKUP($A46,Filtro!$A$5:$AK$2951,28,FALSE),0) -> 0 | AE46: =IFERROR(VLOOKUP($A46,Filtro!$A$5:$AK$2951,29,FALSE),0) -> 0 | AF46: =IFERROR(VLOOKUP($A46,Filtro!$A$5:$AK$2951,30,FALSE),0) -> 0 | AG46: =IFERROR(VLOOKUP($A46,Filtro!$A$5:$AK$2951,31,FALSE),0) -> 0 | AH46: =IFERROR(VLOOKUP($A46,Filtro!$A$5:$AK$2951,32,FALSE),0) -> 0 | AI46: =IFERROR(VLOOKUP($A46,Filtro!$A$5:$AK$2951,33,FALSE),0) -> 0 | AJ46: =IFERROR(VLOOKUP($A46,Filtro!$A$5:$AK$2951,34,FALSE),0) -> 0 | AK46: =IFERROR(VLOOKUP($A46,Filtro!$A$5:$AK$2951,35,FALSE),0) -> 0 | AL46: 9,050 | AM46: 13,828,400
A47: 01014315 | B47: 0101328 | C47: Consulta Médica de Especialidad en Neonatología | D47: =IFERROR(VLOOKUP($A47,Filtro!$A$5:$AK$2951,2,FALSE),0) -> 1856 | E47: =IFERROR(VLOOKUP($A47,Filtro!$A$5:$AK$2951,3,FALSE),0) -> 1846 | F47: =IFERROR(VLOOKUP($A47,Filtro!$A$5:$AK$2951,4,FALSE),0) -> 1846 | G47: =IFERROR(VLOOKUP($A47,Filtro!$A$5:$AK$2951,5,FALSE),0) -> 0 | H47: =IFERROR(VLOOKUP($A47,Filtro!$A$5:$AK$2951,6,FALSE),0) -> 10 | AB47: =IFERROR(VLOOKUP($A47,Filtro!$A$5:$AK$2951,26,FALSE),0) -> 0 | AC47: =IFERROR(VLOOKUP($A47,Filtro!$A$5:$AK$2951,27,FALSE),0) -> 1856 | AD47: =IFERROR(VLOOKUP($A47,Filtro!$A$5:$AK$2951,28,FALSE),0) -> 0 | AE47: =IFERROR(VLOOKUP($A47,Filtro!$A$5:$AK$2951,29,FALSE),0) -> 0 | AF47: =IFERROR(VLOOKUP($A47,Filtro!$A$5:$AK$2951,30,FALSE),0) -> 0 | AG47: =IFERROR(VLOOKUP($A47,Filtro!$A$5:$AK$2951,31,FALSE),0) -> 0 | AH47: =IFERROR(VLOOKUP($A47,Filtro!$A$5:$AK$2951,32,FALSE),0) -> 0 | AI47: =IFERROR(VLOOKUP($A47,Filtro!$A$5:$AK$2951,33,FALSE),0) -> 0 | AJ47: =IFERROR(VLOOKUP($A47,Filtro!$A$5:$AK$2951,34,FALSE),0) -> 0 | AK47: =IFERROR(VLOOKUP($A47,Filtro!$A$5:$AK$2951,35,FALSE),0) -> 0 | AL47: 9,050 | AM47: 16,706,300
A48: 01014316 | B48: 0101329 | C48: Consulta Médica de Especialidad en Anestesiología | D48: =IFERROR(VLOOKUP($A48,Filtro!$A$5:$AK$2951,2,FALSE),0) -> 6404 | E48: =IFERROR(VLOOKUP($A48,Filtro!$A$5:$AK$2951,3,FALSE),0) -> 6403 | F48: =IFERROR(VLOOKUP($A48,Filtro!$A$5:$AK$2951,4,FALSE),0) -> 6403 | G48: =IFERROR(VLOOKUP($A48,Filtro!$A$5:$AK$2951,5,FALSE),0) -> 0 | H48: =IFERROR(VLOOKUP($A48,Filtro!$A$5:$AK$2951,6,FALSE),0) -> 1 | AB48: =IFERROR(VLOOKUP($A48,Filtro!$A$5:$AK$2951,26,FALSE),0) -> 0 | AC48: =IFERROR(VLOOKUP($A48,Filtro!$A$5:$AK$2951,27,FALSE),0) -> 6404 | AD48: =IFERROR(VLOOKUP($A48,Filtro!$A$5:$AK$2951,28,FALSE),0) -> 0 | AE48: =IFERROR(VLOOKUP($A48,Filtro!$A$5:$AK$2951,29,FALSE),0) -> 0 | AF48: =IFERROR(VLOOKUP($A48,Filtro!$A$5:$AK$2951,30,FALSE),0) -> 0 | AG48: =IFERROR(VLOOKUP($A48,Filtro!$A$5:$AK$2951,31,FALSE),0) -> 0 | AH48: =IFERROR(VLOOKUP($A48,Filtro!$A$5:$AK$2951,32,FALSE),0) -> 0 | AI48: =IFERROR(VLOOKUP($A48,Filtro!$A$5:$AK$2951,33,FALSE),0) -> 0 | AJ48: =IFERROR(VLOOKUP($A48,Filtro!$A$5:$AK$2951,34,FALSE),0) -> 0 | AK48: =IFERROR(VLOOKUP($A48,Filtro!$A$5:$AK$2951,35,FALSE),0) -> 0 | AL48: 9,050 | AM48: 57,947,150
A49: 01014703 | B49: 0101330 | C49: Consulta Médica de Especialidad en Medicina de Urgencia | AL49: 0 | AM49: 0
A50: 01014317 | B50: 0101331 | C50: Consulta Médica de Especialidad en Radioterapia Oncológica | D50: =IFERROR(VLOOKUP($A50,Filtro!$A$5:$AK$2951,2,FALSE),0) -> 0 | E50: =IFERROR(VLOOKUP($A50,Filtro!$A$5:$AK$2951,3,FALSE),0) -> 0 | F50: =IFERROR(VLOOKUP($A50,Filtro!$A$5:$AK$2951,4,FALSE),0) -> 0 | G50: =IFERROR(VLOOKUP($A50,Filtro!$A$5:$AK$2951,5,FALSE),0) -> 0 | H50: =IFERROR(VLOOKUP($A50,Filtro!$A$5:$AK$2951,6,FALSE),0) -> 0 | AB50: =IFERROR(VLOOKUP($A50,Filtro!$A$5:$AK$2951,26,FALSE),0) -> 0 | AC50: =IFERROR(VLOOKUP($A50,Filtro!$A$5:$AK$2951,27,FALSE),0) -> 0 | AD50: =IFERROR(VLOOKUP($A50,Filtro!$A$5:$AK$2951,28,FALSE),0) -> 0 | AE50: =IFERROR(VLOOKUP($A50,Filtro!$A$5:$AK$2951,29,FALSE),0) -> 0 | AF50: =IFERROR(VLOOKUP($A50,Filtro!$A$5:$AK$2951,30,FALSE),0) -> 0 | AG50: =IFERROR(VLOOKUP($A50,Filtro!$A$5:$AK$2951,31,FALSE),0) -> 0 | AH50: =IFERROR(VLOOKUP($A50,Filtro!$A$5:$AK$2951,32,FALSE),0) -> 0 | AI50: =IFERROR(VLOOKUP($A50,Filtro!$A$5:$AK$2951,33,FALSE),0) -> 0 | AJ50: =IFERROR(VLOOKUP($A50,Filtro!$A$5:$AK$2951,34,FALSE),0) -> 0 | AK50: =IFERROR(VLOOKUP($A50,Filtro!$A$5:$AK$2951,35,FALSE),0) -> 0 | AL50: 9,050 | AM50: =AL50*F50 -> 0
A51: 01014318 | B51: 0101332 | C51: Consulta Médica de Especialidad en Ginecología Pediátrica y de la Adolescencia | D51: =IFERROR(VLOOKUP($A51,Filtro!$A$5:$AK$2951,2,FALSE),0) -> 517 | E51: =IFERROR(VLOOKUP($A51,Filtro!$A$5:$AK$2951,3,FALSE),0) -> 516 | F51: =IFERROR(VLOOKUP($A51,Filtro!$A$5:$AK$2951,4,FALSE),0) -> 516 | G51: =IFERROR(VLOOKUP($A51,Filtro!$A$5:$AK$2951,5,FALSE),0) -> 0 | H51: =IFERROR(VLOOKUP($A51,Filtro!$A$5:$AK$2951,6,FALSE),0) -> 1 | AB51: =IFERROR(VLOOKUP($A51,Filtro!$A$5:$AK$2951,26,FALSE),0) -> 0 | AC51: =IFERROR(VLOOKUP($A51,Filtro!$A$5:$AK$2951,27,FALSE),0) -> 517 | AD51: =IFERROR(VLOOKUP($A51,Filtro!$A$5:$AK$2951,28,FALSE),0) -> 0 | AE51: =IFERROR(VLOOKUP($A51,Filtro!$A$5:$AK$2951,29,FALSE),0) -> 0 | AF51: =IFERROR(VLOOKUP($A51,Filtro!$A$5:$AK$2951,30,FALSE),0) -> 0 | AG51: =IFERROR(VLOOKUP($A51,Filtro!$A$5:$AK$2951,31,FALSE),0) -> 0 | AH51: =IFERROR(VLOOKUP($A51,Filtro!$A$5:$AK$2951,32,FALSE),0) -> 0 | AI51: =IFERROR(VLOOKUP($A51,Filtro!$A$5:$AK$2951,33,FALSE),0) -> 0 | AJ51: =IFERROR(VLOOKUP($A51,Filtro!$A$5:$AK$2951,34,FALSE),0) -> 0 | AK51: =IFERROR(VLOOKUP($A51,Filtro!$A$5:$AK$2951,35,FALSE),0) -> 0 | AL51: 9,050 | AM51: =AL51*F51 -> 4,669,800
A52: 01014704 | B52: 0101333 | C52: Consulta Médica de Especialidad en Medicina Materno Fetal | AL52: 0 | AM52: 0
A53: 01014319 | B53: 0101334 | C53: Consulta Médica de Especialidad en Medicina Nuclear | D53: =IFERROR(VLOOKUP($A53,Filtro!$A$5:$AK$2951,2,FALSE),0) -> 0 | E53: =IFERROR(VLOOKUP($A53,Filtro!$A$5:$AK$2951,3,FALSE),0) -> 0 | F53: =IFERROR(VLOOKUP($A53,Filtro!$A$5:$AK$2951,4,FALSE),0) -> 0 | G53: =IFERROR(VLOOKUP($A53,Filtro!$A$5:$AK$2951,5,FALSE),0) -> 0 | H53: =IFERROR(VLOOKUP($A53,Filtro!$A$5:$AK$2951,6,FALSE),0) -> 0 | AB53: =IFERROR(VLOOKUP($A53,Filtro!$A$5:$AK$2951,26,FALSE),0) -> 0 | AC53: =IFERROR(VLOOKUP($A53,Filtro!$A$5:$AK$2951,27,FALSE),0) -> 0 | AD53: =IFERROR(VLOOKUP($A53,Filtro!$A$5:$AK$2951,28,FALSE),0) -> 0 | AE53: =IFERROR(VLOOKUP($A53,Filtro!$A$5:$AK$2951,29,FALSE),0) -> 0 | AF53: =IFERROR(VLOOKUP($A53,Filtro!$A$5:$AK$2951,30,FALSE),0) -> 0 | AG53: =IFERROR(VLOOKUP($A53,Filtro!$A$5:$AK$2951,31,FALSE),0) -> 0 | AH53: =IFERROR(VLOOKUP($A53,Filtro!$A$5:$AK$2951,32,FALSE),0) -> 0 | AI53: =IFERROR(VLOOKUP($A53,Filtro!$A$5:$AK$2951,33,FALSE),0) -> 0 | AJ53: =IFERROR(VLOOKUP($A53,Filtro!$A$5:$AK$2951,34,FALSE),0) -> 0 | AK53: =IFERROR(VLOOKUP($A53,Filtro!$A$5:$AK$2951,35,FALSE),0) -> 0 | AL53: 9,050 | AM53: =AL53*F53 -> 0
C54: TOTAL ARANCEL MAI | D54: =SUM(D6:D53) -> 379854 | E54: =SUM(E6:E53) -> 378921 | F54: =SUM(F6:F53) -> 378918 | G54: =SUM(G6:G53) -> 3 | H54: =SUM(H6:H53) -> 933 | AB54: =SUM(AB6:AB53) -> 208 | AC54: 378006 | AD54: 1640 | AE54: 11153 | AF54: 0 | AG54: 0 | AH54: 0 | AI54: 0 | AJ54: 0 | AK54: 0 | AM54: =SUM(AM6:AM53) -> 3,429,207,900
C55: OTRAS CONSULTAS MEDICAS
A56: 01010014 | B56: 0101001 | C56: Consulta Medicina General | D56: =IFERROR(VLOOKUP($A56,Filtro!$A$5:$AK$2951,2,FALSE),0) -> 68168 | E56: =IFERROR(VLOOKUP($A56,Filtro!$A$5:$AK$2951,3,FALSE),0) -> 68168 | F56: =IFERROR(VLOOKUP($A56,Filtro!$A$5:$AK$2951,4,FALSE),0) -> 68168 | G56: =IFERROR(VLOOKUP($A56,Filtro!$A$5:$AK$2951,5,FALSE),0) -> 0 | H56: =IFERROR(VLOOKUP($A56,Filtro!$A$5:$AK$2951,6,FALSE),0) -> 0 | AB56: =IFERROR(VLOOKUP($A56,Filtro!$A$5:$AK$2951,26,FALSE),0) -> 0 | AC56: =IFERROR(VLOOKUP($A56,Filtro!$A$5:$AK$2951,27,FALSE),0) -> 68135 | AD56: =IFERROR(VLOOKUP($A56,Filtro!$A$5:$AK$2951,28,FALSE),0) -> 33 | AE56: =IFERROR(VLOOKUP($A56,Filtro!$A$5:$AK$2951,29,FALSE),0) -> 0 | AF56: =IFERROR(VLOOKUP($A56,Filtro!$A$5:$AK$2951,30,FALSE),0) -> 0 | AG56: =IFERROR(VLOOKUP($A56,Filtro!$A$5:$AK$2951,31,FALSE),0) -> 0 | AH56: =IFERROR(VLOOKUP($A56,Filtro!$A$5:$AK$2951,32,FALSE),0) -> 0 | AI56: =IFERROR(VLOOKUP($A56,Filtro!$A$5:$AK$2951,33,FALSE),0) -> 0 | AJ56: =IFERROR(VLOOKUP($A56,Filtro!$A$5:$AK$2951,34,FALSE),0) -> 0 | AK56: =IFERROR(VLOOKUP($A56,Filtro!$A$5:$AK$2951,35,FALSE),0) -> 0 | AL56: 6,360 | AM56: =AL56*F56 -> 433,548,480
A57: 01014320 | B57: 0101007 | C57: Atención médica del recién nacido en sala de parto o pabellón quirúrgico c/s reanimación cardio-respiratoria | D57: =IFERROR(VLOOKUP($A57,Filtro!$A$5:$AK$2951,2,FALSE),0) -> 3651 | E57: =IFERROR(VLOOKUP($A57,Filtro!$A$5:$AK$2951,3,FALSE),0) -> 3594 | F57: =IFERROR(VLOOKUP($A57,Filtro!$A$5:$AK$2951,4,FALSE),0) -> 3233 | G57: =IFERROR(VLOOKUP($A57,Filtro!$A$5:$AK$2951,5,FALSE),0) -> 361 | H57: =IFERROR(VLOOKUP($A57,Filtro!$A$5:$AK$2951,6,FALSE),0) -> 57 | AB57: =IFERROR(VLOOKUP($A57,Filtro!$A$5:$AK$2951,26,FALSE),0) -> 1899 | AC57: =IFERROR(VLOOKUP($A57,Filtro!$A$5:$AK$2951,27,FALSE),0) -> 849 | AD57: =IFERROR(VLOOKUP($A57,Filtro!$A$5:$AK$2951,28,FALSE),0) -> 903 | AE57: =IFERROR(VLOOKUP($A57,Filtro!$A$5:$AK$2951,29,FALSE),0) -> 0 | AF57: =IFERROR(VLOOKUP($A57,Filtro!$A$5:$AK$2951,30,FALSE),0) -> 0 | AG57: =IFERROR(VLOOKUP($A57,Filtro!$A$5:$AK$2951,31,FALSE),0) -> 0 | AH57: =IFERROR(VLOOKUP($A57,Filtro!$A$5:$AK$2951,32,FALSE),0) -> 0 | AI57: =IFERROR(VLOOKUP($A57,Filtro!$A$5:$AK$2951,33,FALSE),0) -> 0 | AJ57: =IFERROR(VLOOKUP($A57,Filtro!$A$5:$AK$2951,34,FALSE),0) -> 0 | AK57: =IFERROR(VLOOKUP($A57,Filtro!$A$5:$AK$2951,35,FALSE),0) -> 0 | AL57: 16,790 | AM57: =AL57*F57 -> 54,282,070
A58: 01014321 | B58: 0101103 | C58: Consulta en Unidades de Urgencia Hospitalaria | D58: =IFERROR(VLOOKUP($A58,Filtro!$A$5:$AK$2951,2,FALSE),0) -> 280157 | E58: =IFERROR(VLOOKUP($A58,Filtro!$A$5:$AK$2951,3,FALSE),0) -> 267280 | F58: =IFERROR(VLOOKUP($A58,Filtro!$A$5:$AK$2951,4,FALSE),0) -> 267280 | G58: =IFERROR(VLOOKUP($A58,Filtro!$A$5:$AK$2951,5,FALSE),0) -> 0 | H58: =IFERROR(VLOOKUP($A58,Filtro!$A$5:$AK$2951,6,FALSE),0) -> 12877 | AB58: =IFERROR(VLOOKUP($A58,Filtro!$A$5:$AK$2951,26,FALSE),0) -> 0 | AC58: =IFERROR(VLOOKUP($A58,Filtro!$A$5:$AK$2951,27,FALSE),0) -> 8370 | AD58: =IFERROR(VLOOKUP($A58,Filtro!$A$5:$AK$2951,28,FALSE),0) -> 265327 | AE58: =IFERROR(VLOOKUP($A58,Filtro!$A$5:$AK$2951,29,FALSE),0) -> 0 | AF58: =IFERROR(VLOOKUP($A58,Filtro!$A$5:$AK$2951,30,FALSE),0) -> 0 | AG58: =IFERROR(VLOOKUP($A58,Filtro!$A$5:$AK$2951,31,FALSE),0) -> 0 | AH58: =IFERROR(VLOOKUP($A58,Filtro!$A$5:$AK$2951,32,FALSE),0) -> 0 | AI58: =IFERROR(VLOOKUP($A58,Filtro!$A$5:$AK$2951,33,FALSE),0) -> 0 | AJ58: =IFERROR(VLOOKUP($A58,Filtro!$A$5:$AK$2951,34,FALSE),0) -> 0 | AK58: =IFERROR(VLOOKUP($A58,Filtro!$A$5:$AK$2951,35,FALSE),0) -> 0 | AL58: 9,050 | AM58: =AL58*F58 -> 2,418,884,000
C59: TOTAL OTRAS CONSULTAS MÉDICAS | D59: =SUM(D56:D58) -> 351976 | E59: =SUM(E56:E58) -> 339042 | F59: =SUM(F56:F58) -> 338681 | G59: =SUM(G56:G58) -> 361 | H59: =SUM(H56:H58) -> 12934 | AB59: =SUM(AB56:AB58) -> 1899 | AC59: 77354 | AD59: 266263 | AE59: 0 | AF59: 0 | AG59: 0 | AH59: 0 | AI59: 0 | AJ59: 0 | AK59: 0 | AM59: =SUM(AM56:AM58) -> 2906714550
C60: TOTAL PRODUCCION | D60: =SUM(D54+D59) -> 731830 | E60: =SUM(E54+E59) -> 717963 | F60: =SUM(F54+F59) -> 717599 | G60: =SUM(G54+G59) -> 364 | H60: =SUM(H54+H59) -> 13867 | AB60: =SUM(AB54+AB59) -> 2107 | AC60: 455360 | AD60: 267903 | AE60: 11153 | AF60: 0 | AG60: 0 | AH60: 0 | AI60: 0 | AJ60: 0 | AK60: 0 | AM60: =SUM(AM54+AM59) -> 6335922450
C61: CONSULTAS POR OTROS PROFESIONALES DE LA SALUD
A62: 01010020 | B62: 0102002 | C62: Control de salud niño con EDP por enfermera | D62: =IFERROR(VLOOKUP($A62,Filtro!$A$5:$AK$2951,2,FALSE),0) -> 2180 | E62: =IFERROR(VLOOKUP($A62,Filtro!$A$5:$AK$2951,3,FALSE),0) -> 2180 | F62: =IFERROR(VLOOKUP($A62,Filtro!$A$5:$AK$2951,4,FALSE),0) -> 2180 | G62: =IFERROR(VLOOKUP($A62,Filtro!$A$5:$AK$2951,5,FALSE),0) -> 0 | H62: =IFERROR(VLOOKUP($A62,Filtro!$A$5:$AK$2951,6,FALSE),0) -> 0 | AB62: =IFERROR(VLOOKUP($A62,Filtro!$A$5:$AK$2951,26,FALSE),0) -> 0 | AC62: =IFERROR(VLOOKUP($A62,Filtro!$A$5:$AK$2951,27,FALSE),0) -> 2180 | AD62: =IFERROR(VLOOKUP($A62,Filtro!$A$5:$AK$2951,28,FALSE),0) -> 0 | AE62: =IFERROR(VLOOKUP($A62,Filtro!$A$5:$AK$2951,29,FALSE),0) -> 0 | AF62: =IFERROR(VLOOKUP($A62,Filtro!$A$5:$AK$2951,30,FALSE),0) -> 0 | AG62: =IFERROR(VLOOKUP($A62,Filtro!$A$5:$AK$2951,31,FALSE),0) -> 0 | AH62: =IFERROR(VLOOKUP($A62,Filtro!$A$5:$AK$2951,32,FALSE),0) -> 0 | AI62: =IFERROR(VLOOKUP($A62,Filtro!$A$5:$AK$2951,33,FALSE),0) -> 0 | AJ62: =IFERROR(VLOOKUP($A62,Filtro!$A$5:$AK$2951,34,FALSE),0) -> 0 | AK62: =IFERROR(VLOOKUP($A62,Filtro!$A$5:$AK$2951,35,FALSE),0) -> 0 | AL62: 2,410 | AM62: =AL62*F62 -> 5,253,800
A63: 01010021 | B63: 0102003 | C63: Consulta o control por auxiliar de enfermería | D63: =IFERROR(VLOOKUP($A63,Filtro!$A$5:$AK$2951,2,FALSE),0) -> 25299 | E63: =IFERROR(VLOOKUP($A63,Filtro!$A$5:$AK$2951,3,FALSE),0) -> 25298 | F63: =IFERROR(VLOOKUP($A63,Filtro!$A$5:$AK$2951,4,FALSE),0) -> 25298 | G63: =IFERROR(VLOOKUP($A63,Filtro!$A$5:$AK$2951,5,FALSE),0) -> 0 | H63: =IFERROR(VLOOKUP($A63,Filtro!$A$5:$AK$2951,6,FALSE),0) -> 1 | AB63: =IFERROR(VLOOKUP($A63,Filtro!$A$5:$AK$2951,26,FALSE),0) -> 0 | AC63: =IFERROR(VLOOKUP($A63,Filtro!$A$5:$AK$2951,27,FALSE),0) -> 3199 | AD63: =IFERROR(VLOOKUP($A63,Filtro!$A$5:$AK$2951,28,FALSE),0) -> 22103 | AE63: =IFERROR(VLOOKUP($A63,Filtro!$A$5:$AK$2951,29,FALSE),0) -> 0 | AF63: =IFERROR(VLOOKUP($A63,Filtro!$A$5:$AK$2951,30,FALSE),0) -> 0 | AG63: =IFERROR(VLOOKUP($A63,Filtro!$A$5:$AK$2951,31,FALSE),0) -> 0 | AH63: =IFERROR(VLOOKUP($A63,Filtro!$A$5:$AK$2951,32,FALSE),0) -> 0 | AI63: =IFERROR(VLOOKUP($A63,Filtro!$A$5:$AK$2951,33,FALSE),0) -> 0 | AJ63: =IFERROR(VLOOKUP($A63,Filtro!$A$5:$AK$2951,34,FALSE),0) -> 0 | AK63: =IFERROR(VLOOKUP($A63,Filtro!$A$5:$AK$2951,35,FALSE),0) -> 0 | AL63: 780 | AM63: 19,732,440
A64: 01010022 | B64: 0102005 | C64: Consulta por fonoaudiólogo | D64: =IFERROR(VLOOKUP($A64,Filtro!$A$5:$AK$2951,2,FALSE),0) -> 21318 | E64: =IFERROR(VLOOKUP($A64,Filtro!$A$5:$AK$2951,3,FALSE),0) -> 21292 | F64: =IFERROR(VLOOKUP($A64,Filtro!$A$5:$AK$2951,4,FALSE),0) -> 21292 | G64: =IFERROR(VLOOKUP($A64,Filtro!$A$5:$AK$2951,5,FALSE),0) -> 0 | H64: =IFERROR(VLOOKUP($A64,Filtro!$A$5:$AK$2951,6,FALSE),0) -> 26 | AB64: =IFERROR(VLOOKUP($A64,Filtro!$A$5:$AK$2951,26,FALSE),0) -> 9785 | AC64: =IFERROR(VLOOKUP($A64,Filtro!$A$5:$AK$2951,27,FALSE),0) -> 11155 | AD64: =IFERROR(VLOOKUP($A64,Filtro!$A$5:$AK$2951,28,FALSE),0) -> 378 | AE64: =IFERROR(VLOOKUP($A64,Filtro!$A$5:$AK$2951,29,FALSE),0) -> 0 | AF64: =IFERROR(VLOOKUP($A64,Filtro!$A$5:$AK$2951,30,FALSE),0) -> 0 | AG64: =IFERROR(VLOOKUP($A64,Filtro!$A$5:$AK$2951,31,FALSE),0) -> 0 | AH64: =IFERROR(VLOOKUP($A64,Filtro!$A$5:$AK$2951,32,FALSE),0) -> 0 | AI64: =IFERROR(VLOOKUP($A64,Filtro!$A$5:$AK$2951,33,FALSE),0) -> 0 | AJ64: =IFERROR(VLOOKUP($A64,Filtro!$A$5:$AK$2951,34,FALSE),0) -> 0 | AK64: =IFERROR(VLOOKUP($A64,Filtro!$A$5:$AK$2951,35,FALSE),0) -> 0 | AL64: 1,920 | AM64: 40,880,640
A65: 01014322 | B65: 0102008 | C65: Consulta o control por enfermera | D65: =IFERROR(VLOOKUP($A65,Filtro!$A$5:$AK$2951,2,FALSE),0) -> 116707 | E65: =IFERROR(VLOOKUP($A65,Filtro!$A$5:$AK$2951,3,FALSE),0) -> 116396 | F65: =IFERROR(VLOOKUP($A65,Filtro!$A$5:$AK$2951,4,FALSE),0) -> 116396 | G65: =IFERROR(VLOOKUP($A65,Filtro!$A$5:$AK$2951,5,FALSE),0) -> 0 | H65: =IFERROR(VLOOKUP($A65,Filtro!$A$5:$AK$2951,6,FALSE),0) -> 311 | AB65: =IFERROR(VLOOKUP($A65,Filtro!$A$5:$AK$2951,26,FALSE),0) -> 2 | AC65: =IFERROR(VLOOKUP($A65,Filtro!$A$5:$AK$2951,27,FALSE),0) -> 92475 | AD65: =IFERROR(VLOOKUP($A65,Filtro!$A$5:$AK$2951,28,FALSE),0) -> 24230 | AE65: =IFERROR(VLOOKUP($A65,Filtro!$A$5:$AK$2951,29,FALSE),0) -> 0 | AF65: =IFERROR(VLOOKUP($A65,Filtro!$A$5:$AK$2951,30,FALSE),0) -> 0 | AG65: =IFERROR(VLOOKUP($A65,Filtro!$A$5:$AK$2951,31,FALSE),0) -> 0 | AH65: =IFERROR(VLOOKUP($A65,Filtro!$A$5:$AK$2951,32,FALSE),0) -> 0 | AI65: =IFERROR(VLOOKUP($A65,Filtro!$A$5:$AK$2951,33,FALSE),0) -> 0 | AJ65: =IFERROR(VLOOKUP($A65,Filtro!$A$5:$AK$2951,34,FALSE),0) -> 0 | AK65: =IFERROR(VLOOKUP($A65,Filtro!$A$5:$AK$2951,35,FALSE),0) -> 0 | AL65: 1,410 | AM65: 164,118,360
A66: 01014323 | B66: 0102009 | C66: Consulta o control por matrona | D66: =IFERROR(VLOOKUP($A66,Filtro!$A$5:$AK$2951,2,FALSE),0) -> 51233 | E66: =IFERROR(VLOOKUP($A66,Filtro!$A$5:$AK$2951,3,FALSE),0) -> 51010 | F66: =IFERROR(VLOOKUP($A66,Filtro!$A$5:$AK$2951,4,FALSE),0) -> 51010 | G66: =IFERROR(VLOOKUP($A66,Filtro!$A$5:$AK$2951,5,FALSE),0) -> 0 | H66: =IFERROR(VLOOKUP($A66,Filtro!$A$5:$AK$2951,6,FALSE),0) -> 223 | AB66: =IFERROR(VLOOKUP($A66,Filtro!$A$5:$AK$2951,26,FALSE),0) -> 477 | AC66: =IFERROR(VLOOKUP($A66,Filtro!$A$5:$AK$2951,27,FALSE),0) -> 46239 | AD66: =IFERROR(VLOOKUP($A66,Filtro!$A$5:$AK$2951,28,FALSE),0) -> 4517 | AE66: =IFERROR(VLOOKUP($A66,Filtro!$A$5:$AK$2951,29,FALSE),0) -> 0 | AF66: =IFERROR(VLOOKUP($A66,Filtro!$A$5:$AK$2951,30,FALSE),0) -> 0 | AG66: =IFERROR(VLOOKUP($A66,Filtro!$A$5:$AK$2951,31,FALSE),0) -> 0 | AH66: =IFERROR(VLOOKUP($A66,Filtro!$A$5:$AK$2951,32,FALSE),0) -> 0 | AI66: =IFERROR(VLOOKUP($A66,Filtro!$A$5:$AK$2951,33,FALSE),0) -> 0 | AJ66: =IFERROR(VLOOKUP($A66,Filtro!$A$5:$AK$2951,34,FALSE),0) -> 0 | AK66: =IFERROR(VLOOKUP($A66,Filtro!$A$5:$AK$2951,35,FALSE),0) -> 0 | AL66: 1,410 | AM66: 71,924,100
A67: 01014324 | B67: 0102010 | C67: Consulta o control por nutricionista | D67: =IFERROR(VLOOKUP($A67,Filtro!$A$5:$AK$2951,2,FALSE),0) -> 25577 | E67: =IFERROR(VLOOKUP($A67,Filtro!$A$5:$AK$2951,3,FALSE),0) -> 25540 | F67: =IFERROR(VLOOKUP($A67,Filtro!$A$5:$AK$2951,4,FALSE),0) -> 25540 | G67: =IFERROR(VLOOKUP($A67,Filtro!$A$5:$AK$2951,5,FALSE),0) -> 0 | H67: =IFERROR(VLOOKUP($A67,Filtro!$A$5:$AK$2951,6,FALSE),0) -> 37 | AB67: =IFERROR(VLOOKUP($A67,Filtro!$A$5:$AK$2951,26,FALSE),0) -> 0 | AC67: =IFERROR(VLOOKUP($A67,Filtro!$A$5:$AK$2951,27,FALSE),0) -> 25325 | AD67: =IFERROR(VLOOKUP($A67,Filtro!$A$5:$AK$2951,28,FALSE),0) -> 252 | AE67: =IFERROR(VLOOKUP($A67,Filtro!$A$5:$AK$2951,29,FALSE),0) -> 0 | AF67: =IFERROR(VLOOKUP($A67,Filtro!$A$5:$AK$2951,30,FALSE),0) -> 0 | AG67: =IFERROR(VLOOKUP($A67,Filtro!$A$5:$AK$2951,31,FALSE),0) -> 0 | AH67: =IFERROR(VLOOKUP($A67,Filtro!$A$5:$AK$2951,32,FALSE),0) -> 0 | AI67: =IFERROR(VLOOKUP($A67,Filtro!$A$5:$AK$2951,33,FALSE),0) -> 0 | AJ67: =IFERROR(VLOOKUP($A67,Filtro!$A$5:$AK$2951,34,FALSE),0) -> 0 | AK67: =IFERROR(VLOOKUP($A67,Filtro!$A$5:$AK$2951,35,FALSE),0) -> 0 | AL67: 1,410 | AM67: 36,011,400
C68: TOTAL ARANCEL MAI | D68: =SUM(D62:D67) -> 242314 | E68: =SUM(E62:E67) -> 241716 | F68: =SUM(F62:F67) -> 241716 | G68: =SUM(G62:G67) -> 0 | H68: =SUM(H62:H67) -> 598 | AB68: =SUM(AB62:AB67) -> 10264 | AC68: 180573 | AD68: 51480 | AE68: 0 | AF68: 0 | AG68: 0 | AH68: 0 | AI68: 0 | AJ68: 0 | AK68: 0 | AM68: =SUM(AM62:AM67) -> 337,920,740
A69: 01010025 | B69: 01010025 | C69: Consulta por otros profesionales | D69: =IFERROR(VLOOKUP($A69,Filtro!$A$5:$AK$2951,2,FALSE),0) -> 23717 | E69: =IFERROR(VLOOKUP($A69,Filtro!$A$5:$AK$2951,3,FALSE),0) -> 23578 | F69: =IFERROR(VLOOKUP($A69,Filtro!$A$5:$AK$2951,4,FALSE),0) -> 23578 | G69: =IFERROR(VLOOKUP($A69,Filtro!$A$5:$AK$2951,5,FALSE),0) -> 0 | H69: =IFERROR(VLOOKUP($A69,Filtro!$A$5:$AK$2951,6,FALSE),0) -> 139 | AB69: =IFERROR(VLOOKUP($A69,Filtro!$A$5:$AK$2951,26,FALSE),0) -> 0 | AC69: =IFERROR(VLOOKUP($A69,Filtro!$A$5:$AK$2951,27,FALSE),0) -> 23463 | AD69: =IFERROR(VLOOKUP($A69,Filtro!$A$5:$AK$2951,28,FALSE),0) -> 254 | AE69: =IFERROR(VLOOKUP($A69,Filtro!$A$5:$AK$2951,29,FALSE),0) -> 760 | AF69: =IFERROR(VLOOKUP($A69,Filtro!$A$5:$AK$2951,30,FALSE),0) -> 0 | AG69: =IFERROR(VLOOKUP($A69,Filtro!$A$5:$AK$2951,31,FALSE),0) -> 0 | AH69: =IFERROR(VLOOKUP($A69,Filtro!$A$5:$AK$2951,32,FALSE),0) -> 0 | AI69: =IFERROR(VLOOKUP($A69,Filtro!$A$5:$AK$2951,33,FALSE),0) -> 0 | AJ69: =IFERROR(VLOOKUP($A69,Filtro!$A$5:$AK$2951,34,FALSE),0) -> 0 | AK69: =IFERROR(VLOOKUP($A69,Filtro!$A$5:$AK$2951,35,FALSE),0) -> 0 | AL69: 0 | AM69: 0
A70: 01012817 | B70: 01012817 | C70: Consulta por Trabajador(a) Social | D70: =IFERROR(VLOOKUP($A70,Filtro!$A$5:$AK$2951,2,FALSE),0) -> 13009 | E70: =IFERROR(VLOOKUP($A70,Filtro!$A$5:$AK$2951,3,FALSE),0) -> 12515 | F70: =IFERROR(VLOOKUP($A70,Filtro!$A$5:$AK$2951,4,FALSE),0) -> 12515 | G70: =IFERROR(VLOOKUP($A70,Filtro!$A$5:$AK$2951,5,FALSE),0) -> 0 | H70: =IFERROR(VLOOKUP($A70,Filtro!$A$5:$AK$2951,6,FALSE),0) -> 494 | AB70: =IFERROR(VLOOKUP($A70,Filtro!$A$5:$AK$2951,26,FALSE),0) -> 186 | AC70: =IFERROR(VLOOKUP($A70,Filtro!$A$5:$AK$2951,27,FALSE),0) -> 12736 | AD70: =IFERROR(VLOOKUP($A70,Filtro!$A$5:$AK$2951,28,FALSE),0) -> 87 | AE70: =IFERROR(VLOOKUP($A70,Filtro!$A$5:$AK$2951,29,FALSE),0) -> 0 | AF70: =IFERROR(VLOOKUP($A70,Filtro!$A$5:$AK$2951,30,FALSE),0) -> 0 | AG70: =IFERROR(VLOOKUP($A70,Filtro!$A$5:$AK$2951,31,FALSE),0) -> 0 | AH70: =IFERROR(VLOOKUP($A70,Filtro!$A$5:$AK$2951,32,FALSE),0) -> 0 | AI70: =IFERROR(VLOOKUP($A70,Filtro!$A$5:$AK$2951,33,FALSE),0) -> 0 | AJ70: =IFERROR(VLOOKUP($A70,Filtro!$A$5:$AK$2951,34,FALSE),0) -> 0 | AK70: =IFERROR(VLOOKUP($A70,Filtro!$A$5:$AK$2951,35,FALSE),0) -> 0 | AL70: 0 | AM70: 0
C71: TOTAL ARANCEL MLE Y NO ARANCELADO | D71: =SUM(D69:D70) -> 36726 | E71: =SUM(E69:E70) -> 36093 | F71: =SUM(F69:F70) -> 36093 | G71: =SUM(G69:G70) -> 0 | H71: =SUM(H69:H70) -> 633 | AB71: =SUM(AB69:AB70) -> 186 | AC71: 36199 | AD71: 341 | AE71: 760 | AF71: 0 | AG71: 0 | AH71: 0 | AI71: 0 | AJ71: 0 | AK71: 0
C72: TOTAL PRODUCCION | D72: =SUM(D68+D71) -> 279040 | E72: =SUM(E68+E71) -> 277809 | F72: =SUM(F68+F71) -> 277809 | G72: =SUM(G68+G71) -> 0 | H72: =SUM(H68+H71) -> 1231 | AB72: =SUM(AB68+AB71) -> 10450 | AC72: 216772 | AD72: 51821 | AE72: 760 | AF72: 0 | AG72: 0 | AH72: 0 | AI72: 0 | AJ72: 0 | AK72: 0 | AM72: =SUM(AM68+AM71) -> 337,920,740
C73: TELEMEDICINA POR PROFESIONALES MÉDICOS
C74: TELECONSULTAS
A75: 01013100 | B75: 0108001 | C75: Teleconsulta Medicina General | D75: =IFERROR(VLOOKUP($A75,Filtro!$A$5:$AK$2951,2,FALSE),0) -> 0 | E75: =IFERROR(VLOOKUP($A75,Filtro!$A$5:$AK$2951,3,FALSE),0) -> 0 | F75: =IFERROR(VLOOKUP($A75,Filtro!$A$5:$AK$2951,4,FALSE),0) -> 0 | G75: =IFERROR(VLOOKUP($A75,Filtro!$A$5:$AK$2951,5,FALSE),0) -> 0 | H75: =IFERROR(VLOOKUP($A75,Filtro!$A$5:$AK$2951,6,FALSE),0) -> 0 | AB75: =IFERROR(VLOOKUP($A75,Filtro!$A$5:$AK$2951,26,FALSE),0) -> 0 | AC75: =IFERROR(VLOOKUP($A75,Filtro!$A$5:$AK$2951,27,FALSE),0) -> 0 | AD75: =IFERROR(VLOOKUP($A75,Filtro!$A$5:$AK$2951,28,FALSE),0) -> 0 | AE75: =IFERROR(VLOOKUP($A75,Filtro!$A$5:$AK$2951,29,FALSE),0) -> 0 | AF75: =IFERROR(VLOOKUP($A75,Filtro!$A$5:$AK$2951,30,FALSE),0) -> 0 | AG75: =IFERROR(VLOOKUP($A75,Filtro!$A$5:$AK$2951,31,FALSE),0) -> 0 | AH75: =IFERROR(VLOOKUP($A75,Filtro!$A$5:$AK$2951,32,FALSE),0) -> 0 | AI75: =IFERROR(VLOOKUP($A75,Filtro!$A$5:$AK$2951,33,FALSE),0) -> 0 | AJ75: =IFERROR(VLOOKUP($A75,Filtro!$A$5:$AK$2951,34,FALSE),0) -> 0 | AK75: =IFERROR(VLOOKUP($A75,Filtro!$A$5:$AK$2951,35,FALSE),0) -> 0 | AL75: 5,290 | AM75: =AL75*F75 -> 0
A76: 01014325 | B76: 0108201 | C76: Teleconsulta Médica de Especialidad en Dermatología | D76: =IFERROR(VLOOKUP($A76,Filtro!$A$5:$AK$2951,2,FALSE),0) -> 137 | E76: =IFERROR(VLOOKUP($A76,Filtro!$A$5:$AK$2951,3,FALSE),0) -> 137 | F76: =IFERROR(VLOOKUP($A76,Filtro!$A$5:$AK$2951,4,FALSE),0) -> 137 | G76: =IFERROR(VLOOKUP($A76,Filtro!$A$5:$AK$2951,5,FALSE),0) -> 0 | H76: =IFERROR(VLOOKUP($A76,Filtro!$A$5:$AK$2951,6,FALSE),0) -> 0 | AB76: =IFERROR(VLOOKUP($A76,Filtro!$A$5:$AK$2951,26,FALSE),0) -> 0 | AC76: =IFERROR(VLOOKUP($A76,Filtro!$A$5:$AK$2951,27,FALSE),0) -> 137 | AD76: =IFERROR(VLOOKUP($A76,Filtro!$A$5:$AK$2951,28,FALSE),0) -> 0 | AE76: =IFERROR(VLOOKUP($A76,Filtro!$A$5:$AK$2951,29,FALSE),0) -> 0 | AF76: =IFERROR(VLOOKUP($A76,Filtro!$A$5:$AK$2951,30,FALSE),0) -> 0 | AG76: =IFERROR(VLOOKUP($A76,Filtro!$A$5:$AK$2951,31,FALSE),0) -> 0 | AH76: =IFERROR(VLOOKUP($A76,Filtro!$A$5:$AK$2951,32,FALSE),0) -> 0 | AI76: =IFERROR(VLOOKUP($A76,Filtro!$A$5:$AK$2951,33,FALSE),0) -> 0 | AJ76: =IFERROR(VLOOKUP($A76,Filtro!$A$5:$AK$2951,34,FALSE),0) -> 0 | AK76: =IFERROR(VLOOKUP($A76,Filtro!$A$5:$AK$2951,35,FALSE),0) -> 0 | AL76: 7,530 | AM76: 1,031,610
A77: 01014326 | B77: 0108202 | C77: Teleconsulta Médica de Especialidad en Geriatría | D77: =IFERROR(VLOOKUP($A77,Filtro!$A$5:$AK$2951,2,FALSE),0) -> 4 | E77: =IFERROR(VLOOKUP($A77,Filtro!$A$5:$AK$2951,3,FALSE),0) -> 4 | F77: =IFERROR(VLOOKUP($A77,Filtro!$A$5:$AK$2951,4,FALSE),0) -> 4 | G77: =IFERROR(VLOOKUP($A77,Filtro!$A$5:$AK$2951,5,FALSE),0) -> 0 | H77: =IFERROR(VLOOKUP($A77,Filtro!$A$5:$AK$2951,6,FALSE),0) -> 0 | AB77: =IFERROR(VLOOKUP($A77,Filtro!$A$5:$AK$2951,26,FALSE),0) -> 0 | AC77: =IFERROR(VLOOKUP($A77,Filtro!$A$5:$AK$2951,27,FALSE),0) -> 4 | AD77: =IFERROR(VLOOKUP($A77,Filtro!$A$5:$AK$2951,28,FALSE),0) -> 0 | AE77: =IFERROR(VLOOKUP($A77,Filtro!$A$5:$AK$2951,29,FALSE),0) -> 0 | AF77: =IFERROR(VLOOKUP($A77,Filtro!$A$5:$AK$2951,30,FALSE),0) -> 0 | AG77: =IFERROR(VLOOKUP($A77,Filtro!$A$5:$AK$2951,31,FALSE),0) -> 0 | AH77: =IFERROR(VLOOKUP($A77,Filtro!$A$5:$AK$2951,32,FALSE),0) -> 0 | AI77: =IFERROR(VLOOKUP($A77,Filtro!$A$5:$AK$2951,33,FALSE),0) -> 0 | AJ77: =IFERROR(VLOOKUP($A77,Filtro!$A$5:$AK$2951,34,FALSE),0) -> 0 | AK77: =IFERROR(VLOOKUP($A77,Filtro!$A$5:$AK$2951,35,FALSE),0) -> 0 | AL77: 7,530 | AM77: 30,120
A78: 01014327 | B78: 0108206 | C78: Teleconsulta Médica de Especialidad en Reumatología | D78: =IFERROR(VLOOKUP($A78,Filtro!$A$5:$AK$2951,2,FALSE),0) -> 75 | E78: =IFERROR(VLOOKUP($A78,Filtro!$A$5:$AK$2951,3,FALSE),0) -> 75 | F78: =IFERROR(VLOOKUP($A78,Filtro!$A$5:$AK$2951,4,FALSE),0) -> 75 | G78: =IFERROR(VLOOKUP($A78,Filtro!$A$5:$AK$2951,5,FALSE),0) -> 0 | H78: =IFERROR(VLOOKUP($A78,Filtro!$A$5:$AK$2951,6,FALSE),0) -> 0 | AB78: =IFERROR(VLOOKUP($A78,Filtro!$A$5:$AK$2951,26,FALSE),0) -> 0 | AC78: =IFERROR(VLOOKUP($A78,Filtro!$A$5:$AK$2951,27,FALSE),0) -> 75 | AD78: =IFERROR(VLOOKUP($A78,Filtro!$A$5:$AK$2951,28,FALSE),0) -> 0 | AE78: =IFERROR(VLOOKUP($A78,Filtro!$A$5:$AK$2951,29,FALSE),0) -> 0 | AF78: =IFERROR(VLOOKUP($A78,Filtro!$A$5:$AK$2951,30,FALSE),0) -> 0 | AG78: =IFERROR(VLOOKUP($A78,Filtro!$A$5:$AK$2951,31,FALSE),0) -> 0 | AH78: =IFERROR(VLOOKUP($A78,Filtro!$A$5:$AK$2951,32,FALSE),0) -> 0 | AI78: =IFERROR(VLOOKUP($A78,Filtro!$A$5:$AK$2951,33,FALSE),0) -> 0 | AJ78: =IFERROR(VLOOKUP($A78,Filtro!$A$5:$AK$2951,34,FALSE),0) -> 0 | AK78: =IFERROR(VLOOKUP($A78,Filtro!$A$5:$AK$2951,35,FALSE),0) -> 0 | AL78: 7,530 | AM78: 564,750
A79: 01014328 | B79: 0108207 | C79: Teleconsulta Médica de Especialidad en Endocrinología Adulto | D79: =IFERROR(VLOOKUP($A79,Filtro!$A$5:$AK$2951,2,FALSE),0) -> 188 | E79: =IFERROR(VLOOKUP($A79,Filtro!$A$5:$AK$2951,3,FALSE),0) -> 188 | F79: =IFERROR(VLOOKUP($A79,Filtro!$A$5:$AK$2951,4,FALSE),0) -> 188 | G79: =IFERROR(VLOOKUP($A79,Filtro!$A$5:$AK$2951,5,FALSE),0) -> 0 | H79: =IFERROR(VLOOKUP($A79,Filtro!$A$5:$AK$2951,6,FALSE),0) -> 0 | AB79: =IFERROR(VLOOKUP($A79,Filtro!$A$5:$AK$2951,26,FALSE),0) -> 0 | AC79: =IFERROR(VLOOKUP($A79,Filtro!$A$5:$AK$2951,27,FALSE),0) -> 188 | AD79: =IFERROR(VLOOKUP($A79,Filtro!$A$5:$AK$2951,28,FALSE),0) -> 0 | AE79: =IFERROR(VLOOKUP($A79,Filtro!$A$5:$AK$2951,29,FALSE),0) -> 0 | AF79: =IFERROR(VLOOKUP($A79,Filtro!$A$5:$AK$2951,30,FALSE),0) -> 0 | AG79: =IFERROR(VLOOKUP($A79,Filtro!$A$5:$AK$2951,31,FALSE),0) -> 0 | AH79: =IFERROR(VLOOKUP($A79,Filtro!$A$5:$AK$2951,32,FALSE),0) -> 0 | AI79: =IFERROR(VLOOKUP($A79,Filtro!$A$5:$AK$2951,33,FALSE),0) -> 0 | AJ79: =IFERROR(VLOOKUP($A79,Filtro!$A$5:$AK$2951,34,FALSE),0) -> 0 | AK79: =IFERROR(VLOOKUP($A79,Filtro!$A$5:$AK$2951,35,FALSE),0) -> 0 | AL79: 7,530 | AM79: 1,415,640
A80: 01014329 | B80: 0108208 | C80: Teleconsulta Médica de Especialidad en Endocrinología Pediátrica | D80: =IFERROR(VLOOKUP($A80,Filtro!$A$5:$AK$2951,2,FALSE),0) -> 64 | E80: =IFERROR(VLOOKUP($A80,Filtro!$A$5:$AK$2951,3,FALSE),0) -> 64 | F80: =IFERROR(VLOOKUP($A80,Filtro!$A$5:$AK$2951,4,FALSE),0) -> 64 | G80: =IFERROR(VLOOKUP($A80,Filtro!$A$5:$AK$2951,5,FALSE),0) -> 0 | H80: =IFERROR(VLOOKUP($A80,Filtro!$A$5:$AK$2951,6,FALSE),0) -> 0 | AB80: =IFERROR(VLOOKUP($A80,Filtro!$A$5:$AK$2951,26,FALSE),0) -> 0 | AC80: =IFERROR(VLOOKUP($A80,Filtro!$A$5:$AK$2951,27,FALSE),0) -> 64 | AD80: =IFERROR(VLOOKUP($A80,Filtro!$A$5:$AK$2951,28,FALSE),0) -> 0 | AE80: =IFERROR(VLOOKUP($A80,Filtro!$A$5:$AK$2951,29,FALSE),0) -> 0 | AF80: =IFERROR(VLOOKUP($A80,Filtro!$A$5:$AK$2951,30,FALSE),0) -> 0 | AG80: =IFERROR(VLOOKUP($A80,Filtro!$A$5:$AK$2951,31,FALSE),0) -> 0 | AH80: =IFERROR(VLOOKUP($A80,Filtro!$A$5:$AK$2951,32,FALSE),0) -> 0 | AI80: =IFERROR(VLOOKUP($A80,Filtro!$A$5:$AK$2951,33,FALSE),0) -> 0 | AJ80: =IFERROR(VLOOKUP($A80,Filtro!$A$5:$AK$2951,34,FALSE),0) -> 0 | AK80: =IFERROR(VLOOKUP($A80,Filtro!$A$5:$AK$2951,35,FALSE),0) -> 0 | AL80: 7,530 | AM80: 481,920
A81: 01014330 | B81: 0108209 | C81: Teleconsulta Médica de Especialidad en Neurología Adultos | D81: =IFERROR(VLOOKUP($A81,Filtro!$A$5:$AK$2951,2,FALSE),0) -> 278 | E81: =IFERROR(VLOOKUP($A81,Filtro!$A$5:$AK$2951,3,FALSE),0) -> 278 | F81: =IFERROR(VLOOKUP($A81,Filtro!$A$5:$AK$2951,4,FALSE),0) -> 278 | G81: =IFERROR(VLOOKUP($A81,Filtro!$A$5:$AK$2951,5,FALSE),0) -> 0 | H81: =IFERROR(VLOOKUP($A81,Filtro!$A$5:$AK$2951,6,FALSE),0) -> 0 | AB81: =IFERROR(VLOOKUP($A81,Filtro!$A$5:$AK$2951,26,FALSE),0) -> 26 | AC81: =IFERROR(VLOOKUP($A81,Filtro!$A$5:$AK$2951,27,FALSE),0) -> 252 | AD81: =IFERROR(VLOOKUP($A81,Filtro!$A$5:$AK$2951,28,FALSE),0) -> 0 | AE81: =IFERROR(VLOOKUP($A81,Filtro!$A$5:$AK$2951,29,FALSE),0) -> 0 | AF81: =IFERROR(VLOOKUP($A81,Filtro!$A$5:$AK$2951,30,FALSE),0) -> 0 | AG81: =IFERROR(VLOOKUP($A81,Filtro!$A$5:$AK$2951,31,FALSE),0) -> 0 | AH81: =IFERROR(VLOOKUP($A81,Filtro!$A$5:$AK$2951,32,FALSE),0) -> 0 | AI81: =IFERROR(VLOOKUP($A81,Filtro!$A$5:$AK$2951,33,FALSE),0) -> 0 | AJ81: =IFERROR(VLOOKUP($A81,Filtro!$A$5:$AK$2951,34,FALSE),0) -> 0 | AK81: =IFERROR(VLOOKUP($A81,Filtro!$A$5:$AK$2951,35,FALSE),0) -> 0 | AL81: 7,530 | AM81: 2,093,340
A82: 01014331 | B82: 0108210 | C82: Teleconsulta Médica de Especialidad en Neurología Pediátrica | D82: =IFERROR(VLOOKUP($A82,Filtro!$A$5:$AK$2951,2,FALSE),0) -> 95 | E82: =IFERROR(VLOOKUP($A82,Filtro!$A$5:$AK$2951,3,FALSE),0) -> 95 | F82: =IFERROR(VLOOKUP($A82,Filtro!$A$5:$AK$2951,4,FALSE),0) -> 95 | G82: =IFERROR(VLOOKUP($A82,Filtro!$A$5:$AK$2951,5,FALSE),0) -> 0 | H82: =IFERROR(VLOOKUP($A82,Filtro!$A$5:$AK$2951,6,FALSE),0) -> 0 | AB82: =IFERROR(VLOOKUP($A82,Filtro!$A$5:$AK$2951,26,FALSE),0) -> 16 | AC82: =IFERROR(VLOOKUP($A82,Filtro!$A$5:$AK$2951,27,FALSE),0) -> 79 | AD82: =IFERROR(VLOOKUP($A82,Filtro!$A$5:$AK$2951,28,FALSE),0) -> 0 | AE82: =IFERROR(VLOOKUP($A82,Filtro!$A$5:$AK$2951,29,FALSE),0) -> 0 | AF82: =IFERROR(VLOOKUP($A82,Filtro!$A$5:$AK$2951,30,FALSE),0) -> 0 | AG82: =IFERROR(VLOOKUP($A82,Filtro!$A$5:$AK$2951,31,FALSE),0) -> 0 | AH82: =IFERROR(VLOOKUP($A82,Filtro!$A$5:$AK$2951,32,FALSE),0) -> 0 | AI82: =IFERROR(VLOOKUP($A82,Filtro!$A$5:$AK$2951,33,FALSE),0) -> 0 | AJ82: =IFERROR(VLOOKUP($A82,Filtro!$A$5:$AK$2951,34,FALSE),0) -> 0 | AK82: =IFERROR(VLOOKUP($A82,Filtro!$A$5:$AK$2951,35,FALSE),0) -> 0 | AL82: 7,530 | AM82: 715,350
A83: 01014332 | B83: 0108211 | C83: Teleconsulta Médica de Especialidad en Oncología Médica | D83: =IFERROR(VLOOKUP($A83,Filtro!$A$5:$AK$2951,2,FALSE),0) -> 7216 | E83: =IFERROR(VLOOKUP($A83,Filtro!$A$5:$AK$2951,3,FALSE),0) -> 7216 | F83: =IFERROR(VLOOKUP($A83,Filtro!$A$5:$AK$2951,4,FALSE),0) -> 7216 | G83: =IFERROR(VLOOKUP($A83,Filtro!$A$5:$AK$2951,5,FALSE),0) -> 0 | H83: =IFERROR(VLOOKUP($A83,Filtro!$A$5:$AK$2951,6,FALSE),0) -> 0 | AB83: =IFERROR(VLOOKUP($A83,Filtro!$A$5:$AK$2951,26,FALSE),0) -> 0 | AC83: =IFERROR(VLOOKUP($A83,Filtro!$A$5:$AK$2951,27,FALSE),0) -> 7216 | AD83: =IFERROR(VLOOKUP($A83,Filtro!$A$5:$AK$2951,28,FALSE),0) -> 0 | AE83: =IFERROR(VLOOKUP($A83,Filtro!$A$5:$AK$2951,29,FALSE),0) -> 0 | AF83: =IFERROR(VLOOKUP($A83,Filtro!$A$5:$AK$2951,30,FALSE),0) -> 0 | AG83: =IFERROR(VLOOKUP($A83,Filtro!$A$5:$AK$2951,31,FALSE),0) -> 0 | AH83: =IFERROR(VLOOKUP($A83,Filtro!$A$5:$AK$2951,32,FALSE),0) -> 0 | AI83: =IFERROR(VLOOKUP($A83,Filtro!$A$5:$AK$2951,33,FALSE),0) -> 0 | AJ83: =IFERROR(VLOOKUP($A83,Filtro!$A$5:$AK$2951,34,FALSE),0) -> 0 | AK83: =IFERROR(VLOOKUP($A83,Filtro!$A$5:$AK$2951,35,FALSE),0) -> 0 | AL83: 7,530 | AM83: 54,336,480
A84: 01014333 | B84: 0108212 | C84: Teleconsulta Médica de Especialidad en Psiquiatría adultos | D84: =IFERROR(VLOOKUP($A84,Filtro!$A$5:$AK$2951,2,FALSE),0) -> 797 | E84: =IFERROR(VLOOKUP($A84,Filtro!$A$5:$AK$2951,3,FALSE),0) -> 797 | F84: =IFERROR(VLOOKUP($A84,Filtro!$A$5:$AK$2951,4,FALSE),0) -> 797 | G84: =IFERROR(VLOOKUP($A84,Filtro!$A$5:$AK$2951,5,FALSE),0) -> 0 | H84: =IFERROR(VLOOKUP($A84,Filtro!$A$5:$AK$2951,6,FALSE),0) -> 0 | AB84: =IFERROR(VLOOKUP($A84,Filtro!$A$5:$AK$2951,26,FALSE),0) -> 0 | AC84: =IFERROR(VLOOKUP($A84,Filtro!$A$5:$AK$2951,27,FALSE),0) -> 797 | AD84: =IFERROR(VLOOKUP($A84,Filtro!$A$5:$AK$2951,28,FALSE),0) -> 0 | AE84: =IFERROR(VLOOKUP($A84,Filtro!$A$5:$AK$2951,29,FALSE),0) -> 0 | AF84: =IFERROR(VLOOKUP($A84,Filtro!$A$5:$AK$2951,30,FALSE),0) -> 0 | AG84: =IFERROR(VLOOKUP($A84,Filtro!$A$5:$AK$2951,31,FALSE),0) -> 0 | AH84: =IFERROR(VLOOKUP($A84,Filtro!$A$5:$AK$2951,32,FALSE),0) -> 0 | AI84: =IFERROR(VLOOKUP($A84,Filtro!$A$5:$AK$2951,33,FALSE),0) -> 0 | AJ84: =IFERROR(VLOOKUP($A84,Filtro!$A$5:$AK$2951,34,FALSE),0) -> 0 | AK84: =IFERROR(VLOOKUP($A84,Filtro!$A$5:$AK$2951,35,FALSE),0) -> 0 | AL84: 7,530 | AM84: 6,001,410
A85: 01014334 | B85: 0108213 | C85: Teleconsulta Médica de Especialidad en Psiquiatría pediátrica y de la adolescencia | D85: =IFERROR(VLOOKUP($A85,Filtro!$A$5:$AK$2951,2,FALSE),0) -> 272 | E85: =IFERROR(VLOOKUP($A85,Filtro!$A$5:$AK$2951,3,FALSE),0) -> 272 | F85: =IFERROR(VLOOKUP($A85,Filtro!$A$5:$AK$2951,4,FALSE),0) -> 272 | G85: =IFERROR(VLOOKUP($A85,Filtro!$A$5:$AK$2951,5,FALSE),0) -> 0 | H85: =IFERROR(VLOOKUP($A85,Filtro!$A$5:$AK$2951,6,FALSE),0) -> 0 | AB85: =IFERROR(VLOOKUP($A85,Filtro!$A$5:$AK$2951,26,FALSE),0) -> 0 | AC85: =IFERROR(VLOOKUP($A85,Filtro!$A$5:$AK$2951,27,FALSE),0) -> 257 | AD85: =IFERROR(VLOOKUP($A85,Filtro!$A$5:$AK$2951,28,FALSE),0) -> 0 | AE85: =IFERROR(VLOOKUP($A85,Filtro!$A$5:$AK$2951,29,FALSE),0) -> 0 | AF85: =IFERROR(VLOOKUP($A85,Filtro!$A$5:$AK$2951,30,FALSE),0) -> 0 | AG85: =IFERROR(VLOOKUP($A85,Filtro!$A$5:$AK$2951,31,FALSE),0) -> 0 | AH85: =IFERROR(VLOOKUP($A85,Filtro!$A$5:$AK$2951,32,FALSE),0) -> 0 | AI85: =IFERROR(VLOOKUP($A85,Filtro!$A$5:$AK$2951,33,FALSE),0) -> 0 | AJ85: =IFERROR(VLOOKUP($A85,Filtro!$A$5:$AK$2951,34,FALSE),0) -> 0 | AK85: =IFERROR(VLOOKUP($A85,Filtro!$A$5:$AK$2951,35,FALSE),0) -> 0 | AL85: 7,530 | AM85: 2,048,160
A86: 01014335 | B86: 0108301 | C86: Teleconsulta Médica de Especialidad en Cardiología | D86: =IFERROR(VLOOKUP($A86,Filtro!$A$5:$AK$2951,2,FALSE),0) -> 9 | E86: =IFERROR(VLOOKUP($A86,Filtro!$A$5:$AK$2951,3,FALSE),0) -> 9 | F86: =IFERROR(VLOOKUP($A86,Filtro!$A$5:$AK$2951,4,FALSE),0) -> 9 | G86: =IFERROR(VLOOKUP($A86,Filtro!$A$5:$AK$2951,5,FALSE),0) -> 0 | H86: =IFERROR(VLOOKUP($A86,Filtro!$A$5:$AK$2951,6,FALSE),0) -> 0 | AB86: =IFERROR(VLOOKUP($A86,Filtro!$A$5:$AK$2951,26,FALSE),0) -> 0 | AC86: =IFERROR(VLOOKUP($A86,Filtro!$A$5:$AK$2951,27,FALSE),0) -> 9 | AD86: =IFERROR(VLOOKUP($A86,Filtro!$A$5:$AK$2951,28,FALSE),0) -> 0 | AE86: =IFERROR(VLOOKUP($A86,Filtro!$A$5:$AK$2951,29,FALSE),0) -> 0 | AF86: =IFERROR(VLOOKUP($A86,Filtro!$A$5:$AK$2951,30,FALSE),0) -> 0 | AG86: =IFERROR(VLOOKUP($A86,Filtro!$A$5:$AK$2951,31,FALSE),0) -> 0 | AH86: =IFERROR(VLOOKUP($A86,Filtro!$A$5:$AK$2951,32,FALSE),0) -> 0 | AI86: =IFERROR(VLOOKUP($A86,Filtro!$A$5:$AK$2951,33,FALSE),0) -> 0 | AJ86: =IFERROR(VLOOKUP($A86,Filtro!$A$5:$AK$2951,34,FALSE),0) -> 0 | AK86: =IFERROR(VLOOKUP($A86,Filtro!$A$5:$AK$2951,35,FALSE),0) -> 0 | AL86: 7,530 | AM86: 67,770
A87: 01014336 | B87: 0108302 | C87: Teleconsulta Médica de Especialidad en Hematología | D87: =IFERROR(VLOOKUP($A87,Filtro!$A$5:$AK$2951,2,FALSE),0) -> 1779 | E87: =IFERROR(VLOOKUP($A87,Filtro!$A$5:$AK$2951,3,FALSE),0) -> 1779 | F87: =IFERROR(VLOOKUP($A87,Filtro!$A$5:$AK$2951,4,FALSE),0) -> 1779 | G87: =IFERROR(VLOOKUP($A87,Filtro!$A$5:$AK$2951,5,FALSE),0) -> 0 | H87: =IFERROR(VLOOKUP($A87,Filtro!$A$5:$AK$2951,6,FALSE),0) -> 0 | AB87: =IFERROR(VLOOKUP($A87,Filtro!$A$5:$AK$2951,26,FALSE),0) -> 0 | AC87: =IFERROR(VLOOKUP($A87,Filtro!$A$5:$AK$2951,27,FALSE),0) -> 1779 | AD87: =IFERROR(VLOOKUP($A87,Filtro!$A$5:$AK$2951,28,FALSE),0) -> 0 | AE87: =IFERROR(VLOOKUP($A87,Filtro!$A$5:$AK$2951,29,FALSE),0) -> 0 | AF87: =IFERROR(VLOOKUP($A87,Filtro!$A$5:$AK$2951,30,FALSE),0) -> 0 | AG87: =IFERROR(VLOOKUP($A87,Filtro!$A$5:$AK$2951,31,FALSE),0) -> 0 | AH87: =IFERROR(VLOOKUP($A87,Filtro!$A$5:$AK$2951,32,FALSE),0) -> 0 | AI87: =IFERROR(VLOOKUP($A87,Filtro!$A$5:$AK$2951,33,FALSE),0) -> 0 | AJ87: =IFERROR(VLOOKUP($A87,Filtro!$A$5:$AK$2951,34,FALSE),0) -> 0 | AK87: =IFERROR(VLOOKUP($A87,Filtro!$A$5:$AK$2951,35,FALSE),0) -> 0 | AL87: 7,530 | AM87: 13,395,870
A88: 01014337 | B88: 0108303 | C88: Teleconsulta Médica de Especialidad en Infectología | D88: =IFERROR(VLOOKUP($A88,Filtro!$A$5:$AK$2951,2,FALSE),0) -> 3 | E88: =IFERROR(VLOOKUP($A88,Filtro!$A$5:$AK$2951,3,FALSE),0) -> 3 | F88: =IFERROR(VLOOKUP($A88,Filtro!$A$5:$AK$2951,4,FALSE),0) -> 3 | G88: =IFERROR(VLOOKUP($A88,Filtro!$A$5:$AK$2951,5,FALSE),0) -> 0 | H88: =IFERROR(VLOOKUP($A88,Filtro!$A$5:$AK$2951,6,FALSE),0) -> 0 | AB88: =IFERROR(VLOOKUP($A88,Filtro!$A$5:$AK$2951,26,FALSE),0) -> 0 | AC88: =IFERROR(VLOOKUP($A88,Filtro!$A$5:$AK$2951,27,FALSE),0) -> 3 | AD88: =IFERROR(VLOOKUP($A88,Filtro!$A$5:$AK$2951,28,FALSE),0) -> 0 | AE88: =IFERROR(VLOOKUP($A88,Filtro!$A$5:$AK$2951,29,FALSE),0) -> 0 | AF88: =IFERROR(VLOOKUP($A88,Filtro!$A$5:$AK$2951,30,FALSE),0) -> 0 | AG88: =IFERROR(VLOOKUP($A88,Filtro!$A$5:$AK$2951,31,FALSE),0) -> 0 | AH88: =IFERROR(VLOOKUP($A88,Filtro!$A$5:$AK$2951,32,FALSE),0) -> 0 | AI88: =IFERROR(VLOOKUP($A88,Filtro!$A$5:$AK$2951,33,FALSE),0) -> 0 | AJ88: =IFERROR(VLOOKUP($A88,Filtro!$A$5:$AK$2951,34,FALSE),0) -> 0 | AK88: =IFERROR(VLOOKUP($A88,Filtro!$A$5:$AK$2951,35,FALSE),0) -> 0 | AL88: 7,530 | AM88: 22,590
A89: 01014338 | B89: 0108304 | C89: Teleconsulta Médica de Especialidad en Inmunología | D89: =IFERROR(VLOOKUP($A89,Filtro!$A$5:$AK$2951,2,FALSE),0) -> 332 | E89: =IFERROR(VLOOKUP($A89,Filtro!$A$5:$AK$2951,3,FALSE),0) -> 331 | F89: =IFERROR(VLOOKUP($A89,Filtro!$A$5:$AK$2951,4,FALSE),0) -> 331 | G89: =IFERROR(VLOOKUP($A89,Filtro!$A$5:$AK$2951,5,FALSE),0) -> 0 | H89: =IFERROR(VLOOKUP($A89,Filtro!$A$5:$AK$2951,6,FALSE),0) -> 1 | AB89: =IFERROR(VLOOKUP($A89,Filtro!$A$5:$AK$2951,26,FALSE),0) -> 0 | AC89: =IFERROR(VLOOKUP($A89,Filtro!$A$5:$AK$2951,27,FALSE),0) -> 332 | AD89: =IFERROR(VLOOKUP($A89,Filtro!$A$5:$AK$2951,28,FALSE),0) -> 0 | AE89: =IFERROR(VLOOKUP($A89,Filtro!$A$5:$AK$2951,29,FALSE),0) -> 0 | AF89: =IFERROR(VLOOKUP($A89,Filtro!$A$5:$AK$2951,30,FALSE),0) -> 0 | AG89: =IFERROR(VLOOKUP($A89,Filtro!$A$5:$AK$2951,31,FALSE),0) -> 0 | AH89: =IFERROR(VLOOKUP($A89,Filtro!$A$5:$AK$2951,32,FALSE),0) -> 0 | AI89: =IFERROR(VLOOKUP($A89,Filtro!$A$5:$AK$2951,33,FALSE),0) -> 0 | AJ89: =IFERROR(VLOOKUP($A89,Filtro!$A$5:$AK$2951,34,FALSE),0) -> 0 | AK89: =IFERROR(VLOOKUP($A89,Filtro!$A$5:$AK$2951,35,FALSE),0) -> 0 | AL89: 7,530 | AM89: 2,492,430
A90: 01014339 | B90: 0108305 | C90: Teleconsulta Médica de Especialidad en Medicina Familiar | D90: =IFERROR(VLOOKUP($A90,Filtro!$A$5:$AK$2951,2,FALSE),0) -> 0 | E90: =IFERROR(VLOOKUP($A90,Filtro!$A$5:$AK$2951,3,FALSE),0) -> 0 | F90: =IFERROR(VLOOKUP($A90,Filtro!$A$5:$AK$2951,4,FALSE),0) -> 0 | G90: =IFERROR(VLOOKUP($A90,Filtro!$A$5:$AK$2951,5,FALSE),0) -> 0 | H90: =IFERROR(VLOOKUP($A90,Filtro!$A$5:$AK$2951,6,FALSE),0) -> 0 | AB90: =IFERROR(VLOOKUP($A90,Filtro!$A$5:$AK$2951,26,FALSE),0) -> 0 | AC90: =IFERROR(VLOOKUP($A90,Filtro!$A$5:$AK$2951,27,FALSE),0) -> 0 | AD90: =IFERROR(VLOOKUP($A90,Filtro!$A$5:$AK$2951,28,FALSE),0) -> 0 | AE90: =IFERROR(VLOOKUP($A90,Filtro!$A$5:$AK$2951,29,FALSE),0) -> 0 | AF90: =IFERROR(VLOOKUP($A90,Filtro!$A$5:$AK$2951,30,FALSE),0) -> 0 | AG90: =IFERROR(VLOOKUP($A90,Filtro!$A$5:$AK$2951,31,FALSE),0) -> 0 | AH90: =IFERROR(VLOOKUP($A90,Filtro!$A$5:$AK$2951,32,FALSE),0) -> 0 | AI90: =IFERROR(VLOOKUP($A90,Filtro!$A$5:$AK$2951,33,FALSE),0) -> 0 | AJ90: =IFERROR(VLOOKUP($A90,Filtro!$A$5:$AK$2951,34,FALSE),0) -> 0 | AK90: =IFERROR(VLOOKUP($A90,Filtro!$A$5:$AK$2951,35,FALSE),0) -> 0 | AL90: 7,530 | AM90: 0
A91: 01014340 | B91: 0108306 | C91: Teleconsulta Médica de Especialidad en Medicina Física y Rehabilitación | D91: =IFERROR(VLOOKUP($A91,Filtro!$A$5:$AK$2951,2,FALSE),0) -> 65 | E91: =IFERROR(VLOOKUP($A91,Filtro!$A$5:$AK$2951,3,FALSE),0) -> 65 | F91: =IFERROR(VLOOKUP($A91,Filtro!$A$5:$AK$2951,4,FALSE),0) -> 65 | G91: =IFERROR(VLOOKUP($A91,Filtro!$A$5:$AK$2951,5,FALSE),0) -> 0 | H91: =IFERROR(VLOOKUP($A91,Filtro!$A$5:$AK$2951,6,FALSE),0) -> 0 | AB91: =IFERROR(VLOOKUP($A91,Filtro!$A$5:$AK$2951,26,FALSE),0) -> 0 | AC91: =IFERROR(VLOOKUP($A91,Filtro!$A$5:$AK$2951,27,FALSE),0) -> 65 | AD91: =IFERROR(VLOOKUP($A91,Filtro!$A$5:$AK$2951,28,FALSE),0) -> 0 | AE91: =IFERROR(VLOOKUP($A91,Filtro!$A$5:$AK$2951,29,FALSE),0) -> 0 | AF91: =IFERROR(VLOOKUP($A91,Filtro!$A$5:$AK$2951,30,FALSE),0) -> 0 | AG91: =IFERROR(VLOOKUP($A91,Filtro!$A$5:$AK$2951,31,FALSE),0) -> 0 | AH91: =IFERROR(VLOOKUP($A91,Filtro!$A$5:$AK$2951,32,FALSE),0) -> 0 | AI91: =IFERROR(VLOOKUP($A91,Filtro!$A$5:$AK$2951,33,FALSE),0) -> 0 | AJ91: =IFERROR(VLOOKUP($A91,Filtro!$A$5:$AK$2951,34,FALSE),0) -> 0 | AK91: =IFERROR(VLOOKUP($A91,Filtro!$A$5:$AK$2951,35,FALSE),0) -> 0 | AL91: 7,530 | AM91: 489,450
A92: 01014341 | B92: 0108307 | C92: Teleconsulta Médica de Especialidad en Medicina Interna | D92: =IFERROR(VLOOKUP($A92,Filtro!$A$5:$AK$2951,2,FALSE),0) -> 5305 | E92: =IFERROR(VLOOKUP($A92,Filtro!$A$5:$AK$2951,3,FALSE),0) -> 5278 | F92: =IFERROR(VLOOKUP($A92,Filtro!$A$5:$AK$2951,4,FALSE),0) -> 5278 | G92: =IFERROR(VLOOKUP($A92,Filtro!$A$5:$AK$2951,5,FALSE),0) -> 0 | H92: =IFERROR(VLOOKUP($A92,Filtro!$A$5:$AK$2951,6,FALSE),0) -> 27 | AB92: =IFERROR(VLOOKUP($A92,Filtro!$A$5:$AK$2951,26,FALSE),0) -> 0 | AC92: =IFERROR(VLOOKUP($A92,Filtro!$A$5:$AK$2951,27,FALSE),0) -> 5305 | AD92: =IFERROR(VLOOKUP($A92,Filtro!$A$5:$AK$2951,28,FALSE),0) -> 0 | AE92: =IFERROR(VLOOKUP($A92,Filtro!$A$5:$AK$2951,29,FALSE),0) -> 0 | AF92: =IFERROR(VLOOKUP($A92,Filtro!$A$5:$AK$2951,30,FALSE),0) -> 0 | AG92: =IFERROR(VLOOKUP($A92,Filtro!$A$5:$AK$2951,31,FALSE),0) -> 0 | AH92: =IFERROR(VLOOKUP($A92,Filtro!$A$5:$AK$2951,32,FALSE),0) -> 0 | AI92: =IFERROR(VLOOKUP($A92,Filtro!$A$5:$AK$2951,33,FALSE),0) -> 0 | AJ92: =IFERROR(VLOOKUP($A92,Filtro!$A$5:$AK$2951,34,FALSE),0) -> 0 | AK92: =IFERROR(VLOOKUP($A92,Filtro!$A$5:$AK$2951,35,FALSE),0) -> 0 | AL92: 7,530 | AM92: 39,743,340
A93: 01014342 | B93: 0108308 | C93: Teleconsulta Médica de Especialidad en Obstetricia y Ginecología | D93: =IFERROR(VLOOKUP($A93,Filtro!$A$5:$AK$2951,2,FALSE),0) -> 21 | E93: =IFERROR(VLOOKUP($A93,Filtro!$A$5:$AK$2951,3,FALSE),0) -> 21 | F93: =IFERROR(VLOOKUP($A93,Filtro!$A$5:$AK$2951,4,FALSE),0) -> 21 | G93: =IFERROR(VLOOKUP($A93,Filtro!$A$5:$AK$2951,5,FALSE),0) -> 0 | H93: =IFERROR(VLOOKUP($A93,Filtro!$A$5:$AK$2951,6,FALSE),0) -> 0 | AB93: =IFERROR(VLOOKUP($A93,Filtro!$A$5:$AK$2951,26,FALSE),0) -> 0 | AC93: =IFERROR(VLOOKUP($A93,Filtro!$A$5:$AK$2951,27,FALSE),0) -> 21 | AD93: =IFERROR(VLOOKUP($A93,Filtro!$A$5:$AK$2951,28,FALSE),0) -> 0 | AE93: =IFERROR(VLOOKUP($A93,Filtro!$A$5:$AK$2951,29,FALSE),0) -> 0 | AF93: =IFERROR(VLOOKUP($A93,Filtro!$A$5:$AK$2951,30,FALSE),0) -> 0 | AG93: =IFERROR(VLOOKUP($A93,Filtro!$A$5:$AK$2951,31,FALSE),0) -> 0 | AH93: =IFERROR(VLOOKUP($A93,Filtro!$A$5:$AK$2951,32,FALSE),0) -> 0 | AI93: =IFERROR(VLOOKUP($A93,Filtro!$A$5:$AK$2951,33,FALSE),0) -> 0 | AJ93: =IFERROR(VLOOKUP($A93,Filtro!$A$5:$AK$2951,34,FALSE),0) -> 0 | AK93: =IFERROR(VLOOKUP($A93,Filtro!$A$5:$AK$2951,35,FALSE),0) -> 0 | AL93: 7,530 | AM93: 158,130
A94: 01014343 | B94: 0108309 | C94: Teleconsulta Médica de Especialidad en Pediatría | D94: =IFERROR(VLOOKUP($A94,Filtro!$A$5:$AK$2951,2,FALSE),0) -> 367 | E94: =IFERROR(VLOOKUP($A94,Filtro!$A$5:$AK$2951,3,FALSE),0) -> 363 | F94: =IFERROR(VLOOKUP($A94,Filtro!$A$5:$AK$2951,4,FALSE),0) -> 363 | G94: =IFERROR(VLOOKUP($A94,Filtro!$A$5:$AK$2951,5,FALSE),0) -> 0 | H94: =IFERROR(VLOOKUP($A94,Filtro!$A$5:$AK$2951,6,FALSE),0) -> 4 | AB94: =IFERROR(VLOOKUP($A94,Filtro!$A$5:$AK$2951,26,FALSE),0) -> 0 | AC94: =IFERROR(VLOOKUP($A94,Filtro!$A$5:$AK$2951,27,FALSE),0) -> 367 | AD94: =IFERROR(VLOOKUP($A94,Filtro!$A$5:$AK$2951,28,FALSE),0) -> 0 | AE94: =IFERROR(VLOOKUP($A94,Filtro!$A$5:$AK$2951,29,FALSE),0) -> 0 | AF94: =IFERROR(VLOOKUP($A94,Filtro!$A$5:$AK$2951,30,FALSE),0) -> 0 | AG94: =IFERROR(VLOOKUP($A94,Filtro!$A$5:$AK$2951,31,FALSE),0) -> 0 | AH94: =IFERROR(VLOOKUP($A94,Filtro!$A$5:$AK$2951,32,FALSE),0) -> 0 | AI94: =IFERROR(VLOOKUP($A94,Filtro!$A$5:$AK$2951,33,FALSE),0) -> 0 | AJ94: =IFERROR(VLOOKUP($A94,Filtro!$A$5:$AK$2951,34,FALSE),0) -> 0 | AK94: =IFERROR(VLOOKUP($A94,Filtro!$A$5:$AK$2951,35,FALSE),0) -> 0 | AL94: 7,530 | AM94: 2,733,390
A95: 01014344 | B95: 0108310 | C95: Teleconsulta Médica de Especialidad en Traumatología y Ortopedia | D95: =IFERROR(VLOOKUP($A95,Filtro!$A$5:$AK$2951,2,FALSE),0) -> 0 | E95: =IFERROR(VLOOKUP($A95,Filtro!$A$5:$AK$2951,3,FALSE),0) -> 0 | F95: =IFERROR(VLOOKUP($A95,Filtro!$A$5:$AK$2951,4,FALSE),0) -> 0 | G95: =IFERROR(VLOOKUP($A95,Filtro!$A$5:$AK$2951,5,FALSE),0) -> 0 | H95: =IFERROR(VLOOKUP($A95,Filtro!$A$5:$AK$2951,6,FALSE),0) -> 0 | AB95: =IFERROR(VLOOKUP($A95,Filtro!$A$5:$AK$2951,26,FALSE),0) -> 0 | AC95: =IFERROR(VLOOKUP($A95,Filtro!$A$5:$AK$2951,27,FALSE),0) -> 0 | AD95: =IFERROR(VLOOKUP($A95,Filtro!$A$5:$AK$2951,28,FALSE),0) -> 0 | AE95: =IFERROR(VLOOKUP($A95,Filtro!$A$5:$AK$2951,29,FALSE),0) -> 0 | AF95: =IFERROR(VLOOKUP($A95,Filtro!$A$5:$AK$2951,30,FALSE),0) -> 0 | AG95: =IFERROR(VLOOKUP($A95,Filtro!$A$5:$AK$2951,31,FALSE),0) -> 0 | AH95: =IFERROR(VLOOKUP($A95,Filtro!$A$5:$AK$2951,32,FALSE),0) -> 0 | AI95: =IFERROR(VLOOKUP($A95,Filtro!$A$5:$AK$2951,33,FALSE),0) -> 0 | AJ95: =IFERROR(VLOOKUP($A95,Filtro!$A$5:$AK$2951,34,FALSE),0) -> 0 | AK95: =IFERROR(VLOOKUP($A95,Filtro!$A$5:$AK$2951,35,FALSE),0) -> 0 | AL95: 7,530 | AM95: 0
A96: 01014345 | B96: 0108311 | C96: Teleconsulta Médica de Especialidad en Urología | D96: =IFERROR(VLOOKUP($A96,Filtro!$A$5:$AK$2951,2,FALSE),0) -> 1 | E96: =IFERROR(VLOOKUP($A96,Filtro!$A$5:$AK$2951,3,FALSE),0) -> 1 | F96: =IFERROR(VLOOKUP($A96,Filtro!$A$5:$AK$2951,4,FALSE),0) -> 1 | G96: =IFERROR(VLOOKUP($A96,Filtro!$A$5:$AK$2951,5,FALSE),0) -> 0 | H96: =IFERROR(VLOOKUP($A96,Filtro!$A$5:$AK$2951,6,FALSE),0) -> 0 | AB96: =IFERROR(VLOOKUP($A96,Filtro!$A$5:$AK$2951,26,FALSE),0) -> 0 | AC96: =IFERROR(VLOOKUP($A96,Filtro!$A$5:$AK$2951,27,FALSE),0) -> 1 | AD96: =IFERROR(VLOOKUP($A96,Filtro!$A$5:$AK$2951,28,FALSE),0) -> 0 | AE96: =IFERROR(VLOOKUP($A96,Filtro!$A$5:$AK$2951,29,FALSE),0) -> 0 | AF96: =IFERROR(VLOOKUP($A96,Filtro!$A$5:$AK$2951,30,FALSE),0) -> 0 | AG96: =IFERROR(VLOOKUP($A96,Filtro!$A$5:$AK$2951,31,FALSE),0) -> 0 | AH96: =IFERROR(VLOOKUP($A96,Filtro!$A$5:$AK$2951,32,FALSE),0) -> 0 | AI96: =IFERROR(VLOOKUP($A96,Filtro!$A$5:$AK$2951,33,FALSE),0) -> 0 | AJ96: =IFERROR(VLOOKUP($A96,Filtro!$A$5:$AK$2951,34,FALSE),0) -> 0 | AK96: =IFERROR(VLOOKUP($A96,Filtro!$A$5:$AK$2951,35,FALSE),0) -> 0 | AL96: 7,530 | AM96: 7,530
A97: 01014346 | B97: 0108319 | C97: Teleconsulta Médica de Especialidad en Coloproctología | D97: =IFERROR(VLOOKUP($A97,Filtro!$A$5:$AK$2951,2,FALSE),0) -> 6 | E97: =IFERROR(VLOOKUP($A97,Filtro!$A$5:$AK$2951,3,FALSE),0) -> 6 | F97: =IFERROR(VLOOKUP($A97,Filtro!$A$5:$AK$2951,4,FALSE),0) -> 6 | G97: =IFERROR(VLOOKUP($A97,Filtro!$A$5:$AK$2951,5,FALSE),0) -> 0 | H97: =IFERROR(VLOOKUP($A97,Filtro!$A$5:$AK$2951,6,FALSE),0) -> 0 | AB97: =IFERROR(VLOOKUP($A97,Filtro!$A$5:$AK$2951,26,FALSE),0) -> 0 | AC97: =IFERROR(VLOOKUP($A97,Filtro!$A$5:$AK$2951,27,FALSE),0) -> 6 | AD97: =IFERROR(VLOOKUP($A97,Filtro!$A$5:$AK$2951,28,FALSE),0) -> 0 | AE97: =IFERROR(VLOOKUP($A97,Filtro!$A$5:$AK$2951,29,FALSE),0) -> 0 | AF97: =IFERROR(VLOOKUP($A97,Filtro!$A$5:$AK$2951,30,FALSE),0) -> 0 | AG97: =IFERROR(VLOOKUP($A97,Filtro!$A$5:$AK$2951,31,FALSE),0) -> 0 | AH97: =IFERROR(VLOOKUP($A97,Filtro!$A$5:$AK$2951,32,FALSE),0) -> 0 | AI97: =IFERROR(VLOOKUP($A97,Filtro!$A$5:$AK$2951,33,FALSE),0) -> 0 | AJ97: =IFERROR(VLOOKUP($A97,Filtro!$A$5:$AK$2951,34,FALSE),0) -> 0 | AK97: =IFERROR(VLOOKUP($A97,Filtro!$A$5:$AK$2951,35,FALSE),0) -> 0 | AL97: 7,530 | AM97: 45,180
A98: 01014347 | B98: 0108320 | C98: Teleconsulta Médica de Especialidad en Diabetología | D98: =IFERROR(VLOOKUP($A98,Filtro!$A$5:$AK$2951,2,FALSE),0) -> 14 | E98: =IFERROR(VLOOKUP($A98,Filtro!$A$5:$AK$2951,3,FALSE),0) -> 14 | F98: =IFERROR(VLOOKUP($A98,Filtro!$A$5:$AK$2951,4,FALSE),0) -> 14 | G98: =IFERROR(VLOOKUP($A98,Filtro!$A$5:$AK$2951,5,FALSE),0) -> 0 | H98: =IFERROR(VLOOKUP($A98,Filtro!$A$5:$AK$2951,6,FALSE),0) -> 0 | AB98: =IFERROR(VLOOKUP($A98,Filtro!$A$5:$AK$2951,26,FALSE),0) -> 0 | AC98: =IFERROR(VLOOKUP($A98,Filtro!$A$5:$AK$2951,27,FALSE),0) -> 14 | AD98: =IFERROR(VLOOKUP($A98,Filtro!$A$5:$AK$2951,28,FALSE),0) -> 0 | AE98: =IFERROR(VLOOKUP($A98,Filtro!$A$5:$AK$2951,29,FALSE),0) -> 0 | AF98: =IFERROR(VLOOKUP($A98,Filtro!$A$5:$AK$2951,30,FALSE),0) -> 0 | AG98: =IFERROR(VLOOKUP($A98,Filtro!$A$5:$AK$2951,31,FALSE),0) -> 0 | AH98: =IFERROR(VLOOKUP($A98,Filtro!$A$5:$AK$2951,32,FALSE),0) -> 0 | AI98: =IFERROR(VLOOKUP($A98,Filtro!$A$5:$AK$2951,33,FALSE),0) -> 0 | AJ98: =IFERROR(VLOOKUP($A98,Filtro!$A$5:$AK$2951,34,FALSE),0) -> 0 | AK98: =IFERROR(VLOOKUP($A98,Filtro!$A$5:$AK$2951,35,FALSE),0) -> 0 | AL98: 7,530 | AM98: 105,420
A99: 01014348 | B99: 0108321 | C99: Teleconsulta Médica de Especialidad en Enfermedades Respiratorias Adulto | D99: =IFERROR(VLOOKUP($A99,Filtro!$A$5:$AK$2951,2,FALSE),0) -> 57 | E99: =IFERROR(VLOOKUP($A99,Filtro!$A$5:$AK$2951,3,FALSE),0) -> 57 | F99: =IFERROR(VLOOKUP($A99,Filtro!$A$5:$AK$2951,4,FALSE),0) -> 57 | G99: =IFERROR(VLOOKUP($A99,Filtro!$A$5:$AK$2951,5,FALSE),0) -> 0 | H99: =IFERROR(VLOOKUP($A99,Filtro!$A$5:$AK$2951,6,FALSE),0) -> 0 | AB99: =IFERROR(VLOOKUP($A99,Filtro!$A$5:$AK$2951,26,FALSE),0) -> 0 | AC99: =IFERROR(VLOOKUP($A99,Filtro!$A$5:$AK$2951,27,FALSE),0) -> 57 | AD99: =IFERROR(VLOOKUP($A99,Filtro!$A$5:$AK$2951,28,FALSE),0) -> 0 | AE99: =IFERROR(VLOOKUP($A99,Filtro!$A$5:$AK$2951,29,FALSE),0) -> 0 | AF99: =IFERROR(VLOOKUP($A99,Filtro!$A$5:$AK$2951,30,FALSE),0) -> 0 | AG99: =IFERROR(VLOOKUP($A99,Filtro!$A$5:$AK$2951,31,FALSE),0) -> 0 | AH99: =IFERROR(VLOOKUP($A99,Filtro!$A$5:$AK$2951,32,FALSE),0) -> 0 | AI99: =IFERROR(VLOOKUP($A99,Filtro!$A$5:$AK$2951,33,FALSE),0) -> 0 | AJ99: =IFERROR(VLOOKUP($A99,Filtro!$A$5:$AK$2951,34,FALSE),0) -> 0 | AK99: =IFERROR(VLOOKUP($A99,Filtro!$A$5:$AK$2951,35,FALSE),0) -> 0 | AL99: 7,530 | AM99: 429,210
A100: 01014349 | B100: 0108322 | C100: Teleconsulta Médica de Especialidad en Enfermedades Respiratorias Pediátricas | D100: =IFERROR(VLOOKUP($A100,Filtro!$A$5:$AK$2951,2,FALSE),0) -> 150 | E100: =IFERROR(VLOOKUP($A100,Filtro!$A$5:$AK$2951,3,FALSE),0) -> 150 | F100: =IFERROR(VLOOKUP($A100,Filtro!$A$5:$AK$2951,4,FALSE),0) -> 150 | G100: =IFERROR(VLOOKUP($A100,Filtro!$A$5:$AK$2951,5,FALSE),0) -> 0 | H100: =IFERROR(VLOOKUP($A100,Filtro!$A$5:$AK$2951,6,FALSE),0) -> 0 | AB100: =IFERROR(VLOOKUP($A100,Filtro!$A$5:$AK$2951,26,FALSE),0) -> 0 | AC100: =IFERROR(VLOOKUP($A100,Filtro!$A$5:$AK$2951,27,FALSE),0) -> 150 | AD100: =IFERROR(VLOOKUP($A100,Filtro!$A$5:$AK$2951,28,FALSE),0) -> 0 | AE100: =IFERROR(VLOOKUP($A100,Filtro!$A$5:$AK$2951,29,FALSE),0) -> 0 | AF100: =IFERROR(VLOOKUP($A100,Filtro!$A$5:$AK$2951,30,FALSE),0) -> 0 | AG100: =IFERROR(VLOOKUP($A100,Filtro!$A$5:$AK$2951,31,FALSE),0) -> 0 | AH100: =IFERROR(VLOOKUP($A100,Filtro!$A$5:$AK$2951,32,FALSE),0) -> 0 | AI100: =IFERROR(VLOOKUP($A100,Filtro!$A$5:$AK$2951,33,FALSE),0) -> 0 | AJ100: =IFERROR(VLOOKUP($A100,Filtro!$A$5:$AK$2951,34,FALSE),0) -> 0 | AK100: =IFERROR(VLOOKUP($A100,Filtro!$A$5:$AK$2951,35,FALSE),0) -> 0 | AL100: 7,530 | AM100: 1,129,500
A101: 01014350 | B101: 0108323 | C101: Teleconsulta Médica de Especialidad en Gastroenterología Adulto | D101: =IFERROR(VLOOKUP($A101,Filtro!$A$5:$AK$2951,2,FALSE),0) -> 33 | E101: =IFERROR(VLOOKUP($A101,Filtro!$A$5:$AK$2951,3,FALSE),0) -> 33 | F101: =IFERROR(VLOOKUP($A101,Filtro!$A$5:$AK$2951,4,FALSE),0) -> 33 | G101: =IFERROR(VLOOKUP($A101,Filtro!$A$5:$AK$2951,5,FALSE),0) -> 0 | H101: =IFERROR(VLOOKUP($A101,Filtro!$A$5:$AK$2951,6,FALSE),0) -> 0 | AB101: =IFERROR(VLOOKUP($A101,Filtro!$A$5:$AK$2951,26,FALSE),0) -> 0 | AC101: =IFERROR(VLOOKUP($A101,Filtro!$A$5:$AK$2951,27,FALSE),0) -> 33 | AD101: =IFERROR(VLOOKUP($A101,Filtro!$A$5:$AK$2951,28,FALSE),0) -> 0 | AE101: =IFERROR(VLOOKUP($A101,Filtro!$A$5:$AK$2951,29,FALSE),0) -> 0 | AF101: =IFERROR(VLOOKUP($A101,Filtro!$A$5:$AK$2951,30,FALSE),0) -> 0 | AG101: =IFERROR(VLOOKUP($A101,Filtro!$A$5:$AK$2951,31,FALSE),0) -> 0 | AH101: =IFERROR(VLOOKUP($A101,Filtro!$A$5:$AK$2951,32,FALSE),0) -> 0 | AI101: =IFERROR(VLOOKUP($A101,Filtro!$A$5:$AK$2951,33,FALSE),0) -> 0 | AJ101: =IFERROR(VLOOKUP($A101,Filtro!$A$5:$AK$2951,34,FALSE),0) -> 0 | AK101: =IFERROR(VLOOKUP($A101,Filtro!$A$5:$AK$2951,35,FALSE),0) -> 0 | AL101: 7,530 | AM101: 248,490
A102: 01014351 | B102: 0108324 | C102: Teleconsulta Médica de Especialidad en Gastroenterología Pediátrico | D102: =IFERROR(VLOOKUP($A102,Filtro!$A$5:$AK$2951,2,FALSE),0) -> 45 | E102: =IFERROR(VLOOKUP($A102,Filtro!$A$5:$AK$2951,3,FALSE),0) -> 45 | F102: =IFERROR(VLOOKUP($A102,Filtro!$A$5:$AK$2951,4,FALSE),0) -> 45 | G102: =IFERROR(VLOOKUP($A102,Filtro!$A$5:$AK$2951,5,FALSE),0) -> 0 | H102: =IFERROR(VLOOKUP($A102,Filtro!$A$5:$AK$2951,6,FALSE),0) -> 0 | AB102: =IFERROR(VLOOKUP($A102,Filtro!$A$5:$AK$2951,26,FALSE),0) -> 0 | AC102: =IFERROR(VLOOKUP($A102,Filtro!$A$5:$AK$2951,27,FALSE),0) -> 45 | AD102: =IFERROR(VLOOKUP($A102,Filtro!$A$5:$AK$2951,28,FALSE),0) -> 0 | AE102: =IFERROR(VLOOKUP($A102,Filtro!$A$5:$AK$2951,29,FALSE),0) -> 0 | AF102: =IFERROR(VLOOKUP($A102,Filtro!$A$5:$AK$2951,30,FALSE),0) -> 0 | AG102: =IFERROR(VLOOKUP($A102,Filtro!$A$5:$AK$2951,31,FALSE),0) -> 0 | AH102: =IFERROR(VLOOKUP($A102,Filtro!$A$5:$AK$2951,32,FALSE),0) -> 0 | AI102: =IFERROR(VLOOKUP($A102,Filtro!$A$5:$AK$2951,33,FALSE),0) -> 0 | AJ102: =IFERROR(VLOOKUP($A102,Filtro!$A$5:$AK$2951,34,FALSE),0) -> 0 | AK102: =IFERROR(VLOOKUP($A102,Filtro!$A$5:$AK$2951,35,FALSE),0) -> 0 | AL102: 7,530 | AM102: 338,850
A103: 01014352 | B103: 0108325 | C103: Teleconsulta Médica de Especialidad en Genética Clínica | D103: =IFERROR(VLOOKUP($A103,Filtro!$A$5:$AK$2951,2,FALSE),0) -> 0 | E103: =IFERROR(VLOOKUP($A103,Filtro!$A$5:$AK$2951,3,FALSE),0) -> 0 | F103: =IFERROR(VLOOKUP($A103,Filtro!$A$5:$AK$2951,4,FALSE),0) -> 0 | G103: =IFERROR(VLOOKUP($A103,Filtro!$A$5:$AK$2951,5,FALSE),0) -> 0 | H103: =IFERROR(VLOOKUP($A103,Filtro!$A$5:$AK$2951,6,FALSE),0) -> 0 | AB103: =IFERROR(VLOOKUP($A103,Filtro!$A$5:$AK$2951,26,FALSE),0) -> 0 | AC103: =IFERROR(VLOOKUP($A103,Filtro!$A$5:$AK$2951,27,FALSE),0) -> 0 | AD103: =IFERROR(VLOOKUP($A103,Filtro!$A$5:$AK$2951,28,FALSE),0) -> 0 | AE103: =IFERROR(VLOOKUP($A103,Filtro!$A$5:$AK$2951,29,FALSE),0) -> 0 | AF103: =IFERROR(VLOOKUP($A103,Filtro!$A$5:$AK$2951,30,FALSE),0) -> 0 | AG103: =IFERROR(VLOOKUP($A103,Filtro!$A$5:$AK$2951,31,FALSE),0) -> 0 | AH103: =IFERROR(VLOOKUP($A103,Filtro!$A$5:$AK$2951,32,FALSE),0) -> 0 | AI103: =IFERROR(VLOOKUP($A103,Filtro!$A$5:$AK$2951,33,FALSE),0) -> 0 | AJ103: =IFERROR(VLOOKUP($A103,Filtro!$A$5:$AK$2951,34,FALSE),0) -> 0 | AK103: =IFERROR(VLOOKUP($A103,Filtro!$A$5:$AK$2951,35,FALSE),0) -> 0 | AL103: 7,530 | AM103: 0
A104: 01014353 | B104: 0108326 | C104: Teleconsulta Médica de Especialidad en Nefrología Adulto | D104: =IFERROR(VLOOKUP($A104,Filtro!$A$5:$AK$2951,2,FALSE),0) -> 696 | E104: =IFERROR(VLOOKUP($A104,Filtro!$A$5:$AK$2951,3,FALSE),0) -> 691 | F104: =IFERROR(VLOOKUP($A104,Filtro!$A$5:$AK$2951,4,FALSE),0) -> 691 | G104: =IFERROR(VLOOKUP($A104,Filtro!$A$5:$AK$2951,5,FALSE),0) -> 0 | H104: =IFERROR(VLOOKUP($A104,Filtro!$A$5:$AK$2951,6,FALSE),0) -> 5 | AB104: =IFERROR(VLOOKUP($A104,Filtro!$A$5:$AK$2951,26,FALSE),0) -> 0 | AC104: =IFERROR(VLOOKUP($A104,Filtro!$A$5:$AK$2951,27,FALSE),0) -> 696 | AD104: =IFERROR(VLOOKUP($A104,Filtro!$A$5:$AK$2951,28,FALSE),0) -> 0 | AE104: =IFERROR(VLOOKUP($A104,Filtro!$A$5:$AK$2951,29,FALSE),0) -> 0 | AF104: =IFERROR(VLOOKUP($A104,Filtro!$A$5:$AK$2951,30,FALSE),0) -> 0 | AG104: =IFERROR(VLOOKUP($A104,Filtro!$A$5:$AK$2951,31,FALSE),0) -> 0 | AH104: =IFERROR(VLOOKUP($A104,Filtro!$A$5:$AK$2951,32,FALSE),0) -> 0 | AI104: =IFERROR(VLOOKUP($A104,Filtro!$A$5:$AK$2951,33,FALSE),0) -> 0 | AJ104: =IFERROR(VLOOKUP($A104,Filtro!$A$5:$AK$2951,34,FALSE),0) -> 0 | AK104: =IFERROR(VLOOKUP($A104,Filtro!$A$5:$AK$2951,35,FALSE),0) -> 0 | AL104: 7,530 | AM104: 5,203,230
A105: 01014354 | B105: 0108327 | C105: Teleconsulta Médica de Especialidad en Nefrología Pediátrico | D105: =IFERROR(VLOOKUP($A105,Filtro!$A$5:$AK$2951,2,FALSE),0) -> 36 | E105: =IFERROR(VLOOKUP($A105,Filtro!$A$5:$AK$2951,3,FALSE),0) -> 36 | F105: =IFERROR(VLOOKUP($A105,Filtro!$A$5:$AK$2951,4,FALSE),0) -> 36 | G105: =IFERROR(VLOOKUP($A105,Filtro!$A$5:$AK$2951,5,FALSE),0) -> 0 | H105: =IFERROR(VLOOKUP($A105,Filtro!$A$5:$AK$2951,6,FALSE),0) -> 0 | AB105: =IFERROR(VLOOKUP($A105,Filtro!$A$5:$AK$2951,26,FALSE),0) -> 0 | AC105: =IFERROR(VLOOKUP($A105,Filtro!$A$5:$AK$2951,27,FALSE),0) -> 36 | AD105: =IFERROR(VLOOKUP($A105,Filtro!$A$5:$AK$2951,28,FALSE),0) -> 0 | AE105: =IFERROR(VLOOKUP($A105,Filtro!$A$5:$AK$2951,29,FALSE),0) -> 0 | AF105: =IFERROR(VLOOKUP($A105,Filtro!$A$5:$AK$2951,30,FALSE),0) -> 0 | AG105: =IFERROR(VLOOKUP($A105,Filtro!$A$5:$AK$2951,31,FALSE),0) -> 0 | AH105: =IFERROR(VLOOKUP($A105,Filtro!$A$5:$AK$2951,32,FALSE),0) -> 0 | AI105: =IFERROR(VLOOKUP($A105,Filtro!$A$5:$AK$2951,33,FALSE),0) -> 0 | AJ105: =IFERROR(VLOOKUP($A105,Filtro!$A$5:$AK$2951,34,FALSE),0) -> 0 | AK105: =IFERROR(VLOOKUP($A105,Filtro!$A$5:$AK$2951,35,FALSE),0) -> 0 | AL105: 7,530 | AM105: 271,080
A106: 01014355 | B106: 0108331 | C106: Teleconsulta Médica de Especialidad en Radioterapia Oncológica | D106: =IFERROR(VLOOKUP($A106,Filtro!$A$5:$AK$2951,2,FALSE),0) -> 0 | E106: =IFERROR(VLOOKUP($A106,Filtro!$A$5:$AK$2951,3,FALSE),0) -> 0 | F106: =IFERROR(VLOOKUP($A106,Filtro!$A$5:$AK$2951,4,FALSE),0) -> 0 | G106: =IFERROR(VLOOKUP($A106,Filtro!$A$5:$AK$2951,5,FALSE),0) -> 0 | H106: =IFERROR(VLOOKUP($A106,Filtro!$A$5:$AK$2951,6,FALSE),0) -> 0 | AB106: =IFERROR(VLOOKUP($A106,Filtro!$A$5:$AK$2951,26,FALSE),0) -> 0 | AC106: =IFERROR(VLOOKUP($A106,Filtro!$A$5:$AK$2951,27,FALSE),0) -> 0 | AD106: =IFERROR(VLOOKUP($A106,Filtro!$A$5:$AK$2951,28,FALSE),0) -> 0 | AE106: =IFERROR(VLOOKUP($A106,Filtro!$A$5:$AK$2951,29,FALSE),0) -> 0 | AF106: =IFERROR(VLOOKUP($A106,Filtro!$A$5:$AK$2951,30,FALSE),0) -> 0 | AG106: =IFERROR(VLOOKUP($A106,Filtro!$A$5:$AK$2951,31,FALSE),0) -> 0 | AH106: =IFERROR(VLOOKUP($A106,Filtro!$A$5:$AK$2951,32,FALSE),0) -> 0 | AI106: =IFERROR(VLOOKUP($A106,Filtro!$A$5:$AK$2951,33,FALSE),0) -> 0 | AJ106: =IFERROR(VLOOKUP($A106,Filtro!$A$5:$AK$2951,34,FALSE),0) -> 0 | AK106: =IFERROR(VLOOKUP($A106,Filtro!$A$5:$AK$2951,35,FALSE),0) -> 0 | AL106: 7,530 | AM106: 0
A107: 01014356 | B107: 0108203 | C107: Teleconsulta Médica de Especialidad en Neurocirugía | D107: =IFERROR(VLOOKUP($A107,Filtro!$A$5:$AK$2951,2,FALSE),0) -> 0 | E107: =IFERROR(VLOOKUP($A107,Filtro!$A$5:$AK$2951,3,FALSE),0) -> 0 | F107: =IFERROR(VLOOKUP($A107,Filtro!$A$5:$AK$2951,4,FALSE),0) -> 0 | G107: =IFERROR(VLOOKUP($A107,Filtro!$A$5:$AK$2951,5,FALSE),0) -> 0 | H107: =IFERROR(VLOOKUP($A107,Filtro!$A$5:$AK$2951,6,FALSE),0) -> 0 | AB107: =IFERROR(VLOOKUP($A107,Filtro!$A$5:$AK$2951,26,FALSE),0) -> 0 | AC107: =IFERROR(VLOOKUP($A107,Filtro!$A$5:$AK$2951,27,FALSE),0) -> 0 | AD107: =IFERROR(VLOOKUP($A107,Filtro!$A$5:$AK$2951,28,FALSE),0) -> 0 | AE107: =IFERROR(VLOOKUP($A107,Filtro!$A$5:$AK$2951,29,FALSE),0) -> 0 | AF107: =IFERROR(VLOOKUP($A107,Filtro!$A$5:$AK$2951,30,FALSE),0) -> 0 | AG107: =IFERROR(VLOOKUP($A107,Filtro!$A$5:$AK$2951,31,FALSE),0) -> 0 | AH107: =IFERROR(VLOOKUP($A107,Filtro!$A$5:$AK$2951,32,FALSE),0) -> 0 | AI107: =IFERROR(VLOOKUP($A107,Filtro!$A$5:$AK$2951,33,FALSE),0) -> 0 | AJ107: =IFERROR(VLOOKUP($A107,Filtro!$A$5:$AK$2951,34,FALSE),0) -> 0 | AK107: =IFERROR(VLOOKUP($A107,Filtro!$A$5:$AK$2951,35,FALSE),0) -> 0 | AL107: 7,530 | AM107: 0
A108: 01014357 | B108: 0108204 | C108: Teleconsulta Médica de Especialidad en Oftalmología | D108: =IFERROR(VLOOKUP($A108,Filtro!$A$5:$AK$2951,2,FALSE),0) -> 228 | E108: =IFERROR(VLOOKUP($A108,Filtro!$A$5:$AK$2951,3,FALSE),0) -> 228 | F108: =IFERROR(VLOOKUP($A108,Filtro!$A$5:$AK$2951,4,FALSE),0) -> 228 | G108: =IFERROR(VLOOKUP($A108,Filtro!$A$5:$AK$2951,5,FALSE),0) -> 0 | H108: =IFERROR(VLOOKUP($A108,Filtro!$A$5:$AK$2951,6,FALSE),0) -> 0 | AB108: =IFERROR(VLOOKUP($A108,Filtro!$A$5:$AK$2951,26,FALSE),0) -> 0 | AC108: =IFERROR(VLOOKUP($A108,Filtro!$A$5:$AK$2951,27,FALSE),0) -> 228 | AD108: =IFERROR(VLOOKUP($A108,Filtro!$A$5:$AK$2951,28,FALSE),0) -> 0 | AE108: =IFERROR(VLOOKUP($A108,Filtro!$A$5:$AK$2951,29,FALSE),0) -> 0 | AF108: =IFERROR(VLOOKUP($A108,Filtro!$A$5:$AK$2951,30,FALSE),0) -> 0 | AG108: =IFERROR(VLOOKUP($A108,Filtro!$A$5:$AK$2951,31,FALSE),0) -> 0 | AH108: =IFERROR(VLOOKUP($A108,Filtro!$A$5:$AK$2951,32,FALSE),0) -> 0 | AI108: =IFERROR(VLOOKUP($A108,Filtro!$A$5:$AK$2951,33,FALSE),0) -> 0 | AJ108: =IFERROR(VLOOKUP($A108,Filtro!$A$5:$AK$2951,34,FALSE),0) -> 0 | AK108: =IFERROR(VLOOKUP($A108,Filtro!$A$5:$AK$2951,35,FALSE),0) -> 0 | AL108: 7,530 | AM108: 1,716,840
A109: 01014358 | B109: 0108205 | C109: Teleconsulta Médica de Especialidad en Otorrinolaringología | D109: =IFERROR(VLOOKUP($A109,Filtro!$A$5:$AK$2951,2,FALSE),0) -> 1 | E109: =IFERROR(VLOOKUP($A109,Filtro!$A$5:$AK$2951,3,FALSE),0) -> 1 | F109: =IFERROR(VLOOKUP($A109,Filtro!$A$5:$AK$2951,4,FALSE),0) -> 1 | G109: =IFERROR(VLOOKUP($A109,Filtro!$A$5:$AK$2951,5,FALSE),0) -> 0 | H109: =IFERROR(VLOOKUP($A109,Filtro!$A$5:$AK$2951,6,FALSE),0) -> 0 | AB109: =IFERROR(VLOOKUP($A109,Filtro!$A$5:$AK$2951,26,FALSE),0) -> 0 | AC109: =IFERROR(VLOOKUP($A109,Filtro!$A$5:$AK$2951,27,FALSE),0) -> 1 | AD109: =IFERROR(VLOOKUP($A109,Filtro!$A$5:$AK$2951,28,FALSE),0) -> 0 | AE109: =IFERROR(VLOOKUP($A109,Filtro!$A$5:$AK$2951,29,FALSE),0) -> 0 | AF109: =IFERROR(VLOOKUP($A109,Filtro!$A$5:$AK$2951,30,FALSE),0) -> 0 | AG109: =IFERROR(VLOOKUP($A109,Filtro!$A$5:$AK$2951,31,FALSE),0) -> 0 | AH109: =IFERROR(VLOOKUP($A109,Filtro!$A$5:$AK$2951,32,FALSE),0) -> 0 | AI109: =IFERROR(VLOOKUP($A109,Filtro!$A$5:$AK$2951,33,FALSE),0) -> 0 | AJ109: =IFERROR(VLOOKUP($A109,Filtro!$A$5:$AK$2951,34,FALSE),0) -> 0 | AK109: =IFERROR(VLOOKUP($A109,Filtro!$A$5:$AK$2951,35,FALSE),0) -> 0 | AL109: 7,530 | AM109: 7,530
A110: 01014359 | B110: 0108312 | C110: Teleconsulta Médica de Especialidad en Cirugía General | D110: =IFERROR(VLOOKUP($A110,Filtro!$A$5:$AK$2951,2,FALSE),0) -> 88 | E110: =IFERROR(VLOOKUP($A110,Filtro!$A$5:$AK$2951,3,FALSE),0) -> 88 | F110: =IFERROR(VLOOKUP($A110,Filtro!$A$5:$AK$2951,4,FALSE),0) -> 88 | G110: =IFERROR(VLOOKUP($A110,Filtro!$A$5:$AK$2951,5,FALSE),0) -> 0 | H110: =IFERROR(VLOOKUP($A110,Filtro!$A$5:$AK$2951,6,FALSE),0) -> 0 | AB110: =IFERROR(VLOOKUP($A110,Filtro!$A$5:$AK$2951,26,FALSE),0) -> 0 | AC110: =IFERROR(VLOOKUP($A110,Filtro!$A$5:$AK$2951,27,FALSE),0) -> 88 | AD110: =IFERROR(VLOOKUP($A110,Filtro!$A$5:$AK$2951,28,FALSE),0) -> 0 | AE110: =IFERROR(VLOOKUP($A110,Filtro!$A$5:$AK$2951,29,FALSE),0) -> 0 | AF110: =IFERROR(VLOOKUP($A110,Filtro!$A$5:$AK$2951,30,FALSE),0) -> 0 | AG110: =IFERROR(VLOOKUP($A110,Filtro!$A$5:$AK$2951,31,FALSE),0) -> 0 | AH110: =IFERROR(VLOOKUP($A110,Filtro!$A$5:$AK$2951,32,FALSE),0) -> 0 | AI110: =IFERROR(VLOOKUP($A110,Filtro!$A$5:$AK$2951,33,FALSE),0) -> 0 | AJ110: =IFERROR(VLOOKUP($A110,Filtro!$A$5:$AK$2951,34,FALSE),0) -> 0 | AK110: =IFERROR(VLOOKUP($A110,Filtro!$A$5:$AK$2951,35,FALSE),0) -> 0 | AL110: 7,530 | AM110: 662,640
A111: 01014360 | B111: 0108313 | C111: Teleconsulta Médica de Especialidad en Cirugía de Cabeza, Cuello y Maxilofacial | D111: =IFERROR(VLOOKUP($A111,Filtro!$A$5:$AK$2951,2,FALSE),0) -> 1 | E111: =IFERROR(VLOOKUP($A111,Filtro!$A$5:$AK$2951,3,FALSE),0) -> 1 | F111: =IFERROR(VLOOKUP($A111,Filtro!$A$5:$AK$2951,4,FALSE),0) -> 1 | G111: =IFERROR(VLOOKUP($A111,Filtro!$A$5:$AK$2951,5,FALSE),0) -> 0 | H111: =IFERROR(VLOOKUP($A111,Filtro!$A$5:$AK$2951,6,FALSE),0) -> 0 | AB111: =IFERROR(VLOOKUP($A111,Filtro!$A$5:$AK$2951,26,FALSE),0) -> 0 | AC111: =IFERROR(VLOOKUP($A111,Filtro!$A$5:$AK$2951,27,FALSE),0) -> 1 | AD111: =IFERROR(VLOOKUP($A111,Filtro!$A$5:$AK$2951,28,FALSE),0) -> 0 | AE111: =IFERROR(VLOOKUP($A111,Filtro!$A$5:$AK$2951,29,FALSE),0) -> 0 | AF111: =IFERROR(VLOOKUP($A111,Filtro!$A$5:$AK$2951,30,FALSE),0) -> 0 | AG111: =IFERROR(VLOOKUP($A111,Filtro!$A$5:$AK$2951,31,FALSE),0) -> 0 | AH111: =IFERROR(VLOOKUP($A111,Filtro!$A$5:$AK$2951,32,FALSE),0) -> 0 | AI111: =IFERROR(VLOOKUP($A111,Filtro!$A$5:$AK$2951,33,FALSE),0) -> 0 | AJ111: =IFERROR(VLOOKUP($A111,Filtro!$A$5:$AK$2951,34,FALSE),0) -> 0 | AK111: =IFERROR(VLOOKUP($A111,Filtro!$A$5:$AK$2951,35,FALSE),0) -> 0 | AL111: 7,530 | AM111: 7,530
A112: 01014361 | B112: 0108314 | C112: Teleconsulta Médica de Especialidad en Cirugía Cardiovascular | D112: =IFERROR(VLOOKUP($A112,Filtro!$A$5:$AK$2951,2,FALSE),0) -> 0 | E112: =IFERROR(VLOOKUP($A112,Filtro!$A$5:$AK$2951,3,FALSE),0) -> 0 | F112: =IFERROR(VLOOKUP($A112,Filtro!$A$5:$AK$2951,4,FALSE),0) -> 0 | G112: =IFERROR(VLOOKUP($A112,Filtro!$A$5:$AK$2951,5,FALSE),0) -> 0 | H112: =IFERROR(VLOOKUP($A112,Filtro!$A$5:$AK$2951,6,FALSE),0) -> 0 | AB112: =IFERROR(VLOOKUP($A112,Filtro!$A$5:$AK$2951,26,FALSE),0) -> 0 | AC112: =IFERROR(VLOOKUP($A112,Filtro!$A$5:$AK$2951,27,FALSE),0) -> 0 | AD112: =IFERROR(VLOOKUP($A112,Filtro!$A$5:$AK$2951,28,FALSE),0) -> 0 | AE112: =IFERROR(VLOOKUP($A112,Filtro!$A$5:$AK$2951,29,FALSE),0) -> 0 | AF112: =IFERROR(VLOOKUP($A112,Filtro!$A$5:$AK$2951,30,FALSE),0) -> 0 | AG112: =IFERROR(VLOOKUP($A112,Filtro!$A$5:$AK$2951,31,FALSE),0) -> 0 | AH112: =IFERROR(VLOOKUP($A112,Filtro!$A$5:$AK$2951,32,FALSE),0) -> 0 | AI112: =IFERROR(VLOOKUP($A112,Filtro!$A$5:$AK$2951,33,FALSE),0) -> 0 | AJ112: =IFERROR(VLOOKUP($A112,Filtro!$A$5:$AK$2951,34,FALSE),0) -> 0 | AK112: =IFERROR(VLOOKUP($A112,Filtro!$A$5:$AK$2951,35,FALSE),0) -> 0 | AL112: 7,530 | AM112: 0
A113: 01014362 | B113: 0108315 | C113: Teleconsulta Médica de Especialidad en Cirugía de Tórax | D113: =IFERROR(VLOOKUP($A113,Filtro!$A$5:$AK$2951,2,FALSE),0) -> 2 | E113: =IFERROR(VLOOKUP($A113,Filtro!$A$5:$AK$2951,3,FALSE),0) -> 2 | F113: =IFERROR(VLOOKUP($A113,Filtro!$A$5:$AK$2951,4,FALSE),0) -> 2 | G113: =IFERROR(VLOOKUP($A113,Filtro!$A$5:$AK$2951,5,FALSE),0) -> 0 | H113: =IFERROR(VLOOKUP($A113,Filtro!$A$5:$AK$2951,6,FALSE),0) -> 0 | AB113: =IFERROR(VLOOKUP($A113,Filtro!$A$5:$AK$2951,26,FALSE),0) -> 0 | AC113: =IFERROR(VLOOKUP($A113,Filtro!$A$5:$AK$2951,27,FALSE),0) -> 2 | AD113: =IFERROR(VLOOKUP($A113,Filtro!$A$5:$AK$2951,28,FALSE),0) -> 0 | AE113: =IFERROR(VLOOKUP($A113,Filtro!$A$5:$AK$2951,29,FALSE),0) -> 0 | AF113: =IFERROR(VLOOKUP($A113,Filtro!$A$5:$AK$2951,30,FALSE),0) -> 0 | AG113: =IFERROR(VLOOKUP($A113,Filtro!$A$5:$AK$2951,31,FALSE),0) -> 0 | AH113: =IFERROR(VLOOKUP($A113,Filtro!$A$5:$AK$2951,32,FALSE),0) -> 0 | AI113: =IFERROR(VLOOKUP($A113,Filtro!$A$5:$AK$2951,33,FALSE),0) -> 0 | AJ113: =IFERROR(VLOOKUP($A113,Filtro!$A$5:$AK$2951,34,FALSE),0) -> 0 | AK113: =IFERROR(VLOOKUP($A113,Filtro!$A$5:$AK$2951,35,FALSE),0) -> 0 | AL113: 7,530 | AM113: 15,060
A114: 01014363 | B114: 0108316 | C114: Teleconsulta Médica de Especialidad en Cirugía Plástica y Reparadora | D114: =IFERROR(VLOOKUP($A114,Filtro!$A$5:$AK$2951,2,FALSE),0) -> 0 | E114: =IFERROR(VLOOKUP($A114,Filtro!$A$5:$AK$2951,3,FALSE),0) -> 0 | F114: =IFERROR(VLOOKUP($A114,Filtro!$A$5:$AK$2951,4,FALSE),0) -> 0 | G114: =IFERROR(VLOOKUP($A114,Filtro!$A$5:$AK$2951,5,FALSE),0) -> 0 | H114: =IFERROR(VLOOKUP($A114,Filtro!$A$5:$AK$2951,6,FALSE),0) -> 0 | AB114: =IFERROR(VLOOKUP($A114,Filtro!$A$5:$AK$2951,26,FALSE),0) -> 0 | AC114: =IFERROR(VLOOKUP($A114,Filtro!$A$5:$AK$2951,27,FALSE),0) -> 0 | AD114: =IFERROR(VLOOKUP($A114,Filtro!$A$5:$AK$2951,28,FALSE),0) -> 0 | AE114: =IFERROR(VLOOKUP($A114,Filtro!$A$5:$AK$2951,29,FALSE),0) -> 0 | AF114: =IFERROR(VLOOKUP($A114,Filtro!$A$5:$AK$2951,30,FALSE),0) -> 0 | AG114: =IFERROR(VLOOKUP($A114,Filtro!$A$5:$AK$2951,31,FALSE),0) -> 0 | AH114: =IFERROR(VLOOKUP($A114,Filtro!$A$5:$AK$2951,32,FALSE),0) -> 0 | AI114: =IFERROR(VLOOKUP($A114,Filtro!$A$5:$AK$2951,33,FALSE),0) -> 0 | AJ114: =IFERROR(VLOOKUP($A114,Filtro!$A$5:$AK$2951,34,FALSE),0) -> 0 | AK114: =IFERROR(VLOOKUP($A114,Filtro!$A$5:$AK$2951,35,FALSE),0) -> 0 | AL114: 7,530 | AM114: 0
A115: 01014364 | B115: 0108317 | C115: Teleconsulta Médica de Especialidad en Cirugía Pediátrica | D115: =IFERROR(VLOOKUP($A115,Filtro!$A$5:$AK$2951,2,FALSE),0) -> 3 | E115: =IFERROR(VLOOKUP($A115,Filtro!$A$5:$AK$2951,3,FALSE),0) -> 3 | F115: =IFERROR(VLOOKUP($A115,Filtro!$A$5:$AK$2951,4,FALSE),0) -> 3 | G115: =IFERROR(VLOOKUP($A115,Filtro!$A$5:$AK$2951,5,FALSE),0) -> 0 | H115: =IFERROR(VLOOKUP($A115,Filtro!$A$5:$AK$2951,6,FALSE),0) -> 0 | AB115: =IFERROR(VLOOKUP($A115,Filtro!$A$5:$AK$2951,26,FALSE),0) -> 0 | AC115: =IFERROR(VLOOKUP($A115,Filtro!$A$5:$AK$2951,27,FALSE),0) -> 3 | AD115: =IFERROR(VLOOKUP($A115,Filtro!$A$5:$AK$2951,28,FALSE),0) -> 0 | AE115: =IFERROR(VLOOKUP($A115,Filtro!$A$5:$AK$2951,29,FALSE),0) -> 0 | AF115: =IFERROR(VLOOKUP($A115,Filtro!$A$5:$AK$2951,30,FALSE),0) -> 0 | AG115: =IFERROR(VLOOKUP($A115,Filtro!$A$5:$AK$2951,31,FALSE),0) -> 0 | AH115: =IFERROR(VLOOKUP($A115,Filtro!$A$5:$AK$2951,32,FALSE),0) -> 0 | AI115: =IFERROR(VLOOKUP($A115,Filtro!$A$5:$AK$2951,33,FALSE),0) -> 0 | AJ115: =IFERROR(VLOOKUP($A115,Filtro!$A$5:$AK$2951,34,FALSE),0) -> 0 | AK115: =IFERROR(VLOOKUP($A115,Filtro!$A$5:$AK$2951,35,FALSE),0) -> 0 | AL115: 7,530 | AM115: 22,590
A116: 01014365 | B116: 0108318 | C116: Teleconsulta Médica de Especialidad en Cirugía Vascular Periférica | D116: =IFERROR(VLOOKUP($A116,Filtro!$A$5:$AK$2951,2,FALSE),0) -> 0 | E116: =IFERROR(VLOOKUP($A116,Filtro!$A$5:$AK$2951,3,FALSE),0) -> 0 | F116: =IFERROR(VLOOKUP($A116,Filtro!$A$5:$AK$2951,4,FALSE),0) -> 0 | G116: =IFERROR(VLOOKUP($A116,Filtro!$A$5:$AK$2951,5,FALSE),0) -> 0 | H116: =IFERROR(VLOOKUP($A116,Filtro!$A$5:$AK$2951,6,FALSE),0) -> 0 | AB116: =IFERROR(VLOOKUP($A116,Filtro!$A$5:$AK$2951,26,FALSE),0) -> 0 | AC116: =IFERROR(VLOOKUP($A116,Filtro!$A$5:$AK$2951,27,FALSE),0) -> 0 | AD116: =IFERROR(VLOOKUP($A116,Filtro!$A$5:$AK$2951,28,FALSE),0) -> 0 | AE116: =IFERROR(VLOOKUP($A116,Filtro!$A$5:$AK$2951,29,FALSE),0) -> 0 | AF116: =IFERROR(VLOOKUP($A116,Filtro!$A$5:$AK$2951,30,FALSE),0) -> 0 | AG116: =IFERROR(VLOOKUP($A116,Filtro!$A$5:$AK$2951,31,FALSE),0) -> 0 | AH116: =IFERROR(VLOOKUP($A116,Filtro!$A$5:$AK$2951,32,FALSE),0) -> 0 | AI116: =IFERROR(VLOOKUP($A116,Filtro!$A$5:$AK$2951,33,FALSE),0) -> 0 | AJ116: =IFERROR(VLOOKUP($A116,Filtro!$A$5:$AK$2951,34,FALSE),0) -> 0 | AK116: =IFERROR(VLOOKUP($A116,Filtro!$A$5:$AK$2951,35,FALSE),0) -> 0 | AL116: 7,530 | AM116: 0
A117: 01014366 | B117: 0108329 | C117: Teleconsulta Médica de Especialidad en Anestesiología | D117: =IFERROR(VLOOKUP($A117,Filtro!$A$5:$AK$2951,2,FALSE),0) -> 2829 | E117: =IFERROR(VLOOKUP($A117,Filtro!$A$5:$AK$2951,3,FALSE),0) -> 2800 | F117: =IFERROR(VLOOKUP($A117,Filtro!$A$5:$AK$2951,4,FALSE),0) -> 2800 | G117: =IFERROR(VLOOKUP($A117,Filtro!$A$5:$AK$2951,5,FALSE),0) -> 0 | H117: =IFERROR(VLOOKUP($A117,Filtro!$A$5:$AK$2951,6,FALSE),0) -> 29 | AB117: =IFERROR(VLOOKUP($A117,Filtro!$A$5:$AK$2951,26,FALSE),0) -> 0 | AC117: =IFERROR(VLOOKUP($A117,Filtro!$A$5:$AK$2951,27,FALSE),0) -> 2829 | AD117: =IFERROR(VLOOKUP($A117,Filtro!$A$5:$AK$2951,28,FALSE),0) -> 0 | AE117: =IFERROR(VLOOKUP($A117,Filtro!$A$5:$AK$2951,29,FALSE),0) -> 1509 | AF117: =IFERROR(VLOOKUP($A117,Filtro!$A$5:$AK$2951,30,FALSE),0) -> 0 | AG117: =IFERROR(VLOOKUP($A117,Filtro!$A$5:$AK$2951,31,FALSE),0) -> 0 | AH117: =IFERROR(VLOOKUP($A117,Filtro!$A$5:$AK$2951,32,FALSE),0) -> 0 | AI117: =IFERROR(VLOOKUP($A117,Filtro!$A$5:$AK$2951,33,FALSE),0) -> 0 | AJ117: =IFERROR(VLOOKUP($A117,Filtro!$A$5:$AK$2951,34,FALSE),0) -> 0 | AK117: =IFERROR(VLOOKUP($A117,Filtro!$A$5:$AK$2951,35,FALSE),0) -> 0 | AL117: 7,530 | AM117: 21,084,000
A118: 01014367 | B118: 0108332 | C118: Teleconsulta Médica de Especialidad en Ginecología Pediátrica y de la Adolescencia | D118: =IFERROR(VLOOKUP($A118,Filtro!$A$5:$AK$2951,2,FALSE),0) -> 0 | E118: =IFERROR(VLOOKUP($A118,Filtro!$A$5:$AK$2951,3,FALSE),0) -> 0 | F118: =IFERROR(VLOOKUP($A118,Filtro!$A$5:$AK$2951,4,FALSE),0) -> 0 | G118: =IFERROR(VLOOKUP($A118,Filtro!$A$5:$AK$2951,5,FALSE),0) -> 0 | H118: =IFERROR(VLOOKUP($A118,Filtro!$A$5:$AK$2951,6,FALSE),0) -> 0 | AB118: =IFERROR(VLOOKUP($A118,Filtro!$A$5:$AK$2951,26,FALSE),0) -> 0 | AC118: =IFERROR(VLOOKUP($A118,Filtro!$A$5:$AK$2951,27,FALSE),0) -> 0 | AD118: =IFERROR(VLOOKUP($A118,Filtro!$A$5:$AK$2951,28,FALSE),0) -> 0 | AE118: =IFERROR(VLOOKUP($A118,Filtro!$A$5:$AK$2951,29,FALSE),0) -> 0 | AF118: =IFERROR(VLOOKUP($A118,Filtro!$A$5:$AK$2951,30,FALSE),0) -> 0 | AG118: =IFERROR(VLOOKUP($A118,Filtro!$A$5:$AK$2951,31,FALSE),0) -> 0 | AH118: =IFERROR(VLOOKUP($A118,Filtro!$A$5:$AK$2951,32,FALSE),0) -> 0 | AI118: =IFERROR(VLOOKUP($A118,Filtro!$A$5:$AK$2951,33,FALSE),0) -> 0 | AJ118: =IFERROR(VLOOKUP($A118,Filtro!$A$5:$AK$2951,34,FALSE),0) -> 0 | AK118: =IFERROR(VLOOKUP($A118,Filtro!$A$5:$AK$2951,35,FALSE),0) -> 0 | AL118: 7,530 | AM118: 0
A119: 01014368 | B119: 0108333 | C119: Teleconsulta Médica de Especialidad en Medicina Materno Fetal | D119: =IFERROR(VLOOKUP($A119,Filtro!$A$5:$AK$2951,2,FALSE),0) -> 0 | E119: =IFERROR(VLOOKUP($A119,Filtro!$A$5:$AK$2951,3,FALSE),0) -> 0 | F119: =IFERROR(VLOOKUP($A119,Filtro!$A$5:$AK$2951,4,FALSE),0) -> 0 | G119: =IFERROR(VLOOKUP($A119,Filtro!$A$5:$AK$2951,5,FALSE),0) -> 0 | H119: =IFERROR(VLOOKUP($A119,Filtro!$A$5:$AK$2951,6,FALSE),0) -> 0 | AB119: =IFERROR(VLOOKUP($A119,Filtro!$A$5:$AK$2951,26,FALSE),0) -> 0 | AC119: =IFERROR(VLOOKUP($A119,Filtro!$A$5:$AK$2951,27,FALSE),0) -> 0 | AD119: =IFERROR(VLOOKUP($A119,Filtro!$A$5:$AK$2951,28,FALSE),0) -> 0 | AE119: =IFERROR(VLOOKUP($A119,Filtro!$A$5:$AK$2951,29,FALSE),0) -> 0 | AF119: =IFERROR(VLOOKUP($A119,Filtro!$A$5:$AK$2951,30,FALSE),0) -> 0 | AG119: =IFERROR(VLOOKUP($A119,Filtro!$A$5:$AK$2951,31,FALSE),0) -> 0 | AH119: =IFERROR(VLOOKUP($A119,Filtro!$A$5:$AK$2951,32,FALSE),0) -> 0 | AI119: =IFERROR(VLOOKUP($A119,Filtro!$A$5:$AK$2951,33,FALSE),0) -> 0 | AJ119: =IFERROR(VLOOKUP($A119,Filtro!$A$5:$AK$2951,34,FALSE),0) -> 0 | AK119: =IFERROR(VLOOKUP($A119,Filtro!$A$5:$AK$2951,35,FALSE),0) -> 0 | AL119: 7,530 | AM119: 0
A120: 01014369 | B120: 0108334 | C120: Teleconsulta Médica de Especialidad en Medicina Nuclear | D120: =IFERROR(VLOOKUP($A120,Filtro!$A$5:$AK$2951,2,FALSE),0) -> 0 | E120: =IFERROR(VLOOKUP($A120,Filtro!$A$5:$AK$2951,3,FALSE),0) -> 0 | F120: =IFERROR(VLOOKUP($A120,Filtro!$A$5:$AK$2951,4,FALSE),0) -> 0 | G120: =IFERROR(VLOOKUP($A120,Filtro!$A$5:$AK$2951,5,FALSE),0) -> 0 | H120: =IFERROR(VLOOKUP($A120,Filtro!$A$5:$AK$2951,6,FALSE),0) -> 0 | AB120: =IFERROR(VLOOKUP($A120,Filtro!$A$5:$AK$2951,26,FALSE),0) -> 0 | AC120: =IFERROR(VLOOKUP($A120,Filtro!$A$5:$AK$2951,27,FALSE),0) -> 0 | AD120: =IFERROR(VLOOKUP($A120,Filtro!$A$5:$AK$2951,28,FALSE),0) -> 0 | AE120: =IFERROR(VLOOKUP($A120,Filtro!$A$5:$AK$2951,29,FALSE),0) -> 0 | AF120: =IFERROR(VLOOKUP($A120,Filtro!$A$5:$AK$2951,30,FALSE),0) -> 0 | AG120: =IFERROR(VLOOKUP($A120,Filtro!$A$5:$AK$2951,31,FALSE),0) -> 0 | AH120: =IFERROR(VLOOKUP($A120,Filtro!$A$5:$AK$2951,32,FALSE),0) -> 0 | AI120: =IFERROR(VLOOKUP($A120,Filtro!$A$5:$AK$2951,33,FALSE),0) -> 0 | AJ120: =IFERROR(VLOOKUP($A120,Filtro!$A$5:$AK$2951,34,FALSE),0) -> 0 | AK120: =IFERROR(VLOOKUP($A120,Filtro!$A$5:$AK$2951,35,FALSE),0) -> 0 | AL120: 7,530 | AM120: 0
C121: TOTAL | D121: =SUM(D75:D120) -> 21197 | E121: =SUM(E75:E120) -> 21131 | F121: =SUM(F75:F120) -> 21131 | G121: =SUM(G75:G120) -> 0 | H121: =SUM(H75:H120) -> 66 | AB121: =SUM(AB75:AB120) -> 42 | AC121: 21140 | AD121: 0 | AE121: 1509 | AF121: 0 | AG121: 0 | AH121: 0 | AI121: 0 | AJ121: 0 | AK121: 0 | AM121: =SUM(AM75:AM120) -> 159116430
C122: TELEMEDICINA PROFESIONALES NO MÉDICOS
A123: 01014370 | B123: 0108400 | C123: Teleconsulta: Atención Integral de Nutricionista (incluye 3 sesiones) | D123: =IFERROR(VLOOKUP($A123,Filtro!$A$5:$AK$2951,2,FALSE),0) -> 0 | E123: =IFERROR(VLOOKUP($A123,Filtro!$A$5:$AK$2951,3,FALSE),0) -> 0 | F123: =IFERROR(VLOOKUP($A123,Filtro!$A$5:$AK$2951,4,FALSE),0) -> 0 | G123: =IFERROR(VLOOKUP($A123,Filtro!$A$5:$AK$2951,5,FALSE),0) -> 0 | H123: =IFERROR(VLOOKUP($A123,Filtro!$A$5:$AK$2951,6,FALSE),0) -> 0 | AB123: =IFERROR(VLOOKUP($A123,Filtro!$A$5:$AK$2951,26,FALSE),0) -> 0 | AC123: =IFERROR(VLOOKUP($A123,Filtro!$A$5:$AK$2951,27,FALSE),0) -> 0 | AD123: =IFERROR(VLOOKUP($A123,Filtro!$A$5:$AK$2951,28,FALSE),0) -> 0 | AE123: =IFERROR(VLOOKUP($A123,Filtro!$A$5:$AK$2951,29,FALSE),0) -> 0 | AF123: =IFERROR(VLOOKUP($A123,Filtro!$A$5:$AK$2951,30,FALSE),0) -> 0 | AG123: =IFERROR(VLOOKUP($A123,Filtro!$A$5:$AK$2951,31,FALSE),0) -> 0 | AH123: =IFERROR(VLOOKUP($A123,Filtro!$A$5:$AK$2951,32,FALSE),0) -> 0 | AI123: =IFERROR(VLOOKUP($A123,Filtro!$A$5:$AK$2951,33,FALSE),0) -> 0 | AJ123: =IFERROR(VLOOKUP($A123,Filtro!$A$5:$AK$2951,34,FALSE),0) -> 0 | AK123: =IFERROR(VLOOKUP($A123,Filtro!$A$5:$AK$2951,35,FALSE),0) -> 0 | AL123: 21,750 | AM123: =AL123*F123 -> 0
C124: TOTAL | D124: =SUM(D123) -> 0 | E124: =SUM(E123) -> 0 | F124: =SUM(F123) -> 0 | G124: =SUM(G123) -> 0 | H124: =SUM(H123) -> 0 | AB124: =SUM(AB123) -> 0 | AC124: 0 | AD124: 0 | AE124: 0 | AF124: 0 | AG124: 0 | AH124: 0 | AI124: 0 | AJ124: 0 | AK124: 0 | AM124: =SUM(AM123) -> 0
C125: TELEINTERCONSULTA (TELEMEDICINA)
A126: 01014371 | B126: 0109001 | C126: Teleinterconsulta médica | D126: =IFERROR(VLOOKUP($A126,Filtro!$A$5:$AK$2951,2,FALSE),0) -> 85 | E126: =IFERROR(VLOOKUP($A126,Filtro!$A$5:$AK$2951,3,FALSE),0) -> 85 | F126: =IFERROR(VLOOKUP($A126,Filtro!$A$5:$AK$2951,4,FALSE),0) -> 85 | G126: =IFERROR(VLOOKUP($A126,Filtro!$A$5:$AK$2951,5,FALSE),0) -> 0 | H126: =IFERROR(VLOOKUP($A126,Filtro!$A$5:$AK$2951,6,FALSE),0) -> 0 | AB126: =IFERROR(VLOOKUP($A126,Filtro!$A$5:$AK$2951,26,FALSE),0) -> 0 | AC126: =IFERROR(VLOOKUP($A126,Filtro!$A$5:$AK$2951,27,FALSE),0) -> 85 | AD126: =IFERROR(VLOOKUP($A126,Filtro!$A$5:$AK$2951,28,FALSE),0) -> 0 | AE126: =IFERROR(VLOOKUP($A126,Filtro!$A$5:$AK$2951,29,FALSE),0) -> 0 | AF126: =IFERROR(VLOOKUP($A126,Filtro!$A$5:$AK$2951,30,FALSE),0) -> 0 | AG126: =IFERROR(VLOOKUP($A126,Filtro!$A$5:$AK$2951,31,FALSE),0) -> 0 | AH126: =IFERROR(VLOOKUP($A126,Filtro!$A$5:$AK$2951,32,FALSE),0) -> 0 | AI126: =IFERROR(VLOOKUP($A126,Filtro!$A$5:$AK$2951,33,FALSE),0) -> 0 | AJ126: =IFERROR(VLOOKUP($A126,Filtro!$A$5:$AK$2951,34,FALSE),0) -> 0 | AK126: =IFERROR(VLOOKUP($A126,Filtro!$A$5:$AK$2951,35,FALSE),0) -> 0 | AL126: 7,530 | AM126: =AL126*F126 -> 640,050
A127: 01014372 | B127: 0109002 | C127: Teleinterconsulta no médica | D127: =IFERROR(VLOOKUP($A127,Filtro!$A$5:$AK$2951,2,FALSE),0) -> 0 | E127: =IFERROR(VLOOKUP($A127,Filtro!$A$5:$AK$2951,3,FALSE),0) -> 0 | F127: =IFERROR(VLOOKUP($A127,Filtro!$A$5:$AK$2951,4,FALSE),0) -> 0 | G127: =IFERROR(VLOOKUP($A127,Filtro!$A$5:$AK$2951,5,FALSE),0) -> 0 | H127: =IFERROR(VLOOKUP($A127,Filtro!$A$5:$AK$2951,6,FALSE),0) -> 0 | AB127: =IFERROR(VLOOKUP($A127,Filtro!$A$5:$AK$2951,26,FALSE),0) -> 0 | AC127: =IFERROR(VLOOKUP($A127,Filtro!$A$5:$AK$2951,27,FALSE),0) -> 0 | AD127: =IFERROR(VLOOKUP($A127,Filtro!$A$5:$AK$2951,28,FALSE),0) -> 0 | AE127: =IFERROR(VLOOKUP($A127,Filtro!$A$5:$AK$2951,29,FALSE),0) -> 0 | AF127: =IFERROR(VLOOKUP($A127,Filtro!$A$5:$AK$2951,30,FALSE),0) -> 0 | AG127: =IFERROR(VLOOKUP($A127,Filtro!$A$5:$AK$2951,31,FALSE),0) -> 0 | AH127: =IFERROR(VLOOKUP($A127,Filtro!$A$5:$AK$2951,32,FALSE),0) -> 0 | AI127: =IFERROR(VLOOKUP($A127,Filtro!$A$5:$AK$2951,33,FALSE),0) -> 0 | AJ127: =IFERROR(VLOOKUP($A127,Filtro!$A$5:$AK$2951,34,FALSE),0) -> 0 | AK127: =IFERROR(VLOOKUP($A127,Filtro!$A$5:$AK$2951,35,FALSE),0) -> 0 | AL127: 6,400 | AM127: =AL127*F127 -> 0
C128: TOTAL | D128: =SUM(D126:D127) -> 85 | E128: =SUM(E126:E127) -> 85 | F128: =SUM(F126:F127) -> 85 | G128: =SUM(G126:G127) -> 0 | H128: =SUM(H126:H127) -> 0 | AB128: =SUM(AB126:AB127) -> 0 | AC128: 85 | AD128: 0 | AE128: 0 | AF128: 0 | AG128: 0 | AH128: 0 | AI128: 0 | AJ128: 0 | AK128: 0 | AM128: =SUM(AM126:AM127) -> 640,050
C129: EDUCACION DE GRUPO
A130: 01010029 | B130: 0103001 | C130: Educación de grupo por médico | D130: =IFERROR(VLOOKUP($A130,Filtro!$A$5:$AK$2951,2,FALSE),0) -> 646 | E130: =IFERROR(VLOOKUP($A130,Filtro!$A$5:$AK$2951,3,FALSE),0) -> 646 | F130: =IFERROR(VLOOKUP($A130,Filtro!$A$5:$AK$2951,4,FALSE),0) -> 646 | G130: =IFERROR(VLOOKUP($A130,Filtro!$A$5:$AK$2951,5,FALSE),0) -> 0 | H130: =IFERROR(VLOOKUP($A130,Filtro!$A$5:$AK$2951,6,FALSE),0) -> 0 | AB130: =IFERROR(VLOOKUP($A130,Filtro!$A$5:$AK$2951,26,FALSE),0) -> 0 | AC130: =IFERROR(VLOOKUP($A130,Filtro!$A$5:$AK$2951,27,FALSE),0) -> 646 | AD130: =IFERROR(VLOOKUP($A130,Filtro!$A$5:$AK$2951,28,FALSE),0) -> 0 | AE130: =IFERROR(VLOOKUP($A130,Filtro!$A$5:$AK$2951,29,FALSE),0) -> 0 | AF130: =IFERROR(VLOOKUP($A130,Filtro!$A$5:$AK$2951,30,FALSE),0) -> 0 | AG130: =IFERROR(VLOOKUP($A130,Filtro!$A$5:$AK$2951,31,FALSE),0) -> 0 | AH130: =IFERROR(VLOOKUP($A130,Filtro!$A$5:$AK$2951,32,FALSE),0) -> 0 | AI130: =IFERROR(VLOOKUP($A130,Filtro!$A$5:$AK$2951,33,FALSE),0) -> 0 | AJ130: =IFERROR(VLOOKUP($A130,Filtro!$A$5:$AK$2951,34,FALSE),0) -> 0 | AK130: =IFERROR(VLOOKUP($A130,Filtro!$A$5:$AK$2951,35,FALSE),0) -> 0 | AL130: 4,640 | AM130: =AL130*F130 -> 2,997,440
A131: 01010031 | B131: 0103003 | C131: Educación de grupo por Trabajador/a Social | D131: =IFERROR(VLOOKUP($A131,Filtro!$A$5:$AK$2951,2,FALSE),0) -> 244 | E131: =IFERROR(VLOOKUP($A131,Filtro!$A$5:$AK$2951,3,FALSE),0) -> 244 | F131: =IFERROR(VLOOKUP($A131,Filtro!$A$5:$AK$2951,4,FALSE),0) -> 244 | G131: =IFERROR(VLOOKUP($A131,Filtro!$A$5:$AK$2951,5,FALSE),0) -> 0 | H131: =IFERROR(VLOOKUP($A131,Filtro!$A$5:$AK$2951,6,FALSE),0) -> 0 | AB131: =IFERROR(VLOOKUP($A131,Filtro!$A$5:$AK$2951,26,FALSE),0) -> 0 | AC131: =IFERROR(VLOOKUP($A131,Filtro!$A$5:$AK$2951,27,FALSE),0) -> 244 | AD131: =IFERROR(VLOOKUP($A131,Filtro!$A$5:$AK$2951,28,FALSE),0) -> 0 | AE131: =IFERROR(VLOOKUP($A131,Filtro!$A$5:$AK$2951,29,FALSE),0) -> 0 | AF131: =IFERROR(VLOOKUP($A131,Filtro!$A$5:$AK$2951,30,FALSE),0) -> 0 | AG131: =IFERROR(VLOOKUP($A131,Filtro!$A$5:$AK$2951,31,FALSE),0) -> 0 | AH131: =IFERROR(VLOOKUP($A131,Filtro!$A$5:$AK$2951,32,FALSE),0) -> 0 | AI131: =IFERROR(VLOOKUP($A131,Filtro!$A$5:$AK$2951,33,FALSE),0) -> 0 | AJ131: =IFERROR(VLOOKUP($A131,Filtro!$A$5:$AK$2951,34,FALSE),0) -> 0 | AK131: =IFERROR(VLOOKUP($A131,Filtro!$A$5:$AK$2951,35,FALSE),0) -> 0 | AL131: 2,550 | AM131: 622,200
A132: 01010032 | B132: 0103004 | C132: Educación de grupo por auxiliar de enfermería | D132: =IFERROR(VLOOKUP($A132,Filtro!$A$5:$AK$2951,2,FALSE),0) -> 0 | E132: =IFERROR(VLOOKUP($A132,Filtro!$A$5:$AK$2951,3,FALSE),0) -> 0 | F132: =IFERROR(VLOOKUP($A132,Filtro!$A$5:$AK$2951,4,FALSE),0) -> 0 | G132: =IFERROR(VLOOKUP($A132,Filtro!$A$5:$AK$2951,5,FALSE),0) -> 0 | H132: =IFERROR(VLOOKUP($A132,Filtro!$A$5:$AK$2951,6,FALSE),0) -> 0 | AB132: =IFERROR(VLOOKUP($A132,Filtro!$A$5:$AK$2951,26,FALSE),0) -> 0 | AC132: =IFERROR(VLOOKUP($A132,Filtro!$A$5:$AK$2951,27,FALSE),0) -> 0 | AD132: =IFERROR(VLOOKUP($A132,Filtro!$A$5:$AK$2951,28,FALSE),0) -> 0 | AE132: =IFERROR(VLOOKUP($A132,Filtro!$A$5:$AK$2951,29,FALSE),0) -> 0 | AF132: =IFERROR(VLOOKUP($A132,Filtro!$A$5:$AK$2951,30,FALSE),0) -> 0 | AG132: =IFERROR(VLOOKUP($A132,Filtro!$A$5:$AK$2951,31,FALSE),0) -> 0 | AH132: =IFERROR(VLOOKUP($A132,Filtro!$A$5:$AK$2951,32,FALSE),0) -> 0 | AI132: =IFERROR(VLOOKUP($A132,Filtro!$A$5:$AK$2951,33,FALSE),0) -> 0 | AJ132: =IFERROR(VLOOKUP($A132,Filtro!$A$5:$AK$2951,34,FALSE),0) -> 0 | AK132: =IFERROR(VLOOKUP($A132,Filtro!$A$5:$AK$2951,35,FALSE),0) -> 0 | AL132: 780 | AM132: 0
A133: 01014373 | B133: 0103005 | C133: Educación de grupo por enfermera | D133: =IFERROR(VLOOKUP($A133,Filtro!$A$5:$AK$2951,2,FALSE),0) -> 26098 | E133: =IFERROR(VLOOKUP($A133,Filtro!$A$5:$AK$2951,3,FALSE),0) -> 26098 | F133: =IFERROR(VLOOKUP($A133,Filtro!$A$5:$AK$2951,4,FALSE),0) -> 25578 | G133: =IFERROR(VLOOKUP($A133,Filtro!$A$5:$AK$2951,5,FALSE),0) -> 520 | H133: =IFERROR(VLOOKUP($A133,Filtro!$A$5:$AK$2951,6,FALSE),0) -> 0 | AB133: =IFERROR(VLOOKUP($A133,Filtro!$A$5:$AK$2951,26,FALSE),0) -> 24372 | AC133: =IFERROR(VLOOKUP($A133,Filtro!$A$5:$AK$2951,27,FALSE),0) -> 1726 | AD133: =IFERROR(VLOOKUP($A133,Filtro!$A$5:$AK$2951,28,FALSE),0) -> 0 | AE133: =IFERROR(VLOOKUP($A133,Filtro!$A$5:$AK$2951,29,FALSE),0) -> 0 | AF133: =IFERROR(VLOOKUP($A133,Filtro!$A$5:$AK$2951,30,FALSE),0) -> 0 | AG133: =IFERROR(VLOOKUP($A133,Filtro!$A$5:$AK$2951,31,FALSE),0) -> 0 | AH133: =IFERROR(VLOOKUP($A133,Filtro!$A$5:$AK$2951,32,FALSE),0) -> 0 | AI133: =IFERROR(VLOOKUP($A133,Filtro!$A$5:$AK$2951,33,FALSE),0) -> 0 | AJ133: =IFERROR(VLOOKUP($A133,Filtro!$A$5:$AK$2951,34,FALSE),0) -> 0 | AK133: =IFERROR(VLOOKUP($A133,Filtro!$A$5:$AK$2951,35,FALSE),0) -> 0 | AL133: 2,550 | AM133: 65,223,900
A134: 01014374 | B134: 0103006 | C134: Educación de grupo por matrona | D134: =IFERROR(VLOOKUP($A134,Filtro!$A$5:$AK$2951,2,FALSE),0) -> 2296 | E134: =IFERROR(VLOOKUP($A134,Filtro!$A$5:$AK$2951,3,FALSE),0) -> 2296 | F134: =IFERROR(VLOOKUP($A134,Filtro!$A$5:$AK$2951,4,FALSE),0) -> 2296 | G134: =IFERROR(VLOOKUP($A134,Filtro!$A$5:$AK$2951,5,FALSE),0) -> 0 | H134: =IFERROR(VLOOKUP($A134,Filtro!$A$5:$AK$2951,6,FALSE),0) -> 0 | AB134: =IFERROR(VLOOKUP($A134,Filtro!$A$5:$AK$2951,26,FALSE),0) -> 0 | AC134: =IFERROR(VLOOKUP($A134,Filtro!$A$5:$AK$2951,27,FALSE),0) -> 2296 | AD134: =IFERROR(VLOOKUP($A134,Filtro!$A$5:$AK$2951,28,FALSE),0) -> 0 | AE134: =IFERROR(VLOOKUP($A134,Filtro!$A$5:$AK$2951,29,FALSE),0) -> 0 | AF134: =IFERROR(VLOOKUP($A134,Filtro!$A$5:$AK$2951,30,FALSE),0) -> 0 | AG134: =IFERROR(VLOOKUP($A134,Filtro!$A$5:$AK$2951,31,FALSE),0) -> 0 | AH134: =IFERROR(VLOOKUP($A134,Filtro!$A$5:$AK$2951,32,FALSE),0) -> 0 | AI134: =IFERROR(VLOOKUP($A134,Filtro!$A$5:$AK$2951,33,FALSE),0) -> 0 | AJ134: =IFERROR(VLOOKUP($A134,Filtro!$A$5:$AK$2951,34,FALSE),0) -> 0 | AK134: =IFERROR(VLOOKUP($A134,Filtro!$A$5:$AK$2951,35,FALSE),0) -> 0 | AL134: 2,550 | AM134: 5,854,800
A135: 01014375 | B135: 0103007 | C135: Educación de grupo por nutricionista | D135: =IFERROR(VLOOKUP($A135,Filtro!$A$5:$AK$2951,2,FALSE),0) -> 96 | E135: =IFERROR(VLOOKUP($A135,Filtro!$A$5:$AK$2951,3,FALSE),0) -> 96 | F135: =IFERROR(VLOOKUP($A135,Filtro!$A$5:$AK$2951,4,FALSE),0) -> 96 | G135: =IFERROR(VLOOKUP($A135,Filtro!$A$5:$AK$2951,5,FALSE),0) -> 0 | H135: =IFERROR(VLOOKUP($A135,Filtro!$A$5:$AK$2951,6,FALSE),0) -> 0 | AB135: =IFERROR(VLOOKUP($A135,Filtro!$A$5:$AK$2951,26,FALSE),0) -> 0 | AC135: =IFERROR(VLOOKUP($A135,Filtro!$A$5:$AK$2951,27,FALSE),0) -> 96 | AD135: =IFERROR(VLOOKUP($A135,Filtro!$A$5:$AK$2951,28,FALSE),0) -> 0 | AE135: =IFERROR(VLOOKUP($A135,Filtro!$A$5:$AK$2951,29,FALSE),0) -> 0 | AF135: =IFERROR(VLOOKUP($A135,Filtro!$A$5:$AK$2951,30,FALSE),0) -> 0 | AG135: =IFERROR(VLOOKUP($A135,Filtro!$A$5:$AK$2951,31,FALSE),0) -> 0 | AH135: =IFERROR(VLOOKUP($A135,Filtro!$A$5:$AK$2951,32,FALSE),0) -> 0 | AI135: =IFERROR(VLOOKUP($A135,Filtro!$A$5:$AK$2951,33,FALSE),0) -> 0 | AJ135: =IFERROR(VLOOKUP($A135,Filtro!$A$5:$AK$2951,34,FALSE),0) -> 0 | AK135: =IFERROR(VLOOKUP($A135,Filtro!$A$5:$AK$2951,35,FALSE),0) -> 0 | AL135: 2,550 | AM135: 244,800
C136: TOTAL ARANCEL MAI | D136: =SUM(D130:D135) -> 29380 | E136: =SUM(E130:E135) -> 29380 | F136: =SUM(F130:F135) -> 28860 | G136: =SUM(G130:G135) -> 520 | H136: =SUM(H130:H135) -> 0 | AB136: =SUM(AB130:AB135) -> 24372 | AC136: 5008 | AD136: 0 | AE136: 0 | AF136: 0 | AG136: 0 | AH136: 0 | AI136: 0 | AJ136: 0 | AK136: 0 | AM136: =SUM(AM130:AM135) -> 74,943,140
A137: 01010033 | B137: 01010033 | C137: Educación de grupo por otro integrante del equipo de salud | D137: =IFERROR(VLOOKUP($A137,Filtro!$A$5:$AK$2951,2,FALSE),0) -> 1658 | E137: =IFERROR(VLOOKUP($A137,Filtro!$A$5:$AK$2951,3,FALSE),0) -> 1658 | F137: =IFERROR(VLOOKUP($A137,Filtro!$A$5:$AK$2951,4,FALSE),0) -> 1658 | G137: =IFERROR(VLOOKUP($A137,Filtro!$A$5:$AK$2951,5,FALSE),0) -> 0 | H137: =IFERROR(VLOOKUP($A137,Filtro!$A$5:$AK$2951,6,FALSE),0) -> 0 | AB137: =IFERROR(VLOOKUP($A137,Filtro!$A$5:$AK$2951,26,FALSE),0) -> 367 | AC137: =IFERROR(VLOOKUP($A137,Filtro!$A$5:$AK$2951,27,FALSE),0) -> 1262 | AD137: =IFERROR(VLOOKUP($A137,Filtro!$A$5:$AK$2951,28,FALSE),0) -> 0 | AE137: =IFERROR(VLOOKUP($A137,Filtro!$A$5:$AK$2951,29,FALSE),0) -> 0 | AF137: =IFERROR(VLOOKUP($A137,Filtro!$A$5:$AK$2951,30,FALSE),0) -> 0 | AG137: =IFERROR(VLOOKUP($A137,Filtro!$A$5:$AK$2951,31,FALSE),0) -> 0 | AH137: =IFERROR(VLOOKUP($A137,Filtro!$A$5:$AK$2951,32,FALSE),0) -> 0 | AI137: =IFERROR(VLOOKUP($A137,Filtro!$A$5:$AK$2951,33,FALSE),0) -> 0 | AJ137: =IFERROR(VLOOKUP($A137,Filtro!$A$5:$AK$2951,34,FALSE),0) -> 0 | AK137: =IFERROR(VLOOKUP($A137,Filtro!$A$5:$AK$2951,35,FALSE),0) -> 0 | AL137: 0 | AM137: 0
C138: TOTAL ARANCEL MLE Y NO ARANCELADO | D138: =+D137 -> 1658 | E138: =+E137 -> 1658 | F138: =+F137 -> 1658 | G138: =+G137 -> 0 | H138: =+H137 -> 0 | AB138: =+AB137 -> 367 | AC138: 1262 | AD138: 0 | AE138: 0 | AF138: 0 | AG138: 0 | AH138: 0 | AI138: 0 | AJ138: 0 | AK138: 0 | AM138: 0
C139: TOTAL PRODUCCION | D139: =+D138+D136 -> 31038 | E139: =+E138+E136 -> 31038 | F139: =+F138+F136 -> 30518 | G139: =+G138+G136 -> 520 | H139: =+H138+H136 -> 0 | AB139: =+AB138+AB136 -> 24739 | AC139: 6270 | AD139: 0 | AE139: 0 | AF139: 0 | AG139: 0 | AH139: 0 | AI139: 0 | AJ139: 0 | AK139: 0 | AM139: =SUM(AM136+AM138) -> 74,943,140
C140: VISITAS DOMICILIARIAS
A141: 01010035 | B141: 0104002 | C141: Visita a domicilio por asistente social | D141: =IFERROR(VLOOKUP($A141,Filtro!$A$5:$AK$2951,2,FALSE),0) -> 2562 | E141: =IFERROR(VLOOKUP($A141,Filtro!$A$5:$AK$2951,3,FALSE),0) -> 2561 | F141: =IFERROR(VLOOKUP($A141,Filtro!$A$5:$AK$2951,4,FALSE),0) -> 2561 | G141: =IFERROR(VLOOKUP($A141,Filtro!$A$5:$AK$2951,5,FALSE),0) -> 0 | H141: =IFERROR(VLOOKUP($A141,Filtro!$A$5:$AK$2951,6,FALSE),0) -> 1 | AB141: =IFERROR(VLOOKUP($A141,Filtro!$A$5:$AK$2951,26,FALSE),0) -> 2 | AC141: =IFERROR(VLOOKUP($A141,Filtro!$A$5:$AK$2951,27,FALSE),0) -> 2546 | AD141: =IFERROR(VLOOKUP($A141,Filtro!$A$5:$AK$2951,28,FALSE),0) -> 0 | AE141: =IFERROR(VLOOKUP($A141,Filtro!$A$5:$AK$2951,29,FALSE),0) -> 0 | AF141: =IFERROR(VLOOKUP($A141,Filtro!$A$5:$AK$2951,30,FALSE),0) -> 0 | AG141: =IFERROR(VLOOKUP($A141,Filtro!$A$5:$AK$2951,31,FALSE),0) -> 0 | AH141: =IFERROR(VLOOKUP($A141,Filtro!$A$5:$AK$2951,32,FALSE),0) -> 0 | AI141: =IFERROR(VLOOKUP($A141,Filtro!$A$5:$AK$2951,33,FALSE),0) -> 0 | AJ141: =IFERROR(VLOOKUP($A141,Filtro!$A$5:$AK$2951,34,FALSE),0) -> 0 | AK141: =IFERROR(VLOOKUP($A141,Filtro!$A$5:$AK$2951,35,FALSE),0) -> 0 | AL141: 2,210 | AM141: =AL141*F141 -> 5,659,810
A142: 01010036 | B142: 0104003 | C142: Visita a domicilio por auxiliar de enfermería | D142: =IFERROR(VLOOKUP($A142,Filtro!$A$5:$AK$2951,2,FALSE),0) -> 11010 | E142: =IFERROR(VLOOKUP($A142,Filtro!$A$5:$AK$2951,3,FALSE),0) -> 11010 | F142: =IFERROR(VLOOKUP($A142,Filtro!$A$5:$AK$2951,4,FALSE),0) -> 11010 | G142: =IFERROR(VLOOKUP($A142,Filtro!$A$5:$AK$2951,5,FALSE),0) -> 0 | H142: =IFERROR(VLOOKUP($A142,Filtro!$A$5:$AK$2951,6,FALSE),0) -> 0 | AB142: =IFERROR(VLOOKUP($A142,Filtro!$A$5:$AK$2951,26,FALSE),0) -> 10225 | AC142: =IFERROR(VLOOKUP($A142,Filtro!$A$5:$AK$2951,27,FALSE),0) -> 785 | AD142: =IFERROR(VLOOKUP($A142,Filtro!$A$5:$AK$2951,28,FALSE),0) -> 0 | AE142: =IFERROR(VLOOKUP($A142,Filtro!$A$5:$AK$2951,29,FALSE),0) -> 0 | AF142: =IFERROR(VLOOKUP($A142,Filtro!$A$5:$AK$2951,30,FALSE),0) -> 0 | AG142: =IFERROR(VLOOKUP($A142,Filtro!$A$5:$AK$2951,31,FALSE),0) -> 0 | AH142: =IFERROR(VLOOKUP($A142,Filtro!$A$5:$AK$2951,32,FALSE),0) -> 0 | AI142: =IFERROR(VLOOKUP($A142,Filtro!$A$5:$AK$2951,33,FALSE),0) -> 0 | AJ142: =IFERROR(VLOOKUP($A142,Filtro!$A$5:$AK$2951,34,FALSE),0) -> 0 | AK142: =IFERROR(VLOOKUP($A142,Filtro!$A$5:$AK$2951,35,FALSE),0) -> 0 | AL142: 1,270 | AM142: =AL142*F142 -> 13,982,700
A143: 01014376 | B143: 0104004 | C143: Visita a domicilio por enfermera | D143: =IFERROR(VLOOKUP($A143,Filtro!$A$5:$AK$2951,2,FALSE),0) -> 25854 | E143: =IFERROR(VLOOKUP($A143,Filtro!$A$5:$AK$2951,3,FALSE),0) -> 25750 | F143: =IFERROR(VLOOKUP($A143,Filtro!$A$5:$AK$2951,4,FALSE),0) -> 25748 | G143: =IFERROR(VLOOKUP($A143,Filtro!$A$5:$AK$2951,5,FALSE),0) -> 2 | H143: =IFERROR(VLOOKUP($A143,Filtro!$A$5:$AK$2951,6,FALSE),0) -> 104 | AB143: =IFERROR(VLOOKUP($A143,Filtro!$A$5:$AK$2951,26,FALSE),0) -> 17072 | AC143: =IFERROR(VLOOKUP($A143,Filtro!$A$5:$AK$2951,27,FALSE),0) -> 8450 | AD143: =IFERROR(VLOOKUP($A143,Filtro!$A$5:$AK$2951,28,FALSE),0) -> 206 | AE143: =IFERROR(VLOOKUP($A143,Filtro!$A$5:$AK$2951,29,FALSE),0) -> 0 | AF143: =IFERROR(VLOOKUP($A143,Filtro!$A$5:$AK$2951,30,FALSE),0) -> 0 | AG143: =IFERROR(VLOOKUP($A143,Filtro!$A$5:$AK$2951,31,FALSE),0) -> 0 | AH143: =IFERROR(VLOOKUP($A143,Filtro!$A$5:$AK$2951,32,FALSE),0) -> 0 | AI143: =IFERROR(VLOOKUP($A143,Filtro!$A$5:$AK$2951,33,FALSE),0) -> 0 | AJ143: =IFERROR(VLOOKUP($A143,Filtro!$A$5:$AK$2951,34,FALSE),0) -> 0 | AK143: =IFERROR(VLOOKUP($A143,Filtro!$A$5:$AK$2951,35,FALSE),0) -> 0 | AL143: 2,210 | AM143: =AL143*F143 -> 56,903,080
A144: 01014377 | B144: 0104005 | C144: Visita a domicilio por matrona | D144: =IFERROR(VLOOKUP($A144,Filtro!$A$5:$AK$2951,2,FALSE),0) -> 133 | E144: =IFERROR(VLOOKUP($A144,Filtro!$A$5:$AK$2951,3,FALSE),0) -> 133 | F144: =IFERROR(VLOOKUP($A144,Filtro!$A$5:$AK$2951,4,FALSE),0) -> 133 | G144: =IFERROR(VLOOKUP($A144,Filtro!$A$5:$AK$2951,5,FALSE),0) -> 0 | H144: =IFERROR(VLOOKUP($A144,Filtro!$A$5:$AK$2951,6,FALSE),0) -> 0 | AB144: =IFERROR(VLOOKUP($A144,Filtro!$A$5:$AK$2951,26,FALSE),0) -> 0 | AC144: =IFERROR(VLOOKUP($A144,Filtro!$A$5:$AK$2951,27,FALSE),0) -> 133 | AD144: =IFERROR(VLOOKUP($A144,Filtro!$A$5:$AK$2951,28,FALSE),0) -> 0 | AE144: =IFERROR(VLOOKUP($A144,Filtro!$A$5:$AK$2951,29,FALSE),0) -> 0 | AF144: =IFERROR(VLOOKUP($A144,Filtro!$A$5:$AK$2951,30,FALSE),0) -> 0 | AG144: =IFERROR(VLOOKUP($A144,Filtro!$A$5:$AK$2951,31,FALSE),0) -> 0 | AH144: =IFERROR(VLOOKUP($A144,Filtro!$A$5:$AK$2951,32,FALSE),0) -> 0 | AI144: =IFERROR(VLOOKUP($A144,Filtro!$A$5:$AK$2951,33,FALSE),0) -> 0 | AJ144: =IFERROR(VLOOKUP($A144,Filtro!$A$5:$AK$2951,34,FALSE),0) -> 0 | AK144: =IFERROR(VLOOKUP($A144,Filtro!$A$5:$AK$2951,35,FALSE),0) -> 0 | AL144: 2,210 | AM144: =AL144*F144 -> 293,930
A145: 01014378 | B145: 0104006 | C145: Visita a domicilio por nutricionista | D145: =IFERROR(VLOOKUP($A145,Filtro!$A$5:$AK$2951,2,FALSE),0) -> 1048 | E145: =IFERROR(VLOOKUP($A145,Filtro!$A$5:$AK$2951,3,FALSE),0) -> 1048 | F145: =IFERROR(VLOOKUP($A145,Filtro!$A$5:$AK$2951,4,FALSE),0) -> 1048 | G145: =IFERROR(VLOOKUP($A145,Filtro!$A$5:$AK$2951,5,FALSE),0) -> 0 | H145: =IFERROR(VLOOKUP($A145,Filtro!$A$5:$AK$2951,6,FALSE),0) -> 0 | AB145: =IFERROR(VLOOKUP($A145,Filtro!$A$5:$AK$2951,26,FALSE),0) -> 469 | AC145: =IFERROR(VLOOKUP($A145,Filtro!$A$5:$AK$2951,27,FALSE),0) -> 525 | AD145: =IFERROR(VLOOKUP($A145,Filtro!$A$5:$AK$2951,28,FALSE),0) -> 0 | AE145: =IFERROR(VLOOKUP($A145,Filtro!$A$5:$AK$2951,29,FALSE),0) -> 0 | AF145: =IFERROR(VLOOKUP($A145,Filtro!$A$5:$AK$2951,30,FALSE),0) -> 0 | AG145: =IFERROR(VLOOKUP($A145,Filtro!$A$5:$AK$2951,31,FALSE),0) -> 0 | AH145: =IFERROR(VLOOKUP($A145,Filtro!$A$5:$AK$2951,32,FALSE),0) -> 0 | AI145: =IFERROR(VLOOKUP($A145,Filtro!$A$5:$AK$2951,33,FALSE),0) -> 0 | AJ145: =IFERROR(VLOOKUP($A145,Filtro!$A$5:$AK$2951,34,FALSE),0) -> 0 | AK145: =IFERROR(VLOOKUP($A145,Filtro!$A$5:$AK$2951,35,FALSE),0) -> 0 | AL145: 2,210 | AM145: =AL145*F145 -> 2,316,080
C146: TOTAL ARANCEL MAI | D146: =SUM(D141:D145) -> 40607 | E146: =SUM(E141:E145) -> 40502 | F146: =SUM(F141:F145) -> 40500 | G146: =SUM(G141:G145) -> 2 | H146: =SUM(H141:H145) -> 105 | AB146: =SUM(AB141:AB145) -> 27768 | AC146: 12439 | AD146: 206 | AE146: 0 | AF146: 0 | AG146: 0 | AH146: 0 | AI146: 0 | AJ146: 0 | AK146: 0 | AM146: =SUM(AM141:AM145) -> 79,155,600
A147: 01010037 | B147: 01010037 | C147: Visita a domicilio por otro integrante del equipo de salud | D147: =IFERROR(VLOOKUP($A147,Filtro!$A$5:$AK$2951,2,FALSE),0) -> 20639 | E147: =IFERROR(VLOOKUP($A147,Filtro!$A$5:$AK$2951,3,FALSE),0) -> 20552 | F147: =IFERROR(VLOOKUP($A147,Filtro!$A$5:$AK$2951,4,FALSE),0) -> 20552 | G147: =IFERROR(VLOOKUP($A147,Filtro!$A$5:$AK$2951,5,FALSE),0) -> 0 | H147: =IFERROR(VLOOKUP($A147,Filtro!$A$5:$AK$2951,6,FALSE),0) -> 87 | AB147: =IFERROR(VLOOKUP($A147,Filtro!$A$5:$AK$2951,26,FALSE),0) -> 14943 | AC147: =IFERROR(VLOOKUP($A147,Filtro!$A$5:$AK$2951,27,FALSE),0) -> 5662 | AD147: =IFERROR(VLOOKUP($A147,Filtro!$A$5:$AK$2951,28,FALSE),0) -> 0 | AE147: =IFERROR(VLOOKUP($A147,Filtro!$A$5:$AK$2951,29,FALSE),0) -> 0 | AF147: =IFERROR(VLOOKUP($A147,Filtro!$A$5:$AK$2951,30,FALSE),0) -> 0 | AG147: =IFERROR(VLOOKUP($A147,Filtro!$A$5:$AK$2951,31,FALSE),0) -> 0 | AH147: =IFERROR(VLOOKUP($A147,Filtro!$A$5:$AK$2951,32,FALSE),0) -> 0 | AI147: =IFERROR(VLOOKUP($A147,Filtro!$A$5:$AK$2951,33,FALSE),0) -> 0 | AJ147: =IFERROR(VLOOKUP($A147,Filtro!$A$5:$AK$2951,34,FALSE),0) -> 0 | AK147: =IFERROR(VLOOKUP($A147,Filtro!$A$5:$AK$2951,35,FALSE),0) -> 0 | AL147: 0 | AM147: 0
A148: 01010038 | B148: 01010038 | C148: Visita domiciaria por otro profesional y técnicos paramédico | D148: =IFERROR(VLOOKUP($A148,Filtro!$A$5:$AK$2951,2,FALSE),0) -> 8246 | E148: =IFERROR(VLOOKUP($A148,Filtro!$A$5:$AK$2951,3,FALSE),0) -> 8246 | F148: =IFERROR(VLOOKUP($A148,Filtro!$A$5:$AK$2951,4,FALSE),0) -> 8246 | G148: =IFERROR(VLOOKUP($A148,Filtro!$A$5:$AK$2951,5,FALSE),0) -> 0 | H148: =IFERROR(VLOOKUP($A148,Filtro!$A$5:$AK$2951,6,FALSE),0) -> 0 | AB148: =IFERROR(VLOOKUP($A148,Filtro!$A$5:$AK$2951,26,FALSE),0) -> 7220 | AC148: =IFERROR(VLOOKUP($A148,Filtro!$A$5:$AK$2951,27,FALSE),0) -> 935 | AD148: =IFERROR(VLOOKUP($A148,Filtro!$A$5:$AK$2951,28,FALSE),0) -> 58 | AE148: =IFERROR(VLOOKUP($A148,Filtro!$A$5:$AK$2951,29,FALSE),0) -> 0 | AF148: =IFERROR(VLOOKUP($A148,Filtro!$A$5:$AK$2951,30,FALSE),0) -> 0 | AG148: =IFERROR(VLOOKUP($A148,Filtro!$A$5:$AK$2951,31,FALSE),0) -> 0 | AH148: =IFERROR(VLOOKUP($A148,Filtro!$A$5:$AK$2951,32,FALSE),0) -> 0 | AI148: =IFERROR(VLOOKUP($A148,Filtro!$A$5:$AK$2951,33,FALSE),0) -> 0 | AJ148: =IFERROR(VLOOKUP($A148,Filtro!$A$5:$AK$2951,34,FALSE),0) -> 0 | AK148: =IFERROR(VLOOKUP($A148,Filtro!$A$5:$AK$2951,35,FALSE),0) -> 0 | AL148: 0 | AM148: 0
C149: TOTAL ARANCEL MLE Y NO ARANCELADO | D149: =SUM(D147:D148) -> 28885 | E149: =SUM(E147:E148) -> 28798 | F149: =SUM(F147:F148) -> 28798 | G149: =SUM(G147:G148) -> 0 | H149: =SUM(H147:H148) -> 87 | AB149: =SUM(AB147:AB148) -> 22163 | AC149: 6597 | AD149: 58 | AE149: 0 | AF149: 0 | AG149: 0 | AH149: 0 | AI149: 0 | AJ149: 0 | AK149: 0
C150: TOTAL | D150: =SUM(D146+D149) -> 69492 | E150: =SUM(E146+E149) -> 69300 | F150: =SUM(F146+F149) -> 69298 | G150: =SUM(G146+G149) -> 2 | H150: =SUM(H146+H149) -> 192 | AB150: =SUM(AB146+AB149) -> 49931 | AC150: 19036 | AD150: 264 | AE150: 0 | AF150: 0 | AG150: 0 | AH150: 0 | AI150: 0 | AJ150: 0 | AK150: 0 | AM150: =SUM(AM146+AM149) -> 79,155,600
C151: MISCELANEOS
A152: 01010042 | B152: 0106002 | C152: Curación simple ambulatoria | D152: =IFERROR(VLOOKUP($A152,Filtro!$A$5:$AK$2951,2,FALSE),0) -> 36503 | E152: =IFERROR(VLOOKUP($A152,Filtro!$A$5:$AK$2951,3,FALSE),0) -> 36479 | F152: =IFERROR(VLOOKUP($A152,Filtro!$A$5:$AK$2951,4,FALSE),0) -> 36469 | G152: =IFERROR(VLOOKUP($A152,Filtro!$A$5:$AK$2951,5,FALSE),0) -> 10 | H152: =IFERROR(VLOOKUP($A152,Filtro!$A$5:$AK$2951,6,FALSE),0) -> 24 | AB152: =IFERROR(VLOOKUP($A152,Filtro!$A$5:$AK$2951,26,FALSE),0) -> 3920 | AC152: =IFERROR(VLOOKUP($A152,Filtro!$A$5:$AK$2951,27,FALSE),0) -> 28832 | AD152: =IFERROR(VLOOKUP($A152,Filtro!$A$5:$AK$2951,28,FALSE),0) -> 3777 | AE152: =IFERROR(VLOOKUP($A152,Filtro!$A$5:$AK$2951,29,FALSE),0) -> 0 | AF152: =IFERROR(VLOOKUP($A152,Filtro!$A$5:$AK$2951,30,FALSE),0) -> 0 | AG152: =IFERROR(VLOOKUP($A152,Filtro!$A$5:$AK$2951,31,FALSE),0) -> 0 | AH152: =IFERROR(VLOOKUP($A152,Filtro!$A$5:$AK$2951,32,FALSE),0) -> 0 | AI152: =IFERROR(VLOOKUP($A152,Filtro!$A$5:$AK$2951,33,FALSE),0) -> 0 | AJ152: =IFERROR(VLOOKUP($A152,Filtro!$A$5:$AK$2951,34,FALSE),0) -> 0 | AK152: =IFERROR(VLOOKUP($A152,Filtro!$A$5:$AK$2951,35,FALSE),0) -> 0 | AL152: 850 | AM152: =AL152*F152 -> 30,998,650
A153: 01014379 | B153: 0106007 | C153: Oxigenoterapia Hiperbárica (1 sesión) | D153: =IFERROR(VLOOKUP($A153,Filtro!$A$5:$AK$2951,2,FALSE),0) -> 121 | E153: =IFERROR(VLOOKUP($A153,Filtro!$A$5:$AK$2951,3,FALSE),0) -> 121 | F153: =IFERROR(VLOOKUP($A153,Filtro!$A$5:$AK$2951,4,FALSE),0) -> 121 | G153: =IFERROR(VLOOKUP($A153,Filtro!$A$5:$AK$2951,5,FALSE),0) -> 0 | H153: =IFERROR(VLOOKUP($A153,Filtro!$A$5:$AK$2951,6,FALSE),0) -> 0 | AB153: =IFERROR(VLOOKUP($A153,Filtro!$A$5:$AK$2951,26,FALSE),0) -> 0 | AC153: =IFERROR(VLOOKUP($A153,Filtro!$A$5:$AK$2951,27,FALSE),0) -> 121 | AD153: =IFERROR(VLOOKUP($A153,Filtro!$A$5:$AK$2951,28,FALSE),0) -> 0 | AE153: =IFERROR(VLOOKUP($A153,Filtro!$A$5:$AK$2951,29,FALSE),0) -> 0 | AF153: =IFERROR(VLOOKUP($A153,Filtro!$A$5:$AK$2951,30,FALSE),0) -> 0 | AG153: =IFERROR(VLOOKUP($A153,Filtro!$A$5:$AK$2951,31,FALSE),0) -> 0 | AH153: =IFERROR(VLOOKUP($A153,Filtro!$A$5:$AK$2951,32,FALSE),0) -> 0 | AI153: =IFERROR(VLOOKUP($A153,Filtro!$A$5:$AK$2951,33,FALSE),0) -> 0 | AJ153: =IFERROR(VLOOKUP($A153,Filtro!$A$5:$AK$2951,34,FALSE),0) -> 0 | AK153: =IFERROR(VLOOKUP($A153,Filtro!$A$5:$AK$2951,35,FALSE),0) -> 0 | AL153: 26,200 | AM153: =AL153*F153 -> 3,170,200
A154: 01014705 | B154: 0106101 | C154: Atención Integral de Acupuntura | D154: =IFERROR(VLOOKUP($A154,Filtro!$A$5:$AK$2951,2,FALSE),0) -> 1046 | E154: =IFERROR(VLOOKUP($A154,Filtro!$A$5:$AK$2951,3,FALSE),0) -> 1046 | F154: =IFERROR(VLOOKUP($A154,Filtro!$A$5:$AK$2951,4,FALSE),0) -> 1046 | G154: =IFERROR(VLOOKUP($A154,Filtro!$A$5:$AK$2951,5,FALSE),0) -> 0 | H154: =IFERROR(VLOOKUP($A154,Filtro!$A$5:$AK$2951,6,FALSE),0) -> 0 | AB154: =IFERROR(VLOOKUP($A154,Filtro!$A$5:$AK$2951,26,FALSE),0) -> 0 | AC154: =IFERROR(VLOOKUP($A154,Filtro!$A$5:$AK$2951,27,FALSE),0) -> 1046 | AD154: =IFERROR(VLOOKUP($A154,Filtro!$A$5:$AK$2951,28,FALSE),0) -> 0 | AE154: =IFERROR(VLOOKUP($A154,Filtro!$A$5:$AK$2951,29,FALSE),0) -> 0 | AF154: =IFERROR(VLOOKUP($A154,Filtro!$A$5:$AK$2951,30,FALSE),0) -> 0 | AG154: =IFERROR(VLOOKUP($A154,Filtro!$A$5:$AK$2951,31,FALSE),0) -> 0 | AH154: =IFERROR(VLOOKUP($A154,Filtro!$A$5:$AK$2951,32,FALSE),0) -> 0 | AI154: =IFERROR(VLOOKUP($A154,Filtro!$A$5:$AK$2951,33,FALSE),0) -> 0 | AJ154: =IFERROR(VLOOKUP($A154,Filtro!$A$5:$AK$2951,34,FALSE),0) -> 0 | AK154: =IFERROR(VLOOKUP($A154,Filtro!$A$5:$AK$2951,35,FALSE),0) -> 113 | AL154: 6,110 | AM154: =AL154*F154 -> 6,391,060
C155: TOTAL ARANCEL MAI | D155: =SUM(D152:D154) -> 37670 | E155: =SUM(E152:E154) -> 37646 | F155: =SUM(F152:F154) -> 37636 | G155: =SUM(G152:G154) -> 10 | H155: =SUM(H152:H154) -> 24 | AB155: =SUM(AB152:AB154) -> 3920 | AC155: 29999 | AD155: 3777 | AE155: 0 | AF155: 0 | AG155: 0 | AH155: 0 | AI155: 0 | AJ155: 0 | AK155: 113 | AM155: =SUM(AM152:AM154) -> 40559910
A156: 01014706 | B156: 01010043 | C156: Autocontrol pacientes Diabetico insulino dependiente (D.I.D. mensual) | D156: =IFERROR(VLOOKUP($A156,Filtro!$A$5:$AK$2951,2,FALSE),0) -> 8410 | E156: =IFERROR(VLOOKUP($A156,Filtro!$A$5:$AK$2951,3,FALSE),0) -> 8410 | F156: =IFERROR(VLOOKUP($A156,Filtro!$A$5:$AK$2951,4,FALSE),0) -> 8410 | G156: =IFERROR(VLOOKUP($A156,Filtro!$A$5:$AK$2951,5,FALSE),0) -> 0 | H156: =IFERROR(VLOOKUP($A156,Filtro!$A$5:$AK$2951,6,FALSE),0) -> 0 | I156: 0 | J156: 0 | K156: 0 | L156: 0 | M156: 0 | N156: 0 | O156: 0 | P156: 0 | Q156: 0 | R156: 0 | S156: 0 | T156: 0 | U156: 0 | V156: 0 | W156: 0 | X156: 0 | Y156: 0 | Z156: 0 | AA156: 0 | AB156: =IFERROR(VLOOKUP($A156,Filtro!$A$5:$AK$2951,26,FALSE),0) -> 0 | AC156: =IFERROR(VLOOKUP($A156,Filtro!$A$5:$AK$2951,27,FALSE),0) -> 8410 | AD156: =IFERROR(VLOOKUP($A156,Filtro!$A$5:$AK$2951,28,FALSE),0) -> 0 | AE156: =IFERROR(VLOOKUP($A156,Filtro!$A$5:$AK$2951,29,FALSE),0) -> 0 | AF156: =IFERROR(VLOOKUP($A156,Filtro!$A$5:$AK$2951,30,FALSE),0) -> 0 | AG156: =IFERROR(VLOOKUP($A156,Filtro!$A$5:$AK$2951,31,FALSE),0) -> 0 | AH156: =IFERROR(VLOOKUP($A156,Filtro!$A$5:$AK$2951,32,FALSE),0) -> 0 | AI156: =IFERROR(VLOOKUP($A156,Filtro!$A$5:$AK$2951,33,FALSE),0) -> 0 | AJ156: =IFERROR(VLOOKUP($A156,Filtro!$A$5:$AK$2951,34,FALSE),0) -> 0 | AK156: =IFERROR(VLOOKUP($A156,Filtro!$A$5:$AK$2951,35,FALSE),0) -> 0 | AL156: 0 | AM156: 0
A157: 01014707 | B157: 01010044 | C157: Oxigenoterapia domiciliaria (pacientes oxígeno dependientes) | D157: =IFERROR(VLOOKUP($A157,Filtro!$A$5:$AK$2951,2,FALSE),0) -> 242 | E157: =IFERROR(VLOOKUP($A157,Filtro!$A$5:$AK$2951,3,FALSE),0) -> 242 | F157: =IFERROR(VLOOKUP($A157,Filtro!$A$5:$AK$2951,4,FALSE),0) -> 242 | G157: =IFERROR(VLOOKUP($A157,Filtro!$A$5:$AK$2951,5,FALSE),0) -> 0 | H157: =IFERROR(VLOOKUP($A157,Filtro!$A$5:$AK$2951,6,FALSE),0) -> 0 | I157: 0 | J157: 0 | K157: 0 | L157: 0 | M157: 0 | N157: 0 | O157: 0 | P157: 0 | Q157: 0 | R157: 0 | S157: 0 | T157: 0 | U157: 0 | V157: 0 | W157: 0 | X157: 0 | Y157: 0 | Z157: 0 | AA157: 0 | AB157: =IFERROR(VLOOKUP($A157,Filtro!$A$5:$AK$2951,26,FALSE),0) -> 0 | AC157: =IFERROR(VLOOKUP($A157,Filtro!$A$5:$AK$2951,27,FALSE),0) -> 242 | AD157: =IFERROR(VLOOKUP($A157,Filtro!$A$5:$AK$2951,28,FALSE),0) -> 0 | AE157: =IFERROR(VLOOKUP($A157,Filtro!$A$5:$AK$2951,29,FALSE),0) -> 0 | AF157: =IFERROR(VLOOKUP($A157,Filtro!$A$5:$AK$2951,30,FALSE),0) -> 0 | AG157: =IFERROR(VLOOKUP($A157,Filtro!$A$5:$AK$2951,31,FALSE),0) -> 0 | AH157: =IFERROR(VLOOKUP($A157,Filtro!$A$5:$AK$2951,32,FALSE),0) -> 0 | AI157: =IFERROR(VLOOKUP($A157,Filtro!$A$5:$AK$2951,33,FALSE),0) -> 0 | AJ157: =IFERROR(VLOOKUP($A157,Filtro!$A$5:$AK$2951,34,FALSE),0) -> 0 | AK157: =IFERROR(VLOOKUP($A157,Filtro!$A$5:$AK$2951,35,FALSE),0) -> 0 | AL157: 0 | AM157: 0
A158: 01010047 | B158: 01010047 | C158: Procedimientos de podología | D158: =IFERROR(VLOOKUP($A158,Filtro!$A$5:$AK$2951,2,FALSE),0) -> 2410 | E158: =IFERROR(VLOOKUP($A158,Filtro!$A$5:$AK$2951,3,FALSE),0) -> 2410 | F158: =IFERROR(VLOOKUP($A158,Filtro!$A$5:$AK$2951,4,FALSE),0) -> 2410 | G158: =IFERROR(VLOOKUP($A158,Filtro!$A$5:$AK$2951,5,FALSE),0) -> 0 | H158: =IFERROR(VLOOKUP($A158,Filtro!$A$5:$AK$2951,6,FALSE),0) -> 0 | I158: 0 | J158: 0 | K158: 0 | L158: 0 | M158: 0 | N158: 0 | O158: 0 | P158: 0 | Q158: 0 | R158: 0 | S158: 0 | T158: 0 | U158: 0 | V158: 0 | W158: 0 | X158: 0 | Y158: 0 | Z158: 0 | AA158: 0 | AB158: =IFERROR(VLOOKUP($A158,Filtro!$A$5:$AK$2951,26,FALSE),0) -> 100 | AC158: =IFERROR(VLOOKUP($A158,Filtro!$A$5:$AK$2951,27,FALSE),0) -> 2293 | AD158: =IFERROR(VLOOKUP($A158,Filtro!$A$5:$AK$2951,28,FALSE),0) -> 0 | AE158: =IFERROR(VLOOKUP($A158,Filtro!$A$5:$AK$2951,29,FALSE),0) -> 0 | AF158: =IFERROR(VLOOKUP($A158,Filtro!$A$5:$AK$2951,30,FALSE),0) -> 0 | AG158: =IFERROR(VLOOKUP($A158,Filtro!$A$5:$AK$2951,31,FALSE),0) -> 0 | AH158: =IFERROR(VLOOKUP($A158,Filtro!$A$5:$AK$2951,32,FALSE),0) -> 0 | AI158: =IFERROR(VLOOKUP($A158,Filtro!$A$5:$AK$2951,33,FALSE),0) -> 0 | AJ158: =IFERROR(VLOOKUP($A158,Filtro!$A$5:$AK$2951,34,FALSE),0) -> 75 | AK158: =IFERROR(VLOOKUP($A158,Filtro!$A$5:$AK$2951,35,FALSE),0) -> 0 | AL158: 0 | AM158: 0
C159: TOTAL ARANCEL MLE Y NO ARANCELADO | D159: =SUM(D156:D158) -> 11062 | E159: =SUM(E156:E158) -> 11062 | F159: =SUM(F156:F158) -> 11062 | G159: =SUM(G156:G158) -> 0 | H159: =SUM(H156:H158) -> 0 | AB159: =SUM(AB156:AB158) -> 100 | AC159: 10945 | AD159: 0 | AE159: 0 | AF159: 0 | AG159: 0 | AH159: 0 | AI159: 0 | AJ159: 75 | AK159: 0
C160: TOTAL PRODUCCION | D160: =SUM(D155+D159) -> 48732 | E160: =SUM(E155+E159) -> 48708 | F160: =SUM(F155+F159) -> 48698 | G160: =SUM(G155+G159) -> 10 | H160: =SUM(H155+H159) -> 24 | AB160: =SUM(AB155+AB159) -> 4020 | AC160: 40944 | AD160: 3777 | AE160: 0 | AF160: 0 | AG160: 0 | AH160: 0 | AI160: 0 | AJ160: 75 | AK160: 113 | AM160: =SUM(AM155+AM159) -> 40,559,910
C161: OTRAS MISCELANEOS
A162: 01010048 | B162: 5099048 | C162: Hemoglucotest instantáneo | D162: =IFERROR(VLOOKUP($A162,Filtro!$A$5:$AK$2951,2,FALSE),0) -> 745909 | E162: =IFERROR(VLOOKUP($A162,Filtro!$A$5:$AK$2951,3,FALSE),0) -> 745909 | F162: =IFERROR(VLOOKUP($A162,Filtro!$A$5:$AK$2951,4,FALSE),0) -> 745909 | G162: =IFERROR(VLOOKUP($A162,Filtro!$A$5:$AK$2951,5,FALSE),0) -> 0 | H162: =IFERROR(VLOOKUP($A162,Filtro!$A$5:$AK$2951,6,FALSE),0) -> 0 | AB162: =IFERROR(VLOOKUP($A162,Filtro!$A$5:$AK$2951,26,FALSE),0) -> 168250 | AC162: =IFERROR(VLOOKUP($A162,Filtro!$A$5:$AK$2951,27,FALSE),0) -> 544592 | AD162: =IFERROR(VLOOKUP($A162,Filtro!$A$5:$AK$2951,28,FALSE),0) -> 33067 | AE162: =IFERROR(VLOOKUP($A162,Filtro!$A$5:$AK$2951,29,FALSE),0) -> 0 | AF162: =IFERROR(VLOOKUP($A162,Filtro!$A$5:$AK$2951,30,FALSE),0) -> 0 | AG162: =IFERROR(VLOOKUP($A162,Filtro!$A$5:$AK$2951,31,FALSE),0) -> 0 | AH162: =IFERROR(VLOOKUP($A162,Filtro!$A$5:$AK$2951,32,FALSE),0) -> 0 | AI162: =IFERROR(VLOOKUP($A162,Filtro!$A$5:$AK$2951,33,FALSE),0) -> 0 | AJ162: =IFERROR(VLOOKUP($A162,Filtro!$A$5:$AK$2951,34,FALSE),0) -> 0 | AK162: =IFERROR(VLOOKUP($A162,Filtro!$A$5:$AK$2951,35,FALSE),0) -> 0 | AL162: 0 | AM162: 0
A163: 01010049 | B163: 5099008 | C163: Actividad Básica | D163: =IFERROR(VLOOKUP($A163,Filtro!$A$5:$AK$2951,2,FALSE),0) -> 1850 | E163: =IFERROR(VLOOKUP($A163,Filtro!$A$5:$AK$2951,3,FALSE),0) -> 1850 | F163: =IFERROR(VLOOKUP($A163,Filtro!$A$5:$AK$2951,4,FALSE),0) -> 1850 | G163: =IFERROR(VLOOKUP($A163,Filtro!$A$5:$AK$2951,5,FALSE),0) -> 0 | H163: =IFERROR(VLOOKUP($A163,Filtro!$A$5:$AK$2951,6,FALSE),0) -> 0 | AB163: =IFERROR(VLOOKUP($A163,Filtro!$A$5:$AK$2951,26,FALSE),0) -> 0 | AC163: =IFERROR(VLOOKUP($A163,Filtro!$A$5:$AK$2951,27,FALSE),0) -> 1850 | AD163: =IFERROR(VLOOKUP($A163,Filtro!$A$5:$AK$2951,28,FALSE),0) -> 0 | AE163: =IFERROR(VLOOKUP($A163,Filtro!$A$5:$AK$2951,29,FALSE),0) -> 0 | AF163: =IFERROR(VLOOKUP($A163,Filtro!$A$5:$AK$2951,30,FALSE),0) -> 0 | AG163: =IFERROR(VLOOKUP($A163,Filtro!$A$5:$AK$2951,31,FALSE),0) -> 0 | AH163: =IFERROR(VLOOKUP($A163,Filtro!$A$5:$AK$2951,32,FALSE),0) -> 0 | AI163: =IFERROR(VLOOKUP($A163,Filtro!$A$5:$AK$2951,33,FALSE),0) -> 0 | AJ163: =IFERROR(VLOOKUP($A163,Filtro!$A$5:$AK$2951,34,FALSE),0) -> 0 | AK163: =IFERROR(VLOOKUP($A163,Filtro!$A$5:$AK$2951,35,FALSE),0) -> 0 | AL163: 0 | AM163: 0
